Workbook

Sheet Resource Options
B2: Long Description | C2: Tab | D2: Storage (MWh) | E2: Plant Size (MW) (59F)
B3: 7F.04 CT Frame Greenfield | C3: Fuel Gen | E3: 180.495
B4: Reciprocating Engine (ICE) Machine | C4: Fuel Gen | E4: 185.438
B5: NG CCCT (1x1 w/DF) | C5: Fuel Gen | E5: 311.536
B6: Small Modular Reactor | C6: Other PPA | E6: 100
B7: Northwest Wind (On System) | C7: Wind PPA | E7: 100
B8: Northwest Wind (Off System) | C8: Wind PPA | E8: 100
B9: Montana Wind (Off System) | C9: Wind PPA | E9: 100
B10: Off Shore Wind (Off System) | C10: Wind PPA | E10: 100
B11: New Construction Residential Solar | C11: Solar PPA | E11: =7/1.15/1000 -> 0.006086956522
B12: New Construction Residential Solar + Storage | C12: Solar PPA | D12: 0.005 | E12: =E11 -> 0.006086956522
B13: Residential Solar | C13: Solar PPA | E13: =E11 -> 0.006086956522
B14: Residential Solar + Storage | C14: Solar PPA | D14: =D12 -> 0.005 | E14: =E13 -> 0.006086956522
B15: Commercial Solar | C15: Solar PPA | E15: 1
B16: Commercial Solar + Storage | C16: Solar PPA | D16: 1 | E16: =E15 -> 1
B17: Low-Income Community Solar | C17: Solar PPA | E17: =E18 -> 5
B18: Solar Photovoltaic Fixed Array (5 MW AC) | C18: Solar PPA | E18: 5
B19: Solar Photovoltaic Fixed Array (5 MW AC) + Storage | C19: Solar PPA | D19: 5 | E19: =E18 -> 5
B20: Solar Photovoltaic w/Single Axis Tracking (100 MW AC) | C20: Solar PPA | E20: 100
B21: Southern NW Solar Photovoltaic w/ Single Axis Tracking (100 MW AC) | C21: Solar PPA | E21: 100
B22: 100 MW/400 MWh Lithium-ion w/100 MW Solar | C22: Solar PPA | D22: 100 | E22: =E20 -> 100
B23: 100 MW/200 MWh Lithium-ion w/100 MW Solar | C23: Solar PPA | D23: 100 | E23: =E20 -> 100
B24: 50 MW/200 MWh Lithium-ion w/100 MW Solar | C24: Solar PPA | D24: 50 | E24: =E20 -> 100
B25: Distribution Scale 4hr Lithium-ion | C25: Ownership Storage | D25: =E25*4 -> 20 | E25: 5
B26: Distribution Scale 8hr Lithium-ion | C26: Ownership Storage | D26: =E26*8 -> 40 | E26: 5
B27: 4hr Lithium-ion | C27: Ownership Storage | D27: =E27*4 -> 100 | E27: 25
B28: 8hr Lithium-ion | C28: Ownership Storage | D28: =E28*8 -> 200 | E28: 25
B29: 16hr Lithium-ion | C29: Ownership Storage | D29: =E29*16 -> 400 | E29: 25
B30: 4 hr Flow Battery | C30: Ownership Storage | D30: =E30*4 -> 100 | E30: 25
B31: 8 hr Flow Battery | C31: Ownership Storage | D31: =E31*8 -> 200 | E31: 25
B32: 100hr Iron Oxide | C32: Ownership Storage | D32: =E32*100 -> 10000 | E32: 100
B33: Geothermal (Off System) | C33: Other PPA | E33: 20
B34: Hydrogen Fuel Cell with 40 hrs Storage | C34: Fuel Gen | E34: 25
B35: 7F.04 CT Frame Greenfield + Power to Gas + storage | C35: Fuel Gen | E35: 90
B36: 7F.04 CT Frame Greenfield + RNG | C36: Fuel Gen | E36: 90
B37: Pumped Hydro (8 hr) | C37: Ownership Storage | D37: =E37*8 -> 3200 | E37: 400
B38: Pumped Hydro (16 hr) | C38: Ownership Storage | D38: =E38*16 -> 1600 | E38: 100
B39: Pumped Hydro (24 hr) | C39: Ownership Storage | D39: =E39*24 -> 2400 | E39: 100
B40: Kettle Falls 2nd Biomass Unit | C40: Upgrades | E40: 57.6
B41: Rathdrum CT 2055 Uprates two unit operation | C41: Upgrades | E41: 5
B42: Rathdrum CT: Inlet Evaporation 2 unit operation | C42: Upgrades | E42: 10
B43: Kettle Falls Upgrade | C43: Upgrades | E43: 11
B44: Palouse Repower | C44: Upgrades | E44: 120
B45: Rattlesnake Repower | C45: Upgrades | E45: 180
B46: Lind Repower | C46: Upgrades | E46: 25

Sheet DATA (Real)
G1: Real Dollar Year | L1: Year: | M1: =_xlfn.SEQUENCE(1,81,2020,1) -> 2020 | N1: 2021 | O1: 2022 | P1: 2023 | Q1: 2024 | R1: 2025 | S1: 2026 | T1: 2027 | U1: 2028 | V1: 2029 | W1: 2030 | X1: 2031 | Y1: 2032 | Z1: 2033 | AA1: 2034 | AB1: 2035 | AC1: 2036 | AD1: 2037 | AE1: 2038 | AF1: 2039 | AG1: 2040 | AH1: 2041 | AI1: 2042 | AJ1: 2043 | AK1: 2044 | AL1: 2045 | AM1: 2046 | AN1: 2047 | AO1: 2048 | AP1: 2049 | AQ1: 2050 | AR1: 2051 | AS1: 2052 | AT1: 2053 | AU1: 2054 | AV1: 2055 | AW1: 2056 | AX1: 2057 | AY1: 2058 | AZ1: 2059 | BA1: 2060 | BB1: 2061 | BC1: 2062 | BD1: 2063 | BE1: 2064 | BF1: 2065 | BG1: 2066 | BH1: 2067 | BI1: 2068 | BJ1: 2069 | BK1: 2070 | BL1: 2071 | BM1: 2072 | BN1: 2073 | BO1: 2074 | BP1: 2075 | BQ1: 2076 | BR1: 2077 | BS1: 2078 | BT1: 2079 | BU1: 2080 | BV1: 2081 | BW1: 2082 | BX1: 2083 | BY1: 2084 | BZ1: 2085 | CA1: 2086 | CB1: 2087 | CC1: 2088 | CD1: 2089 | CE1: 2090 | CF1: 2091 | CG1: 2092 | CH1: 2093 | CI1: 2094 | CJ1: 2095 | CK1: 2096 | CL1: 2097 | CM1: 2098 | CN1: 2099 | CO1: 2100
N2: 2.855528249 | O2: 2.636964255 | P2: 2.737344813 | Q2: 2.871088868 | R2: 2.867821515 | S2: 2.974199936 | T2: 3.056070404 | U2: 3.14641745 | V2: 3.198399532 | W2: 3.257258217 | X2: 3.324369097 | Y2: 3.38040118 | Z2: 3.436516222 | AA2: 3.491535676 | AB2: 3.54276035 | AC2: 3.588368975 | AD2: 3.629801698 | AE2: 3.670496044 | AF2: 3.709698236 | AG2: 3.74719945 | AH2: 3.781832201 | AI2: 3.815088274 | AJ2: 3.84757248 | AK2: 3.878733987 | AL2: 3.909169319 | AM2: 3.937328554 | AN2: 3.965449133 | AO2: 3.993518544 | AP2: 4.020928613 | AQ2: 4.046742986
N3: 1.598313505 | O3: 1.446247708 | P3: 1.536620056 | Q3: 1.623466618 | R3: 1.596784124 | S3: 1.649819204 | T3: 1.685838398 | U3: 1.720122397 | V3: 1.742230122 | W3: 1.768349435 | X3: 1.796715449 | Y3: 1.820728773 | Z3: 1.843666705 | AA3: 1.865005686 | AB3: 1.884117455 | AC3: 1.900234667 | AD3: 1.914478136 | AE3: 1.928275903 | AF3: 1.94160895 | AG3: 1.9537166 | AH3: 1.96393856 | AI3: 1.971884315 | AJ3: 1.97950824 | AK3: 1.986744224 | AL3: 1.994060743 | AM3: 2.000708779 | AN3: 2.00697436 | AO3: 2.013138768 | AP3: 2.018959838 | AQ3: 2.025091765
B5: Net Capacity Factor (%)
B6: =List_Resources -> 7F.04 CT Frame Greenfield
B7: Reciprocating Engine (ICE) Machine
B8: NG CCCT (1x1 w/DF)
B9: Small Modular Reactor | C9: NREL | D9: Net Capacity Factor (%) | E9: Nuclear - Small Modular Reactor | F9: Moderate | N9: 0.927 | O9: 0.927 | P9: 0.927 | Q9: 0.927 | R9: 0.927 | S9: 0.927 | T9: 0.927 | U9: 0.927 | V9: 0.927 | W9: 0.927 | X9: 0.927 | Y9: 0.927 | Z9: 0.927 | AA9: 0.927 | AB9: 0.927 | AC9: 0.927 | AD9: 0.927 | AE9: 0.927 | AF9: 0.927 | AG9: 0.927 | AH9: 0.927 | AI9: 0.927 | AJ9: 0.927 | AK9: 0.927 | AL9: 0.927 | AM9: 0.927 | AN9: 0.927 | AO9: 0.927 | AP9: 0.927 | AQ9: 0.927 | AR9: =AQ9 -> 0.927 | AS9: =AR9 -> 0.927 | AT9: 0.927 | AU9: 0.927 | AV9: 0.927 | AW9: 0.927 | AX9: 0.927 | AY9: 0.927 | AZ9: 0.927 | BA9: 0.927 | BB9: 0.927 | BC9: 0.927 | BD9: 0.927 | BE9: 0.927 | BF9: 0.927 | BG9: 0.927 | BH9: 0.927 | BI9: 0.927 | BJ9: 0.927 | BK9: 0.927 | BL9: 0.927 | BM9: 0.927 | BN9: 0.927 | BO9: 0.927 | BP9: 0.927 | BQ9: 0.927 | BR9: 0.927 | BS9: 0.927 | BT9: 0.927 | BU9: 0.927 | BV9: 0.927 | BW9: 0.927 | BX9: 0.927 | BY9: 0.927 | BZ9: 0.927 | CA9: 0.927 | CB9: 0.927 | CC9: 0.927 | CD9: 0.927 | CE9: 0.927 | CF9: 0.927 | CG9: 0.927 | CH9: 0.927 | CI9: 0.927 | CJ9: 0.927 | CK9: 0.927 | CL9: 0.927 | CM9: 0.927 | CN9: 0.927 | CO9: 0.927
B10: Northwest Wind (On System) | C10: NREL | D10: Net Capacity Factor (%) | E10: Land-Based Wind - Class 8 - Technology 2 | F10: Moderate | N10: 0.33939 | O10: 0.3419971111 | P10: 0.3446042222 | Q10: 0.3472113333 | R10: 0.3498184444 | S10: 0.3524255556 | T10: =S10*1.0164 -> 0.3582053347 | U10: =T10*1.0164 -> 0.3640799022 | V10: 0.3700508126 | W10: 0.3761196459 | X10: =W10*1.001 -> 0.3764957655 | Y10: =X10*1.001 -> 0.3768722613 | Z10: 0.3772491335 | AA10: 0.3776263827 | AB10: 0.3780040091 | AC10: 0.3783820131 | AD10: 0.3787603951 | AE10: 0.3791391555 | AF10: 0.3795182946 | AG10: 0.3798978129 | AH10: 0.3802777107 | AI10: 0.3806579885 | AJ10: 0.3810386464 | AK10: 0.3814196851 | AL10: 0.3818011048 | AM10: 0.3821829059 | AN10: 0.3825650888 | AO10: 0.3829476539 | AP10: 0.3833306015 | AQ10: 0.3837139321 | AR10: 0.3840976461 | AS10: 0.3844817437 | AT10: 0.3848662255 | AU10: 0.3852510917 | AV10: 0.3856363428 | AW10: 0.3860219791 | AX10: 0.3864080011 | AY10: 0.3867944091 | AZ10: 0.3871812035 | BA10: 0.3875683847 | BB10: 0.3879559531 | BC10: 0.388343909 | BD10: 0.388732253 | BE10: 0.3891209852 | BF10: 0.3895101062 | BG10: 0.3898996163 | BH10: 0.3902895159 | BI10: 0.3906798054 | BJ10: 0.3910704852 | BK10: 0.3914615557 | BL10: 0.3918530173 | BM10: 0.3922448703 | BN10: 0.3926371152 | BO10: 0.3930297523 | BP10: 0.393422782 | BQ10: 0.3938162048 | BR10: 0.394210021 | BS10: 0.394604231 | BT10: 0.3949988353 | BU10: 0.3953938341 | BV10: 0.3957892279 | BW10: 0.3961850172 | BX10: 0.3965812022 | BY10: 0.3969777834 | BZ10: 0.3973747612 | CA10: 0.3977721359 | CB10: 0.3981699081 | CC10: 0.398568078 | CD10: 0.3989666461 | CE10: 0.3993656127 | CF10: 0.3997649783 | CG10: 0.4001647433 | CH10: 0.400564908 | CI10: 0.4009654729 | CJ10: 0.4013664384 | CK10: =CJ10*1.001 -> 0.4017678049 | CL10: 0.4021695727 | CM10: 0.4025717422 | CN10: 0.402974314 | CO10: 0.4033772883
B11: Northwest Wind (Off System) | C11: =C10 -> NREL | D11: Net Capacity Factor (%) | E11: Land-Based Wind - Class 8 - Technology 2 | F11: Moderate | N11: =N10 -> 0.33939 | O11: 0.3419971111 | P11: 0.3446042222 | Q11: 0.3472113333 | R11: 0.3498184444 | S11: 0.3524255556 | T11: 0.3582053347 | U11: 0.3640799022 | V11: 0.3700508126 | W11: 0.3761196459 | X11: 0.3764957655 | Y11: 0.3768722613 | Z11: 0.3772491335 | AA11: 0.3776263827 | AB11: 0.3780040091 | AC11: 0.3783820131 | AD11: 0.3787603951 | AE11: 0.3791391555 | AF11: 0.3795182946 | AG11: 0.3798978129 | AH11: 0.3802777107 | AI11: 0.3806579885 | AJ11: 0.3810386464 | AK11: 0.3814196851 | AL11: 0.3818011048 | AM11: 0.3821829059 | AN11: 0.3825650888 | AO11: 0.3829476539 | AP11: 0.3833306015 | AQ11: 0.3837139321 | AR11: 0.3840976461 | AS11: 0.3844817437 | AT11: 0.3848662255 | AU11: 0.3852510917 | AV11: 0.3856363428 | AW11: 0.3860219791 | AX11: 0.3864080011 | AY11: 0.3867944091 | AZ11: 0.3871812035 | BA11: 0.3875683847 | BB11: 0.3879559531 | BC11: 0.388343909 | BD11: 0.388732253 | BE11: 0.3891209852 | BF11: 0.3895101062 | BG11: 0.3898996163 | BH11: 0.3902895159 | BI11: 0.3906798054 | BJ11: 0.3910704852 | BK11: 0.3914615557 | BL11: 0.3918530173 | BM11: 0.3922448703 | BN11: 0.3926371152 | BO11: 0.3930297523 | BP11: 0.393422782 | BQ11: 0.3938162048 | BR11: 0.394210021 | BS11: 0.394604231 | BT11: 0.3949988353 | BU11: 0.3953938341 | BV11: 0.3957892279 | BW11: 0.3961850172 | BX11: 0.3965812022 | BY11: 0.3969777834 | BZ11: =BZ10 -> 0.3973747612 | CA11: 0.3977721359 | CB11: 0.3981699081 | CC11: 0.398568078 | CD11: 0.3989666461 | CE11: 0.3993656127 | CF11: 0.3997649783 | CG11: 0.4001647433 | CH11: 0.400564908 | CI11: 0.4009654729 | CJ11: 0.4013664384 | CK11: 0.4017678049 | CL11: 0.4021695727 | CM11: 0.4025717422 | CN11: 0.402974314 | CO11: 0.4033772883
B12: Montana Wind (Off System) | C12: Internal | M12: 0.42 | N12: 0.42 | O12: 0.42 | P12: 0.42 | Q12: 0.42 | R12: 0.42 | S12: 0.42 | T12: =S12*1.0164 -> 0.426888 | U12: =T12*1.0164 -> 0.4338889632 | V12: 0.4410047422 | W12: 0.44823722 | X12: =W12*1.001 -> 0.4486854572 | Y12: =X12*1.001 -> 0.4491341426 | Z12: 0.4495832768 | AA12: 0.4500328601 | AB12: 0.4504828929 | AC12: 0.4509333758 | AD12: 0.4513843092 | AE12: 0.4518356935 | AF12: 0.4522875292 | AG12: 0.4527398167 | AH12: 0.4531925565 | AI12: 0.4536457491 | AJ12: 0.4540993948 | AK12: 0.4545534942 | AL12: 0.4550080477 | AM12: 0.4554630558 | AN12: 0.4559185188 | AO12: 0.4563744374 | AP12: 0.4568308118 | AQ12: 0.4572876426 | AR12: 0.4577449303 | AS12: 0.4582026752 | AT12: 0.4586608779 | AU12: 0.4591195387 | AV12: 0.4595786583 | AW12: 0.4600382369 | AX12: 0.4604982752 | AY12: 0.4609587734 | AZ12: 0.4614197322 | BA12: 0.4618811519 | BB12: 0.4623430331 | BC12: 0.4628053761 | BD12: 0.4632681815 | BE12: 0.4637314497 | BF12: 0.4641951811 | BG12: 0.4646593763 | BH12: 0.4651240357 | BI12: 0.4655891597 | BJ12: 0.4660547489 | BK12: 0.4665208036 | BL12: 0.4669873244 | BM12: 0.4674543118 | BN12: 0.4679217661 | BO12: 0.4683896878 | BP12: 0.4688580775 | BQ12: 0.4693269356 | BR12: 0.4697962626 | BS12: 0.4702660588 | BT12: 0.4707363249 | BU12: 0.4712070612 | BV12: 0.4716782683 | BW12: 0.4721499465 | BX12: 0.4726220965 | BY12: 0.4730947186 | BZ12: 0.4735678133 | CA12: 0.4740413811 | CB12: 0.4745154225 | CC12: 0.4749899379 | CD12: 0.4754649278 | CE12: 0.4759403928 | CF12: 0.4764163332 | CG12: 0.4768927495 | CH12: 0.4773696422 | CI12: 0.4778470119 | CJ12: 0.4783248589 | CK12: =CJ12*1.001 -> 0.4788031838 | CL12: 0.4792819869 | CM12: 0.4797612689 | CN12: 0.4802410302 | CO12: 0.4807212712
B13: Off Shore Wind (Off System) | C13: NREL | D13: Net Capacity Factor (%) | E13: Offshore Wind - Class 12 | F13: Moderate | N13: 0.4668178941 | O13: 0.4713267726 | P13: 0.4755596161 | Q13: 0.4796019705 | R13: 0.4835048988 | S13: 0.4873013381 | T13: 0.4910137773 | U13: 0.494658257 | V13: 0.4982466208 | W13: 0.5017878631 | X13: 0.5032889752 | Y13: 0.5047554993 | Z13: 0.5061919036 | AA13: 0.5076018423 | AB13: 0.5089883428 | AC13: 0.510353941 | AD13: 0.5117007821 | AE13: 0.5130306972 | AF13: 0.5143452617 | AG13: 0.5156458409 | AH13: 0.5169336256 | AI13: 0.5182096605 | AJ13: 0.5194748678 | AK13: 0.5207300648 | AL13: 0.5219759799 | AM13: 0.5232132645 | AN13: 0.524442504 | AO13: 0.5256642262 | AP13: 0.5268789083 | AQ13: 0.5280869837 | AR13: =AQ13*AQ13/AP13 -> 0.5292978291 | AS13: =AR13*AR13/AQ13 -> 0.5305114509 | AT13: 0.5317278554 | AU13: 0.5329470489 | AV13: 0.534169038 | AW13: 0.5353938289 | AX13: 0.5366214281 | AY13: 0.5378518421 | AZ13: 0.5390850772 | BA13: 0.5403211401 | BB13: 0.5415600371 | BC13: 0.5428017748 | BD13: 0.5440463596 | BE13: 0.5452937981 | BF13: 0.5465440969 | BG13: 0.5477972624 | BH13: 0.5490533014 | BI13: 0.5503122203 | BJ13: 0.5515740257 | BK13: 0.5528387244 | BL13: 0.5541063228 | BM13: 0.5553768277 | BN13: 0.5566502458 | BO13: 0.5579265836 | BP13: 0.559205848 | BQ13: 0.5604880456 | BR13: 0.5617731831 | BS13: 0.5630612672 | BT13: 0.5643523049 | BU13: 0.5656463027 | BV13: 0.5669432675 | BW13: 0.5682432061 | BX13: 0.5695461254 | BY13: 0.5708520321 | BZ13: 0.5721609331 | CA13: 0.5734728352 | CB13: 0.5747877454 | CC13: 0.5761056706 | CD13: 0.5774266176 | CE13: 0.5787505933 | CF13: 0.5800776049 | CG13: 0.5814076591 | CH13: 0.582740763 | CI13: 0.5840769235 | CJ13: 0.5854161477 | CK13: 0.5867584426 | CL13: 0.5881038153 | CM13: 0.5894522727 | CN13: 0.590803822 | CO13: 0.5921584702
B14: New Construction Residential Solar | C14: NREL | D14: Net Capacity Factor (%) | E14: Residential PV - Class 8 | F14: Moderate | N14: 0.1367929937 | O14: 0.1369381888 | P14: 0.1370833839 | Q14: 0.137228579 | R14: 0.1373737741 | S14: 0.1375189693 | T14: 0.1376641644 | U14: 0.1378093595 | V14: 0.1379545546 | W14: 0.1380997497 | X14: 0.1382449448 | Y14: 0.1383901399 | Z14: 0.138535335 | AA14: 0.1386805301 | AB14: 0.1388257253 | AC14: 0.1390647278 | AD14: 0.1393037303 | AE14: 0.1395427329 | AF14: 0.1397817354 | AG14: 0.1400207379 | AH14: 0.1402597405 | AI14: 0.140498743 | AJ14: 0.1407377455 | AK14: 0.1409767481 | AL14: 0.1412157506 | AM14: 0.1414547531 | AN14: 0.1416937557 | AO14: 0.1419327582 | AP14: 0.1421717607 | AQ14: 0.1424107633 | AR14: =AQ14*1.002 -> 0.1426955848 | AS14: =AR14*1.002 -> 0.142980976 | AT14: 0.1432669379 | AU14: 0.1435534718 | AV14: 0.1438405788 | AW14: 0.1441282599 | AX14: 0.1444165164 | AY14: 0.1447053495 | AZ14: 0.1449947602 | BA14: 0.1452847497 | BB14: 0.1455753192 | BC14: 0.1458664698 | BD14: 0.1461582028 | BE14: 0.1464505192 | BF14: 0.1467434202 | BG14: 0.147036907 | BH14: 0.1473309809 | BI14: 0.1476256428 | BJ14: 0.1479208941 | BK14: 0.1482167359 | BL14: 0.1485131694 | BM14: 0.1488101957 | BN14: 0.1491078161 | BO14: 0.1494060317 | BP14: 0.1497048438 | BQ14: 0.1500042535 | BR14: 0.150304262 | BS14: 0.1506048705 | BT14: 0.1509060802 | BU14: 0.1512078924 | BV14: 0.1515103082 | BW14: 0.1518133288 | BX14: 0.1521169555 | BY14: 0.1524211894 | BZ14: 0.1527260318 | CA14: 0.1530314838 | CB14: 0.1533375468 | CC14: 0.1536442219 | CD14: 0.1539515103 | CE14: 0.1542594133 | CF14: 0.1545679322 | CG14: 0.154877068 | CH14: 0.1551868222 | CI14: 0.1554971958 | CJ14: 0.1558081902 | CK14: 0.1561198066 | CL14: 0.1564320462 | CM14: 0.1567449103 | CN14: 0.1570584001 | CO14: 0.1573725169
B15: New Construction Residential Solar + Storage | C15: =C14 -> NREL | D15: =D14 -> Net Capacity Factor (%) | E15: Residential PV - Class 8 | F15: Moderate | N15: =N14 -> 0.1367929937 | O15: 0.1369381888 | P15: 0.1370833839 | Q15: 0.137228579 | R15: 0.1373737741 | S15: 0.1375189693 | T15: 0.1376641644 | U15: 0.1378093595 | V15: 0.1379545546 | W15: 0.1380997497 | X15: 0.1382449448 | Y15: 0.1383901399 | Z15: 0.138535335 | AA15: 0.1386805301 | AB15: 0.1388257253 | AC15: 0.1390647278 | AD15: 0.1393037303 | AE15: 0.1395427329 | AF15: 0.1397817354 | AG15: 0.1400207379 | AH15: 0.1402597405 | AI15: 0.140498743 | AJ15: 0.1407377455 | AK15: 0.1409767481 | AL15: 0.1412157506 | AM15: 0.1414547531 | AN15: 0.1416937557 | AO15: 0.1419327582 | AP15: 0.1421717607 | AQ15: 0.1424107633 | AR15: 0.1426955848 | AS15: 0.142980976 | AT15: 0.1432669379 | AU15: 0.1435534718 | AV15: 0.1438405788 | AW15: 0.1441282599 | AX15: 0.1444165164 | AY15: 0.1447053495 | AZ15: 0.1449947602 | BA15: 0.1452847497 | BB15: 0.1455753192 | BC15: 0.1458664698 | BD15: 0.1461582028 | BE15: 0.1464505192 | BF15: 0.1467434202 | BG15: 0.147036907 | BH15: 0.1473309809 | BI15: 0.1476256428 | BJ15: 0.1479208941 | BK15: 0.1482167359 | BL15: 0.1485131694 | BM15: 0.1488101957 | BN15: 0.1491078161 | BO15: 0.1494060317 | BP15: 0.1497048438 | BQ15: 0.1500042535 | BR15: 0.150304262 | BS15: 0.1506048705 | BT15: 0.1509060802 | BU15: 0.1512078924 | BV15: 0.1515103082 | BW15: 0.1518133288 | BX15: 0.1521169555 | BY15: 0.1524211894 | BZ15: =BZ14 -> 0.1527260318 | CA15: 0.1530314838 | CB15: 0.1533375468 | CC15: 0.1536442219 | CD15: 0.1539515103 | CE15: 0.1542594133 | CF15: 0.1545679322 | CG15: 0.154877068 | CH15: 0.1551868222 | CI15: 0.1554971958 | CJ15: 0.1558081902 | CK15: 0.1561198066 | CL15: 0.1564320462 | CM15: 0.1567449103 | CN15: 0.1570584001 | CO15: 0.1573725169
B16: Residential Solar | C16: =C14 -> NREL | D16: =D14 -> Net Capacity Factor (%) | E16: Residential PV - Class 8 | F16: Moderate | N16: =N14 -> 0.1367929937 | O16: 0.1369381888 | P16: 0.1370833839 | Q16: 0.137228579 | R16: 0.1373737741 | S16: 0.1375189693 | T16: 0.1376641644 | U16: 0.1378093595 | V16: 0.1379545546 | W16: 0.1380997497 | X16: 0.1382449448 | Y16: 0.1383901399 | Z16: 0.138535335 | AA16: 0.1386805301 | AB16: 0.1388257253 | AC16: 0.1390647278 | AD16: 0.1393037303 | AE16: 0.1395427329 | AF16: 0.1397817354 | AG16: 0.1400207379 | AH16: 0.1402597405 | AI16: 0.140498743 | AJ16: 0.1407377455 | AK16: 0.1409767481 | AL16: 0.1412157506 | AM16: 0.1414547531 | AN16: 0.1416937557 | AO16: 0.1419327582 | AP16: 0.1421717607 | AQ16: 0.1424107633 | AR16: 0.1426955848 | AS16: 0.142980976 | AT16: 0.1432669379 | AU16: 0.1435534718 | AV16: 0.1438405788 | AW16: 0.1441282599 | AX16: 0.1444165164 | AY16: 0.1447053495 | AZ16: 0.1449947602 | BA16: 0.1452847497 | BB16: 0.1455753192 | BC16: 0.1458664698 | BD16: 0.1461582028 | BE16: 0.1464505192 | BF16: 0.1467434202 | BG16: 0.147036907 | BH16: 0.1473309809 | BI16: 0.1476256428 | BJ16: 0.1479208941 | BK16: 0.1482167359 | BL16: 0.1485131694 | BM16: 0.1488101957 | BN16: 0.1491078161 | BO16: 0.1494060317 | BP16: 0.1497048438 | BQ16: 0.1500042535 | BR16: 0.150304262 | BS16: 0.1506048705 | BT16: 0.1509060802 | BU16: 0.1512078924 | BV16: 0.1515103082 | BW16: 0.1518133288 | BX16: 0.1521169555 | BY16: 0.1524211894 | BZ16: =BZ14 -> 0.1527260318 | CA16: 0.1530314838 | CB16: 0.1533375468 | CC16: 0.1536442219 | CD16: 0.1539515103 | CE16: 0.1542594133 | CF16: 0.1545679322 | CG16: 0.154877068 | CH16: 0.1551868222 | CI16: 0.1554971958 | CJ16: 0.1558081902 | CK16: 0.1561198066 | CL16: 0.1564320462 | CM16: 0.1567449103 | CN16: 0.1570584001 | CO16: 0.1573725169
B17: Residential Solar + Storage | C17: =C14 -> NREL | D17: =D14 -> Net Capacity Factor (%) | E17: Residential PV - Class 8 | F17: Moderate | N17: =N14 -> 0.1367929937 | O17: 0.1369381888 | P17: 0.1370833839 | Q17: 0.137228579 | R17: 0.1373737741 | S17: 0.1375189693 | T17: 0.1376641644 | U17: 0.1378093595 | V17: 0.1379545546 | W17: 0.1380997497 | X17: 0.1382449448 | Y17: 0.1383901399 | Z17: 0.138535335 | AA17: 0.1386805301 | AB17: 0.1388257253 | AC17: 0.1390647278 | AD17: 0.1393037303 | AE17: 0.1395427329 | AF17: 0.1397817354 | AG17: 0.1400207379 | AH17: 0.1402597405 | AI17: 0.140498743 | AJ17: 0.1407377455 | AK17: 0.1409767481 | AL17: 0.1412157506 | AM17: 0.1414547531 | AN17: 0.1416937557 | AO17: 0.1419327582 | AP17: 0.1421717607 | AQ17: 0.1424107633 | AR17: 0.1426955848 | AS17: 0.142980976 | AT17: 0.1432669379 | AU17: 0.1435534718 | AV17: 0.1438405788 | AW17: 0.1441282599 | AX17: 0.1444165164 | AY17: 0.1447053495 | AZ17: 0.1449947602 | BA17: 0.1452847497 | BB17: 0.1455753192 | BC17: 0.1458664698 | BD17: 0.1461582028 | BE17: 0.1464505192 | BF17: 0.1467434202 | BG17: 0.147036907 | BH17: 0.1473309809 | BI17: 0.1476256428 | BJ17: 0.1479208941 | BK17: 0.1482167359 | BL17: 0.1485131694 | BM17: 0.1488101957 | BN17: 0.1491078161 | BO17: 0.1494060317 | BP17: 0.1497048438 | BQ17: 0.1500042535 | BR17: 0.150304262 | BS17: 0.1506048705 | BT17: 0.1509060802 | BU17: 0.1512078924 | BV17: 0.1515103082 | BW17: 0.1518133288 | BX17: 0.1521169555 | BY17: 0.1524211894 | BZ17: =BZ14 -> 0.1527260318 | CA17: 0.1530314838 | CB17: 0.1533375468 | CC17: 0.1536442219 | CD17: 0.1539515103 | CE17: 0.1542594133 | CF17: 0.1545679322 | CG17: 0.154877068 | CH17: 0.1551868222 | CI17: 0.1554971958 | CJ17: 0.1558081902 | CK17: 0.1561198066 | CL17: 0.1564320462 | CM17: 0.1567449103 | CN17: 0.1570584001 | CO17: 0.1573725169
B18: Commercial Solar | C18: NREL | D18: Net Capacity Factor (%) | E18: Commercial PV - Class 8 | F18: Moderate | N18: 0.1385417092 | O18: 0.1392429525 | P18: 0.1399441958 | Q18: 0.1406454391 | R18: 0.1413466823 | S18: 0.1420479256 | T18: 0.1427491689 | U18: 0.1434504121 | V18: 0.1441516554 | W18: 0.1448528987 | X18: 0.145554142 | Y18: 0.1462553852 | Z18: 0.1469566285 | AA18: 0.1476578718 | AB18: 0.148359115 | AC18: 0.1488505314 | AD18: 0.1493419478 | AE18: 0.1498333642 | AF18: 0.1503247806 | AG18: 0.1508161969 | AH18: 0.1513076133 | AI18: 0.1517990297 | AJ18: 0.1522904461 | AK18: 0.1527818625 | AL18: 0.1532732789 | AM18: 0.1537646952 | AN18: 0.1542561116 | AO18: 0.154747528 | AP18: 0.1552389444 | AQ18: 0.1557303608 | AR18: =AQ18*1.002 -> 0.1560418215 | AS18: 0.1563539051 | AT18: 0.1566666129 | AU18: 0.1569799462 | AV18: 0.1572939061 | AW18: 0.1576084939 | AX18: 0.1579237109 | AY18: 0.1582395583 | AZ18: 0.1585560374 | BA18: 0.1588731495 | BB18: 0.1591908958 | BC18: 0.1595092776 | BD18: 0.1598282961 | BE18: 0.1601479527 | BF18: 0.1604682486 | BG18: 0.1607891851 | BH18: 0.1611107635 | BI18: 0.161432985 | BJ18: 0.161755851 | BK18: 0.1620793627 | BL18: 0.1624035214 | BM18: 0.1627283284 | BN18: 0.1630537851 | BO18: 0.1633798927 | BP18: 0.1637066525 | BQ18: 0.1640340658 | BR18: 0.1643621339 | BS18: 0.1646908582 | BT18: 0.1650202399 | BU18: 0.1653502804 | BV18: 0.1656809809 | BW18: 0.1660123429 | BX18: 0.1663443676 | BY18: 0.1666770563 | BZ18: 0.1670104104 | CA18: 0.1673444312 | CB18: 0.1676791201 | CC18: 0.1680144783 | CD18: 0.1683505073 | CE18: 0.1686872083 | CF18: 0.1690245827 | CG18: 0.1693626319 | CH18: 0.1697013572 | CI18: 0.1700407599 | CJ18: 0.1703808414 | CK18: 0.1707216031 | CL18: 0.1710630463 | CM18: 0.1714051724 | CN18: 0.1717479827 | CO18: 0.1720914787
B19: Commercial Solar + Storage | C19: =C18 -> NREL | D19: =D18 -> Net Capacity Factor (%) | E19: Commercial PV - Class 8 | F19: Moderate | N19: =N18 -> 0.1385417092 | O19: 0.1392429525 | P19: 0.1399441958 | Q19: 0.1406454391 | R19: 0.1413466823 | S19: 0.1420479256 | T19: 0.1427491689 | U19: 0.1434504121 | V19: 0.1441516554 | W19: 0.1448528987 | X19: 0.145554142 | Y19: 0.1462553852 | Z19: 0.1469566285 | AA19: 0.1476578718 | AB19: 0.148359115 | AC19: 0.1488505314 | AD19: 0.1493419478 | AE19: 0.1498333642 | AF19: 0.1503247806 | AG19: 0.1508161969 | AH19: 0.1513076133 | AI19: 0.1517990297 | AJ19: 0.1522904461 | AK19: 0.1527818625 | AL19: 0.1532732789 | AM19: 0.1537646952 | AN19: 0.1542561116 | AO19: 0.154747528 | AP19: 0.1552389444 | AQ19: 0.1557303608 | AR19: 0.1560418215 | AS19: 0.1563539051 | AT19: 0.1566666129 | AU19: 0.1569799462 | AV19: 0.1572939061 | AW19: 0.1576084939 | AX19: 0.1579237109 | AY19: 0.1582395583 | AZ19: 0.1585560374 | BA19: 0.1588731495 | BB19: 0.1591908958 | BC19: 0.1595092776 | BD19: 0.1598282961 | BE19: 0.1601479527 | BF19: 0.1604682486 | BG19: 0.1607891851 | BH19: 0.1611107635 | BI19: 0.161432985 | BJ19: 0.161755851 | BK19: 0.1620793627 | BL19: 0.1624035214 | BM19: 0.1627283284 | BN19: 0.1630537851 | BO19: 0.1633798927 | BP19: 0.1637066525 | BQ19: 0.1640340658 | BR19: 0.1643621339 | BS19: 0.1646908582 | BT19: 0.1650202399 | BU19: 0.1653502804 | BV19: 0.1656809809 | BW19: 0.1660123429 | BX19: 0.1663443676 | BY19: 0.1666770563 | BZ19: =BZ18 -> 0.1670104104 | CA19: 0.1673444312 | CB19: 0.1676791201 | CC19: 0.1680144783 | CD19: 0.1683505073 | CE19: 0.1686872083 | CF19: 0.1690245827 | CG19: 0.1693626319 | CH19: 0.1697013572 | CI19: 0.1700407599 | CJ19: 0.1703808414 | CK19: 0.1707216031 | CL19: 0.1710630463 | CM19: 0.1714051724 | CN19: 0.1717479827 | CO19: 0.1720914787
B20: Low-Income Community Solar | C20: =C21 -> NREL | D20: =D21 -> Net Capacity Factor (%) | E20: Utility PV - Class 4 | F20: Moderate | N20: =N21 -> 0.2982226381 | O20: =O21 -> 0.2995331438 | P20: 0.3008436496 | Q20: 0.3021541554 | R20: 0.3034646611 | S20: 0.3047751669 | T20: 0.3060856727 | U20: 0.3073961784 | V20: 0.3087066842 | W20: 0.31001719 | X20: 0.3113276957 | Y20: 0.3126382015 | Z20: 0.3139487073 | AA20: 0.315259213 | AB20: 0.3165697188 | AC20: 0.3170376576 | AD20: 0.3175055964 | AE20: 0.3179735352 | AF20: 0.318441474 | AG20: 0.3189094128 | AH20: 0.3193773516 | AI20: 0.3198452904 | AJ20: 0.3203132292 | AK20: 0.320781168 | AL20: 0.3212491068 | AM20: 0.3217170456 | AN20: 0.3221849844 | AO20: 0.3226529232 | AP20: 0.323120862 | AQ20: 0.3235888008 | AR20: 0.3392035239 | AS20: 0.339881931 | AT20: 0.3405616948 | AU20: 0.3412428182 | AV20: 0.3419253039 | AW20: 0.3426091545 | AX20: 0.3432943728 | AY20: 0.3439809615 | AZ20: 0.3446689235 | BA20: 0.3453582613 | BB20: 0.3460489778 | BC20: 0.3467410758 | BD20: 0.3474345579 | BE20: 0.3481294271 | BF20: 0.3488256859 | BG20: 0.3495233373 | BH20: 0.350222384 | BI20: 0.3509228287 | BJ20: 0.3516246744 | BK20: 0.3523279237 | BL20: 0.3530325796 | BM20: 0.3537386447 | BN20: 0.354446122 | BO20: 0.3551550143 | BP20: 0.3558653243 | BQ20: 0.3565770549 | BR20: 0.3572902091 | BS20: 0.3580047895 | BT20: 0.358720799 | BU20: 0.3594382406 | BV20: 0.3601571171 | BW20: 0.3608774314 | BX20: 0.3615991862 | BY20: 0.3623223846 | BZ20: 0.3630470294 | CA20: =CA21 -> 0.3637731234 | CB20: 0.3645006697 | CC20: 0.365229671 | CD20: 0.3659601304 | CE20: 0.3666920506 | CF20: 0.3674254347 | CG20: 0.3681602856 | CH20: 0.3688966062 | CI20: 0.3696343994 | CJ20: 0.3703736682 | CK20: 0.3711144155 | CL20: 0.3718566443 | CM20: 0.3726003576 | CN20: 0.3733455583 | CO20: 0.3740922495
B21: Solar Photovoltaic Fixed Array (5 MW AC) | C21: NREL | D21: Net Capacity Factor (%) | E21: Utility PV - Class 4 | F21: Moderate | N21: 0.2982226381 | O21: 0.2995331438 | P21: 0.3008436496 | Q21: 0.3021541554 | R21: 0.3034646611 | S21: 0.3047751669 | T21: 0.3060856727 | U21: 0.3073961784 | V21: 0.3087066842 | W21: 0.31001719 | X21: 0.3113276957 | Y21: 0.3126382015 | Z21: 0.3139487073 | AA21: 0.315259213 | AB21: 0.3165697188 | AC21: 0.3170376576 | AD21: 0.3175055964 | AE21: 0.3179735352 | AF21: 0.318441474 | AG21: 0.3189094128 | AH21: 0.3193773516 | AI21: 0.3198452904 | AJ21: 0.3203132292 | AK21: 0.320781168 | AL21: 0.3212491068 | AM21: 0.3217170456 | AN21: 0.3221849844 | AO21: 0.3226529232 | AP21: 0.323120862 | AQ21: 0.3235888008 | AR21: =AR23 -> 0.3392035239 | AS21: =AS23 -> 0.339881931 | AT21: =AT23 -> 0.3405616948 | AU21: 0.3412428182 | AV21: 0.3419253039 | AW21: 0.3426091545 | AX21: 0.3432943728 | AY21: 0.3439809615 | AZ21: 0.3446689235 | BA21: 0.3453582613 | BB21: 0.3460489778 | BC21: 0.3467410758 | BD21: 0.3474345579 | BE21: 0.3481294271 | BF21: 0.3488256859 | BG21: 0.3495233373 | BH21: 0.350222384 | BI21: 0.3509228287 | BJ21: 0.3516246744 | BK21: 0.3523279237 | BL21: 0.3530325796 | BM21: 0.3537386447 | BN21: 0.354446122 | BO21: 0.3551550143 | BP21: 0.3558653243 | BQ21: 0.3565770549 | BR21: 0.3572902091 | BS21: 0.3580047895 | BT21: 0.358720799 | BU21: 0.3594382406 | BV21: 0.3601571171 | BW21: 0.3608774314 | BX21: 0.3615991862 | BY21: 0.3623223846 | BZ21: 0.3630470294 | CA21: 0.3637731234 | CB21: 0.3645006697 | CC21: 0.365229671 | CD21: 0.3659601304 | CE21: 0.3666920506 | CF21: 0.3674254347 | CG21: 0.3681602856 | CH21: 0.3688966062 | CI21: 0.3696343994 | CJ21: 0.3703736682 | CK21: 0.3711144155 | CL21: 0.3718566443 | CM21: 0.3726003576 | CN21: 0.3733455583 | CO21: 0.3740922495
B22: Solar Photovoltaic Fixed Array (5 MW AC) + Storage | C22: =C21 -> NREL | D22: =D21 -> Net Capacity Factor (%) | E22: Utility PV - Class 4 | F22: Moderate | N22: =N21 -> 0.2982226381 | O22: =O21 -> 0.2995331438 | P22: 0.3008436496 | Q22: 0.3021541554 | R22: 0.3034646611 | S22: 0.3047751669 | T22: 0.3060856727 | U22: 0.3073961784 | V22: 0.3087066842 | W22: 0.31001719 | X22: 0.3113276957 | Y22: 0.3126382015 | Z22: 0.3139487073 | AA22: 0.315259213 | AB22: 0.3165697188 | AC22: 0.3170376576 | AD22: 0.3175055964 | AE22: 0.3179735352 | AF22: 0.318441474 | AG22: 0.3189094128 | AH22: 0.3193773516 | AI22: 0.3198452904 | AJ22: 0.3203132292 | AK22: 0.320781168 | AL22: 0.3212491068 | AM22: 0.3217170456 | AN22: 0.3221849844 | AO22: 0.3226529232 | AP22: 0.323120862 | AQ22: 0.3235888008 | AR22: 0.3392035239 | AS22: 0.339881931 | AT22: 0.3405616948 | AU22: 0.3412428182 | AV22: 0.3419253039 | AW22: 0.3426091545 | AX22: 0.3432943728 | AY22: 0.3439809615 | AZ22: 0.3446689235 | BA22: 0.3453582613 | BB22: 0.3460489778 | BC22: 0.3467410758 | BD22: 0.3474345579 | BE22: 0.3481294271 | BF22: 0.3488256859 | BG22: 0.3495233373 | BH22: 0.350222384 | BI22: 0.3509228287 | BJ22: 0.3516246744 | BK22: 0.3523279237 | BL22: 0.3530325796 | BM22: 0.3537386447 | BN22: 0.354446122 | BO22: 0.3551550143 | BP22: 0.3558653243 | BQ22: 0.3565770549 | BR22: 0.3572902091 | BS22: 0.3580047895 | BT22: 0.358720799 | BU22: 0.3594382406 | BV22: 0.3601571171 | BW22: 0.3608774314 | BX22: 0.3615991862 | BY22: 0.3623223846 | BZ22: 0.3630470294 | CA22: =CA21 -> 0.3637731234 | CB22: 0.3645006697 | CC22: 0.365229671 | CD22: 0.3659601304 | CE22: 0.3666920506 | CF22: 0.3674254347 | CG22: 0.3681602856 | CH22: 0.3688966062 | CI22: 0.3696343994 | CJ22: 0.3703736682 | CK22: 0.3711144155 | CL22: 0.3718566443 | CM22: 0.3726003576 | CN22: 0.3733455583 | CO22: 0.3740922495
B23: Solar Photovoltaic w/Single Axis Tracking (100 MW AC) | C23: =C21 -> NREL | D23: =D21 -> Net Capacity Factor (%) | E23: Utility PV - Class 4 | F23: Moderate | N23: =N21 -> 0.2982226381 | O23: =O21 -> 0.2995331438 | P23: 0.3008436496 | Q23: 0.3021541554 | R23: 0.3034646611 | S23: 0.3047751669 | T23: =S23*1.0164 -> 0.3097734796 | U23: =T23*1.0164 -> 0.3148537647 | V23: 0.3200173664 | W23: 0.3252656513 | X23: =W23*1.002 -> 0.3259161826 | Y23: =X23*1.002 -> 0.3265680149 | Z23: 0.3272211509 | AA23: 0.3278755932 | AB23: 0.3285313444 | AC23: 0.3291884071 | AD23: 0.3298467839 | AE23: 0.3305064775 | AF23: 0.3311674905 | AG23: 0.3318298254 | AH23: 0.3324934851 | AI23: 0.3331584721 | AJ23: 0.333824789 | AK23: 0.3344924386 | AL23: 0.3351614235 | AM23: 0.3358317463 | AN23: 0.3365034098 | AO23: =AN23*1.002 -> 0.3371764166 | AP23: 0.3378507695 | AQ23: 0.338526471 | AR23: =AQ23*1.002 -> 0.3392035239 | AS23: 0.339881931 | AT23: 0.3405616948 | AU23: 0.3412428182 | AV23: 0.3419253039 | AW23: 0.3426091545 | AX23: 0.3432943728 | AY23: 0.3439809615 | AZ23: 0.3446689235 | BA23: 0.3453582613 | BB23: 0.3460489778 | BC23: 0.3467410758 | BD23: 0.3474345579 | BE23: =BD23*1.002 -> 0.3481294271 | BF23: 0.3488256859 | BG23: 0.3495233373 | BH23: 0.350222384 | BI23: 0.3509228287 | BJ23: 0.3516246744 | BK23: 0.3523279237 | BL23: 0.3530325796 | BM23: 0.3537386447 | BN23: 0.354446122 | BO23: 0.3551550143 | BP23: 0.3558653243 | BQ23: 0.3565770549 | BR23: 0.3572902091 | BS23: 0.3580047895 | BT23: 0.358720799 | BU23: =BT23*1.002 -> 0.3594382406 | BV23: 0.3601571171 | BW23: 0.3608774314 | BX23: 0.3615991862 | BY23: 0.3623223846 | BZ23: 0.3630470294 | CA23: 0.3637731234 | CB23: 0.3645006697 | CC23: 0.365229671 | CD23: 0.3659601304 | CE23: 0.3666920506 | CF23: 0.3674254347 | CG23: 0.3681602856 | CH23: 0.3688966062 | CI23: 0.3696343994 | CJ23: 0.3703736682 | CK23: =CJ23*1.002 -> 0.3711144155 | CL23: 0.3718566443 | CM23: 0.3726003576 | CN23: 0.3733455583 | CO23: 0.3740922495
B24: Southern NW Solar Photovoltaic w/ Single Axis Tracking (100 MW AC) | C24: NREL | D24: Net Capacity Factor (%) | E24: Utility PV - Class 3 | F24: Moderate | N24: 0.313238138 | O24: 0.314535182 | P24: 0.3158322261 | Q24: 0.3171292701 | R24: 0.3184263142 | S24: 0.3197233582 | T24: 0.3249668213 | U24: 0.3302962771 | V24: 0.3357131361 | W24: 0.3412188315 | X24: =W24*1.002 -> 0.3419012692 | Y24: 0.3425850717 | Z24: 0.3432702419 | AA24: 0.3439567824 | AB24: 0.3446446959 | AC24: 0.3453339853 | AD24: 0.3460246533 | AE24: 0.3467167026 | AF24: 0.347410136 | AG24: 0.3481049563 | AH24: 0.3488011662 | AI24: 0.3494987685 | AJ24: 0.350197766 | AK24: 0.3508981616 | AL24: 0.3515999579 | AM24: 0.3523031578 | AN24: 0.3530077641 | AO24: 0.3537137797 | AP24: 0.3544212072 | AQ24: 0.3551300496 | AR24: 0.3558403097 | AS24: 0.3565519904 | AT24: 0.3572650943 | AU24: 0.3579796245 | AV24: 0.3586955838 | AW24: 0.3594129749 | AX24: 0.3601318009 | AY24: 0.3608520645 | AZ24: 0.3615737686 | BA24: 0.3622969162 | BB24: 0.36302151 | BC24: 0.363747553 | BD24: 0.3644750481 | BE24: 0.3652039982 | BF24: 0.3659344062 | BG24: 0.366666275 | BH24: 0.3673996076 | BI24: 0.3681344068 | BJ24: 0.3688706756 | BK24: 0.369608417 | BL24: 0.3703476338 | BM24: 0.3710883291 | BN24: 0.3718305057 | BO24: 0.3725741667 | BP24: 0.3733193151 | BQ24: 0.3740659537 | BR24: 0.3748140856 | BS24: 0.3755637138 | BT24: 0.3763148412 | BU24: 0.3770674709 | BV24: 0.3778216058 | BW24: 0.378577249 | BX24: 0.3793344035 | BY24: 0.3800930723 | BZ24: 0.3808532585 | CA24: 0.381614965 | CB24: 0.3823781949 | CC24: 0.3831429513 | CD24: 0.3839092372 | CE24: 0.3846770557 | CF24: 0.3854464098 | CG24: 0.3862173026 | CH24: 0.3869897372 | CI24: 0.3877637167 | CJ24: 0.3885392441 | CK24: 0.3893163226 | CL24: 0.3900949553 | CM24: 0.3908751452 | CN24: 0.3916568955 | CO24: 0.3924402093
B25: 100 MW/400 MWh Lithium-ion w/100 MW Solar | C25: =C23 -> NREL | D25: =D23 -> Net Capacity Factor (%) | E25: Utility PV - Class 4 | F25: Moderate | N25: =N23 -> 0.2982226381 | O25: 0.2995331438 | P25: 0.3008436496 | Q25: 0.3021541554 | R25: 0.3034646611 | S25: 0.3047751669 | T25: 0.3097734796 | U25: 0.3148537647 | V25: 0.3200173664 | W25: 0.3252656513 | X25: 0.3259161826 | Y25: 0.3265680149 | Z25: 0.3272211509 | AA25: 0.3278755932 | AB25: 0.3285313444 | AC25: 0.3291884071 | AD25: 0.3298467839 | AE25: 0.3305064775 | AF25: 0.3311674905 | AG25: 0.3318298254 | AH25: 0.3324934851 | AI25: 0.3331584721 | AJ25: 0.333824789 | AK25: 0.3344924386 | AL25: 0.3351614235 | AM25: 0.3358317463 | AN25: 0.3365034098 | AO25: 0.3371764166 | AP25: 0.3378507695 | AQ25: 0.338526471 | AR25: 0.3392035239 | AS25: 0.339881931 | AT25: 0.3405616948 | AU25: 0.3412428182 | AV25: 0.3419253039 | AW25: 0.3426091545 | AX25: 0.3432943728 | AY25: 0.3439809615 | AZ25: 0.3446689235 | BA25: 0.3453582613 | BB25: 0.3460489778 | BC25: 0.3467410758 | BD25: 0.3474345579 | BE25: 0.3481294271 | BF25: 0.3488256859 | BG25: 0.3495233373 | BH25: 0.350222384 | BI25: 0.3509228287 | BJ25: 0.3516246744 | BK25: 0.3523279237 | BL25: 0.3530325796 | BM25: 0.3537386447 | BN25: 0.354446122 | BO25: 0.3551550143 | BP25: 0.3558653243 | BQ25: 0.3565770549 | BR25: 0.3572902091 | BS25: 0.3580047895 | BT25: 0.358720799 | BU25: 0.3594382406 | BV25: 0.3601571171 | BW25: 0.3608774314 | BX25: 0.3615991862 | BY25: 0.3623223846 | BZ25: =BZ23 -> 0.3630470294 | CA25: 0.3637731234 | CB25: 0.3645006697 | CC25: 0.365229671 | CD25: 0.3659601304 | CE25: 0.3666920506 | CF25: 0.3674254347 | CG25: 0.3681602856 | CH25: 0.3688966062 | CI25: 0.3696343994 | CJ25: 0.3703736682 | CK25: 0.3711144155 | CL25: 0.3718566443 | CM25: 0.3726003576 | CN25: 0.3733455583 | CO25: 0.3740922495
B26: 100 MW/200 MWh Lithium-ion w/100 MW Solar | C26: =C23 -> NREL | D26: =D23 -> Net Capacity Factor (%) | E26: Utility PV - Class 4 | F26: Moderate | N26: =N23 -> 0.2982226381 | O26: 0.2995331438 | P26: 0.3008436496 | Q26: 0.3021541554 | R26: 0.3034646611 | S26: 0.3047751669 | T26: 0.3097734796 | U26: 0.3148537647 | V26: 0.3200173664 | W26: 0.3252656513 | X26: 0.3259161826 | Y26: 0.3265680149 | Z26: 0.3272211509 | AA26: 0.3278755932 | AB26: 0.3285313444 | AC26: 0.3291884071 | AD26: 0.3298467839 | AE26: 0.3305064775 | AF26: 0.3311674905 | AG26: 0.3318298254 | AH26: 0.3324934851 | AI26: 0.3331584721 | AJ26: 0.333824789 | AK26: 0.3344924386 | AL26: 0.3351614235 | AM26: 0.3358317463 | AN26: 0.3365034098 | AO26: 0.3371764166 | AP26: 0.3378507695 | AQ26: 0.338526471 | AR26: 0.3392035239 | AS26: 0.339881931 | AT26: 0.3405616948 | AU26: 0.3412428182 | AV26: 0.3419253039 | AW26: 0.3426091545 | AX26: 0.3432943728 | AY26: 0.3439809615 | AZ26: 0.3446689235 | BA26: 0.3453582613 | BB26: 0.3460489778 | BC26: 0.3467410758 | BD26: 0.3474345579 | BE26: 0.3481294271 | BF26: 0.3488256859 | BG26: 0.3495233373 | BH26: 0.350222384 | BI26: 0.3509228287 | BJ26: 0.3516246744 | BK26: 0.3523279237 | BL26: 0.3530325796 | BM26: 0.3537386447 | BN26: 0.354446122 | BO26: 0.3551550143 | BP26: 0.3558653243 | BQ26: 0.3565770549 | BR26: 0.3572902091 | BS26: 0.3580047895 | BT26: 0.358720799 | BU26: 0.3594382406 | BV26: 0.3601571171 | BW26: 0.3608774314 | BX26: 0.3615991862 | BY26: 0.3623223846 | BZ26: =BZ23 -> 0.3630470294 | CA26: 0.3637731234 | CB26: 0.3645006697 | CC26: 0.365229671 | CD26: 0.3659601304 | CE26: 0.3666920506 | CF26: 0.3674254347 | CG26: 0.3681602856 | CH26: 0.3688966062 | CI26: 0.3696343994 | CJ26: 0.3703736682 | CK26: 0.3711144155 | CL26: 0.3718566443 | CM26: 0.3726003576 | CN26: 0.3733455583 | CO26: 0.3740922495
B27: 50 MW/200 MWh Lithium-ion w/100 MW Solar | C27: =C23 -> NREL | D27: =D23 -> Net Capacity Factor (%) | E27: Utility PV - Class 4 | F27: Moderate | N27: =N23 -> 0.2982226381 | O27: 0.2995331438 | P27: 0.3008436496 | Q27: 0.3021541554 | R27: 0.3034646611 | S27: 0.3047751669 | T27: 0.3097734796 | U27: 0.3148537647 | V27: 0.3200173664 | W27: 0.3252656513 | X27: 0.3259161826 | Y27: 0.3265680149 | Z27: 0.3272211509 | AA27: 0.3278755932 | AB27: 0.3285313444 | AC27: 0.3291884071 | AD27: 0.3298467839 | AE27: 0.3305064775 | AF27: 0.3311674905 | AG27: 0.3318298254 | AH27: 0.3324934851 | AI27: 0.3331584721 | AJ27: 0.333824789 | AK27: 0.3344924386 | AL27: 0.3351614235 | AM27: 0.3358317463 | AN27: 0.3365034098 | AO27: 0.3371764166 | AP27: 0.3378507695 | AQ27: 0.338526471 | AR27: 0.3392035239 | AS27: 0.339881931 | AT27: 0.3405616948 | AU27: 0.3412428182 | AV27: 0.3419253039 | AW27: 0.3426091545 | AX27: 0.3432943728 | AY27: 0.3439809615 | AZ27: 0.3446689235 | BA27: 0.3453582613 | BB27: 0.3460489778 | BC27: 0.3467410758 | BD27: 0.3474345579 | BE27: 0.3481294271 | BF27: 0.3488256859 | BG27: 0.3495233373 | BH27: 0.350222384 | BI27: 0.3509228287 | BJ27: 0.3516246744 | BK27: 0.3523279237 | BL27: 0.3530325796 | BM27: 0.3537386447 | BN27: 0.354446122 | BO27: 0.3551550143 | BP27: 0.3558653243 | BQ27: 0.3565770549 | BR27: 0.3572902091 | BS27: 0.3580047895 | BT27: 0.358720799 | BU27: 0.3594382406 | BV27: 0.3601571171 | BW27: 0.3608774314 | BX27: 0.3615991862 | BY27: 0.3623223846 | BZ27: =BZ23 -> 0.3630470294 | CA27: 0.3637731234 | CB27: 0.3645006697 | CC27: 0.365229671 | CD27: 0.3659601304 | CE27: 0.3666920506 | CF27: 0.3674254347 | CG27: 0.3681602856 | CH27: 0.3688966062 | CI27: 0.3696343994 | CJ27: 0.3703736682 | CK27: 0.3711144155 | CL27: 0.3718566443 | CM27: 0.3726003576 | CN27: 0.3733455583 | CO27: 0.3740922495
B28: Distribution Scale 4hr Lithium-ion
B29: Distribution Scale 8hr Lithium-ion
B30: 4hr Lithium-ion
B31: 8hr Lithium-ion
B32: 16hr Lithium-ion
B33: 4 hr Flow Battery
B34: 8 hr Flow Battery
B35: 100hr Iron Oxide
B36: Geothermal (Off System) | C36: NREL | D36: Net Capacity Factor (%) | E36: Geothermal - Hydro / Flash | F36: Moderate | N36: 0.9 | O36: 0.9 | P36: 0.9 | Q36: 0.9 | R36: 0.9 | S36: 0.9 | T36: 0.9 | U36: 0.9 | V36: 0.9 | W36: 0.9 | X36: 0.9 | Y36: 0.9 | Z36: 0.9 | AA36: 0.9 | AB36: 0.9 | AC36: 0.9 | AD36: 0.9 | AE36: 0.9 | AF36: 0.9 | AG36: 0.9 | AH36: 0.9 | AI36: 0.9 | AJ36: 0.9 | AK36: 0.9 | AL36: 0.9 | AM36: 0.9 | AN36: 0.9 | AO36: 0.9 | AP36: 0.9 | AQ36: 0.9 | AR36: =AQ36 -> 0.9 | AS36: =AR36 -> 0.9 | AT36: 0.9 | AU36: 0.9 | AV36: 0.9 | AW36: 0.9 | AX36: 0.9 | AY36: 0.9 | AZ36: 0.9 | BA36: 0.9 | BB36: 0.9 | BC36: 0.9 | BD36: 0.9 | BE36: 0.9 | BF36: 0.9 | BG36: 0.9 | BH36: 0.9 | BI36: 0.9 | BJ36: 0.9 | BK36: 0.9 | BL36: 0.9 | BM36: 0.9 | BN36: 0.9 | BO36: 0.9 | BP36: 0.9 | BQ36: 0.9 | BR36: 0.9 | BS36: 0.9 | BT36: 0.9 | BU36: 0.9 | BV36: 0.9 | BW36: 0.9 | BX36: 0.9 | BY36: 0.9 | BZ36: 0.9 | CA36: 0.9 | CB36: 0.9 | CC36: 0.9 | CD36: 0.9 | CE36: 0.9 | CF36: 0.9 | CG36: 0.9 | CH36: 0.9 | CI36: 0.9 | CJ36: 0.9 | CK36: 0.9 | CL36: 0.9 | CM36: 0.9 | CN36: 0.9 | CO36: 0.9
B37: Hydrogen Fuel Cell with 40 hrs Storage
B38: 7F.04 CT Frame Greenfield + Power to Gas + storage
B39: 7F.04 CT Frame Greenfield + RNG
B40: Pumped Hydro (8 hr)
B41: Pumped Hydro (16 hr)
B42: Pumped Hydro (24 hr)
B43: Kettle Falls 2nd Biomass Unit | C43: Internal | M43: 0.5 | N43: =M43 -> 0.5 | O43: =N43 -> 0.5 | P43: 0.5 | Q43: 0.5 | R43: 0.5 | S43: 0.5 | T43: 0.5 | U43: 0.5 | V43: 0.5 | W43: 0.5 | X43: 0.5 | Y43: 0.5 | Z43: 0.5 | AA43: 0.5 | AB43: 0.5 | AC43: 0.5 | AD43: 0.5 | AE43: 0.5 | AF43: 0.5 | AG43: 0.5 | AH43: 0.5 | AI43: 0.5 | AJ43: 0.5 | AK43: 0.5 | AL43: 0.5 | AM43: 0.5 | AN43: 0.5 | AO43: 0.5 | AP43: 0.5 | AQ43: 0.5 | AR43: 0.5 | AS43: 0.5 | AT43: 0.5 | AU43: 0.5 | AV43: 0.5 | AW43: 0.5 | AX43: 0.5 | AY43: 0.5 | AZ43: 0.5 | BA43: 0.5 | BB43: 0.5 | BC43: 0.5 | BD43: 0.5 | BE43: 0.5 | BF43: 0.5 | BG43: 0.5 | BH43: 0.5 | BI43: 0.5 | BJ43: 0.5 | BK43: 0.5 | BL43: 0.5 | BM43: 0.5 | BN43: 0.5 | BO43: 0.5 | BP43: 0.5 | BQ43: 0.5 | BR43: 0.5 | BS43: 0.5 | BT43: 0.5 | BU43: 0.5 | BV43: 0.5 | BW43: 0.5 | BX43: 0.5 | BY43: 0.5 | BZ43: 0.5 | CA43: =BZ43 -> 0.5 | CB43: 0.5 | CC43: 0.5 | CD43: 0.5 | CE43: 0.5 | CF43: 0.5 | CG43: 0.5 | CH43: 0.5 | CI43: 0.5 | CJ43: 0.5 | CK43: 0.5 | CL43: 0.5 | CM43: 0.5 | CN43: 0.5 | CO43: 0.5
B44: Rathdrum CT 2055 Uprates two unit operation | C44: Internal | M44: 0.9132420091 | N44: =M44 -> 0.9132420091 | O44: 0.9132420091 | P44: 0.9132420091 | Q44: 0.9132420091 | R44: 0.9132420091 | S44: 0.9132420091 | T44: 0.9132420091 | U44: 0.9132420091 | V44: 0.9132420091 | W44: 0.9132420091 | X44: 0.9132420091 | Y44: 0.9132420091 | Z44: 0.9132420091 | AA44: 0.9132420091 | AB44: 0.9132420091 | AC44: 0.9132420091 | AD44: 0.9132420091 | AE44: 0.9132420091 | AF44: 0.9132420091 | AG44: 0.9132420091 | AH44: 0.9132420091 | AI44: 0.9132420091 | AJ44: 0.9132420091 | AK44: 0.9132420091 | AL44: 0.9132420091 | AM44: 0.9132420091 | AN44: 0.9132420091 | AO44: 0.9132420091 | AP44: 0.9132420091 | AQ44: 0.9132420091 | AR44: 0.9132420091 | AS44: 0.9132420091 | AT44: 0.9132420091 | AU44: 0.9132420091 | AV44: 0.9132420091 | AW44: 0.9132420091 | AX44: 0.9132420091 | AY44: 0.9132420091 | AZ44: 0.9132420091 | BA44: 0.9132420091 | BB44: 0.9132420091 | BC44: 0.9132420091 | BD44: 0.9132420091 | BE44: 0.9132420091 | BF44: 0.9132420091 | BG44: 0.9132420091 | BH44: 0.9132420091 | BI44: 0.9132420091 | BJ44: 0.9132420091 | BK44: 0.9132420091 | BL44: 0.9132420091 | BM44: 0.9132420091 | BN44: 0.9132420091 | BO44: 0.9132420091 | BP44: 0.9132420091 | BQ44: 0.9132420091 | BR44: 0.9132420091 | BS44: 0.9132420091 | BT44: 0.9132420091 | BU44: 0.9132420091 | BV44: 0.9132420091 | BW44: 0.9132420091 | BX44: 0.9132420091 | BY44: 0.9132420091 | BZ44: 0.9132420091 | CA44: 0.9132420091 | CB44: 0.9132420091 | CC44: 0.9132420091 | CD44: 0.9132420091 | CE44: 0.9132420091 | CF44: 0.9132420091 | CG44: 0.9132420091 | CH44: 0.9132420091 | CI44: 0.9132420091 | CJ44: 0.9132420091 | CK44: 0.9132420091 | CL44: 0.9132420091 | CM44: 0.9132420091 | CN44: 0.9132420091 | CO44: 0.9132420091
B45: Rathdrum CT: Inlet Evaporation 2 unit operation | C45: Internal | M45: 0.9132420091 | N45: 0.9132420091 | O45: 0.9132420091 | P45: 0.9132420091 | Q45: 0.9132420091 | R45: 0.9132420091 | S45: 0.9132420091 | T45: =S45 -> 0.9132420091 | U45: =T45 -> 0.9132420091 | V45: 0.9132420091 | W45: 0.9132420091 | X45: 0.9132420091 | Y45: 0.9132420091 | Z45: 0.9132420091 | AA45: 0.9132420091 | AB45: 0.9132420091 | AC45: 0.9132420091 | AD45: 0.9132420091 | AE45: 0.9132420091 | AF45: 0.9132420091 | AG45: 0.9132420091 | AH45: 0.9132420091 | AI45: 0.9132420091 | AJ45: 0.9132420091 | AK45: 0.9132420091 | AL45: 0.9132420091 | AM45: 0.9132420091 | AN45: 0.9132420091 | AO45: 0.9132420091 | AP45: 0.9132420091 | AQ45: 0.9132420091 | AR45: 0.9132420091 | AS45: 0.9132420091 | AT45: 0.9132420091 | AU45: 0.9132420091 | AV45: 0.9132420091 | AW45: 0.9132420091 | AX45: 0.9132420091 | AY45: 0.9132420091 | AZ45: 0.9132420091 | BA45: 0.9132420091 | BB45: 0.9132420091 | BC45: 0.9132420091 | BD45: 0.9132420091 | BE45: 0.9132420091 | BF45: 0.9132420091 | BG45: 0.9132420091 | BH45: 0.9132420091 | BI45: 0.9132420091 | BJ45: 0.9132420091 | BK45: 0.9132420091 | BL45: 0.9132420091 | BM45: 0.9132420091 | BN45: 0.9132420091 | BO45: 0.9132420091 | BP45: 0.9132420091 | BQ45: 0.9132420091 | BR45: 0.9132420091 | BS45: 0.9132420091 | BT45: 0.9132420091 | BU45: 0.9132420091 | BV45: 0.9132420091 | BW45: 0.9132420091 | BX45: 0.9132420091 | BY45: 0.9132420091 | BZ45: 0.9132420091 | CA45: 0.9132420091 | CB45: 0.9132420091 | CC45: 0.9132420091 | CD45: 0.9132420091 | CE45: 0.9132420091 | CF45: 0.9132420091 | CG45: 0.9132420091 | CH45: 0.9132420091 | CI45: 0.9132420091 | CJ45: 0.9132420091 | CK45: 0.9132420091 | CL45: 0.9132420091 | CM45: 0.9132420091 | CN45: 0.9132420091 | CO45: 0.9132420091
B46: Kettle Falls Upgrade | C46: Internal | S46: 0.6 | T46: =S46 -> 0.6 | U46: 0.6 | V46: =U46 -> 0.6 | W46: =V46 -> 0.6 | X46: =W46 -> 0.6 | Y46: =X46 -> 0.6 | Z46: =Y46 -> 0.6 | AA46: =Z46 -> 0.6 | AB46: =AA46 -> 0.6 | AC46: =AB46 -> 0.6 | AD46: =AC46 -> 0.6 | AE46: =AD46 -> 0.6 | AF46: =AE46 -> 0.6 | AG46: =AF46 -> 0.6 | AH46: =AG46 -> 0.6 | AI46: =AH46 -> 0.6 | AJ46: =AI46 -> 0.6 | AK46: =AJ46 -> 0.6 | AL46: =AK46 -> 0.6 | AM46: =AL46 -> 0.6 | AN46: =AM46 -> 0.6 | AO46: =AN46 -> 0.6 | AP46: =AO46 -> 0.6 | AQ46: =AP46 -> 0.6 | AR46: =AQ46 -> 0.6 | AS46: =AR46 -> 0.6 | AT46: =AS46 -> 0.6 | AU46: =AT46 -> 0.6 | AV46: =AU46 -> 0.6 | AW46: =AV46 -> 0.6 | AX46: =AW46 -> 0.6 | AY46: =AX46 -> 0.6 | AZ46: =AY46 -> 0.6 | BA46: =AZ46 -> 0.6 | BB46: =BA46 -> 0.6 | BC46: =BB46 -> 0.6 | BD46: =BC46 -> 0.6 | BE46: =BD46 -> 0.6 | BF46: =BE46 -> 0.6 | BG46: =BF46 -> 0.6 | BH46: =BG46 -> 0.6 | BI46: =BH46 -> 0.6 | BJ46: =BI46 -> 0.6 | BK46: =BJ46 -> 0.6 | BL46: =BK46 -> 0.6 | BM46: =BL46 -> 0.6 | BN46: =BM46 -> 0.6 | BO46: =BN46 -> 0.6 | BP46: =BO46 -> 0.6 | BQ46: =BP46 -> 0.6 | BR46: =BQ46 -> 0.6 | BS46: =BR46 -> 0.6 | BT46: =BS46 -> 0.6 | BU46: =BT46 -> 0.6 | BV46: =BU46 -> 0.6 | BW46: =BV46 -> 0.6 | BX46: =BW46 -> 0.6 | BY46: =BX46 -> 0.6 | BZ46: =BY46 -> 0.6 | CA46: =BZ46 -> 0.6 | CB46: =CA46 -> 0.6 | CC46: =CB46 -> 0.6 | CD46: =CC46 -> 0.6 | CE46: =CD46 -> 0.6 | CF46: =CE46 -> 0.6 | CG46: =CF46 -> 0.6 | CH46: =CG46 -> 0.6 | CI46: =CH46 -> 0.6 | CJ46: =CI46 -> 0.6 | CK46: =CJ46 -> 0.6 | CL46: =CK46 -> 0.6 | CM46: =CL46 -> 0.6 | CN46: =CM46 -> 0.6 | CO46: =CN46 -> 0.6
B47: Palouse Repower | C47: Internal | S47: =1-0.6384743 -> 0.3615257 | T47: =S47*1.0164 -> 0.3674547215 | U47: =T47*1.0164 -> 0.3734809789 | V47: 0.379606067 | W47: 0.3858316065 | X47: =W47*1.001 -> 0.3862174381 | Y47: =X47*1.001 -> 0.3866036555 | Z47: 0.3869902592 | AA47: 0.3873772494 | AB47: 0.3877646267 | AC47: 0.3881523913 | AD47: 0.3885405437 | AE47: 0.3889290842 | AF47: 0.3893180133 | AG47: 0.3897073313 | AH47: 0.3900970387 | AI47: 0.3904871357 | AJ47: 0.3908776228 | AK47: 0.3912685005 | AL47: 0.391659769 | AM47: 0.3920514287 | AN47: 0.3924434802 | AO47: =AN47*1.001 -> 0.3928359236 | AP47: 0.3932287596 | AQ47: 0.3936219883 | AR47: 0.3940156103 | AS47: 0.3944096259 | AT47: 0.3948040355 | AU47: 0.3951988396 | AV47: 0.3955940384 | AW47: 0.3959896325 | AX47: 0.3963856221 | AY47: 0.3967820077 | AZ47: 0.3971787897 | BA47: 0.3975759685 | BB47: 0.3979735445 | BC47: 0.398371518 | BD47: 0.3987698895 | BE47: =BD47*1.001 -> 0.3991686594 | BF47: 0.3995678281 | BG47: 0.3999673959 | BH47: 0.4003673633 | BI47: 0.4007677307 | BJ47: 0.4011684984 | BK47: 0.4015696669 | BL47: 0.4019712366 | BM47: 0.4023732078 | BN47: 0.402775581 | BO47: 0.4031783566 | BP47: 0.403581535 | BQ47: 0.4039851165 | BR47: 0.4043891016 | BS47: 0.4047934907 | BT47: 0.4051982842 | BU47: =BT47*1.001 -> 0.4056034825 | BV47: 0.406009086 | BW47: 0.4064150951 | BX47: 0.4068215101 | BY47: 0.4072283317 | BZ47: 0.40763556 | CA47: 0.4080431956 | CB47: 0.4084512387 | CC47: 0.40885969 | CD47: 0.4092685497 | CE47: 0.4096778182 | CF47: 0.410087496 | CG47: 0.4104975835 | CH47: 0.4109080811 | CI47: 0.4113189892 | CJ47: 0.4117303082 | CK47: =CJ47*1.001 -> 0.4121420385 | CL47: 0.4125541805 | CM47: 0.4129667347 | CN47: 0.4133797015 | CO47: 0.4137930812
B48: Rattlesnake Repower | C48: Internal | S48: =1-0.7252223 -> 0.2747777 | T48: =S48*1.0164 -> 0.2792840543 | U48: 0.2838643128 | V48: 0.2885196875 | W48: 0.2932514104 | X48: =W48*1.001 -> 0.2935446618 | Y48: 0.2938382064 | Z48: 0.2941320447 | AA48: 0.2944261767 | AB48: 0.2947206029 | AC48: 0.2950153235 | AD48: 0.2953103388 | AE48: 0.2956056491 | AF48: 0.2959012548 | AG48: 0.296197156 | AH48: 0.2964933532 | AI48: 0.2967898466 | AJ48: 0.2970866364 | AK48: 0.297383723 | AL48: 0.2976811068 | AM48: 0.2979787879 | AN48: 0.2982767667 | AO48: 0.2985750434 | AP48: 0.2988736185 | AQ48: 0.2991724921 | AR48: 0.2994716646 | AS48: 0.2997711362 | AT48: 0.3000709074 | AU48: 0.3003709783 | AV48: 0.3006713493 | AW48: 0.3009720206 | AX48: 0.3012729926 | AY48: 0.3015742656 | AZ48: 0.3018758399 | BA48: 0.3021777157 | BB48: 0.3024798934 | BC48: 0.3027823733 | BD48: 0.3030851557 | BE48: 0.3033882409 | BF48: 0.3036916291 | BG48: 0.3039953207 | BH48: 0.3042993161 | BI48: 0.3046036154 | BJ48: 0.304908219 | BK48: 0.3052131272 | BL48: 0.3055183403 | BM48: 0.3058238587 | BN48: 0.3061296825 | BO48: 0.3064358122 | BP48: 0.306742248 | BQ48: 0.3070489903 | BR48: 0.3073560393 | BS48: 0.3076633953 | BT48: 0.3079710587 | BU48: 0.3082790298 | BV48: 0.3085873088 | BW48: 0.3088958961 | BX48: 0.309204792 | BY48: 0.3095139968 | BZ48: 0.3098235108 | CA48: 0.3101333343 | CB48: 0.3104434676 | CC48: 0.3107539111 | CD48: 0.311064665 | CE48: 0.3113757297 | CF48: 0.3116871054 | CG48: 0.3119987925 | CH48: 0.3123107913 | CI48: 0.3126231021 | CJ48: 0.3129357252 | CK48: 0.3132486609 | CL48: 0.3135619096 | CM48: 0.3138754715 | CN48: 0.314189347 | CO48: 0.3145035363
B49: Lind Repower | C49: Internal | S49: =1-0.7573683 -> 0.2426317 | T49: =S49*1.0164 -> 0.2466108599 | U49: 0.250655278 | V49: 0.2547660245 | W49: 0.2589441873 | X49: =W49*1.002 -> 0.2594620757 | Y49: =X49*1.002 -> 0.2599809999 | Z49: 0.2605009619 | AA49: 0.2610219638 | AB49: 0.2615440077 | AC49: 0.2620670957 | AD49: 0.2625912299 | AE49: 0.2631164124 | AF49: 0.2636426452 | AG49: 0.2641699305 | AH49: 0.2646982704 | AI49: 0.2652276669 | AJ49: 0.2657581222 | AK49: 0.2662896385 | AL49: 0.2668222178 | AM49: 0.2673558622 | AN49: 0.2678905739 | AO49: 0.2684263551 | AP49: 0.2689632078 | AQ49: 0.2695011342 | AR49: =AQ49*1.002 -> 0.2700401365 | AS49: =AR49*1.002 -> 0.2705802167 | AT49: 0.2711213772 | AU49: 0.2716636199 | AV49: 0.2722069472 | AW49: 0.2727513611 | AX49: 0.2732968638 | AY49: 0.2738434575 | AZ49: 0.2743911444 | BA49: 0.2749399267 | BB49: 0.2754898066 | BC49: 0.2760407862 | BD49: 0.2765928677 | BE49: 0.2771460535 | BF49: 0.2777003456 | BG49: 0.2782557463 | BH49: 0.2788122578 | BI49: 0.2793698823 | BJ49: 0.2799286221 | BK49: 0.2804884793 | BL49: 0.2810494563 | BM49: 0.2816115552 | BN49: 0.2821747783 | BO49: 0.2827391278 | BP49: 0.2833046061 | BQ49: 0.2838712153 | BR49: 0.2844389577 | BS49: 0.2850078357 | BT49: 0.2855778513 | BU49: 0.286149007 | BV49: 0.286721305 | BW49: 0.2872947476 | BX49: 0.2878693371 | BY49: 0.2884450758 | BZ49: 0.289021966 | CA49: 0.2896000099 | CB49: 0.2901792099 | CC49: 0.2907595683 | CD49: 0.2913410875 | CE49: 0.2919237697 | CF49: 0.2925076172 | CG49: 0.2930926324 | CH49: 0.2936788177 | CI49: 0.2942661753 | CJ49: 0.2948547077 | CK49: 0.2954444171 | CL49: 0.2960353059 | CM49: 0.2966273765 | CN49: 0.2972206313 | CO49: 0.2978150726
B51: Heat Rate (MMBtu/MWh)
B52: =List_Resources -> 7F.04 CT Frame Greenfield | C52: Internal | S52: 10.04 | T52: =S52 -> 10.04 | U52: 10.04 | V52: 10.04 | W52: 10.04 | X52: 10.04 | Y52: 10.04 | Z52: 10.04 | AA52: 10.04 | AB52: 10.04 | AC52: 10.04 | AD52: 10.04 | AE52: 10.04 | AF52: 10.04 | AG52: 10.04 | AH52: 10.04 | AI52: 10.04 | AJ52: =AI52 -> 10.04 | AK52: 10.04 | AL52: 10.04 | AM52: 10.04 | AN52: 10.04 | AO52: 10.04 | AP52: 10.04 | AQ52: 10.04 | AR52: 10.04 | AS52: 10.04 | AT52: 10.04 | AU52: 10.04 | AV52: 10.04 | AW52: 10.04 | AX52: 10.04 | AY52: 10.04 | AZ52: =AY52 -> 10.04 | BA52: 10.04 | BB52: 10.04 | BC52: 10.04 | BD52: 10.04 | BE52: 10.04 | BF52: 10.04 | BG52: 10.04 | BH52: 10.04 | BI52: 10.04 | BJ52: 10.04 | BK52: 10.04 | BL52: 10.04 | BM52: 10.04 | BN52: 10.04 | BO52: 10.04 | BP52: =BO52 -> 10.04 | BQ52: 10.04 | BR52: 10.04 | BS52: 10.04 | BT52: 10.04 | BU52: 10.04 | BV52: 10.04 | BW52: 10.04 | BX52: 10.04 | BY52: 10.04 | BZ52: 10.04 | CA52: 10.04 | CB52: 10.04 | CC52: 10.04 | CD52: 10.04 | CE52: 10.04 | CF52: =CE52 -> 10.04 | CG52: 10.04 | CH52: 10.04 | CI52: 10.04 | CJ52: 10.04 | CK52: 10.04 | CL52: 10.04 | CM52: 10.04 | CN52: 10.04 | CO52: 10.04
B53: Reciprocating Engine (ICE) Machine | C53: Internal | S53: 8.19 | T53: 8.19 | U53: 8.19 | V53: 8.19 | W53: 8.19 | X53: 8.19 | Y53: 8.19 | Z53: 8.19 | AA53: 8.19 | AB53: 8.19 | AC53: 8.19 | AD53: 8.19 | AE53: 8.19 | AF53: 8.19 | AG53: 8.19 | AH53: 8.19 | AI53: 8.19 | AJ53: 8.19 | AK53: 8.19 | AL53: 8.19 | AM53: 8.19 | AN53: 8.19 | AO53: 8.19 | AP53: 8.19 | AQ53: 8.19 | AR53: 8.19 | AS53: 8.19 | AT53: 8.19 | AU53: 8.19 | AV53: 8.19 | AW53: 8.19 | AX53: 8.19 | AY53: 8.19 | AZ53: 8.19 | BA53: 8.19 | BB53: 8.19 | BC53: 8.19 | BD53: 8.19 | BE53: 8.19 | BF53: 8.19 | BG53: 8.19 | BH53: 8.19 | BI53: 8.19 | BJ53: 8.19 | BK53: 8.19 | BL53: 8.19 | BM53: 8.19 | BN53: 8.19 | BO53: 8.19 | BP53: 8.19 | BQ53: 8.19 | BR53: 8.19 | BS53: 8.19 | BT53: 8.19 | BU53: 8.19 | BV53: 8.19 | BW53: 8.19 | BX53: 8.19 | BY53: 8.19 | BZ53: 8.19 | CA53: 8.19 | CB53: 8.19 | CC53: 8.19 | CD53: 8.19 | CE53: 8.19 | CF53: 8.19 | CG53: 8.19 | CH53: 8.19 | CI53: 8.19 | CJ53: 8.19 | CK53: 8.19 | CL53: 8.19 | CM53: 8.19 | CN53: 8.19 | CO53: 8.19
B54: NG CCCT (1x1 w/DF) | C54: Internal | S54: 6.82 | T54: 6.82 | U54: 6.82 | V54: 6.82 | W54: 6.82 | X54: 6.82 | Y54: 6.82 | Z54: 6.82 | AA54: 6.82 | AB54: 6.82 | AC54: 6.82 | AD54: 6.82 | AE54: 6.82 | AF54: 6.82 | AG54: 6.82 | AH54: 6.82 | AI54: 6.82 | AJ54: 6.82 | AK54: 6.82 | AL54: 6.82 | AM54: 6.82 | AN54: 6.82 | AO54: 6.82 | AP54: 6.82 | AQ54: 6.82 | AR54: 6.82 | AS54: 6.82 | AT54: 6.82 | AU54: 6.82 | AV54: 6.82 | AW54: 6.82 | AX54: 6.82 | AY54: 6.82 | AZ54: 6.82 | BA54: 6.82 | BB54: 6.82 | BC54: 6.82 | BD54: 6.82 | BE54: 6.82 | BF54: 6.82 | BG54: 6.82 | BH54: 6.82 | BI54: 6.82 | BJ54: 6.82 | BK54: 6.82 | BL54: 6.82 | BM54: 6.82 | BN54: 6.82 | BO54: 6.82 | BP54: 6.82 | BQ54: 6.82 | BR54: 6.82 | BS54: 6.82 | BT54: 6.82 | BU54: 6.82 | BV54: 6.82 | BW54: 6.82 | BX54: 6.82 | BY54: 6.82 | BZ54: 6.82 | CA54: 6.82 | CB54: 6.82 | CC54: 6.82 | CD54: 6.82 | CE54: 6.82 | CF54: 6.82 | CG54: 6.82 | CH54: 6.82 | CI54: 6.82 | CJ54: 6.82 | CK54: 6.82 | CL54: 6.82 | CM54: 6.82 | CN54: 6.82 | CO54: 6.82
B55: Small Modular Reactor | C55: NREL | D55: Heat Rate (MMBtu/MWh) | E55: Nuclear - Small Modular Reactor | F55: Moderate | N55: 10.447 | O55: 10.447 | P55: 10.447 | Q55: 10.447 | R55: 10.447 | S55: 10.447 | T55: 10.447 | U55: 10.447 | V55: 10.447 | W55: 10.447 | X55: 10.447 | Y55: 10.447 | Z55: 10.447 | AA55: 10.447 | AB55: 10.447 | AC55: 10.447 | AD55: 10.447 | AE55: 10.447 | AF55: 10.447 | AG55: 10.447 | AH55: 10.447 | AI55: 10.447 | AJ55: 10.447 | AK55: 10.447 | AL55: 10.447 | AM55: 10.447 | AN55: 10.447 | AO55: 10.447 | AP55: 10.447 | AQ55: 10.447 | AR55: =AQ55 -> 10.447 | AS55: 10.447 | AT55: 10.447 | AU55: 10.447 | AV55: 10.447 | AW55: 10.447 | AX55: 10.447 | AY55: 10.447 | AZ55: 10.447 | BA55: 10.447 | BB55: 10.447 | BC55: 10.447 | BD55: 10.447 | BE55: 10.447 | BF55: 10.447 | BG55: 10.447 | BH55: 10.447 | BI55: 10.447 | BJ55: 10.447 | BK55: 10.447 | BL55: 10.447 | BM55: 10.447 | BN55: 10.447 | BO55: 10.447 | BP55: 10.447 | BQ55: 10.447 | BR55: 10.447 | BS55: 10.447 | BT55: 10.447 | BU55: 10.447 | BV55: 10.447 | BW55: 10.447 | BX55: 10.447 | BY55: 10.447 | BZ55: 10.447 | CA55: 10.447 | CB55: 10.447 | CC55: 10.447 | CD55: 10.447 | CE55: 10.447 | CF55: 10.447 | CG55: 10.447 | CH55: 10.447 | CI55: 10.447 | CJ55: 10.447 | CK55: 10.447 | CL55: 10.447 | CM55: 10.447 | CN55: 10.447 | CO55: 10.447
B56: Northwest Wind (On System)
B57: Northwest Wind (Off System)
B58: Montana Wind (Off System)
B59: Off Shore Wind (Off System)
B60: New Construction Residential Solar
B61: New Construction Residential Solar + Storage
B62: Residential Solar
B63: Residential Solar + Storage
B64: Commercial Solar
B65: Commercial Solar + Storage
B66: Low-Income Community Solar
B67: Solar Photovoltaic Fixed Array (5 MW AC)
B68: Solar Photovoltaic Fixed Array (5 MW AC) + Storage
B69: Solar Photovoltaic w/Single Axis Tracking (100 MW AC)
B70: Southern NW Solar Photovoltaic w/ Single Axis Tracking (100 MW AC)
B71: 100 MW/400 MWh Lithium-ion w/100 MW Solar
B72: 100 MW/200 MWh Lithium-ion w/100 MW Solar
B73: 50 MW/200 MWh Lithium-ion w/100 MW Solar
B74: Distribution Scale 4hr Lithium-ion
B75: Distribution Scale 8hr Lithium-ion
B76: 4hr Lithium-ion
B77: 8hr Lithium-ion
B78: 16hr Lithium-ion
B79: 4 hr Flow Battery
B80: 8 hr Flow Battery
B81: 100hr Iron Oxide
B82: Geothermal (Off System)
B83: Hydrogen Fuel Cell with 40 hrs Storage | C83: Internal | S83: 5.687 | T83: =S83 -> 5.687 | U83: 5.687 | V83: 5.687 | W83: 5.687 | X83: 5.687 | Y83: 5.687 | Z83: 5.687 | AA83: 5.687 | AB83: 5.687 | AC83: 5.687 | AD83: 5.687 | AE83: 5.687 | AF83: 5.687 | AG83: 5.687 | AH83: 5.687 | AI83: 5.687 | AJ83: 5.687 | AK83: 5.687 | AL83: 5.687 | AM83: 5.687 | AN83: 5.687 | AO83: 5.687 | AP83: 5.687 | AQ83: 5.687 | AR83: 5.687 | AS83: 5.687 | AT83: 5.687 | AU83: 5.687 | AV83: 5.687 | AW83: 5.687 | AX83: 5.687 | AY83: 5.687 | AZ83: 5.687 | BA83: 5.687 | BB83: 5.687 | BC83: 5.687 | BD83: 5.687 | BE83: 5.687 | BF83: 5.687 | BG83: 5.687 | BH83: 5.687 | BI83: 5.687 | BJ83: 5.687 | BK83: 5.687 | BL83: 5.687 | BM83: 5.687 | BN83: 5.687 | BO83: 5.687 | BP83: 5.687 | BQ83: 5.687 | BR83: 5.687 | BS83: 5.687 | BT83: 5.687 | BU83: 5.687 | BV83: 5.687 | BW83: 5.687 | BX83: 5.687 | BY83: 5.687 | BZ83: 5.687 | CA83: 5.687 | CB83: 5.687 | CC83: 5.687 | CD83: 5.687 | CE83: 5.687 | CF83: =CE83 -> 5.687 | CG83: 5.687 | CH83: 5.687 | CI83: 5.687 | CJ83: 5.687 | CK83: 5.687 | CL83: 5.687 | CM83: 5.687 | CN83: 5.687 | CO83: 5.687
B84: 7F.04 CT Frame Greenfield + Power to Gas + storage | C84: =C52 -> Internal | S84: =S52 -> 10.04 | T84: =T52 -> 10.04 | U84: 10.04 | V84: 10.04 | W84: 10.04 | X84: 10.04 | Y84: 10.04 | Z84: 10.04 | AA84: 10.04 | AB84: 10.04 | AC84: 10.04 | AD84: 10.04 | AE84: 10.04 | AF84: 10.04 | AG84: 10.04 | AH84: 10.04 | AI84: 10.04 | AJ84: 10.04 | AK84: 10.04 | AL84: 10.04 | AM84: 10.04 | AN84: 10.04 | AO84: 10.04 | AP84: 10.04 | AQ84: 10.04 | AR84: 10.04 | AS84: 10.04 | AT84: 10.04 | AU84: 10.04 | AV84: 10.04 | AW84: 10.04 | AX84: 10.04 | AY84: 10.04 | AZ84: 10.04 | BA84: 10.04 | BB84: 10.04 | BC84: 10.04 | BD84: 10.04 | BE84: 10.04 | BF84: 10.04 | BG84: 10.04 | BH84: 10.04 | BI84: 10.04 | BJ84: 10.04 | BK84: 10.04 | BL84: 10.04 | BM84: 10.04 | BN84: 10.04 | BO84: 10.04 | BP84: 10.04 | BQ84: 10.04 | BR84: 10.04 | BS84: 10.04 | BT84: 10.04 | BU84: 10.04 | BV84: 10.04 | BW84: 10.04 | BX84: 10.04 | BY84: 10.04 | BZ84: 10.04 | CA84: 10.04 | CB84: 10.04 | CC84: 10.04 | CD84: 10.04 | CE84: 10.04 | CF84: =CF52 -> 10.04 | CG84: 10.04 | CH84: 10.04 | CI84: 10.04 | CJ84: 10.04 | CK84: 10.04 | CL84: 10.04 | CM84: 10.04 | CN84: 10.04 | CO84: 10.04
B85: 7F.04 CT Frame Greenfield + RNG | C85: =C52 -> Internal | S85: =S52 -> 10.04 | T85: =T52 -> 10.04 | U85: 10.04 | V85: 10.04 | W85: 10.04 | X85: 10.04 | Y85: 10.04 | Z85: 10.04 | AA85: 10.04 | AB85: 10.04 | AC85: 10.04 | AD85: 10.04 | AE85: 10.04 | AF85: 10.04 | AG85: 10.04 | AH85: 10.04 | AI85: 10.04 | AJ85: 10.04 | AK85: 10.04 | AL85: 10.04 | AM85: 10.04 | AN85: 10.04 | AO85: 10.04 | AP85: 10.04 | AQ85: 10.04 | AR85: 10.04 | AS85: 10.04 | AT85: 10.04 | AU85: 10.04 | AV85: 10.04 | AW85: 10.04 | AX85: 10.04 | AY85: 10.04 | AZ85: 10.04 | BA85: 10.04 | BB85: 10.04 | BC85: 10.04 | BD85: 10.04 | BE85: 10.04 | BF85: 10.04 | BG85: 10.04 | BH85: 10.04 | BI85: 10.04 | BJ85: 10.04 | BK85: 10.04 | BL85: 10.04 | BM85: 10.04 | BN85: 10.04 | BO85: 10.04 | BP85: 10.04 | BQ85: 10.04 | BR85: 10.04 | BS85: 10.04 | BT85: 10.04 | BU85: 10.04 | BV85: 10.04 | BW85: 10.04 | BX85: 10.04 | BY85: 10.04 | BZ85: 10.04 | CA85: 10.04 | CB85: 10.04 | CC85: 10.04 | CD85: 10.04 | CE85: 10.04 | CF85: =CF52 -> 10.04 | CG85: 10.04 | CH85: 10.04 | CI85: 10.04 | CJ85: 10.04 | CK85: 10.04 | CL85: 10.04 | CM85: 10.04 | CN85: 10.04 | CO85: 10.04
B86: Pumped Hydro (8 hr)
B87: Pumped Hydro (16 hr)
B88: Pumped Hydro (24 hr)
B89: Kettle Falls 2nd Biomass Unit | C89: Internal | S89: 13.361 | T89: =S89 -> 13.361 | U89: 13.361 | V89: 13.361 | W89: 13.361 | X89: 13.361 | Y89: 13.361 | Z89: 13.361 | AA89: 13.361 | AB89: 13.361 | AC89: 13.361 | AD89: 13.361 | AE89: 13.361 | AF89: 13.361 | AG89: 13.361 | AH89: 13.361 | AI89: 13.361 | AJ89: =AI89 -> 13.361 | AK89: 13.361 | AL89: 13.361 | AM89: 13.361 | AN89: 13.361 | AO89: 13.361 | AP89: 13.361 | AQ89: 13.361 | AR89: 13.361 | AS89: 13.361 | AT89: 13.361 | AU89: 13.361 | AV89: 13.361 | AW89: 13.361 | AX89: 13.361 | AY89: 13.361 | AZ89: =AY89 -> 13.361 | BA89: 13.361 | BB89: 13.361 | BC89: 13.361 | BD89: 13.361 | BE89: 13.361 | BF89: 13.361 | BG89: 13.361 | BH89: 13.361 | BI89: 13.361 | BJ89: 13.361 | BK89: 13.361 | BL89: 13.361 | BM89: 13.361 | BN89: 13.361 | BO89: 13.361 | BP89: =BO89 -> 13.361 | BQ89: 13.361 | BR89: 13.361 | BS89: 13.361 | BT89: 13.361 | BU89: 13.361 | BV89: 13.361 | BW89: 13.361 | BX89: 13.361 | BY89: 13.361 | BZ89: 13.361 | CA89: 13.361 | CB89: 13.361 | CC89: 13.361 | CD89: 13.361 | CE89: 13.361 | CF89: =CE89 -> 13.361 | CG89: 13.361 | CH89: 13.361 | CI89: 13.361 | CJ89: 13.361 | CK89: 13.361 | CL89: 13.361 | CM89: 13.361 | CN89: 13.361 | CO89: 13.361
B90: Rathdrum CT 2055 Uprates two unit operation | C90: Internal | S90: 11.386 | T90: 11.386 | U90: 11.386 | V90: 11.386 | W90: 11.386 | X90: 11.386 | Y90: 11.386 | Z90: 11.386 | AA90: 11.386 | AB90: 11.386 | AC90: 11.386 | AD90: 11.386 | AE90: 11.386 | AF90: 11.386 | AG90: 11.386 | AH90: 11.386 | AI90: 11.386 | AJ90: 11.386 | AK90: 11.386 | AL90: 11.386 | AM90: 11.386 | AN90: 11.386 | AO90: 11.386 | AP90: 11.386 | AQ90: 11.386 | AR90: 11.386 | AS90: 11.386 | AT90: 11.386 | AU90: 11.386 | AV90: 11.386 | AW90: 11.386 | AX90: 11.386 | AY90: 11.386 | AZ90: 11.386 | BA90: 11.386 | BB90: 11.386 | BC90: 11.386 | BD90: 11.386 | BE90: 11.386 | BF90: 11.386 | BG90: 11.386 | BH90: 11.386 | BI90: 11.386 | BJ90: 11.386 | BK90: 11.386 | BL90: 11.386 | BM90: 11.386 | BN90: 11.386 | BO90: 11.386 | BP90: 11.386 | BQ90: 11.386 | BR90: 11.386 | BS90: 11.386 | BT90: 11.386 | BU90: 11.386 | BV90: 11.386 | BW90: 11.386 | BX90: 11.386 | BY90: 11.386 | BZ90: 11.386 | CA90: 11.386 | CB90: 11.386 | CC90: 11.386 | CD90: 11.386 | CE90: 11.386 | CF90: 11.386 | CG90: 11.386 | CH90: 11.386 | CI90: 11.386 | CJ90: 11.386 | CK90: 11.386 | CL90: 11.386 | CM90: 11.386 | CN90: 11.386 | CO90: 11.386
B91: Rathdrum CT: Inlet Evaporation 2 unit operation | C91: Internal | S91: 11.386 | T91: 11.386 | U91: 11.386 | V91: 11.386 | W91: 11.386 | X91: 11.386 | Y91: 11.386 | Z91: 11.386 | AA91: 11.386 | AB91: 11.386 | AC91: 11.386 | AD91: 11.386 | AE91: 11.386 | AF91: 11.386 | AG91: 11.386 | AH91: 11.386 | AI91: 11.386 | AJ91: 11.386 | AK91: 11.386 | AL91: 11.386 | AM91: 11.386 | AN91: 11.386 | AO91: 11.386 | AP91: 11.386 | AQ91: 11.386 | AR91: 11.386 | AS91: 11.386 | AT91: 11.386 | AU91: 11.386 | AV91: 11.386 | AW91: 11.386 | AX91: 11.386 | AY91: 11.386 | AZ91: 11.386 | BA91: 11.386 | BB91: 11.386 | BC91: 11.386 | BD91: 11.386 | BE91: 11.386 | BF91: 11.386 | BG91: 11.386 | BH91: 11.386 | BI91: 11.386 | BJ91: 11.386 | BK91: 11.386 | BL91: 11.386 | BM91: 11.386 | BN91: 11.386 | BO91: 11.386 | BP91: 11.386 | BQ91: 11.386 | BR91: 11.386 | BS91: 11.386 | BT91: 11.386 | BU91: 11.386 | BV91: 11.386 | BW91: 11.386 | BX91: 11.386 | BY91: 11.386 | BZ91: 11.386 | CA91: 11.386 | CB91: 11.386 | CC91: 11.386 | CD91: 11.386 | CE91: 11.386 | CF91: 11.386 | CG91: 11.386 | CH91: 11.386 | CI91: 11.386 | CJ91: 11.386 | CK91: 11.386 | CL91: 11.386 | CM91: 11.386 | CN91: 11.386 | CO91: 11.386
B92: Kettle Falls Upgrade | C92: Internal | S92: 13.361 | T92: =S92 -> 13.361 | U92: =T92 -> 13.361 | V92: =U92 -> 13.361 | W92: =V92 -> 13.361 | X92: =W92 -> 13.361 | Y92: =X92 -> 13.361 | Z92: =Y92 -> 13.361 | AA92: =Z92 -> 13.361 | AB92: =AA92 -> 13.361 | AC92: =AB92 -> 13.361 | AD92: =AC92 -> 13.361 | AE92: =AD92 -> 13.361 | AF92: =AE92 -> 13.361 | AG92: =AF92 -> 13.361 | AH92: =AG92 -> 13.361 | AI92: =AH92 -> 13.361 | AJ92: =AI92 -> 13.361 | AK92: =AJ92 -> 13.361 | AL92: =AK92 -> 13.361 | AM92: =AL92 -> 13.361 | AN92: =AM92 -> 13.361 | AO92: =AN92 -> 13.361 | AP92: =AO92 -> 13.361 | AQ92: =AP92 -> 13.361 | AR92: =AQ92 -> 13.361 | AS92: =AR92 -> 13.361 | AT92: =AS92 -> 13.361 | AU92: =AT92 -> 13.361 | AV92: =AU92 -> 13.361 | AW92: =AV92 -> 13.361 | AX92: =AW92 -> 13.361 | AY92: =AX92 -> 13.361 | AZ92: =AY92 -> 13.361 | BA92: =AZ92 -> 13.361 | BB92: =BA92 -> 13.361 | BC92: =BB92 -> 13.361 | BD92: =BC92 -> 13.361 | BE92: =BD92 -> 13.361 | BF92: =BE92 -> 13.361 | BG92: =BF92 -> 13.361 | BH92: =BG92 -> 13.361 | BI92: =BH92 -> 13.361 | BJ92: =BI92 -> 13.361 | BK92: =BJ92 -> 13.361 | BL92: =BK92 -> 13.361 | BM92: =BL92 -> 13.361 | BN92: =BM92 -> 13.361 | BO92: =BN92 -> 13.361 | BP92: =BO92 -> 13.361 | BQ92: =BP92 -> 13.361 | BR92: =BQ92 -> 13.361 | BS92: =BR92 -> 13.361 | BT92: =BS92 -> 13.361 | BU92: =BT92 -> 13.361 | BV92: =BU92 -> 13.361 | BW92: =BV92 -> 13.361 | BX92: =BW92 -> 13.361 | BY92: =BX92 -> 13.361 | BZ92: =BY92 -> 13.361 | CA92: =BZ92 -> 13.361 | CB92: =CA92 -> 13.361 | CC92: =CB92 -> 13.361 | CD92: =CC92 -> 13.361 | CE92: =CD92 -> 13.361 | CF92: =CE92 -> 13.361 | CG92: =CF92 -> 13.361 | CH92: =CG92 -> 13.361 | CI92: =CH92 -> 13.361 | CJ92: =CI92 -> 13.361 | CK92: =CJ92 -> 13.361 | CL92: =CK92 -> 13.361 | CM92: =CL92 -> 13.361 | CN92: =CM92 -> 13.361 | CO92: =CN92 -> 13.361
B93: Palouse Repower
B94: Rattlesnake Repower
B95: Lind Repower
B97: CAPEX ($/kW)
B98: =List_Resources -> 7F.04 CT Frame Greenfield | C98: Internal | G98: =2020+COUNTBLANK(M98:S98) -> 2022 | O98: 744.4582952 | P98: =O98 -> 744.4582952 | Q98: =P98 -> 744.4582952 | R98: 744.4582952 | S98: 744.4582952 | T98: 744.4582952 | U98: 744.4582952 | V98: 744.4582952 | W98: 744.4582952 | X98: 744.4582952 | Y98: 744.4582952 | Z98: 744.4582952 | AA98: 744.4582952 | AB98: 744.4582952 | AC98: 744.4582952 | AD98: 744.4582952 | AE98: 744.4582952 | AF98: 744.4582952 | AG98: 744.4582952 | AH98: 744.4582952 | AI98: 744.4582952 | AJ98: 744.4582952 | AK98: 744.4582952 | AL98: 744.4582952 | AM98: 744.4582952 | AN98: 744.4582952 | AO98: 744.4582952 | AP98: 744.4582952 | AQ98: 744.4582952 | AR98: 744.4582952 | AS98: 744.4582952 | AT98: 744.4582952 | AU98: 744.4582952 | AV98: 744.4582952 | AW98: 744.4582952 | AX98: 744.4582952 | AY98: 744.4582952 | AZ98: 744.4582952 | BA98: 744.4582952 | BB98: 744.4582952 | BC98: 744.4582952 | BD98: 744.4582952 | BE98: 744.4582952 | BF98: 744.4582952 | BG98: 744.4582952 | BH98: 744.4582952 | BI98: 744.4582952 | BJ98: 744.4582952 | BK98: 744.4582952 | BL98: 744.4582952 | BM98: 744.4582952 | BN98: 744.4582952 | BO98: 744.4582952 | BP98: 744.4582952 | BQ98: 744.4582952 | BR98: 744.4582952 | BS98: 744.4582952 | BT98: 744.4582952 | BU98: 744.4582952 | BV98: 744.4582952 | BW98: 744.4582952 | BX98: 744.4582952 | BY98: 744.4582952 | BZ98: 744.4582952 | CA98: 744.4582952 | CB98: 744.4582952 | CC98: =CB98 -> 744.4582952 | CD98: 744.4582952 | CE98: 744.4582952 | CF98: 744.4582952 | CG98: 744.4582952 | CH98: 744.4582952 | CI98: 744.4582952 | CJ98: 744.4582952 | CK98: 744.4582952 | CL98: 744.4582952 | CM98: 744.4582952 | CN98: 744.4582952 | CO98: 744.4582952
B99: Reciprocating Engine (ICE) Machine | C99: Internal | G99: =2020+COUNTBLANK(M99:S99) -> 2022 | O99: 1139.324195 | P99: =O99 -> 1139.324195 | Q99: 1139.324195 | R99: 1139.324195 | S99: 1139.324195 | T99: 1139.324195 | U99: 1139.324195 | V99: 1139.324195 | W99: 1139.324195 | X99: 1139.324195 | Y99: 1139.324195 | Z99: 1139.324195 | AA99: 1139.324195 | AB99: 1139.324195 | AC99: 1139.324195 | AD99: 1139.324195 | AE99: 1139.324195 | AF99: 1139.324195 | AG99: 1139.324195 | AH99: 1139.324195 | AI99: 1139.324195 | AJ99: 1139.324195 | AK99: 1139.324195 | AL99: 1139.324195 | AM99: 1139.324195 | AN99: 1139.324195 | AO99: 1139.324195 | AP99: 1139.324195 | AQ99: 1139.324195 | AR99: 1139.324195 | AS99: 1139.324195 | AT99: 1139.324195 | AU99: 1139.324195 | AV99: 1139.324195 | AW99: 1139.324195 | AX99: 1139.324195 | AY99: 1139.324195 | AZ99: 1139.324195 | BA99: 1139.324195 | BB99: 1139.324195 | BC99: 1139.324195 | BD99: 1139.324195 | BE99: 1139.324195 | BF99: 1139.324195 | BG99: 1139.324195 | BH99: 1139.324195 | BI99: 1139.324195 | BJ99: 1139.324195 | BK99: 1139.324195 | BL99: 1139.324195 | BM99: 1139.324195 | BN99: 1139.324195 | BO99: 1139.324195 | BP99: 1139.324195 | BQ99: 1139.324195 | BR99: 1139.324195 | BS99: 1139.324195 | BT99: 1139.324195 | BU99: 1139.324195 | BV99: 1139.324195 | BW99: 1139.324195 | BX99: 1139.324195 | BY99: 1139.324195 | BZ99: 1139.324195 | CA99: 1139.324195 | CB99: 1139.324195 | CC99: 1139.324195 | CD99: 1139.324195 | CE99: 1139.324195 | CF99: 1139.324195 | CG99: 1139.324195 | CH99: 1139.324195 | CI99: 1139.324195 | CJ99: 1139.324195 | CK99: 1139.324195 | CL99: 1139.324195 | CM99: 1139.324195 | CN99: 1139.324195 | CO99: 1139.324195
B100: NG CCCT (1x1 w/DF) | C100: Internal | G100: 2022 | O100: 1139.113939 | P100: =O100 -> 1139.113939 | Q100: 1139.113939 | R100: 1139.113939 | S100: 1139.113939 | T100: 1139.113939 | U100: 1139.113939 | V100: 1139.113939 | W100: 1139.113939 | X100: 1139.113939 | Y100: 1139.113939 | Z100: 1139.113939 | AA100: 1139.113939 | AB100: 1139.113939 | AC100: 1139.113939 | AD100: 1139.113939 | AE100: 1139.113939 | AF100: 1139.113939 | AG100: 1139.113939 | AH100: 1139.113939 | AI100: 1139.113939 | AJ100: 1139.113939 | AK100: 1139.113939 | AL100: 1139.113939 | AM100: 1139.113939 | AN100: 1139.113939 | AO100: 1139.113939 | AP100: 1139.113939 | AQ100: 1139.113939 | AR100: 1139.113939 | AS100: 1139.113939 | AT100: 1139.113939 | AU100: 1139.113939 | AV100: 1139.113939 | AW100: 1139.113939 | AX100: 1139.113939 | AY100: 1139.113939 | AZ100: 1139.113939 | BA100: 1139.113939 | BB100: 1139.113939 | BC100: 1139.113939 | BD100: 1139.113939 | BE100: 1139.113939 | BF100: 1139.113939 | BG100: 1139.113939 | BH100: 1139.113939 | BI100: 1139.113939 | BJ100: 1139.113939 | BK100: 1139.113939 | BL100: 1139.113939 | BM100: 1139.113939 | BN100: 1139.113939 | BO100: 1139.113939 | BP100: 1139.113939 | BQ100: 1139.113939 | BR100: 1139.113939 | BS100: 1139.113939 | BT100: 1139.113939 | BU100: 1139.113939 | BV100: 1139.113939 | BW100: 1139.113939 | BX100: 1139.113939 | BY100: 1139.113939 | BZ100: 1139.113939 | CA100: 1139.113939 | CB100: 1139.113939 | CC100: 1139.113939 | CD100: 1139.113939 | CE100: 1139.113939 | CF100: 1139.113939 | CG100: 1139.113939 | CH100: 1139.113939 | CI100: 1139.113939 | CJ100: 1139.113939 | CK100: 1139.113939 | CL100: 1139.113939 | CM100: 1139.113939 | CN100: 1139.113939 | CO100: 1139.113939
B101: Small Modular Reactor | C101: NREL | D101: Overnight Capital Cost ($/kW) | E101: Nuclear - Small Modular Reactor | F101: Moderate | G101: 2021 | N101: 8017.026966 | O101: 7749.88917 | P101: 7482.751373 | Q101: 7215.613576 | R101: 7003.083852 | S101: 6873.553122 | T101: 6804.809668 | U101: 6760.250277 | V101: 6718.989761 | W101: 6678.952596 | X101: 6627.425361 | Y101: 6579.784083 | Z101: 6540.545993 | AA101: 6498.801724 | AB101: 6458.261041 | AC101: 6411.784661 | AD101: 6365.713109 | AE101: 6323.568768 | AF101: 6274.222114 | AG101: 6231.431662 | AH101: 6193.152185 | AI101: 6147.883537 | AJ101: 6107.916308 | AK101: 6064.659073 | AL101: 6018.572585 | AM101: 5973.427398 | AN101: 5930.653615 | AO101: 5886.749462 | AP101: 5838.665661 | AQ101: 5766.239715 | AR101: =AQ101*AQ101/AP101 -> 5694.71218 | AS101: =AR101*AR101/AQ101 -> 5624.071911 | AT101: 5554.307902 | AU101: 5485.409283 | AV101: 5417.365319 | AW101: 5350.16541 | AX101: 5283.799084 | AY101: 5218.256001 | AZ101: 5153.525951 | BA101: 5089.598846 | BB101: 5026.464728 | BC101: 4964.113759 | BD101: 4902.536226 | BE101: 4841.722533 | BF101: 4781.663205 | BG101: 4722.348886 | BH101: 4663.770334 | BI101: 4605.918421 | BJ101: 4548.784135 | BK101: 4492.358573 | BL101: 4436.632944 | BM101: 4381.598565 | BN101: 4327.246863 | BO101: 4273.569368 | BP101: 4220.557718 | BQ101: 4168.203653 | BR101: 4116.499015 | BS101: 4065.43575 | BT101: 4015.005901 | BU101: 3965.201611 | BV101: 3916.01512 | BW101: 3867.438765 | BX101: 3819.464977 | BY101: 3772.086282 | BZ101: 3725.295297 | CA101: 3679.084733 | CB101: 3633.447389 | CC101: 3588.376156 | CD101: 3543.864011 | CE101: 3499.904018 | CF101: 3456.489328 | CG101: 3413.613177 | CH101: 3371.268886 | CI101: 3329.449856 | CJ101: 3288.149571 | CK101: 3247.361597 | CL101: 3207.079579 | CM101: 3167.297242 | CN101: 3128.008385 | CO101: 3089.206889
B102: Northwest Wind (On System) | C102: NREL | D102: Overnight Capital Cost ($/kW) | E102: Land-Based Wind - Class 8 - Technology 2 | F102: Moderate | G102: 2021 | N102: 1402.569214 | O102: 1578.651779 | P102: 1477.203354 | Q102: 1313.083603 | R102: 1283.255066 | S102: 1253.426529 | T102: 1223.597992 | U102: 1193.769454 | V102: 1163.940917 | W102: 1134.11238 | X102: 1123.019819 | Y102: 1111.927258 | Z102: 1100.834697 | AA102: 1089.742137 | AB102: 1078.649576 | AC102: 1067.557015 | AD102: 1056.464454 | AE102: 1045.371893 | AF102: 1034.279332 | AG102: 1023.186771 | AH102: 1012.09421 | AI102: 1001.001649 | AJ102: 989.9090885 | AK102: 978.8165276 | AL102: 967.7239667 | AM102: 956.6314058 | AN102: 945.5388449 | AO102: 934.446284 | AP102: 923.3537231 | AQ102: 912.2611622 | AR102: =AQ102*AQ102/AP102 -> 901.30186 | AS102: 890.4742156 | AT102: 879.7766473 | AU102: 869.2075926 | AV102: 858.7655075 | AW102: 848.4488667 | AX102: 838.2561632 | AY102: 828.1859081 | AZ102: 818.2366304 | BA102: 808.4068767 | BB102: 798.6952112 | BC102: 789.1002152 | BD102: 779.6204872 | BE102: 770.2546423 | BF102: 761.0013125 | BG102: 751.8591461 | BH102: 742.8268076 | BI102: 733.9029776 | BJ102: 725.0863527 | BK102: 716.3756449 | BL102: 707.7695817 | BM102: 699.2669061 | BN102: 690.866376 | BO102: 682.5667643 | BP102: 674.3668587 | BQ102: 666.2654613 | BR102: 658.2613887 | BS102: 650.3534718 | BT102: 642.5405553 | BU102: 634.8214981 | BV102: 627.1951725 | BW102: 619.6604645 | BX102: 612.2162736 | BY102: 604.8615122 | BZ102: 597.5951061 | CA102: 590.4159937 | CB102: 583.3231265 | CC102: 576.3154683 | CD102: 569.3919954 | CE102: 562.5516966 | CF102: 555.7935726 | CG102: 549.1166362 | CH102: 542.5199122 | CI102: 536.0024368 | CJ102: 529.563258 | CK102: 523.2014353 | CL102: 516.9160393 | CM102: 510.7061519 | CN102: 504.570866 | CO102: 498.5092854
B103: Northwest Wind (Off System) | C103: =C102 -> NREL | D103: =D102 -> Overnight Capital Cost ($/kW) | E103: Land-Based Wind - Class 8 - Technology 2 | F103: Moderate | G103: 2021 | N103: =N102/1.025+150 -> 1518.360209 | O103: =O102/1.025+150 -> 1690.148077 | P103: 1591.174004 | Q103: 1431.057174 | R103: 1401.956162 | S103: 1372.85515 | T103: 1343.754138 | U103: 1314.653126 | V103: 1285.552114 | W103: 1256.451103 | X103: 1245.629092 | Y103: 1234.807081 | Z103: 1223.985071 | AA103: 1213.16306 | AB103: 1202.341049 | AC103: 1191.519039 | AD103: 1180.697028 | AE103: 1169.875018 | AF103: 1159.053007 | AG103: 1148.230996 | AH103: 1137.408986 | AI103: 1126.586975 | AJ103: 1115.764964 | AK103: 1104.942954 | AL103: 1094.120943 | AM103: 1083.298932 | AN103: 1072.476922 | AO103: 1061.654911 | AP103: 1050.832901 | AQ103: 1040.01089 | AR103: 1029.318888 | AS103: 1018.755332 | AT103: 1008.31868 | AU103: 998.0074074 | AV103: 987.8200073 | AW103: 977.7549919 | AX103: 967.8108909 | AY103: 957.9862518 | AZ103: 948.2796394 | BA103: 938.6896358 | BB103: 929.2148402 | BC103: 919.8538685 | BD103: 910.6053533 | BE103: 901.4679437 | BF103: 892.4403049 | BG103: 883.5211181 | BH103: 874.7090806 | BI103: 866.002905 | BJ103: 857.4013197 | BK103: 848.9030681 | BL103: 840.506909 | BM103: 832.2116157 | BN103: 824.0159766 | BO103: 815.9187944 | BP103: 807.9188865 | BQ103: 800.0150842 | BR103: 792.2062329 | BS103: 784.491192 | BT103: 776.8688344 | BU103: 769.3380469 | BV103: 761.8977293 | BW103: 754.5467947 | BX103: 747.2841693 | BY103: 740.1087924 | BZ103: 733.0196157 | CA103: =CA102/1.025+150 -> 726.0156036 | CB103: 719.0957332 | CC103: 712.2589934 | CD103: 705.5043858 | CE103: 698.8309235 | CF103: 692.2376318 | CG103: 685.7235476 | CH103: 679.2877192 | CI103: 672.9292066 | CJ103: 666.647081 | CK103: 660.4404247 | CL103: 654.3083311 | CM103: 648.2499043 | CN103: 642.2642595 | CO103: 636.3505223
B104: Montana Wind (Off System) | C104: NREL | D104: Overnight Capital Cost ($/kW) | E104: Land-Based Wind - Class 3 - Technology 1 | F104: Moderate | G104: 2021 | N104: 1433.883035 | O104: 1600.828648 | P104: 1513.226944 | Q104: 1367.004315 | R104: 1344.711408 | S104: 1322.418502 | T104: 1300.125595 | U104: 1277.832688 | V104: 1255.539781 | W104: 1233.246875 | X104: 1222.580761 | Y104: 1211.914647 | Z104: 1201.248534 | AA104: 1190.58242 | AB104: 1179.916307 | AC104: 1169.250193 | AD104: 1158.584079 | AE104: 1147.917966 | AF104: 1137.251852 | AG104: 1126.585739 | AH104: 1115.919625 | AI104: 1105.253511 | AJ104: 1094.587398 | AK104: 1083.921284 | AL104: 1073.25517 | AM104: 1062.589057 | AN104: 1051.922943 | AO104: 1041.25683 | AP104: 1030.590716 | AQ104: 1019.924602 | AR104: =AQ104*AQ104/AP104 -> 1009.368878 | AS104: 998.9223999 | AT104: 988.5840379 | AU104: 978.352673 | AV104: 968.2271978 | AW104: 958.2065163 | AX104: 948.289544 | AY104: 938.4752076 | AZ104: 928.7624448 | BA104: 919.1502043 | BB104: 909.6374459 | BC104: 900.2231399 | BD104: 890.9062674 | BE104: 881.68582 | BF104: 872.5607998 | BG104: 863.5302191 | BH104: =BG104*BG104/BF104 -> 854.5931005 | BI104: 845.7484768 | BJ104: 836.9953906 | BK104: 828.3328946 | BL104: 819.7600512 | BM104: 811.2759327 | BN104: 802.8796206 | BO104: 794.5702063 | BP104: 786.3467903 | BQ104: 778.2084828 | BR104: 770.1544028 | BS104: 762.1836786 | BT104: 754.2954475 | BU104: 746.4888558 | BV104: 738.7630585 | BW104: 731.1172194 | BX104: =BW104*BW104/BV104 -> 723.5505111 | BY104: 716.0621146 | BZ104: 708.6512193 | CA104: 701.3170232 | CB104: 694.0587324 | CC104: 686.8755615 | CD104: 679.7667329 | CE104: 672.7314772 | CF104: 665.7690329 | CG104: 658.8786466 | CH104: 652.0595725 | CI104: 645.3110724 | CJ104: 638.6324161 | CK104: 632.0228806 | CL104: 625.4817506 | CM104: 619.0083181 | CN104: =CM104*CM104/CL104 -> 612.6018825 | CO104: 606.2617504
B105: Off Shore Wind (Off System) | C105: NREL | D105: Overnight Capital Cost ($/kW) + Offshore Spur Line Costs ($/kW) | E105: Offshore Wind - Class 12 | F105: Moderate | G105: 2021 | N105: 5076.70908 | O105: 5406.660413 | P105: 5021.797651 | Q105: 4554.992821 | R105: 4451.182843 | S105: 4363.412758 | T105: 4287.382851 | U105: 4220.319721 | V105: 4160.329706 | W105: 4106.062138 | X105: 4056.519729 | Y105: 4010.94513 | Z105: 3968.749643 | AA105: 3929.466584 | AB105: 3892.719736 | AC105: 3858.201379 | AD105: 3825.656606 | AE105: 3794.871892 | AF105: 3765.666592 | AG105: 3737.886521 | AH105: 3711.399023 | AI105: 3686.089144 | AJ105: 3661.856614 | AK105: 3638.613447 | AL105: 3616.282016 | AM105: 3594.793484 | AN105: 3574.086528 | AO105: 3554.106285 | AP105: 3534.803469 | AQ105: 3516.133649 | AR105: 3497.562437 | AS105: 3479.089312 | AT105: 3460.713758 | AU105: 3442.435258 | AV105: 3424.2533 | AW105: 3406.167373 | AX105: 3388.176972 | AY105: 3370.28159 | AZ105: 3352.480727 | BA105: 3334.773883 | BB105: 3317.160561 | BC105: 3299.640268 | BD105: 3282.212512 | BE105: 3264.876804 | BF105: 3247.632659 | BG105: 3230.479592 | BH105: 3213.417123 | BI105: 3196.444773 | BJ105: 3179.562066 | BK105: 3162.768529 | BL105: 3146.063691 | BM105: 3129.447082 | BN105: 3112.918238 | BO105: 3096.476694 | BP105: 3080.12199 | BQ105: 3063.853667 | BR105: 3047.671268 | BS105: 3031.574341 | BT105: 3015.562432 | BU105: 2999.635094 | BV105: 2983.79188 | BW105: 2968.032344 | BX105: 2952.356047 | BY105: 2936.762547 | BZ105: 2921.251407 | CA105: 2905.822193 | CB105: 2890.474471 | CC105: 2875.207812 | CD105: 2860.021787 | CE105: 2844.91597 | CF105: 2829.889937 | CG105: 2814.943268 | CH105: 2800.075543 | CI105: 2785.286345 | CJ105: 2770.57526 | CK105: 2755.941874 | CL105: 2741.385777 | CM105: 2726.906562 | CN105: 2712.503821 | CO105: 2698.177152
B106: New Construction Residential Solar | C106: Internal | G106: 2021 | N106: =N108*0.92 -> 3272.863348 | O106: 3215.27261 | P106: 3235.95896 | Q106: 3287.386942 | R106: 3177.08935 | S106: =S108*0.92 -> 3184.430623 | T106: =T108*0.92 -> 3158.537047 | U106: 3135.005363 | V106: 3067.959499 | W106: 3003.391401 | X106: 2941.75182 | Y106: 2865.733065 | Z106: 2785.617712 | AA106: 2700.48498 | AB106: 2608.469627 | AC106: 2600.260055 | AD106: 2588.010786 | AE106: 2574.278607 | AF106: 2558.569434 | AG106: 2540.793808 | AH106: 2520.23314 | AI106: 2497.96441 | AJ106: 2474.424677 | AK106: 2449.293076 | AL106: 2422.98556 | AM106: 2394.584874 | AN106: 2365.505241 | AO106: 2335.740693 | AP106: 2304.944389 | AQ106: 2272.613518 | AR106: 2240.736144 | AS106: 2209.305905 | AT106: 2178.316531 | AU106: 2147.761837 | AV106: 2117.635726 | AW106: 2087.932186 | AX106: 2058.64529 | AY106: 2029.769194 | AZ106: 2001.298135 | BA106: 1973.226433 | BB106: 1945.548486 | BC106: 1918.25877 | BD106: 1891.35184 | BE106: 1864.822327 | BF106: 1838.664937 | BG106: 1812.874449 | BH106: 1787.445719 | BI106: 1762.37367 | BJ106: 1737.653301 | BK106: 1713.279679 | BL106: 1689.247939 | BM106: 1665.553286 | BN106: 1642.190992 | BO106: 1619.156395 | BP106: 1596.444898 | BQ106: 1574.05197 | BR106: 1551.973141 | BS106: 1530.204007 | BT106: 1508.740223 | BU106: 1487.577506 | BV106: 1466.711633 | BW106: 1446.138441 | BX106: 1425.853823 | BY106: 1405.853733 | BZ106: 1386.134179 | CA106: 1366.691226 | CB106: 1347.520994 | CC106: 1328.619658 | CD106: 1309.983447 | CE106: 1291.608641 | CF106: =CF108*0.92 -> 1273.491574 | CG106: 1255.62863 | CH106: 1238.016245 | CI106: 1220.650905 | CJ106: 1203.529144 | CK106: 1186.647545 | CL106: 1170.002741 | CM106: 1153.591409 | CN106: 1137.410274 | CO106: 1121.456109
B107: New Construction Residential Solar + Storage | C107: =C106 -> Internal | G107: 2021 | N107: =N106 -> 3272.863348 | O107: 3215.27261 | P107: 3235.95896 | Q107: 3287.386942 | R107: 3177.08935 | S107: =S106 -> 3184.430623 | T107: =T106 -> 3158.537047 | U107: 3135.005363 | V107: 3067.959499 | W107: 3003.391401 | X107: 2941.75182 | Y107: 2865.733065 | Z107: 2785.617712 | AA107: 2700.48498 | AB107: 2608.469627 | AC107: 2600.260055 | AD107: 2588.010786 | AE107: 2574.278607 | AF107: 2558.569434 | AG107: 2540.793808 | AH107: 2520.23314 | AI107: 2497.96441 | AJ107: 2474.424677 | AK107: 2449.293076 | AL107: 2422.98556 | AM107: 2394.584874 | AN107: 2365.505241 | AO107: 2335.740693 | AP107: 2304.944389 | AQ107: 2272.613518 | AR107: 2240.736144 | AS107: 2209.305905 | AT107: 2178.316531 | AU107: 2147.761837 | AV107: 2117.635726 | AW107: 2087.932186 | AX107: 2058.64529 | AY107: 2029.769194 | AZ107: 2001.298135 | BA107: 1973.226433 | BB107: 1945.548486 | BC107: 1918.25877 | BD107: 1891.35184 | BE107: 1864.822327 | BF107: 1838.664937 | BG107: 1812.874449 | BH107: 1787.445719 | BI107: 1762.37367 | BJ107: 1737.653301 | BK107: 1713.279679 | BL107: 1689.247939 | BM107: 1665.553286 | BN107: 1642.190992 | BO107: 1619.156395 | BP107: 1596.444898 | BQ107: 1574.05197 | BR107: 1551.973141 | BS107: 1530.204007 | BT107: 1508.740223 | BU107: 1487.577506 | BV107: 1466.711633 | BW107: 1446.138441 | BX107: 1425.853823 | BY107: 1405.853733 | BZ107: 1386.134179 | CA107: 1366.691226 | CB107: 1347.520994 | CC107: 1328.619658 | CD107: 1309.983447 | CE107: 1291.608641 | CF107: =CF106 -> 1273.491574 | CG107: 1255.62863 | CH107: 1238.016245 | CI107: 1220.650905 | CJ107: 1203.529144 | CK107: 1186.647545 | CL107: 1170.002741 | CM107: 1153.591409 | CN107: 1137.410274 | CO107: 1121.456109
B108: Residential Solar | C108: Internal | G108: 2021 | N108: =N115*N2 -> 3557.460161 | O108: 3494.861532 | P108: 3517.346696 | Q108: 3573.246676 | R108: 3453.357989 | S108: =S115*S2 -> 3461.337633 | T108: =T115*T2 -> 3433.192442 | U108: 3407.614525 | V108: 3334.738586 | W108: 3264.55587 | X108: 3197.556326 | Y108: 3114.927245 | Z108: 3027.845339 | AA108: 2935.309761 | AB108: 2835.293072 | AC108: 2826.369625 | AD108: 2813.055203 | AE108: 2798.12892 | AF108: 2781.053732 | AG108: 2761.7324 | AH108: 2739.383848 | AI108: 2715.178706 | AJ108: 2689.59204 | AK108: 2662.275083 | AL108: 2633.679956 | AM108: 2602.809646 | AN108: 2571.201349 | AO108: 2538.848579 | AP108: 2505.374336 | AQ108: 2470.232085 | AR108: =AQ108*AQ108/AP108 -> 2435.582765 | AS108: =AR108*AR108/AQ108 -> 2401.419462 | AT108: =AS108*AS108/AR108 -> 2367.73536 | AU108: =AT108*AT108/AS108 -> 2334.523736 | AV108: =AU108*AU108/AT108 -> 2301.777963 | AW108: =AV108*AV108/AU108 -> 2269.491506 | AX108: =AW108*AW108/AV108 -> 2237.657924 | AY108: =AX108*AX108/AW108 -> 2206.270863 | AZ108: =AY108*AY108/AX108 -> 2175.32406 | BA108: =AZ108*AZ108/AY108 -> 2144.811341 | BB108: =BA108*BA108/AZ108 -> 2114.726615 | BC108: =BB108*BB108/BA108 -> 2085.063881 | BD108: =BC108*BC108/BB108 -> 2055.817218 | BE108: =BD108*BD108/BC108 -> 2026.98079 | BF108: =BE108*BE108/BD108 -> 1998.548844 | BG108: =BF108*BF108/BE108 -> 1970.515706 | BH108: =BG108*BG108/BF108 -> 1942.875781 | BI108: =BH108*BH108/BG108 -> 1915.623555 | BJ108: =BI108*BI108/BH108 -> 1888.753588 | BK108: =BJ108*BJ108/BI108 -> 1862.26052 | BL108: =BK108*BK108/BJ108 -> 1836.139064 | BM108: =BL108*BL108/BK108 -> 1810.384006 | BN108: =BM108*BM108/BL108 -> 1784.990208 | BO108: =BN108*BN108/BM108 -> 1759.952603 | BP108: =BO108*BO108/BN108 -> 1735.266193 | BQ108: =BP108*BP108/BO108 -> 1710.926054 | BR108: =BQ108*BQ108/BP108 -> 1686.927328 | BS108: =BR108*BR108/BQ108 -> 1663.265225 | BT108: =BS108*BS108/BR108 -> 1639.935025 | BU108: =BT108*BT108/BS108 -> 1616.932072 | BV108: =BU108*BU108/BT108 -> 1594.251775 | BW108: =BV108*BV108/BU108 -> 1571.88961 | BX108: =BW108*BW108/BV108 -> 1549.841112 | BY108: =BX108*BX108/BW108 -> 1528.101884 | BZ108: =BY108*BY108/BX108 -> 1506.667586 | CA108: =BZ108*BZ108/BY108 -> 1485.533941 | CB108: =CA108*CA108/BZ108 -> 1464.696733 | CC108: =CB108*CB108/CA108 -> 1444.151803 | CD108: =CC108*CC108/CB108 -> 1423.895051 | CE108: =CD108*CD108/CC108 -> 1403.922436 | CF108: =CE108*CE108/CD108 -> 1384.229971 | CG108: =CF108*CF108/CE108 -> 1364.813728 | CH108: =CG108*CG108/CF108 -> 1345.669832 | CI108: =CH108*CH108/CG108 -> 1326.794462 | CJ108: =CI108*CI108/CH108 -> 1308.183852 | CK108: =CJ108*CJ108/CI108 -> 1289.834289 | CL108: =CK108*CK108/CJ108 -> 1271.74211 | CM108: =CL108*CL108/CK108 -> 1253.903705 | CN108: =CM108*CM108/CL108 -> 1236.315516 | CO108: =CN108*CN108/CM108 -> 1218.974031
B109: Residential Solar + Storage | C109: =C108 -> Internal | G109: 2021 | N109: =N108 -> 3557.460161 | O109: 3494.861532 | P109: 3517.346696 | Q109: 3573.246676 | R109: 3453.357989 | S109: =S108 -> 3461.337633 | T109: 3433.192442 | U109: 3407.614525 | V109: 3334.738586 | W109: 3264.55587 | X109: 3197.556326 | Y109: 3114.927245 | Z109: 3027.845339 | AA109: 2935.309761 | AB109: 2835.293072 | AC109: 2826.369625 | AD109: 2813.055203 | AE109: 2798.12892 | AF109: 2781.053732 | AG109: 2761.7324 | AH109: 2739.383848 | AI109: 2715.178706 | AJ109: 2689.59204 | AK109: 2662.275083 | AL109: 2633.679956 | AM109: 2602.809646 | AN109: 2571.201349 | AO109: 2538.848579 | AP109: 2505.374336 | AQ109: 2470.232085 | AR109: 2435.582765 | AS109: 2401.419462 | AT109: 2367.73536 | AU109: 2334.523736 | AV109: 2301.777963 | AW109: 2269.491506 | AX109: 2237.657924 | AY109: 2206.270863 | AZ109: 2175.32406 | BA109: 2144.811341 | BB109: 2114.726615 | BC109: 2085.063881 | BD109: 2055.817218 | BE109: 2026.98079 | BF109: 1998.548844 | BG109: 1970.515706 | BH109: 1942.875781 | BI109: 1915.623555 | BJ109: 1888.753588 | BK109: 1862.26052 | BL109: 1836.139064 | BM109: 1810.384006 | BN109: 1784.990208 | BO109: 1759.952603 | BP109: 1735.266193 | BQ109: 1710.926054 | BR109: 1686.927328 | BS109: 1663.265225 | BT109: 1639.935025 | BU109: 1616.932072 | BV109: 1594.251775 | BW109: 1571.88961 | BX109: 1549.841112 | BY109: 1528.101884 | BZ109: 1506.667586 | CA109: =CA108 -> 1485.533941 | CB109: 1464.696733 | CC109: 1444.151803 | CD109: 1423.895051 | CE109: 1403.922436 | CF109: 1384.229971 | CG109: 1364.813728 | CH109: 1345.669832 | CI109: 1326.794462 | CJ109: 1308.183852 | CK109: 1289.834289 | CL109: 1271.74211 | CM109: 1253.903705 | CN109: 1236.315516 | CO109: 1218.974031
B110: Commercial Solar | C110: S&P Global Adjustment | G110: 2021 | N110: =N115*N3 -> 1991.203071 | O110: =O115*O3 -> 1916.762986 | P110: 1974.477402 | Q110: 2020.504054 | R110: 1922.806975 | S110: =S115*S3 -> 1920.03948 | T110: 1893.872483 | U110: 1862.916844 | V110: 1816.496643 | W110: 1772.311295 | X110: 1728.177192 | Y110: 1677.741002 | Z110: 1624.41766 | AA110: 1567.89731 | AB110: 1507.870881 | AC110: 1496.714965 | AD110: 1483.698871 | AE110: 1469.982396 | AF110: 1455.568209 | AG110: 1439.913329 | AH110: 1422.586007 | AI110: 1403.379927 | AJ110: 1383.747709 | AK110: 1363.656199 | AL110: 1343.435748 | AM110: 1322.588155 | AN110: 1301.324266 | AO110: 1279.837428 | AP110: 1257.980593 | AQ110: 1236.166139 | AR110: =AQ110*AQ110/AP110 -> 1214.729966 | AS110: =AR110*AR110/AQ110 -> 1193.665515 | AT110: =AS110*AS110/AR110 -> 1172.966339 | AU110: =AT110*AT110/AS110 -> 1152.626104 | AV110: =AU110*AU110/AT110 -> 1132.638587 | AW110: =AV110*AV110/AU110 -> 1112.99767 | AX110: =AW110*AW110/AV110 -> 1093.697343 | AY110: =AX110*AX110/AW110 -> 1074.7317 | AZ110: =AY110*AY110/AX110 -> 1056.094938 | BA110: =AZ110*AZ110/AY110 -> 1037.781353 | BB110: =BA110*BA110/AZ110 -> 1019.785341 | BC110: =BB110*BB110/BA110 -> 1002.101395 | BD110: =BC110*BC110/BB110 -> 984.7241043 | BE110: =BD110*BD110/BC110 -> 967.6481503 | BF110: =BE110*BE110/BD110 -> 950.8683078 | BG110: =BF110*BF110/BE110 -> 934.3794421 | BH110: =BG110*BG110/BF110 -> 918.1765074 | BI110: =BH110*BH110/BG110 -> 902.2545454 | BJ110: =BI110*BI110/BH110 -> 886.6086837 | BK110: =BJ110*BJ110/BI110 -> 871.2341346 | BL110: =BK110*BK110/BJ110 -> 856.1261932 | BM110: =BL110*BL110/BK110 -> 841.2802364 | BN110: =BM110*BM110/BL110 -> 826.6917212 | BO110: =BN110*BN110/BM110 -> 812.3561832 | BP110: =BO110*BO110/BN110 -> 798.2692356 | BQ110: =BP110*BP110/BO110 -> 784.4265677 | BR110: =BQ110*BQ110/BP110 -> 770.8239434 | BS110: =BR110*BR110/BQ110 -> 757.4572002 | BT110: =BS110*BS110/BR110 -> 744.3222477 | BU110: =BT110*BT110/BS110 -> 731.4150665 | BV110: =BU110*BU110/BT110 -> 718.7317068 | BW110: =BV110*BV110/BU110 -> 706.2682873 | BX110: =BW110*BW110/BV110 -> 694.0209942 | BY110: =BX110*BX110/BW110 -> 681.9860795 | BZ110: =BY110*BY110/BX110 -> 670.1598605 | CA110: =BZ110*BZ110/BY110 -> 658.5387181 | CB110: =CA110*CA110/BZ110 -> 647.1190963 | CC110: =CB110*CB110/CA110 -> 635.8975005 | CD110: =CC110*CC110/CB110 -> 624.8704966 | CE110: =CD110*CD110/CC110 -> 614.0347104 | CF110: =CE110*CE110/CD110 -> 603.386826 | CG110: =CF110*CF110/CE110 -> 592.9235849 | CH110: =CG110*CG110/CF110 -> 582.6417853 | CI110: =CH110*CH110/CG110 -> 572.5382809 | CJ110: =CI110*CI110/CH110 -> 562.6099799 | CK110: =CJ110*CJ110/CI110 -> 552.853844 | CL110: =CK110*CK110/CJ110 -> 543.2668878 | CM110: =CL110*CL110/CK110 -> 533.8461777 | CN110: =CM110*CM110/CL110 -> 524.5888306 | CO110: =CN110*CN110/CM110 -> 515.4920138
B111: Commercial Solar + Storage | C111: =C110 -> S&P Global Adjustment | G111: 2021 | N111: =N110 -> 1991.203071 | O111: 1916.762986 | P111: 1974.477402 | Q111: 2020.504054 | R111: 1922.806975 | S111: =S110 -> 1920.03948 | T111: 1893.872483 | U111: 1862.916844 | V111: 1816.496643 | W111: 1772.311295 | X111: 1728.177192 | Y111: 1677.741002 | Z111: 1624.41766 | AA111: 1567.89731 | AB111: 1507.870881 | AC111: 1496.714965 | AD111: 1483.698871 | AE111: 1469.982396 | AF111: 1455.568209 | AG111: 1439.913329 | AH111: 1422.586007 | AI111: 1403.379927 | AJ111: 1383.747709 | AK111: 1363.656199 | AL111: 1343.435748 | AM111: 1322.588155 | AN111: 1301.324266 | AO111: 1279.837428 | AP111: 1257.980593 | AQ111: 1236.166139 | AR111: 1214.729966 | AS111: 1193.665515 | AT111: 1172.966339 | AU111: 1152.626104 | AV111: 1132.638587 | AW111: 1112.99767 | AX111: 1093.697343 | AY111: 1074.7317 | AZ111: 1056.094938 | BA111: 1037.781353 | BB111: 1019.785341 | BC111: 1002.101395 | BD111: 984.7241043 | BE111: 967.6481503 | BF111: 950.8683078 | BG111: 934.3794421 | BH111: 918.1765074 | BI111: 902.2545454 | BJ111: 886.6086837 | BK111: 871.2341346 | BL111: 856.1261932 | BM111: 841.2802364 | BN111: 826.6917212 | BO111: 812.3561832 | BP111: 798.2692356 | BQ111: 784.4265677 | BR111: 770.8239434 | BS111: 757.4572002 | BT111: 744.3222477 | BU111: 731.4150665 | BV111: 718.7317068 | BW111: 706.2682873 | BX111: 694.0209942 | BY111: 681.9860795 | BZ111: 670.1598605 | CA111: =CA110 -> 658.5387181 | CB111: 647.1190963 | CC111: 635.8975005 | CD111: 624.8704966 | CE111: 614.0347104 | CF111: 603.386826 | CG111: 592.9235849 | CH111: 582.6417853 | CI111: 572.5382809 | CJ111: 562.6099799 | CK111: 552.853844 | CL111: 543.2668878 | CM111: 533.8461777 | CN111: 524.5888306 | CO111: 515.4920138
B112: Low-Income Community Solar | C112: =C113 -> NREL S&P Global Adjustment | D112: Overnight Capital Cost ($/kW) | E112: Utility PV - Class 4 | G112: 2021 | N112: =N113*0.2 -> 323.7018154 | O112: =O113*0.2 -> 324.209818 | P112: 325.9425751 | Q112: 326.5065557 | R112: 312.6981632 | S112: 308.3827291 | T112: 301.7273449 | U112: 294.5930964 | V112: 285.9123917 | W112: 277.4551724 | X112: 269.0030775 | Y112: 259.9207739 | Z112: 250.5497551 | AA112: =AA113 -> 1204.295178 | AB112: =AB113 -> 1154.08854 | AC112: 1142.181201 | AD112: 1129.343772 | AE112: 1116.156153 | AF112: 1102.619678 | AG112: 1088.462857 | AH112: 1073.469814 | AI112: 1057.537392 | AJ112: 1041.391902 | AK112: 1025.016765 | AL112: 1008.577158 | AM112: 991.8239802 | AN112: 974.8626539 | AO112: 957.7898532 | AP112: 940.5320543 | AQ112: 923.2954457 | AR112: 906.3765674 | AS112: 889.7695271 | AT112: 873.4685424 | AU112: 857.4679389 | AV112: 841.7621479 | AW112: 826.3457046 | AX112: 811.2132462 | AY112: 796.35951 | AZ112: 781.7793311 | BA112: 767.4676413 | BB112: 753.4194665 | BC112: 739.6299257 | BD112: 726.0942286 | BE112: 712.8076743 | BF112: 699.7656493 | BG112: 686.9636264 | BH112: 674.3971623 | BI112: 662.0618969 | BJ112: 649.9535511 | BK112: 638.0679254 | BL112: 626.4008986 | BM112: 614.9484262 | BN112: 603.7065391 | BO112: 592.6713419 | BP112: 581.8390119 | BQ112: 571.2057972 | BR112: 560.7680162 | BS112: 550.5220553 | BT112: 540.4643685 | BU112: 530.5914756 | BV112: 520.899961 | BW112: 511.3864729 | BX112: 502.0477216 | BY112: 492.8804786 | BZ112: 483.8815755 | CA112: 475.0479027 | CB112: 466.3764085 | CC112: 457.8640978 | CD112: 449.5080311 | CE112: 441.3053236 | CF112: 433.2531443 | CG112: 425.3487143 | CH112: 417.5893068 | CI112: 409.9722453 | CJ112: 402.4949031 | CK112: 395.1547023 | CL112: 387.9491128 | CM112: 380.8756515 | CN112: =CN113 -> 373.9318814 | CO112: 367.1154107
B113: Solar Photovoltaic Fixed Array (5 MW AC) | C113: =C115&" "&C110 -> NREL S&P Global Adjustment | D113: =D115&" "&D110 -> Overnight Capital Cost ($/kW) | E113: =E115&" "&E110 -> Utility PV - Class 4 | G113: 2021 | N113: =AVERAGE(N110,N115) -> 1618.509077 | O113: =AVERAGE(O110,O115) -> 1621.04909 | P113: 1629.712875 | Q113: 1632.532778 | R113: 1563.490816 | S113: 1541.913646 | T113: 1508.636724 | U113: 1472.965482 | V113: 1429.561959 | W113: 1387.275862 | X113: 1345.015387 | Y113: 1299.603869 | Z113: 1252.748776 | AA113: 1204.295178 | AB113: 1154.08854 | AC113: 1142.181201 | AD113: 1129.343772 | AE113: 1116.156153 | AF113: 1102.619678 | AG113: 1088.462857 | AH113: 1073.469814 | AI113: 1057.537392 | AJ113: 1041.391902 | AK113: 1025.016765 | AL113: 1008.577158 | AM113: 991.8239802 | AN113: 974.8626539 | AO113: 957.7898532 | AP113: 940.5320543 | AQ113: 923.2954457 | AR113: 906.3765674 | AS113: 889.7695271 | AT113: 873.4685424 | AU113: 857.4679389 | AV113: 841.7621479 | AW113: 826.3457046 | AX113: 811.2132462 | AY113: 796.35951 | AZ113: 781.7793311 | BA113: 767.4676413 | BB113: 753.4194665 | BC113: 739.6299257 | BD113: 726.0942286 | BE113: 712.8076743 | BF113: 699.7656493 | BG113: 686.9636264 | BH113: 674.3971623 | BI113: 662.0618969 | BJ113: 649.9535511 | BK113: 638.0679254 | BL113: 626.4008986 | BM113: 614.9484262 | BN113: 603.7065391 | BO113: 592.6713419 | BP113: 581.8390119 | BQ113: 571.2057972 | BR113: 560.7680162 | BS113: 550.5220553 | BT113: 540.4643685 | BU113: 530.5914756 | BV113: 520.899961 | BW113: 511.3864729 | BX113: 502.0477216 | BY113: 492.8804786 | BZ113: 483.8815755 | CA113: =AVERAGE(CA110,CA115) -> 475.0479027 | CB113: 466.3764085 | CC113: 457.8640978 | CD113: 449.5080311 | CE113: 441.3053236 | CF113: 433.2531443 | CG113: 425.3487143 | CH113: 417.5893068 | CI113: 409.9722453 | CJ113: 402.4949031 | CK113: 395.1547023 | CL113: 387.9491128 | CM113: 380.8756515 | CN113: 373.9318814 | CO113: 367.1154107
B114: Solar Photovoltaic Fixed Array (5 MW AC) + Storage | C114: =C113 -> NREL S&P Global Adjustment | D114: Overnight Capital Cost ($/kW) | E114: Utility PV - Class 4 | G114: 2021 | N114: =N113 -> 1618.509077 | O114: =O113 -> 1621.04909 | P114: =P113 -> 1629.712875 | Q114: 1632.532778 | R114: 1563.490816 | S114: 1541.913646 | T114: 1508.636724 | U114: 1472.965482 | V114: 1429.561959 | W114: 1387.275862 | X114: 1345.015387 | Y114: 1299.603869 | Z114: 1252.748776 | AA114: 1204.295178 | AB114: 1154.08854 | AC114: 1142.181201 | AD114: 1129.343772 | AE114: 1116.156153 | AF114: 1102.619678 | AG114: 1088.462857 | AH114: 1073.469814 | AI114: 1057.537392 | AJ114: 1041.391902 | AK114: 1025.016765 | AL114: 1008.577158 | AM114: 991.8239802 | AN114: 974.8626539 | AO114: 957.7898532 | AP114: 940.5320543 | AQ114: 923.2954457 | AR114: 906.3765674 | AS114: 889.7695271 | AT114: 873.4685424 | AU114: 857.4679389 | AV114: 841.7621479 | AW114: 826.3457046 | AX114: 811.2132462 | AY114: 796.35951 | AZ114: 781.7793311 | BA114: 767.4676413 | BB114: 753.4194665 | BC114: 739.6299257 | BD114: 726.0942286 | BE114: 712.8076743 | BF114: 699.7656493 | BG114: 686.9636264 | BH114: 674.3971623 | BI114: 662.0618969 | BJ114: 649.9535511 | BK114: 638.0679254 | BL114: 626.4008986 | BM114: 614.9484262 | BN114: 603.7065391 | BO114: 592.6713419 | BP114: 581.8390119 | BQ114: 571.2057972 | BR114: 560.7680162 | BS114: 550.5220553 | BT114: 540.4643685 | BU114: 530.5914756 | BV114: 520.899961 | BW114: 511.3864729 | BX114: 502.0477216 | BY114: 492.8804786 | BZ114: =BZ113 -> 483.8815755 | CA114: 475.0479027 | CB114: 466.3764085 | CC114: 457.8640978 | CD114: 449.5080311 | CE114: 441.3053236 | CF114: 433.2531443 | CG114: 425.3487143 | CH114: 417.5893068 | CI114: 409.9722453 | CJ114: 402.4949031 | CK114: 395.1547023 | CL114: 387.9491128 | CM114: 380.8756515 | CN114: 373.9318814 | CO114: 367.1154107
B115: Solar Photovoltaic w/Single Axis Tracking (100 MW AC) | C115: NREL | D115: Overnight Capital Cost ($/kW) | E115: Utility PV - Class 4 | F115: Moderate | G115: 2021 | N115: 1245.815082 | O115: 1325.335194 | P115: 1284.948348 | Q115: 1244.561503 | R115: 1204.174657 | S115: 1163.787811 | T115: 1123.400966 | U115: 1083.01412 | V115: 1042.627274 | W115: 1002.240428 | X115: 961.8535827 | Y115: 921.466737 | Z115: 881.0798913 | AA115: 840.6930455 | AB115: 800.3061998 | AC115: 787.6474367 | AD115: 774.9886735 | AE115: 762.3299103 | AF115: 749.6711472 | AG115: 737.012384 | AH115: 724.3536208 | AI115: 711.6948576 | AJ115: 699.0360945 | AK115: 686.3773313 | AL115: 673.7185681 | AM115: 661.059805 | AN115: 648.4010418 | AO115: 635.7422786 | AP115: 623.0835155 | AQ115: 610.4247523 | AR115: =AQ115*AQ115/AP115 -> 598.0231686 | AS115: 585.8735394 | AT115: 573.970746 | AU115: 562.3097734 | AV115: 550.885709 | AW115: 539.6937394 | AX115: 528.7291495 | AY115: 517.9873197 | AZ115: 507.4637243 | BA115: 497.1539297 | BB115: 487.0535921 | BC115: 477.1584561 | BD115: 467.464353 | BE115: 457.9671983 | BF115: 448.6629908 | BG115: 439.5478106 | BH115: =BG115*BG115/BF115 -> 430.6178172 | BI115: 421.8692485 | BJ115: 413.2984185 | BK115: 404.9017161 | BL115: 396.6756039 | BM115: 388.616616 | BN115: 380.721357 | BO115: 372.9865007 | BP115: 365.4087881 | BQ115: 357.9850268 | BR115: 350.7120889 | BS115: 343.5869104 | BT115: 336.6064893 | BU115: 329.7678847 | BV115: 323.0682153 | BW115: 316.5046585 | BX115: =BW115*BW115/BV115 -> 310.0744491 | BY115: 303.7748778 | BZ115: 297.6032906 | CA115: 291.5570874 | CB115: 285.6337207 | CC115: 279.830695 | CD115: 274.1455655 | CE115: 268.5759369 | CF115: 263.1194626 | CG115: 257.7738438 | CH115: 252.5368283 | CI115: 247.4062096 | CJ115: 242.3798263 | CK115: 237.4555605 | CL115: 232.6313377 | CM115: 227.9051253 | CN115: =CM115*CM115/CL115 -> 223.2749322 | CO115: 218.7388076
B116: Southern NW Solar Photovoltaic w/ Single Axis Tracking (100 MW AC) | C116: NREL | D116: Overnight Capital Cost ($/kW) | E116: Utility PV - Class 3 | F116: Moderate | G116: 2021 | N116: =N115 -> 1245.815082 | O116: =O115 -> 1325.335194 | P116: 1284.948348 | Q116: 1244.561503 | R116: 1204.174657 | S116: 1163.787811 | T116: 1123.400966 | U116: 1083.01412 | V116: 1042.627274 | W116: 1002.240428 | X116: 961.8535827 | Y116: 921.466737 | Z116: 881.0798913 | AA116: 840.6930455 | AB116: 800.3061998 | AC116: 787.6474367 | AD116: 774.9886735 | AE116: 762.3299103 | AF116: 749.6711472 | AG116: 737.012384 | AH116: 724.3536208 | AI116: 711.6948576 | AJ116: 699.0360945 | AK116: 686.3773313 | AL116: 673.7185681 | AM116: 661.059805 | AN116: 648.4010418 | AO116: 635.7422786 | AP116: 623.0835155 | AQ116: 610.4247523 | AR116: 598.0231686 | AS116: 585.8735394 | AT116: 573.970746 | AU116: 562.3097734 | AV116: 550.885709 | AW116: 539.6937394 | AX116: 528.7291495 | AY116: 517.9873197 | AZ116: 507.4637243 | BA116: 497.1539297 | BB116: 487.0535921 | BC116: 477.1584561 | BD116: 467.464353 | BE116: 457.9671983 | BF116: 448.6629908 | BG116: 439.5478106 | BH116: 430.6178172 | BI116: 421.8692485 | BJ116: 413.2984185 | BK116: 404.9017161 | BL116: 396.6756039 | BM116: 388.616616 | BN116: 380.721357 | BO116: 372.9865007 | BP116: 365.4087881 | BQ116: 357.9850268 | BR116: 350.7120889 | BS116: 343.5869104 | BT116: 336.6064893 | BU116: 329.7678847 | BV116: 323.0682153 | BW116: 316.5046585 | BX116: 310.0744491 | BY116: 303.7748778 | BZ116: 297.6032906 | CA116: =CA115 -> 291.5570874 | CB116: 285.6337207 | CC116: 279.830695 | CD116: 274.1455655 | CE116: 268.5759369 | CF116: 263.1194626 | CG116: 257.7738438 | CH116: 252.5368283 | CI116: 247.4062096 | CJ116: 242.3798263 | CK116: 237.4555605 | CL116: 232.6313377 | CM116: 227.9051253 | CN116: 223.2749322 | CO116: 218.7388076
B117: 100 MW/400 MWh Lithium-ion w/100 MW Solar | C117: =C115 -> NREL | D117: Overnight Capital Cost ($/kW) | E117: Utility PV - Class 4 | F117: Moderate | G117: 2021 | N117: =N115 -> 1245.815082 | O117: 1325.335194 | P117: 1284.948348 | Q117: 1244.561503 | R117: 1204.174657 | S117: 1163.787811 | T117: 1123.400966 | U117: 1083.01412 | V117: 1042.627274 | W117: 1002.240428 | X117: 961.8535827 | Y117: 921.466737 | Z117: 881.0798913 | AA117: 840.6930455 | AB117: 800.3061998 | AC117: 787.6474367 | AD117: 774.9886735 | AE117: 762.3299103 | AF117: 749.6711472 | AG117: 737.012384 | AH117: 724.3536208 | AI117: 711.6948576 | AJ117: 699.0360945 | AK117: 686.3773313 | AL117: 673.7185681 | AM117: 661.059805 | AN117: 648.4010418 | AO117: 635.7422786 | AP117: 623.0835155 | AQ117: 610.4247523 | AR117: 598.0231686 | AS117: 585.8735394 | AT117: 573.970746 | AU117: 562.3097734 | AV117: 550.885709 | AW117: 539.6937394 | AX117: 528.7291495 | AY117: 517.9873197 | AZ117: 507.4637243 | BA117: 497.1539297 | BB117: 487.0535921 | BC117: 477.1584561 | BD117: 467.464353 | BE117: 457.9671983 | BF117: 448.6629908 | BG117: 439.5478106 | BH117: 430.6178172 | BI117: 421.8692485 | BJ117: 413.2984185 | BK117: 404.9017161 | BL117: 396.6756039 | BM117: 388.616616 | BN117: 380.721357 | BO117: 372.9865007 | BP117: 365.4087881 | BQ117: 357.9850268 | BR117: 350.7120889 | BS117: 343.5869104 | BT117: 336.6064893 | BU117: 329.7678847 | BV117: 323.0682153 | BW117: 316.5046585 | BX117: 310.0744491 | BY117: 303.7748778 | BZ117: =BZ115 -> 297.6032906 | CA117: 291.5570874 | CB117: 285.6337207 | CC117: 279.830695 | CD117: 274.1455655 | CE117: 268.5759369 | CF117: 263.1194626 | CG117: 257.7738438 | CH117: 252.5368283 | CI117: 247.4062096 | CJ117: 242.3798263 | CK117: 237.4555605 | CL117: 232.6313377 | CM117: 227.9051253 | CN117: 223.2749322 | CO117: 218.7388076
B118: 100 MW/200 MWh Lithium-ion w/100 MW Solar | C118: =C115 -> NREL | D118: Overnight Capital Cost ($/kW) | E118: Utility PV - Class 4 | F118: Moderate | G118: 2021 | N118: =N115 -> 1245.815082 | O118: 1325.335194 | P118: 1284.948348 | Q118: 1244.561503 | R118: 1204.174657 | S118: 1163.787811 | T118: 1123.400966 | U118: 1083.01412 | V118: 1042.627274 | W118: 1002.240428 | X118: 961.8535827 | Y118: 921.466737 | Z118: 881.0798913 | AA118: 840.6930455 | AB118: 800.3061998 | AC118: 787.6474367 | AD118: 774.9886735 | AE118: 762.3299103 | AF118: 749.6711472 | AG118: 737.012384 | AH118: 724.3536208 | AI118: 711.6948576 | AJ118: 699.0360945 | AK118: 686.3773313 | AL118: 673.7185681 | AM118: 661.059805 | AN118: 648.4010418 | AO118: 635.7422786 | AP118: 623.0835155 | AQ118: 610.4247523 | AR118: 598.0231686 | AS118: 585.8735394 | AT118: 573.970746 | AU118: 562.3097734 | AV118: 550.885709 | AW118: 539.6937394 | AX118: 528.7291495 | AY118: 517.9873197 | AZ118: 507.4637243 | BA118: 497.1539297 | BB118: 487.0535921 | BC118: 477.1584561 | BD118: 467.464353 | BE118: 457.9671983 | BF118: 448.6629908 | BG118: 439.5478106 | BH118: 430.6178172 | BI118: 421.8692485 | BJ118: 413.2984185 | BK118: 404.9017161 | BL118: 396.6756039 | BM118: 388.616616 | BN118: 380.721357 | BO118: 372.9865007 | BP118: 365.4087881 | BQ118: 357.9850268 | BR118: 350.7120889 | BS118: 343.5869104 | BT118: 336.6064893 | BU118: 329.7678847 | BV118: 323.0682153 | BW118: 316.5046585 | BX118: 310.0744491 | BY118: 303.7748778 | BZ118: =BZ115 -> 297.6032906 | CA118: 291.5570874 | CB118: 285.6337207 | CC118: 279.830695 | CD118: 274.1455655 | CE118: 268.5759369 | CF118: 263.1194626 | CG118: 257.7738438 | CH118: 252.5368283 | CI118: 247.4062096 | CJ118: 242.3798263 | CK118: 237.4555605 | CL118: 232.6313377 | CM118: 227.9051253 | CN118: 223.2749322 | CO118: 218.7388076
B119: 50 MW/200 MWh Lithium-ion w/100 MW Solar | C119: =C115 -> NREL | D119: Overnight Capital Cost ($/kW) | E119: Utility PV - Class 4 | F119: Moderate | G119: 2021 | N119: =N115 -> 1245.815082 | O119: 1325.335194 | P119: 1284.948348 | Q119: 1244.561503 | R119: 1204.174657 | S119: 1163.787811 | T119: 1123.400966 | U119: 1083.01412 | V119: 1042.627274 | W119: 1002.240428 | X119: 961.8535827 | Y119: 921.466737 | Z119: 881.0798913 | AA119: 840.6930455 | AB119: 800.3061998 | AC119: 787.6474367 | AD119: 774.9886735 | AE119: 762.3299103 | AF119: 749.6711472 | AG119: 737.012384 | AH119: 724.3536208 | AI119: 711.6948576 | AJ119: 699.0360945 | AK119: 686.3773313 | AL119: 673.7185681 | AM119: 661.059805 | AN119: 648.4010418 | AO119: 635.7422786 | AP119: 623.0835155 | AQ119: 610.4247523 | AR119: 598.0231686 | AS119: 585.8735394 | AT119: 573.970746 | AU119: 562.3097734 | AV119: 550.885709 | AW119: 539.6937394 | AX119: 528.7291495 | AY119: 517.9873197 | AZ119: 507.4637243 | BA119: 497.1539297 | BB119: 487.0535921 | BC119: 477.1584561 | BD119: 467.464353 | BE119: 457.9671983 | BF119: 448.6629908 | BG119: 439.5478106 | BH119: 430.6178172 | BI119: 421.8692485 | BJ119: 413.2984185 | BK119: 404.9017161 | BL119: 396.6756039 | BM119: 388.616616 | BN119: 380.721357 | BO119: 372.9865007 | BP119: 365.4087881 | BQ119: 357.9850268 | BR119: 350.7120889 | BS119: 343.5869104 | BT119: 336.6064893 | BU119: 329.7678847 | BV119: 323.0682153 | BW119: 316.5046585 | BX119: 310.0744491 | BY119: 303.7748778 | BZ119: =BZ115 -> 297.6032906 | CA119: 291.5570874 | CB119: 285.6337207 | CC119: 279.830695 | CD119: 274.1455655 | CE119: 268.5759369 | CF119: 263.1194626 | CG119: 257.7738438 | CH119: 252.5368283 | CI119: 247.4062096 | CJ119: 242.3798263 | CK119: 237.4555605 | CL119: 232.6313377 | CM119: 227.9051253 | CN119: 223.2749322 | CO119: 218.7388076
B120: Distribution Scale 4hr Lithium-ion | C120: Lazard Adjustment | G120: 2021 | N120: =N122*305/231 -> 2095.722338 | O120: =O122*305/231 -> 2355.497835 | P120: 2265.057188 | Q120: 2163.750102 | R120: 1896.251186 | S120: 1834.909629 | T120: 1773.563572 | U120: 1712.212471 | V120: 1650.855692 | W120: 1589.492487 | X120: 1564.977501 | Y120: 1540.463278 | Z120: 1515.949849 | AA120: 1491.437245 | AB120: 1466.925498 | AC120: 1442.414644 | AD120: 1417.904719 | AE120: 1393.395762 | AF120: 1368.887814 | AG120: 1344.380917 | AH120: 1319.875118 | AI120: 1295.370466 | AJ120: 1270.86701 | AK120: 1246.364807 | AL120: 1221.863913 | AM120: 1197.364391 | AN120: 1172.866304 | AO120: 1148.369724 | AP120: 1123.874723 | AQ120: 1099.381381 | AR120: 1075.421839 | AS120: 1051.984462 | AT120: 1029.057872 | AU120: 1006.630937 | AV120: 984.6927657 | AW120: 963.2327079 | AX120: 942.2403432 | AY120: 921.705479 | AZ120: 901.6181445 | BA120: 881.9685866 | BB120: 862.7472645 | BC120: 843.9448452 | BD120: 825.5521995 | BE120: 807.5603968 | BF120: 789.9607013 | BG120: 772.7445676 | BH120: 755.9036364 | BI120: 739.4297307 | BJ120: 723.3148517 | BK120: 707.5511749 | BL120: 692.1310462 | BM120: 677.0469786 | BN120: 662.2916479 | BO120: 647.85789 | BP120: 633.7386964 | BQ120: 619.9272117 | BR120: 606.4167297 | BS120: 593.2006906 | BT120: 580.2726774 | BU120: 567.6264128 | BV120: 555.2557566 | BW120: 543.1547023 | BX120: 531.3173742 | BY120: 519.7380248 | BZ120: 508.4110318 | CA120: =CA122*305/231 -> 497.3308954 | CB120: 486.4922358 | CC120: 475.8897901 | CD120: 465.5184106 | CE120: 455.3730613 | CF120: 445.4488163 | CG120: 435.740857 | CH120: 426.2444695 | CI120: 416.9550431 | CJ120: 407.8680673 | CK120: 398.97913 | CL120: 390.2839151 | CM120: 381.7782007 | CN120: 373.457857 | CO120: 365.318844
B121: Distribution Scale 8hr Lithium-ion | C121: Lazard Adjustment | G121: 2021 | N121: =N123*305/231 -> 3796.598013 | O121: =O123*305/231 -> 4267.205746 | P121: 4095.411603 | Q121: 3903.447493 | R121: 3411.85225 | S121: 3287.958064 | T121: 3163.939096 | U121: 3039.780262 | V121: 2915.463945 | W121: 2790.969438 | X121: 2744.574309 | Y121: 2698.200358 | Z121: 2651.848409 | AA121: 2605.519331 | AB121: 2559.214038 | AC121: 2512.933495 | AD121: 2466.678719 | AE121: 2420.450782 | AF121: 2374.25082 | AG121: 2328.080032 | AH121: 2281.939684 | AI121: 2235.831121 | AJ121: 2189.755765 | AK121: 2143.715127 | AL121: 2097.710807 | AM121: 2051.744508 | AN121: 2005.818041 | AO121: 1959.933333 | AP121: 1914.092438 | AQ121: 1868.297545 | AR121: 1823.598301 | AS121: 1779.968492 | AT121: 1737.382531 | AU121: 1695.815444 | AV121: 1655.242855 | AW121: 1615.64097 | AX121: 1576.986565 | AY121: 1539.256971 | AZ121: 1502.430063 | BA121: 1466.484242 | BB121: 1431.39843 | BC121: 1397.15205 | BD121: 1363.725018 | BE121: 1331.097733 | BF121: 1299.251059 | BG121: 1268.166321 | BH121: 1237.825288 | BI121: 1208.210169 | BJ121: 1179.303595 | BK121: 1151.088614 | BL121: 1123.54868 | BM121: 1096.667643 | BN121: 1070.429737 | BO121: 1044.819576 | BP121: 1019.822142 | BQ121: 995.4227742 | BR121: 971.6071643 | BS121: 948.3613456 | BT121: 925.671686 | BU121: 903.5248793 | BV121: 881.9079376 | BW121: 860.8081838 | BX121: 840.2132441 | BY121: 820.1110409 | BZ121: 800.4897853 | CA121: =CA123*305/231 -> 781.3379706 | CB121: 762.6443654 | CC121: 744.398007 | CD121: 726.5881949 | CE121: 709.2044847 | CF121: 692.2366818 | CG121: 675.6748357 | CH121: 659.5092338 | CI121: 643.7303958 | CJ121: 628.3290684 | CK121: 613.2962197 | CL121: 598.6230336 | CM121: 584.3009053 | CN121: 570.3214357 | CO121: 556.6764265
B122: 4hr Lithium-ion | C122: NREL | D122: Overnight Capital Cost ($/kW) | E122: Utility-Scale Battery Storage - 4Hr | F122: Moderate | G122: 2021 | N122: 1587.252 | O122: 1784 | P122: 1715.50233 | Q122: 1638.774668 | R122: 1436.177128 | S122: 1389.71844 | T122: 1343.256344 | U122: 1296.790429 | V122: 1250.320212 | W122: 1203.845129 | X122: 1185.278042 | Y122: 1166.711532 | Z122: 1148.145624 | AA122: 1129.58034 | AB122: 1111.015705 | AC122: 1092.451747 | AD122: 1073.888492 | AE122: 1055.325971 | AF122: 1036.764213 | AG122: 1018.203252 | AH122: 999.6431224 | AI122: 981.0838608 | AJ122: 962.5255062 | AK122: 943.9680998 | AL122: 925.4116852 | AM122: 906.856309 | AN122: 888.3020206 | AO122: 869.7488727 | AP122: 851.1969213 | AQ122: 832.6462263 | AR122: =AQ122*AQ122/AP122 -> 814.4998188 | AS122: 796.748888 | AT122: 779.3848148 | AU122: 762.3991683 | AV122: 745.7837012 | AW122: 729.530346 | AX122: 713.6312108 | AY122: 698.0785759 | AZ122: 682.8648898 | BA122: 667.9827656 | BB122: 653.4249774 | BC122: 639.1844566 | BD122: 625.2542888 | BE122: 611.6277104 | BF122: 598.298105 | BG122: 585.2590004 | BH122: =BG122*BG122/BF122 -> 572.5040656 | BI122: 560.0271075 | BJ122: 547.822068 | BK122: 535.883021 | BL122: 524.2041694 | BM122: 512.7798428 | BN122: 501.604494 | BO122: 490.672697 | BP122: 479.9791438 | BQ122: 469.5186423 | BR122: 459.2861133 | BS122: 449.2765886 | BT122: 439.4852081 | BU122: 429.9072176 | BV122: 420.5379665 | BW122: 411.3729057 | BX122: =BW122*BW122/BV122 -> 402.4075851 | BY122: 393.6376516 | BZ122: 385.0588471 | CA122: 376.6670061 | CB122: 368.458054 | CC122: 360.428005 | CD122: 352.5729601 | CE122: 344.8891055 | CF122: 337.3727101 | CG122: 330.0201245 | CH122: 322.8277786 | CI122: 315.7921802 | CJ122: 308.9099133 | CK122: 302.1776361 | CL122: 295.5920799 | CM122: 289.1500471 | CN122: =CM122*CM122/CL122 -> 282.8484097 | CO122: 276.6841081
B123: 8hr Lithium-ion | C123: NREL | D123: Overnight Capital Cost ($/kW) | E123: Utility-Scale Battery Storage - 8Hr | F123: Moderate | G123: 2021 | N123: 2875.4562 | O123: 3231.883696 | P123: 3101.770755 | Q123: 2956.381544 | R123: 2584.05859 | S123: 2490.223976 | T123: 2396.294856 | U123: 2302.259805 | V123: 2208.105479 | W123: 2113.816197 | X123: 2078.677592 | Y123: 2043.555025 | Z123: 2008.449123 | AA123: 1973.360543 | AB123: 1938.289976 | AC123: 1903.238155 | AD123: 1868.205849 | AE123: 1833.193871 | AF123: 1798.20308 | AG123: 1763.234385 | AH123: 1728.288744 | AI123: 1693.367177 | AJ123: 1658.47076 | AK123: 1623.600637 | AL123: 1588.758021 | AM123: 1553.944201 | AN123: 1519.160549 | AO123: 1484.408525 | AP123: 1449.689682 | AQ123: 1415.005682 | AR123: 1381.1515 | AS123: 1348.107284 | AT123: 1315.853655 | AU123: 1284.371697 | AV123: 1253.642949 | AW123: 1223.649391 | AX123: 1194.373431 | AY123: 1165.797903 | AZ123: 1137.906047 | BA123: 1110.681508 | BB123: 1084.108319 | BC123: 1058.170897 | BD123: 1032.85403 | BE123: 1008.142873 | BF123: 984.0229332 | BG123: 960.4800658 | BH123: 937.5004644 | BI123: 915.0706527 | BJ123: 893.1774769 | BK123: 871.808098 | BL123: 850.9499841 | BM123: 830.5909031 | BN123: 810.7189155 | BO123: 791.3223677 | BP123: 772.3898846 | BQ123: 753.9103634 | BR123: 735.872967 | BS123: 718.2671175 | BT123: 701.0824901 | BU123: 684.3090069 | BV123: 667.9368314 | BW123: 651.9563621 | BX123: 636.3582275 | BY123: 621.1332802 | BZ123: 606.2725915 | CA123: 591.7674466 | CB123: 577.6093391 | CC123: 563.789966 | CD123: 550.301223 | CE123: 537.1351999 | CF123: 524.2841754 | CG123: 511.7406133 | CH123: 499.4971574 | CI123: 487.5466276 | CJ123: 475.8820157 | CK123: 464.4964811 | CL123: 453.3833468 | CM123: 442.5360955 | CN123: 431.948366 | CO123: 421.6139493
B124: 16hr Lithium-ion | C124: NREL | D124: Overnight Capital Cost ($/kW) | E124: Utility-Scale Battery Storage - 16Hr | F124: Moderate | G124: 2021 | N124: 5451.864599 | O124: 6127.651088 | P124: 5874.307605 | Q124: 5591.595296 | R124: 4879.821513 | S124: 4691.235049 | T124: 4502.37188 | U124: 4313.198557 | V124: 4123.676013 | W124: 3933.758333 | X124: 3865.476692 | Y124: 3797.242012 | Z124: 3729.056122 | AA124: 3660.920948 | AB124: 3592.838519 | AC124: 3524.810972 | AD124: 3456.840563 | AE124: 3388.929672 | AF124: 3321.080815 | AG124: 3253.29665 | AH124: 3185.579988 | AI124: 3117.933809 | AJ124: 3050.361268 | AK124: 2982.865711 | AL124: 2915.450692 | AM124: 2848.119986 | AN124: 2780.877607 | AO124: 2713.727828 | AP124: 2646.675205 | AQ124: 2579.724593 | AR124: 2514.467572 | AS124: 2450.861301 | AT124: 2388.864021 | AU124: 2328.435032 | AV124: 2269.534662 | AW124: 2212.124242 | AX124: 2156.166083 | AY124: 2101.623449 | AZ124: 2048.460532 | BA124: 1996.64243 | BB124: 1946.135125 | BC124: 1896.905459 | BD124: 1848.921112 | BE124: 1802.150583 | BF124: 1756.563167 | BG124: 1712.128936 | BH124: 1668.818718 | BI124: 1626.604081 | BJ124: 1585.45731 | BK124: 1545.351393 | BL124: 1506.259999 | BM124: 1468.157467 | BN124: 1431.018781 | BO124: 1394.819559 | BP124: 1359.536037 | BQ124: 1325.145051 | BR124: 1291.624024 | BS124: 1258.950949 | BT124: 1227.104375 | BU124: 1196.063397 | BV124: 1165.807634 | BW124: 1136.317225 | BX124: 1107.572809 | BY124: 1079.555515 | BZ124: 1052.24695 | CA124: 1025.629186 | CB124: 999.6847479 | CC124: 974.3966033 | CD124: 949.7481506 | CE124: 925.7232081 | CF124: 902.3060035 | CG124: 879.4811632 | CH124: 857.2337028 | CI124: 835.5490169 | CJ124: 814.4128693 | CK124: 793.8113842 | CL124: 773.7310368 | CM124: 754.1586442 | CN124: 735.0813572 | CO124: 716.4866515
B125: 4 hr Flow Battery | C125: Internal | G125: 2020 | M125: 1632.88 | N125: =M125*(1+N769) -> 1453.2632 | O125: 1293.404248 | P125: 1215.744024 | Q125: 1143.496406 | R125: 1096.465014 | S125: 1052.238937 | T125: 1013.560793 | U125: 977.3232402 | V125: 944.3829676 | W125: 911.1822441 | X125: 879.6134145 | Y125: 849.8861427 | Z125: 822.5267131 | AA125: 797.761848 | AB125: 776.2746584 | AC125: 756.9325913 | AD125: 739.4278357 | AE125: 724.0000918 | AF125: 708.6105148 | AG125: 693.2703704 | AH125: 677.9906309 | AI125: 662.7819644 | AJ125: 647.6547245 | AK125: 632.618941 | AL125: 617.6843109 | AM125: 602.8601913 | AN125: 588.155592 | AO125: 573.5791694 | AP125: 559.1392217 | AQ125: 545.5010377 | AR125: 531.9817347 | AS125: 518.5890092 | AT125: 505.5334476 | AU125: 492.806562 | AV125: 480.4000777 | AW125: 468.3059286 | AX125: 456.5162517 | AY125: 445.0233818 | AZ125: 433.8198467 | BA125: 422.8983625 | BB125: 412.2518283 | BC125: 401.8733224 | BD125: 391.756097 | BE125: 381.8935744 | BF125: 372.2793423 | BG125: 362.9071502 | BH125: 353.7709044 | BI125: 344.8646651 | BJ125: 336.1826418 | BK125: 327.7191898 | BL125: 319.4688066 | BM125: 311.4261282 | BN125: 303.5859254 | BO125: 295.943101 | BP125: 288.4926859 | BQ125: 281.2298363 | BR125: 274.14983 | BS125: 267.248064 | BT125: 260.5200511 | BU125: 253.961417 | BV125: 247.5678976 | BW125: 241.3353361 | BX125: 235.2596802 | BY125: 229.33698 | BZ125: =BY125*(1+BZ769) -> 223.5633847 | CA125: 217.9351407 | CB125: 212.4485885 | CC125: 207.1001612 | CD125: 201.8863814 | CE125: 196.8038594 | CF125: 191.8492906 | CG125: 187.0194539 | CH125: 182.3112092 | CI125: 177.7214952 | CJ125: 173.247328 | CK125: 168.8857988 | CL125: 164.6340717 | CM125: 160.4893825 | CN125: 156.4490365 | CO125: 152.5104069
B126: 8 hr Flow Battery | C126: Internal | G126: 2020 | M126: 1837 | N126: 1579.82 | O126: 1358.6452 | P126: 1277.067696 | Q126: 1201.175816 | R126: 1151.772102 | S126: 1105.315204 | T126: 1064.686085 | U126: 1026.620665 | V126: 992.0188432 | W126: 957.1434331 | X126: 923.9822316 | Y126: 892.7554785 | Z126: 864.0160045 | AA126: 838.0019683 | AB126: 815.4309375 | AC126: 795.113232 | AD126: 776.7255143 | AE126: 760.5195754 | AF126: 744.3537286 | AG126: 728.2398079 | AH126: 712.1893389 | AI126: 696.213528 | AJ126: 680.3232509 | AK126: 664.5290434 | AL126: 648.8410916 | AM126: 633.2692246 | AN126: 617.8229066 | AO126: 602.5112307 | AP126: 587.3429138 | AQ126: 573.0168024 | AR126: 558.8155687 | AS126: 544.747297 | AT126: 531.0331964 | AU126: 517.6643505 | AV126: 504.6320674 | AW126: 491.9278741 | AX126: 479.5435109 | AY126: 467.470926 | AZ126: 455.7022705 | BA126: 444.2298927 | BB126: 433.0463338 | BC126: 422.1443229 | BD126: 411.5167718 | BE126: 401.156771 | BF126: 391.0575849 | BG126: 381.2126474 | BH126: 371.6155579 | BI126: 362.2600766 | BJ126: 353.140121 | BK126: 344.2497618 | BL126: 335.5832188 | BM126: 327.1348574 | BN126: 318.8991848 | BO126: 310.8708467 | BP126: 303.0446232 | BQ126: 295.4154262 | BR126: 287.9782954 | BS126: 280.7283956 | BT126: 273.6610132 | BU126: 266.7715533 | BV126: 260.0555366 | BW126: 253.5085967 | BX126: 247.1264771 | BY126: 240.9050284 | BZ126: 234.8402056 | CA126: 228.9280658 | CB126: 223.164765 | CC126: 217.5465562 | CD126: 212.0697867 | CE126: 206.7308958 | CF126: 201.5264123 | CG126: 196.4529526 | CH126: 191.507218 | CI126: 186.685993 | CJ126: 181.9861432 | CK126: 177.4046128 | CL126: 172.9384232 | CM126: 168.5846706 | CN126: 164.3405245 | CO126: 160.2032254
B127: 100hr Iron Oxide | C127: Internal | G127: 2022 | O127: 2950 | P127: 2891 | Q127: 2833.18 | R127: 2776.5164 | S127: 2720.986072 | T127: 2666.566351 | U127: 2613.235024 | V127: 2560.970323 | W127: 2509.750917 | X127: 2459.555898 | Y127: 2410.36478 | Z127: 2362.157485 | AA127: 2314.914335 | AB127: 2268.616048 | AC127: 2223.243727 | AD127: 2178.778853 | AE127: 2135.203276 | AF127: 2092.49921 | AG127: 2050.649226 | AH127: 2009.636242 | AI127: 1969.443517 | AJ127: 1930.054646 | AK127: 1891.453553 | AL127: 1853.624482 | AM127: 1816.551993 | AN127: 1780.220953 | AO127: 1744.616534 | AP127: 1709.724203 | AQ127: 1675.529719 | AR127: 1642.019125 | AS127: 1609.178742 | AT127: 1576.995167 | AU127: 1545.455264 | AV127: 1514.546159 | AW127: 1484.255236 | AX127: 1454.570131 | AY127: 1425.478728 | AZ127: 1396.969154 | BA127: 1369.029771 | BB127: 1341.649175 | BC127: 1314.816192 | BD127: 1288.519868 | BE127: 1262.74947 | BF127: 1237.494481 | BG127: 1212.744591 | BH127: 1188.4897 | BI127: 1164.719906 | BJ127: 1141.425508 | BK127: 1118.596997 | BL127: 1096.225057 | BM127: 1074.300556 | BN127: 1052.814545 | BO127: 1031.758254 | BP127: 1011.123089 | BQ127: 990.9006274 | BR127: 971.0826148 | BS127: 951.6609625 | BT127: 932.6277433 | BU127: 913.9751884 | BV127: 895.6956846 | BW127: 877.7817709 | BX127: 860.2261355 | BY127: 843.0216128 | BZ127: 826.1611806 | CA127: 809.6379569 | CB127: 793.4451978 | CC127: 777.5762939 | CD127: 762.024768 | CE127: 746.7842726 | CF127: 731.8485872 | CG127: 717.2116154 | CH127: 702.8673831 | CI127: 688.8100354 | CJ127: 675.0338347 | CK127: 661.533158 | CL127: 648.3024949 | CM127: 635.336445 | CN127: 622.6297161 | CO127: 610.1771218
B128: Geothermal (Off System) | C128: NREL | D128: Overnight Capital Cost ($/kW) | E128: Geothermal - Hydro / Flash | F128: Moderate | G128: 2021 | N128: 4547.000072 | O128: 4706.145074 | P128: 4580.629013 | Q128: 4472.7937 | R128: 4378.550847 | S128: 4295.057043 | T128: 4220.259258 | U128: 4152.629428 | V128: 4091.001259 | W128: 4034.465529 | X128: 3982.300492 | Y128: 3933.924206 | Z128: 3888.861012 | AA128: 3846.717428 | AB128: 3807.164472 | AC128: 3788.128649 | AD128: 3769.188006 | AE128: 3750.342066 | AF128: 3731.590356 | AG128: 3712.932404 | AH128: 3694.367742 | AI128: 3675.895903 | AJ128: 3657.516424 | AK128: 3639.228842 | AL128: 3621.032698 | AM128: 3602.927534 | AN128: 3584.912896 | AO128: 3566.988332 | AP128: 3549.15339 | AQ128: 3531.407623 | AR128: =AQ128*AQ128/AP128 -> 3513.750585 | AS128: =AR128*AR128/AQ128 -> 3496.181832 | AT128: 3478.700923 | AU128: 3461.307418 | AV128: 3444.000881 | AW128: 3426.780877 | AX128: 3409.646973 | AY128: 3392.598738 | AZ128: 3375.635744 | BA128: 3358.757565 | BB128: 3341.963777 | BC128: 3325.253959 | BD128: 3308.627689 | BE128: 3292.08455 | BF128: 3275.624128 | BG128: 3259.246007 | BH128: 3242.949777 | BI128: 3226.735028 | BJ128: 3210.601353 | BK128: 3194.548346 | BL128: 3178.575604 | BM128: 3162.682726 | BN128: 3146.869313 | BO128: 3131.134966 | BP128: 3115.479291 | BQ128: 3099.901895 | BR128: 3084.402385 | BS128: 3068.980374 | BT128: 3053.635472 | BU128: 3038.367294 | BV128: 3023.175458 | BW128: 3008.059581 | BX128: 2993.019283 | BY128: 2978.054186 | BZ128: 2963.163915 | CA128: 2948.348096 | CB128: 2933.606355 | CC128: 2918.938323 | CD128: 2904.343632 | CE128: 2889.821914 | CF128: 2875.372804 | CG128: 2860.99594 | CH128: 2846.69096 | CI128: 2832.457506 | CJ128: 2818.295218 | CK128: 2804.203742 | CL128: 2790.182723 | CM128: 2776.23181 | CN128: 2762.350651 | CO128: 2748.538897
B129: Hydrogen Fuel Cell with 40 hrs Storage | C129: Internal | G129: 2020 | M129: 5356 | N129: =M129*(1+N773) -> 5356 | O129: 5356 | P129: 5356 | Q129: 5356 | R129: 5356 | S129: 5356 | T129: 5356 | U129: 5356 | V129: 5356 | W129: 5356 | X129: 5356 | Y129: 5356 | Z129: 5356 | AA129: 5356 | AB129: 5356 | AC129: 5356 | AD129: 5356 | AE129: 5356 | AF129: 5356 | AG129: 5356 | AH129: 5356 | AI129: 5356 | AJ129: 5356 | AK129: 5356 | AL129: 5356 | AM129: 5356 | AN129: 5356 | AO129: 5356 | AP129: 5356 | AQ129: 5356 | AR129: 5356 | AS129: 5356 | AT129: 5356 | AU129: 5356 | AV129: 5356 | AW129: 5356 | AX129: 5356 | AY129: 5356 | AZ129: 5356 | BA129: 5356 | BB129: 5356 | BC129: 5356 | BD129: 5356 | BE129: 5356 | BF129: 5356 | BG129: 5356 | BH129: 5356 | BI129: 5356 | BJ129: 5356 | BK129: 5356 | BL129: 5356 | BM129: 5356 | BN129: 5356 | BO129: 5356 | BP129: 5356 | BQ129: 5356 | BR129: 5356 | BS129: 5356 | BT129: 5356 | BU129: 5356 | BV129: 5356 | BW129: 5356 | BX129: 5356 | BY129: 5356 | BZ129: =BY129*(1+BZ773) -> 5356 | CA129: 5356 | CB129: 5356 | CC129: 5356 | CD129: 5356 | CE129: 5356 | CF129: 5356 | CG129: 5356 | CH129: 5356 | CI129: 5356 | CJ129: 5356 | CK129: 5356 | CL129: 5356 | CM129: 5356 | CN129: 5356 | CO129: 5356
B130: 7F.04 CT Frame Greenfield + Power to Gas + storage | C130: =C98 -> Internal | G130: 2022 | O130: =O98+20000000/(INDEX(T_PlantSize,MATCH($B130,List_Resources,0),1)*1000) -> 966.6805175 | P130: =O130 -> 966.6805175 | Q130: 966.6805175 | R130: 966.6805175 | S130: 966.6805175 | T130: 966.6805175 | U130: 966.6805175 | V130: 966.6805175 | W130: 966.6805175 | X130: 966.6805175 | Y130: 966.6805175 | Z130: 966.6805175 | AA130: 966.6805175 | AB130: 966.6805175 | AC130: 966.6805175 | AD130: 966.6805175 | AE130: 966.6805175 | AF130: 966.6805175 | AG130: 966.6805175 | AH130: 966.6805175 | AI130: 966.6805175 | AJ130: 966.6805175 | AK130: 966.6805175 | AL130: 966.6805175 | AM130: 966.6805175 | AN130: 966.6805175 | AO130: 966.6805175 | AP130: 966.6805175 | AQ130: 966.6805175 | AR130: 966.6805175 | AS130: 966.6805175 | AT130: 966.6805175 | AU130: 966.6805175 | AV130: 966.6805175 | AW130: 966.6805175 | AX130: 966.6805175 | AY130: 966.6805175 | AZ130: 966.6805175 | BA130: 966.6805175 | BB130: 966.6805175 | BC130: 966.6805175 | BD130: 966.6805175 | BE130: 966.6805175 | BF130: 966.6805175 | BG130: 966.6805175 | BH130: 966.6805175 | BI130: 966.6805175 | BJ130: 966.6805175 | BK130: 966.6805175 | BL130: 966.6805175 | BM130: 966.6805175 | BN130: 966.6805175 | BO130: 966.6805175 | BP130: 966.6805175 | BQ130: 966.6805175 | BR130: 966.6805175 | BS130: 966.6805175 | BT130: 966.6805175 | BU130: 966.6805175 | BV130: 966.6805175 | BW130: 966.6805175 | BX130: 966.6805175 | BY130: 966.6805175 | BZ130: 966.6805175 | CA130: 966.6805175 | CB130: =CA130 -> 966.6805175 | CC130: 966.6805175 | CD130: 966.6805175 | CE130: 966.6805175 | CF130: 966.6805175 | CG130: 966.6805175 | CH130: 966.6805175 | CI130: 966.6805175 | CJ130: 966.6805175 | CK130: 966.6805175 | CL130: 966.6805175 | CM130: 966.6805175 | CN130: 966.6805175 | CO130: 966.6805175
B131: 7F.04 CT Frame Greenfield + RNG | C131: =C130 -> Internal | G131: 2022 | O131: =O98 -> 744.4582952 | P131: =P98 -> 744.4582952 | Q131: 744.4582952 | R131: 744.4582952 | S131: 744.4582952 | T131: 744.4582952 | U131: 744.4582952 | V131: 744.4582952 | W131: 744.4582952 | X131: 744.4582952 | Y131: 744.4582952 | Z131: 744.4582952 | AA131: 744.4582952 | AB131: 744.4582952 | AC131: 744.4582952 | AD131: 744.4582952 | AE131: 744.4582952 | AF131: 744.4582952 | AG131: 744.4582952 | AH131: 744.4582952 | AI131: 744.4582952 | AJ131: 744.4582952 | AK131: 744.4582952 | AL131: 744.4582952 | AM131: 744.4582952 | AN131: 744.4582952 | AO131: 744.4582952 | AP131: 744.4582952 | AQ131: 744.4582952 | AR131: 744.4582952 | AS131: 744.4582952 | AT131: 744.4582952 | AU131: 744.4582952 | AV131: 744.4582952 | AW131: 744.4582952 | AX131: 744.4582952 | AY131: 744.4582952 | AZ131: 744.4582952 | BA131: 744.4582952 | BB131: 744.4582952 | BC131: 744.4582952 | BD131: 744.4582952 | BE131: 744.4582952 | BF131: 744.4582952 | BG131: 744.4582952 | BH131: 744.4582952 | BI131: 744.4582952 | BJ131: 744.4582952 | BK131: 744.4582952 | BL131: 744.4582952 | BM131: 744.4582952 | BN131: 744.4582952 | BO131: 744.4582952 | BP131: 744.4582952 | BQ131: 744.4582952 | BR131: 744.4582952 | BS131: 744.4582952 | BT131: 744.4582952 | BU131: 744.4582952 | BV131: 744.4582952 | BW131: 744.4582952 | BX131: 744.4582952 | BY131: 744.4582952 | BZ131: 744.4582952 | CA131: 744.4582952 | CB131: =CB98 -> 744.4582952 | CC131: 744.4582952 | CD131: 744.4582952 | CE131: 744.4582952 | CF131: 744.4582952 | CG131: 744.4582952 | CH131: 744.4582952 | CI131: 744.4582952 | CJ131: 744.4582952 | CK131: 744.4582952 | CL131: 744.4582952 | CM131: 744.4582952 | CN131: 744.4582952 | CO131: 744.4582952
B132: Pumped Hydro (8 hr) | C132: NREL | D132: Overnight Capital Cost ($/kW) | E132: Pumped Storage Hydropower - National Class 10 | F132: Moderate | G132: 2021 | N132: 3402.258582 | O132: 3402.258582 | P132: 3402.258582 | Q132: 3402.258582 | R132: 3402.258582 | S132: 3402.258582 | T132: 3402.258582 | U132: 3402.258582 | V132: 3402.258582 | W132: 3402.258582 | X132: 3402.258582 | Y132: 3402.258582 | Z132: 3402.258582 | AA132: 3402.258582 | AB132: 3402.258582 | AC132: 3402.258582 | AD132: 3402.258582 | AE132: 3402.258582 | AF132: 3402.258582 | AG132: 3402.258582 | AH132: 3402.258582 | AI132: 3402.258582 | AJ132: 3402.258582 | AK132: 3402.258582 | AL132: 3402.258582 | AM132: 3402.258582 | AN132: 3402.258582 | AO132: 3402.258582 | AP132: 3402.258582 | AQ132: 3402.258582 | AR132: =AQ132 -> 3402.258582 | AS132: 3402.258582 | AT132: 3402.258582 | AU132: 3402.258582 | AV132: 3402.258582 | AW132: 3402.258582 | AX132: 3402.258582 | AY132: 3402.258582 | AZ132: 3402.258582 | BA132: 3402.258582 | BB132: 3402.258582 | BC132: 3402.258582 | BD132: 3402.258582 | BE132: 3402.258582 | BF132: 3402.258582 | BG132: 3402.258582 | BH132: 3402.258582 | BI132: 3402.258582 | BJ132: 3402.258582 | BK132: 3402.258582 | BL132: 3402.258582 | BM132: 3402.258582 | BN132: 3402.258582 | BO132: 3402.258582 | BP132: 3402.258582 | BQ132: 3402.258582 | BR132: 3402.258582 | BS132: 3402.258582 | BT132: 3402.258582 | BU132: 3402.258582 | BV132: 3402.258582 | BW132: 3402.258582 | BX132: 3402.258582 | BY132: 3402.258582 | BZ132: 3402.258582 | CA132: 3402.258582 | CB132: 3402.258582 | CC132: 3402.258582 | CD132: 3402.258582 | CE132: 3402.258582 | CF132: 3402.258582 | CG132: 3402.258582 | CH132: 3402.258582 | CI132: 3402.258582 | CJ132: 3402.258582 | CK132: 3402.258582 | CL132: 3402.258582 | CM132: 3402.258582 | CN132: 3402.258582 | CO132: 3402.258582
B133: Pumped Hydro (16 hr) | C133: NREL | D133: Overnight Capital Cost ($/kW) | E133: Pumped Storage Hydropower - National Class 7 | F133: Moderate | G133: 2021 | N133: 3055.109406 | O133: 3055.109406 | P133: 3055.109406 | Q133: 3055.109406 | R133: 3055.109406 | S133: 3055.109406 | T133: 3055.109406 | U133: 3055.109406 | V133: 3055.109406 | W133: 3055.109406 | X133: 3055.109406 | Y133: 3055.109406 | Z133: 3055.109406 | AA133: 3055.109406 | AB133: 3055.109406 | AC133: 3055.109406 | AD133: 3055.109406 | AE133: 3055.109406 | AF133: 3055.109406 | AG133: 3055.109406 | AH133: 3055.109406 | AI133: 3055.109406 | AJ133: 3055.109406 | AK133: 3055.109406 | AL133: 3055.109406 | AM133: 3055.109406 | AN133: 3055.109406 | AO133: 3055.109406 | AP133: 3055.109406 | AQ133: 3055.109406 | AR133: 3055.109406 | AS133: 3055.109406 | AT133: 3055.109406 | AU133: 3055.109406 | AV133: 3055.109406 | AW133: 3055.109406 | AX133: 3055.109406 | AY133: 3055.109406 | AZ133: 3055.109406 | BA133: 3055.109406 | BB133: 3055.109406 | BC133: 3055.109406 | BD133: 3055.109406 | BE133: 3055.109406 | BF133: 3055.109406 | BG133: 3055.109406 | BH133: 3055.109406 | BI133: 3055.109406 | BJ133: 3055.109406 | BK133: 3055.109406 | BL133: 3055.109406 | BM133: 3055.109406 | BN133: 3055.109406 | BO133: 3055.109406 | BP133: 3055.109406 | BQ133: 3055.109406 | BR133: 3055.109406 | BS133: 3055.109406 | BT133: 3055.109406 | BU133: 3055.109406 | BV133: 3055.109406 | BW133: 3055.109406 | BX133: 3055.109406 | BY133: 3055.109406 | BZ133: 3055.109406 | CA133: 3055.109406 | CB133: 3055.109406 | CC133: 3055.109406 | CD133: 3055.109406 | CE133: 3055.109406 | CF133: 3055.109406 | CG133: 3055.109406 | CH133: 3055.109406 | CI133: 3055.109406 | CJ133: 3055.109406 | CK133: 3055.109406 | CL133: 3055.109406 | CM133: 3055.109406 | CN133: 3055.109406 | CO133: 3055.109406
B134: Pumped Hydro (24 hr) | C134: NREL | D134: Overnight Capital Cost ($/kW) | E134: Pumped Storage Hydropower - National Class 5 | F134: Moderate | G134: 2021 | N134: 2828.862751 | O134: 2828.862751 | P134: 2828.862751 | Q134: 2828.862751 | R134: 2828.862751 | S134: 2828.862751 | T134: 2828.862751 | U134: 2828.862751 | V134: 2828.862751 | W134: 2828.862751 | X134: 2828.862751 | Y134: 2828.862751 | Z134: 2828.862751 | AA134: 2828.862751 | AB134: 2828.862751 | AC134: 2828.862751 | AD134: 2828.862751 | AE134: 2828.862751 | AF134: 2828.862751 | AG134: 2828.862751 | AH134: 2828.862751 | AI134: 2828.862751 | AJ134: 2828.862751 | AK134: 2828.862751 | AL134: 2828.862751 | AM134: 2828.862751 | AN134: 2828.862751 | AO134: 2828.862751 | AP134: 2828.862751 | AQ134: 2828.862751 | AR134: 2828.862751 | AS134: 2828.862751 | AT134: 2828.862751 | AU134: 2828.862751 | AV134: 2828.862751 | AW134: 2828.862751 | AX134: 2828.862751 | AY134: 2828.862751 | AZ134: 2828.862751 | BA134: 2828.862751 | BB134: 2828.862751 | BC134: 2828.862751 | BD134: 2828.862751 | BE134: 2828.862751 | BF134: 2828.862751 | BG134: 2828.862751 | BH134: 2828.862751 | BI134: 2828.862751 | BJ134: 2828.862751 | BK134: 2828.862751 | BL134: 2828.862751 | BM134: 2828.862751 | BN134: 2828.862751 | BO134: 2828.862751 | BP134: 2828.862751 | BQ134: 2828.862751 | BR134: 2828.862751 | BS134: 2828.862751 | BT134: 2828.862751 | BU134: 2828.862751 | BV134: 2828.862751 | BW134: 2828.862751 | BX134: 2828.862751 | BY134: 2828.862751 | BZ134: 2828.862751 | CA134: 2828.862751 | CB134: 2828.862751 | CC134: 2828.862751 | CD134: 2828.862751 | CE134: 2828.862751 | CF134: 2828.862751 | CG134: 2828.862751 | CH134: 2828.862751 | CI134: 2828.862751 | CJ134: 2828.862751 | CK134: 2828.862751 | CL134: 2828.862751 | CM134: 2828.862751 | CN134: 2828.862751 | CO134: 2828.862751
B135: Kettle Falls 2nd Biomass Unit | C135: Internal | D135: CAPEX ($/kW) | G135: 2022 | O135: 4756.059028 | P135: =O135 -> 4756.059028 | Q135: 4756.059028 | R135: 4756.059028 | S135: 4756.059028 | T135: 4756.059028 | U135: 4756.059028 | V135: 4756.059028 | W135: 4756.059028 | X135: 4756.059028 | Y135: 4756.059028 | Z135: 4756.059028 | AA135: 4756.059028 | AB135: 4756.059028 | AC135: 4756.059028 | AD135: 4756.059028 | AE135: 4756.059028 | AF135: 4756.059028 | AG135: 4756.059028 | AH135: 4756.059028 | AI135: 4756.059028 | AJ135: 4756.059028 | AK135: 4756.059028 | AL135: 4756.059028 | AM135: 4756.059028 | AN135: 4756.059028 | AO135: 4756.059028 | AP135: 4756.059028 | AQ135: 4756.059028 | AR135: 4756.059028 | AS135: 4756.059028 | AT135: 4756.059028 | AU135: 4756.059028 | AV135: 4756.059028 | AW135: 4756.059028 | AX135: 4756.059028 | AY135: 4756.059028 | AZ135: 4756.059028 | BA135: 4756.059028 | BB135: 4756.059028 | BC135: 4756.059028 | BD135: 4756.059028 | BE135: 4756.059028 | BF135: 4756.059028 | BG135: 4756.059028 | BH135: 4756.059028 | BI135: 4756.059028 | BJ135: 4756.059028 | BK135: 4756.059028 | BL135: 4756.059028 | BM135: 4756.059028 | BN135: 4756.059028 | BO135: 4756.059028 | BP135: 4756.059028 | BQ135: 4756.059028 | BR135: 4756.059028 | BS135: 4756.059028 | BT135: 4756.059028 | BU135: 4756.059028 | BV135: 4756.059028 | BW135: 4756.059028 | BX135: 4756.059028 | BY135: 4756.059028 | BZ135: 4756.059028 | CA135: 4756.059028 | CB135: 4756.059028 | CC135: 4756.059028 | CD135: 4756.059028 | CE135: 4756.059028 | CF135: 4756.059028 | CG135: 4756.059028 | CH135: 4756.059028 | CI135: 4756.059028 | CJ135: 4756.059028 | CK135: 4756.059028 | CL135: 4756.059028 | CM135: 4756.059028 | CN135: 4756.059028 | CO135: 4756.059028
B136: Rathdrum CT 2055 Uprates two unit operation | C136: Internal | D136: CAPEX ($/kW) | G136: 2022 | O136: 829.15 | P136: 829.15 | Q136: 829.15 | R136: 829.15 | S136: 829.15 | T136: 829.15 | U136: 829.15 | V136: 829.15 | W136: 829.15 | X136: 829.15 | Y136: 829.15 | Z136: 829.15 | AA136: 829.15 | AB136: 829.15 | AC136: 829.15 | AD136: 829.15 | AE136: 829.15 | AF136: 829.15 | AG136: 829.15 | AH136: 829.15 | AI136: 829.15 | AJ136: 829.15 | AK136: 829.15 | AL136: 829.15 | AM136: 829.15 | AN136: 829.15 | AO136: 829.15 | AP136: 829.15 | AQ136: 829.15 | AR136: 829.15 | AS136: 829.15 | AT136: 829.15 | AU136: 829.15 | AV136: 829.15 | AW136: 829.15 | AX136: 829.15 | AY136: 829.15 | AZ136: 829.15 | BA136: 829.15 | BB136: 829.15 | BC136: 829.15 | BD136: 829.15 | BE136: 829.15 | BF136: 829.15 | BG136: 829.15 | BH136: 829.15 | BI136: 829.15 | BJ136: 829.15 | BK136: 829.15 | BL136: 829.15 | BM136: 829.15 | BN136: 829.15 | BO136: 829.15 | BP136: 829.15 | BQ136: 829.15 | BR136: 829.15 | BS136: 829.15 | BT136: 829.15 | BU136: 829.15 | BV136: 829.15 | BW136: 829.15 | BX136: 829.15 | BY136: 829.15 | BZ136: 829.15 | CA136: 829.15 | CB136: 829.15 | CC136: 829.15 | CD136: 829.15 | CE136: 829.15 | CF136: 829.15 | CG136: 829.15 | CH136: 829.15 | CI136: 829.15 | CJ136: 829.15 | CK136: 829.15 | CL136: 829.15 | CM136: 829.15 | CN136: 829.15 | CO136: 829.15
B137: Rathdrum CT: Inlet Evaporation 2 unit operation | C137: Internal | D137: CAPEX ($/kW) | G137: 2022 | O137: 150 | P137: 150 | Q137: 150 | R137: 150 | S137: 150 | T137: 150 | U137: 150 | V137: 150 | W137: 150 | X137: 150 | Y137: 150 | Z137: 150 | AA137: 150 | AB137: 150 | AC137: 150 | AD137: 150 | AE137: 150 | AF137: 150 | AG137: 150 | AH137: 150 | AI137: 150 | AJ137: 150 | AK137: 150 | AL137: 150 | AM137: 150 | AN137: 150 | AO137: 150 | AP137: 150 | AQ137: 150 | AR137: 150 | AS137: 150 | AT137: 150 | AU137: 150 | AV137: 150 | AW137: 150 | AX137: 150 | AY137: 150 | AZ137: 150 | BA137: 150 | BB137: 150 | BC137: 150 | BD137: 150 | BE137: 150 | BF137: 150 | BG137: 150 | BH137: 150 | BI137: 150 | BJ137: 150 | BK137: 150 | BL137: 150 | BM137: 150 | BN137: 150 | BO137: 150 | BP137: 150 | BQ137: 150 | BR137: 150 | BS137: 150 | BT137: 150 | BU137: 150 | BV137: 150 | BW137: 150 | BX137: 150 | BY137: 150 | BZ137: 150 | CA137: 150 | CB137: 150 | CC137: 150 | CD137: 150 | CE137: 150 | CF137: 150 | CG137: 150 | CH137: 150 | CI137: 150 | CJ137: 150 | CK137: 150 | CL137: 150 | CM137: 150 | CN137: 150 | CO137: 150
B138: Kettle Falls Upgrade | C138: Internal | D138: CAPEX ($/kW) | G138: 2026 | S138: =31500000/11000 -> 2863.636364 | T138: =S138 -> 2863.636364 | U138: =T138 -> 2863.636364 | V138: =U138 -> 2863.636364 | W138: =V138 -> 2863.636364 | X138: =W138 -> 2863.636364 | Y138: =X138 -> 2863.636364 | Z138: =Y138 -> 2863.636364 | AA138: =Z138 -> 2863.636364 | AB138: =AA138 -> 2863.636364 | AC138: =AB138 -> 2863.636364 | AD138: =AC138 -> 2863.636364 | AE138: =AD138 -> 2863.636364 | AF138: =AE138 -> 2863.636364 | AG138: =AF138 -> 2863.636364 | AH138: =AG138 -> 2863.636364 | AI138: =AH138 -> 2863.636364 | AJ138: =AI138 -> 2863.636364 | AK138: =AJ138 -> 2863.636364 | AL138: =AK138 -> 2863.636364 | AM138: =AL138 -> 2863.636364 | AN138: =AM138 -> 2863.636364 | AO138: =AN138 -> 2863.636364 | AP138: =AO138 -> 2863.636364 | AQ138: =AP138 -> 2863.636364 | AR138: =AQ138 -> 2863.636364 | AS138: =AR138 -> 2863.636364 | AT138: =AS138 -> 2863.636364 | AU138: =AT138 -> 2863.636364 | AV138: =AU138 -> 2863.636364 | AW138: =AV138 -> 2863.636364 | AX138: =AW138 -> 2863.636364 | AY138: =AX138 -> 2863.636364 | AZ138: =AY138 -> 2863.636364 | BA138: =AZ138 -> 2863.636364 | BB138: =BA138 -> 2863.636364 | BC138: =BB138 -> 2863.636364 | BD138: =BC138 -> 2863.636364 | BE138: =BD138 -> 2863.636364 | BF138: =BE138 -> 2863.636364 | BG138: =BF138 -> 2863.636364 | BH138: =BG138 -> 2863.636364 | BI138: =BH138 -> 2863.636364 | BJ138: =BI138 -> 2863.636364 | BK138: =BJ138 -> 2863.636364 | BL138: =BK138 -> 2863.636364 | BM138: =BL138 -> 2863.636364 | BN138: =BM138 -> 2863.636364 | BO138: =BN138 -> 2863.636364 | BP138: =BO138 -> 2863.636364 | BQ138: =BP138 -> 2863.636364 | BR138: =BQ138 -> 2863.636364 | BS138: =BR138 -> 2863.636364 | BT138: =BS138 -> 2863.636364 | BU138: =BT138 -> 2863.636364 | BV138: =BU138 -> 2863.636364 | BW138: =BV138 -> 2863.636364 | BX138: =BW138 -> 2863.636364 | BY138: =BX138 -> 2863.636364 | BZ138: =BY138 -> 2863.636364 | CA138: =BZ138 -> 2863.636364 | CB138: =CA138 -> 2863.636364 | CC138: =CB138 -> 2863.636364 | CD138: =CC138 -> 2863.636364 | CE138: =CD138 -> 2863.636364 | CF138: =CE138 -> 2863.636364 | CG138: =CF138 -> 2863.636364 | CH138: =CG138 -> 2863.636364 | CI138: =CH138 -> 2863.636364 | CJ138: =CI138 -> 2863.636364 | CK138: =CJ138 -> 2863.636364 | CL138: =CK138 -> 2863.636364 | CM138: =CL138 -> 2863.636364 | CN138: =CM138 -> 2863.636364 | CO138: =CN138 -> 2863.636364
B139: Palouse Repower | C139: =C102 -> NREL | D139: =D102 -> Overnight Capital Cost ($/kW) | E139: Land-Based Wind - Class 8 - Technology 2 | F139: Moderate | G139: 2021 | N139: =N102*0.8 -> 1122.055371 | O139: =O102*0.8 -> 1262.921423 | P139: 1181.762683 | Q139: 1050.466882 | R139: 1026.604053 | S139: 1002.741223 | T139: 978.8783932 | U139: 955.0155635 | V139: 931.1527338 | W139: 907.2899041 | X139: 898.4158554 | Y139: 889.5418067 | Z139: 880.667758 | AA139: 871.7937092 | AB139: 862.9196605 | AC139: 854.0456118 | AD139: 845.1715631 | AE139: 836.2975144 | AF139: 827.4234657 | AG139: 818.5494169 | AH139: 809.6753682 | AI139: 800.8013195 | AJ139: 791.9272708 | AK139: 783.0532221 | AL139: 774.1791733 | AM139: 765.3051246 | AN139: 756.4310759 | AO139: 747.5570272 | AP139: 738.6829785 | AQ139: 729.8089298 | AR139: 721.041488 | AS139: 712.3793725 | AT139: 703.8213179 | AU139: 695.3660741 | AV139: 687.012406 | AW139: 678.7590934 | AX139: 670.6049306 | AY139: 662.5487265 | AZ139: 654.5893043 | BA139: 646.7255014 | BB139: 638.956169 | BC139: 631.2801722 | BD139: 623.6963897 | BE139: 616.2037138 | BF139: 608.80105 | BG139: 601.4873169 | BH139: 594.2614461 | BI139: 587.1223821 | BJ139: 580.0690822 | BK139: 573.1005159 | BL139: 566.2156653 | BM139: 559.4135249 | BN139: 552.6931008 | BO139: 546.0534114 | BP139: 539.4934869 | BQ139: 533.012369 | BR139: 526.609111 | BS139: 520.2827774 | BT139: 514.0324442 | BU139: 507.8571985 | BV139: 501.756138 | BW139: 495.7283716 | BX139: 489.7730189 | BY139: 483.8892098 | BZ139: 478.0760848 | CA139: =CA102*0.8 -> 472.332795 | CB139: 466.6585012 | CC139: 461.0523746 | CD139: 455.5135963 | CE139: 450.0413573 | CF139: 444.6348581 | CG139: 439.293309 | CH139: 434.0159297 | CI139: 428.8019494 | CJ139: 423.6506064 | CK139: 418.5611483 | CL139: 413.5328315 | CM139: 408.5649216 | CN139: 403.6566928 | CO139: 398.8074283
B140: Rattlesnake Repower | C140: =C102 -> NREL | D140: =D102 -> Overnight Capital Cost ($/kW) | E140: Land-Based Wind - Class 8 - Technology 2 | F140: Moderate | G140: 2021 | N140: =N102*0.8 -> 1122.055371 | O140: =O102*0.8 -> 1262.921423 | P140: 1181.762683 | Q140: 1050.466882 | R140: 1026.604053 | S140: 1002.741223 | T140: 978.8783932 | U140: 955.0155635 | V140: 931.1527338 | W140: 907.2899041 | X140: 898.4158554 | Y140: 889.5418067 | Z140: 880.667758 | AA140: 871.7937092 | AB140: 862.9196605 | AC140: 854.0456118 | AD140: 845.1715631 | AE140: 836.2975144 | AF140: 827.4234657 | AG140: 818.5494169 | AH140: 809.6753682 | AI140: 800.8013195 | AJ140: 791.9272708 | AK140: 783.0532221 | AL140: 774.1791733 | AM140: 765.3051246 | AN140: 756.4310759 | AO140: 747.5570272 | AP140: 738.6829785 | AQ140: 729.8089298 | AR140: 721.041488 | AS140: 712.3793725 | AT140: 703.8213179 | AU140: 695.3660741 | AV140: 687.012406 | AW140: 678.7590934 | AX140: 670.6049306 | AY140: 662.5487265 | AZ140: 654.5893043 | BA140: 646.7255014 | BB140: 638.956169 | BC140: 631.2801722 | BD140: 623.6963897 | BE140: 616.2037138 | BF140: 608.80105 | BG140: 601.4873169 | BH140: 594.2614461 | BI140: 587.1223821 | BJ140: 580.0690822 | BK140: 573.1005159 | BL140: 566.2156653 | BM140: 559.4135249 | BN140: 552.6931008 | BO140: 546.0534114 | BP140: 539.4934869 | BQ140: 533.012369 | BR140: 526.609111 | BS140: 520.2827774 | BT140: 514.0324442 | BU140: 507.8571985 | BV140: 501.756138 | BW140: 495.7283716 | BX140: 489.7730189 | BY140: 483.8892098 | BZ140: 478.0760848 | CA140: =CA102*0.8 -> 472.332795 | CB140: 466.6585012 | CC140: 461.0523746 | CD140: 455.5135963 | CE140: 450.0413573 | CF140: 444.6348581 | CG140: 439.293309 | CH140: 434.0159297 | CI140: 428.8019494 | CJ140: 423.6506064 | CK140: 418.5611483 | CL140: 413.5328315 | CM140: 408.5649216 | CN140: 403.6566928 | CO140: 398.8074283
B141: Lind Repower | C141: =C115 -> NREL | D141: =D115 -> Overnight Capital Cost ($/kW) | E141: Utility PV - Class 4 | F141: Moderate | G141: 2021 | N141: =N115*0.8 -> 996.6520659 | O141: =O115*0.8 -> 1060.268155 | P141: =P115*0.8 -> 1027.958679 | Q141: 995.6492021 | R141: 963.3397255 | S141: 931.030249 | T141: 898.7207724 | U141: 866.4112958 | V141: 834.1018193 | W141: 801.7923427 | X141: 769.4828661 | Y141: 737.1733896 | Z141: 704.863913 | AA141: 672.5544364 | AB141: 640.2449599 | AC141: 630.1179493 | AD141: 619.9909388 | AE141: 609.8639283 | AF141: 599.7369177 | AG141: 589.6099072 | AH141: 579.4828967 | AI141: 569.3558861 | AJ141: 559.2288756 | AK141: 549.101865 | AL141: 538.9748545 | AM141: 528.847844 | AN141: 518.7208334 | AO141: 508.5938229 | AP141: 498.4668124 | AQ141: 488.3398018 | AR141: 478.4185349 | AS141: 468.6988315 | AT141: 459.1765968 | AU141: 449.8478188 | AV141: 440.7085672 | AW141: 431.7549916 | AX141: 422.9833196 | AY141: 414.3898558 | AZ141: 405.9709795 | BA141: 397.7231437 | BB141: 389.6428737 | BC141: 381.7267649 | BD141: 373.9714824 | BE141: 366.3737586 | BF141: 358.9303926 | BG141: 351.6382484 | BH141: 344.4942538 | BI141: 337.4953988 | BJ141: 330.6387348 | BK141: 323.9213729 | BL141: 317.3404831 | BM141: 310.8932928 | BN141: 304.5770856 | BO141: 298.3892005 | BP141: 292.3270305 | BQ141: 286.3880214 | BR141: 280.5696712 | BS141: 274.8695283 | BT141: 269.2851915 | BU141: 263.8143077 | BV141: 258.4545722 | BW141: 253.2037268 | BX141: 248.0595592 | BY141: 243.0199022 | BZ141: 238.0826325 | CA141: 233.2456699 | CB141: =CB115*0.8 -> 228.5069766 | CC141: 223.864556 | CD141: 219.3164524 | CE141: 214.8607495 | CF141: 210.4955701 | CG141: 206.219075 | CH141: 202.0294626 | CI141: 197.9249677 | CJ141: 193.903861 | CK141: 189.9644484 | CL141: 186.1050702 | CM141: 182.3241003 | CN141: 178.6199458 | CO141: 174.9910461
B143: CAPEX ($/kW) 2
B144: =List_Resources -> 7F.04 CT Frame Greenfield
B145: Reciprocating Engine (ICE) Machine
B146: NG CCCT (1x1 w/DF)
B147: Small Modular Reactor
B148: Northwest Wind (On System)
B149: Northwest Wind (Off System)
B150: Montana Wind (Off System)
B151: Off Shore Wind (Off System)
B152: New Construction Residential Solar
B153: New Construction Residential Solar + Storage | C153: Internal | G153: =2020+COUNTBLANK(M153:S153) -> 2022 | O153: =13000/(5/1.15) -> 2990 | P153: =O153 -> 2990 | Q153: 2990 | R153: 2990 | S153: 2990 | T153: 2990 | U153: 2990 | V153: 2990 | W153: 2990 | X153: 2990 | Y153: 2990 | Z153: 2990 | AA153: 2990 | AB153: 2990 | AC153: 2990 | AD153: 2990 | AE153: 2990 | AF153: 2990 | AG153: 2990 | AH153: 2990 | AI153: 2990 | AJ153: 2990 | AK153: 2990 | AL153: 2990 | AM153: 2990 | AN153: 2990 | AO153: 2990 | AP153: 2990 | AQ153: 2990 | AR153: 2990 | AS153: 2990 | AT153: 2990 | AU153: 2990 | AV153: 2990 | AW153: 2990 | AX153: 2990 | AY153: 2990 | AZ153: 2990 | BA153: 2990 | BB153: 2990 | BC153: 2990 | BD153: 2990 | BE153: 2990 | BF153: 2990 | BG153: 2990 | BH153: 2990 | BI153: 2990 | BJ153: 2990 | BK153: 2990 | BL153: 2990 | BM153: 2990 | BN153: 2990 | BO153: 2990 | BP153: 2990 | BQ153: 2990 | BR153: 2990 | BS153: 2990 | BT153: 2990 | BU153: 2990 | BV153: 2990 | BW153: 2990 | BX153: 2990 | BY153: 2990 | BZ153: 2990 | CA153: 2990 | CB153: =CA153 -> 2990 | CC153: 2990 | CD153: 2990 | CE153: 2990 | CF153: 2990 | CG153: 2990 | CH153: 2990 | CI153: 2990 | CJ153: 2990 | CK153: 2990 | CL153: 2990 | CM153: 2990 | CN153: 2990 | CO153: 2990
B154: Residential Solar
B155: Residential Solar + Storage | C155: Internal | G155: 2022 | O155: =14000/(5/1.15) -> 3220 | P155: =O155 -> 3220 | Q155: 3220 | R155: 3220 | S155: 3220 | T155: 3220 | U155: 3220 | V155: 3220 | W155: 3220 | X155: 3220 | Y155: 3220 | Z155: 3220 | AA155: 3220 | AB155: 3220 | AC155: 3220 | AD155: 3220 | AE155: 3220 | AF155: 3220 | AG155: 3220 | AH155: 3220 | AI155: 3220 | AJ155: 3220 | AK155: 3220 | AL155: 3220 | AM155: 3220 | AN155: 3220 | AO155: 3220 | AP155: 3220 | AQ155: 3220 | AR155: 3220 | AS155: 3220 | AT155: 3220 | AU155: 3220 | AV155: 3220 | AW155: 3220 | AX155: 3220 | AY155: 3220 | AZ155: 3220 | BA155: 3220 | BB155: 3220 | BC155: 3220 | BD155: 3220 | BE155: 3220 | BF155: 3220 | BG155: 3220 | BH155: 3220 | BI155: 3220 | BJ155: 3220 | BK155: 3220 | BL155: 3220 | BM155: 3220 | BN155: 3220 | BO155: 3220 | BP155: 3220 | BQ155: 3220 | BR155: 3220 | BS155: 3220 | BT155: 3220 | BU155: 3220 | BV155: 3220 | BW155: 3220 | BX155: 3220 | BY155: 3220 | BZ155: 3220 | CA155: 3220 | CB155: =CA155 -> 3220 | CC155: 3220 | CD155: 3220 | CE155: 3220 | CF155: 3220 | CG155: 3220 | CH155: 3220 | CI155: 3220 | CJ155: 3220 | CK155: 3220 | CL155: 3220 | CM155: 3220 | CN155: 3220 | CO155: 3220
B156: Commercial Solar
B157: Commercial Solar + Storage | C157: =C155 -> Internal | G157: 2022 | O157: =O155*0.8 -> 2576 | P157: =P155*0.8 -> 2576 | Q157: 2576 | R157: 2576 | S157: 2576 | T157: 2576 | U157: 2576 | V157: 2576 | W157: 2576 | X157: 2576 | Y157: 2576 | Z157: 2576 | AA157: 2576 | AB157: 2576 | AC157: 2576 | AD157: 2576 | AE157: 2576 | AF157: 2576 | AG157: 2576 | AH157: 2576 | AI157: 2576 | AJ157: 2576 | AK157: 2576 | AL157: 2576 | AM157: 2576 | AN157: 2576 | AO157: 2576 | AP157: 2576 | AQ157: 2576 | AR157: 2576 | AS157: 2576 | AT157: 2576 | AU157: 2576 | AV157: 2576 | AW157: 2576 | AX157: 2576 | AY157: 2576 | AZ157: 2576 | BA157: 2576 | BB157: 2576 | BC157: 2576 | BD157: 2576 | BE157: 2576 | BF157: 2576 | BG157: 2576 | BH157: 2576 | BI157: 2576 | BJ157: 2576 | BK157: 2576 | BL157: 2576 | BM157: 2576 | BN157: 2576 | BO157: 2576 | BP157: 2576 | BQ157: 2576 | BR157: 2576 | BS157: 2576 | BT157: 2576 | BU157: 2576 | BV157: 2576 | BW157: 2576 | BX157: 2576 | BY157: 2576 | BZ157: 2576 | CA157: 2576 | CB157: =CB155*0.8 -> 2576 | CC157: 2576 | CD157: 2576 | CE157: 2576 | CF157: 2576 | CG157: 2576 | CH157: 2576 | CI157: 2576 | CJ157: 2576 | CK157: 2576 | CL157: 2576 | CM157: 2576 | CN157: 2576 | CO157: 2576
B158: Low-Income Community Solar
B159: Solar Photovoltaic Fixed Array (5 MW AC)
B160: Solar Photovoltaic Fixed Array (5 MW AC) + Storage | C160: =C120 -> Lazard Adjustment | G160: 2021 | N160: =N120 -> 2095.722338 | O160: =O120 -> 2355.497835 | P160: 2265.057188 | Q160: 2163.750102 | R160: 1896.251186 | S160: 1834.909629 | T160: 1773.563572 | U160: 1712.212471 | V160: 1650.855692 | W160: 1589.492487 | X160: 1564.977501 | Y160: 1540.463278 | Z160: 1515.949849 | AA160: 1491.437245 | AB160: 1466.925498 | AC160: 1442.414644 | AD160: 1417.904719 | AE160: 1393.395762 | AF160: 1368.887814 | AG160: 1344.380917 | AH160: 1319.875118 | AI160: 1295.370466 | AJ160: 1270.86701 | AK160: 1246.364807 | AL160: 1221.863913 | AM160: 1197.364391 | AN160: 1172.866304 | AO160: 1148.369724 | AP160: 1123.874723 | AQ160: 1099.381381 | AR160: 1075.421839 | AS160: 1051.984462 | AT160: 1029.057872 | AU160: 1006.630937 | AV160: 984.6927657 | AW160: 963.2327079 | AX160: 942.2403432 | AY160: 921.705479 | AZ160: 901.6181445 | BA160: 881.9685866 | BB160: 862.7472645 | BC160: 843.9448452 | BD160: 825.5521995 | BE160: 807.5603968 | BF160: 789.9607013 | BG160: 772.7445676 | BH160: 755.9036364 | BI160: 739.4297307 | BJ160: 723.3148517 | BK160: 707.5511749 | BL160: 692.1310462 | BM160: 677.0469786 | BN160: 662.2916479 | BO160: 647.85789 | BP160: 633.7386964 | BQ160: 619.9272117 | BR160: 606.4167297 | BS160: 593.2006906 | BT160: 580.2726774 | BU160: 567.6264128 | BV160: 555.2557566 | BW160: 543.1547023 | BX160: 531.3173742 | BY160: 519.7380248 | BZ160: 508.4110318 | CA160: =CA120 -> 497.3308954 | CB160: 486.4922358 | CC160: 475.8897901 | CD160: 465.5184106 | CE160: 455.3730613 | CF160: 445.4488163 | CG160: 435.740857 | CH160: 426.2444695 | CI160: 416.9550431 | CJ160: 407.8680673 | CK160: 398.97913 | CL160: 390.2839151 | CM160: 381.7782007 | CN160: 373.457857 | CO160: 365.318844
B161: Solar Photovoltaic w/Single Axis Tracking (100 MW AC)
B162: Southern NW Solar Photovoltaic w/ Single Axis Tracking (100 MW AC)
B163: 100 MW/400 MWh Lithium-ion w/100 MW Solar | C163: =C122 -> NREL | G163: 2021 | N163: =N122 -> 1587.252 | O163: =O122 -> 1784 | P163: 1715.50233 | Q163: 1638.774668 | R163: 1436.177128 | S163: 1389.71844 | T163: 1343.256344 | U163: 1296.790429 | V163: 1250.320212 | W163: 1203.845129 | X163: 1185.278042 | Y163: 1166.711532 | Z163: 1148.145624 | AA163: 1129.58034 | AB163: 1111.015705 | AC163: 1092.451747 | AD163: 1073.888492 | AE163: 1055.325971 | AF163: 1036.764213 | AG163: 1018.203252 | AH163: 999.6431224 | AI163: 981.0838608 | AJ163: 962.5255062 | AK163: 943.9680998 | AL163: 925.4116852 | AM163: 906.856309 | AN163: 888.3020206 | AO163: 869.7488727 | AP163: 851.1969213 | AQ163: 832.6462263 | AR163: 814.4998188 | AS163: 796.748888 | AT163: 779.3848148 | AU163: 762.3991683 | AV163: 745.7837012 | AW163: 729.530346 | AX163: 713.6312108 | AY163: 698.0785759 | AZ163: 682.8648898 | BA163: 667.9827656 | BB163: 653.4249774 | BC163: 639.1844566 | BD163: 625.2542888 | BE163: 611.6277104 | BF163: 598.298105 | BG163: 585.2590004 | BH163: 572.5040656 | BI163: 560.0271075 | BJ163: 547.822068 | BK163: 535.883021 | BL163: 524.2041694 | BM163: 512.7798428 | BN163: 501.604494 | BO163: 490.672697 | BP163: 479.9791438 | BQ163: 469.5186423 | BR163: 459.2861133 | BS163: 449.2765886 | BT163: 439.4852081 | BU163: 429.9072176 | BV163: 420.5379665 | BW163: 411.3729057 | BX163: 402.4075851 | BY163: 393.6376516 | BZ163: =BZ122 -> 385.0588471 | CA163: 376.6670061 | CB163: 368.458054 | CC163: 360.428005 | CD163: 352.5729601 | CE163: 344.8891055 | CF163: 337.3727101 | CG163: 330.0201245 | CH163: 322.8277786 | CI163: 315.7921802 | CJ163: 308.9099133 | CK163: 302.1776361 | CL163: 295.5920799 | CM163: 289.1500471 | CN163: 282.8484097 | CO163: 276.6841081
B164: 100 MW/200 MWh Lithium-ion w/100 MW Solar | C164: NREL | D164: Overnight Capital Cost ($/kW) | E164: Utility-Scale Battery Storage - 2Hr | F164: Moderate | G164: 2021 | N164: 943.1499002 | O164: 1060.058152 | P164: 1022.368117 | Q164: 979.9712296 | R164: 862.2363972 | S164: 839.465672 | T164: 816.7370885 | U164: 794.0557408 | V164: 771.4275789 | W164: 748.8595956 | X164: 738.5782666 | Y164: 728.2897855 | Z164: 717.9938739 | AA164: 707.6902383 | AB164: 697.3785698 | AC164: 687.0585428 | AD164: 676.7298138 | AE164: 666.3920203 | AF164: 656.0447792 | AG164: 645.6876857 | AH164: 635.3203114 | AI164: 624.9422028 | AJ164: 614.5528793 | AK164: 604.1518312 | AL164: 593.7385173 | AM164: 583.3123628 | AN164: 572.8727563 | AO164: 562.4190467 | AP164: 551.9505408 | AQ164: 541.4664985 | AR164: =AQ164*AQ164/AP164 -> 531.1815958 | AS164: =AR164*AR164/AQ164 -> 521.0920499 | AT164: 511.1941503 | AU164: 501.4842566 | AV164: 491.9587979 | AW164: 482.6142707 | AX164: 473.4472385 | AY164: 464.4543297 | AZ164: 455.6322371 | BA164: 446.977716 | BB164: 438.4875834 | BC164: 430.158717 | BD164: 421.9880534 | BE164: 413.9725878 | BF164: 406.1093723 | BG164: 398.3955148 | BH164: 390.8281784 | BI164: 383.4045801 | BJ164: 376.1219895 | BK164: 368.9777283 | BL164: 361.969169 | BM164: 355.093734 | BN164: 348.3488947 | BO164: 341.7321705 | BP164: 335.2411278 | BQ164: 328.8733795 | BR164: 322.6265835 | BS164: 316.4984426 | BT164: 310.4867028 | BU164: 304.5891531 | BV164: 298.8036247 | BW164: 293.1279897 | BX164: 287.5601607 | BY164: 282.09809 | BZ164: 276.7397688 | CA164: 271.4832264 | CB164: 266.3265296 | CC164: 261.2677818 | CD164: 256.3051225 | CE164: 251.4367266 | CF164: 246.6608037 | CG164: 241.9755971 | CH164: 237.3793839 | CI164: 232.8704736 | CJ164: 228.4472079 | CK164: 224.1079601 | CL164: 219.8511343 | CM164: 215.6751649 | CN164: 211.5785161 | CO164: 207.5596811
B165: 50 MW/200 MWh Lithium-ion w/100 MW Solar | C165: =C164 -> NREL | G165: 2021 | N165: =N164 -> 943.1499002 | O165: 1060.058152 | P165: 1022.368117 | Q165: 979.9712296 | R165: 862.2363972 | S165: 839.465672 | T165: 816.7370885 | U165: 794.0557408 | V165: 771.4275789 | W165: 748.8595956 | X165: 738.5782666 | Y165: 728.2897855 | Z165: 717.9938739 | AA165: 707.6902383 | AB165: 697.3785698 | AC165: 687.0585428 | AD165: 676.7298138 | AE165: 666.3920203 | AF165: 656.0447792 | AG165: 645.6876857 | AH165: 635.3203114 | AI165: 624.9422028 | AJ165: 614.5528793 | AK165: 604.1518312 | AL165: 593.7385173 | AM165: 583.3123628 | AN165: 572.8727563 | AO165: 562.4190467 | AP165: 551.9505408 | AQ165: 541.4664985 | AR165: 531.1815958 | AS165: 521.0920499 | AT165: 511.1941503 | AU165: 501.4842566 | AV165: 491.9587979 | AW165: 482.6142707 | AX165: 473.4472385 | AY165: 464.4543297 | AZ165: 455.6322371 | BA165: 446.977716 | BB165: 438.4875834 | BC165: 430.158717 | BD165: 421.9880534 | BE165: 413.9725878 | BF165: 406.1093723 | BG165: 398.3955148 | BH165: 390.8281784 | BI165: 383.4045801 | BJ165: 376.1219895 | BK165: 368.9777283 | BL165: 361.969169 | BM165: 355.093734 | BN165: 348.3488947 | BO165: 341.7321705 | BP165: 335.2411278 | BQ165: 328.8733795 | BR165: 322.6265835 | BS165: 316.4984426 | BT165: 310.4867028 | BU165: 304.5891531 | BV165: 298.8036247 | BW165: 293.1279897 | BX165: 287.5601607 | BY165: 282.09809 | BZ165: =BZ164 -> 276.7397688 | CA165: 271.4832264 | CB165: 266.3265296 | CC165: 261.2677818 | CD165: 256.3051225 | CE165: 251.4367266 | CF165: 246.6608037 | CG165: 241.9755971 | CH165: 237.3793839 | CI165: 232.8704736 | CJ165: 228.4472079 | CK165: 224.1079601 | CL165: 219.8511343 | CM165: 215.6751649 | CN165: 211.5785161 | CO165: 207.5596811
B166: Distribution Scale 4hr Lithium-ion
B167: Distribution Scale 8hr Lithium-ion
B168: 4hr Lithium-ion
B169: 8hr Lithium-ion
B170: 16hr Lithium-ion
B171: 4 hr Flow Battery
B172: 8 hr Flow Battery
B173: 100hr Iron Oxide
B174: Geothermal (Off System)
B175: Hydrogen Fuel Cell with 40 hrs Storage
B176: 7F.04 CT Frame Greenfield + Power to Gas + storage
B177: 7F.04 CT Frame Greenfield + RNG
B178: Pumped Hydro (8 hr)
B179: Pumped Hydro (16 hr)
B180: Pumped Hydro (24 hr)
B181: Kettle Falls 2nd Biomass Unit
B182: Rathdrum CT 2055 Uprates two unit operation
B183: Rathdrum CT: Inlet Evaporation 2 unit operation
B184: Kettle Falls Upgrade
B185: Palouse Repower
B186: Rattlesnake Repower
B187: Lind Repower
B189: Variable Operation and Maintenance Expenses ($/MWh)
B190: =List_Resources -> 7F.04 CT Frame Greenfield | C190: Internal | G190: =2020+COUNTBLANK(M190:S190) -> 2020 | M190: 2.62 | N190: =M190 -> 2.62 | O190: 2.62 | P190: 2.62 | Q190: 2.62 | R190: 2.62 | S190: 2.62 | T190: 2.62 | U190: 2.62 | V190: 2.62 | W190: 2.62 | X190: 2.62 | Y190: 2.62 | Z190: 2.62 | AA190: 2.62 | AB190: 2.62 | AC190: 2.62 | AD190: =AC190 -> 2.62 | AE190: 2.62 | AF190: 2.62 | AG190: 2.62 | AH190: 2.62 | AI190: 2.62 | AJ190: 2.62 | AK190: 2.62 | AL190: 2.62 | AM190: 2.62 | AN190: 2.62 | AO190: 2.62 | AP190: 2.62 | AQ190: 2.62 | AR190: 2.62 | AS190: 2.62 | AT190: 2.62 | AU190: 2.62 | AV190: 2.62 | AW190: 2.62 | AX190: 2.62 | AY190: 2.62 | AZ190: 2.62 | BA190: 2.62 | BB190: 2.62 | BC190: 2.62 | BD190: 2.62 | BE190: 2.62 | BF190: 2.62 | BG190: 2.62 | BH190: 2.62 | BI190: 2.62 | BJ190: 2.62 | BK190: 2.62 | BL190: 2.62 | BM190: 2.62 | BN190: 2.62 | BO190: 2.62 | BP190: 2.62 | BQ190: 2.62 | BR190: 2.62 | BS190: 2.62 | BT190: 2.62 | BU190: 2.62 | BV190: 2.62 | BW190: 2.62 | BX190: 2.62 | BY190: 2.62 | BZ190: 2.62 | CA190: 2.62 | CB190: 2.62 | CC190: 2.62 | CD190: 2.62 | CE190: 2.62 | CF190: 2.62 | CG190: 2.62 | CH190: 2.62 | CI190: 2.62 | CJ190: 2.62 | CK190: 2.62 | CL190: 2.62 | CM190: 2.62 | CN190: 2.62 | CO190: 2.62
B191: Reciprocating Engine (ICE) Machine | C191: Internal | G191: =2020+COUNTBLANK(M191:S191) -> 2020 | M191: 5.5 | N191: 5.5 | O191: 5.5 | P191: 5.5 | Q191: 5.5 | R191: 5.5 | S191: 5.5 | T191: 5.5 | U191: 5.5 | V191: 5.5 | W191: 5.5 | X191: 5.5 | Y191: 5.5 | Z191: 5.5 | AA191: 5.5 | AB191: 5.5 | AC191: 5.5 | AD191: 5.5 | AE191: 5.5 | AF191: 5.5 | AG191: 5.5 | AH191: 5.5 | AI191: 5.5 | AJ191: 5.5 | AK191: 5.5 | AL191: 5.5 | AM191: 5.5 | AN191: 5.5 | AO191: 5.5 | AP191: 5.5 | AQ191: 5.5 | AR191: 5.5 | AS191: 5.5 | AT191: 5.5 | AU191: 5.5 | AV191: 5.5 | AW191: 5.5 | AX191: 5.5 | AY191: 5.5 | AZ191: 5.5 | BA191: 5.5 | BB191: 5.5 | BC191: 5.5 | BD191: 5.5 | BE191: 5.5 | BF191: 5.5 | BG191: 5.5 | BH191: 5.5 | BI191: 5.5 | BJ191: 5.5 | BK191: 5.5 | BL191: 5.5 | BM191: 5.5 | BN191: 5.5 | BO191: 5.5 | BP191: 5.5 | BQ191: 5.5 | BR191: 5.5 | BS191: 5.5 | BT191: 5.5 | BU191: 5.5 | BV191: 5.5 | BW191: 5.5 | BX191: 5.5 | BY191: 5.5 | BZ191: 5.5 | CA191: 5.5 | CB191: 5.5 | CC191: 5.5 | CD191: 5.5 | CE191: 5.5 | CF191: 5.5 | CG191: 5.5 | CH191: 5.5 | CI191: 5.5 | CJ191: 5.5 | CK191: 5.5 | CL191: 5.5 | CM191: 5.5 | CN191: 5.5 | CO191: 5.5
B192: NG CCCT (1x1 w/DF) | C192: Internal | G192: 2020 | M192: 4.36 | N192: 4.36 | O192: 4.36 | P192: 4.36 | Q192: 4.36 | R192: 4.36 | S192: 4.36 | T192: 4.36 | U192: 4.36 | V192: 4.36 | W192: 4.36 | X192: 4.36 | Y192: 4.36 | Z192: 4.36 | AA192: 4.36 | AB192: 4.36 | AC192: 4.36 | AD192: 4.36 | AE192: 4.36 | AF192: 4.36 | AG192: 4.36 | AH192: 4.36 | AI192: 4.36 | AJ192: 4.36 | AK192: 4.36 | AL192: 4.36 | AM192: 4.36 | AN192: 4.36 | AO192: 4.36 | AP192: 4.36 | AQ192: 4.36 | AR192: 4.36 | AS192: 4.36 | AT192: 4.36 | AU192: 4.36 | AV192: 4.36 | AW192: 4.36 | AX192: 4.36 | AY192: 4.36 | AZ192: 4.36 | BA192: 4.36 | BB192: 4.36 | BC192: 4.36 | BD192: 4.36 | BE192: 4.36 | BF192: 4.36 | BG192: 4.36 | BH192: 4.36 | BI192: 4.36 | BJ192: 4.36 | BK192: 4.36 | BL192: 4.36 | BM192: 4.36 | BN192: 4.36 | BO192: 4.36 | BP192: 4.36 | BQ192: 4.36 | BR192: 4.36 | BS192: 4.36 | BT192: 4.36 | BU192: 4.36 | BV192: 4.36 | BW192: 4.36 | BX192: 4.36 | BY192: 4.36 | BZ192: 4.36 | CA192: 4.36 | CB192: 4.36 | CC192: 4.36 | CD192: 4.36 | CE192: 4.36 | CF192: 4.36 | CG192: 4.36 | CH192: 4.36 | CI192: 4.36 | CJ192: 4.36 | CK192: 4.36 | CL192: 4.36 | CM192: 4.36 | CN192: 4.36 | CO192: 4.36
B193: Small Modular Reactor | C193: NREL | D193: Variable Operation and Maintenance Expenses ($/MWh) | E193: Nuclear - Small Modular Reactor | F193: Moderate | G193: 2021 | N193: 3.13 | O193: 3.13 | P193: 3.13 | Q193: 3.13 | R193: 3.13 | S193: 3.13 | T193: 3.13 | U193: 3.13 | V193: 3.13 | W193: 3.13 | X193: 3.13 | Y193: 3.13 | Z193: 3.13 | AA193: 3.13 | AB193: 3.13 | AC193: 3.13 | AD193: 3.13 | AE193: 3.13 | AF193: 3.13 | AG193: 3.13 | AH193: 3.13 | AI193: 3.13 | AJ193: 3.13 | AK193: 3.13 | AL193: 3.13 | AM193: 3.13 | AN193: 3.13 | AO193: 3.13 | AP193: 3.13 | AQ193: 3.13 | AR193: 3.13 | AS193: 3.13 | AT193: 3.13 | AU193: 3.13 | AV193: 3.13 | AW193: 3.13 | AX193: 3.13 | AY193: 3.13 | AZ193: 3.13 | BA193: 3.13 | BB193: 3.13 | BC193: 3.13 | BD193: 3.13 | BE193: 3.13 | BF193: 3.13 | BG193: 3.13 | BH193: 3.13 | BI193: 3.13 | BJ193: 3.13 | BK193: 3.13 | BL193: 3.13 | BM193: 3.13 | BN193: 3.13 | BO193: 3.13 | BP193: 3.13 | BQ193: 3.13 | BR193: 3.13 | BS193: 3.13 | BT193: 3.13 | BU193: 3.13 | BV193: 3.13 | BW193: 3.13 | BX193: 3.13 | BY193: 3.13 | BZ193: 3.13 | CA193: 3.13 | CB193: 3.13 | CC193: 3.13 | CD193: 3.13 | CE193: 3.13 | CF193: 3.13 | CG193: 3.13 | CH193: 3.13 | CI193: 3.13 | CJ193: 3.13 | CK193: 3.13 | CL193: 3.13 | CM193: 3.13 | CN193: 3.13 | CO193: 3.13
B194: Northwest Wind (On System)
B195: Northwest Wind (Off System)
B196: Montana Wind (Off System)
B197: Off Shore Wind (Off System)
B198: New Construction Residential Solar
B199: New Construction Residential Solar + Storage
B200: Residential Solar
B201: Residential Solar + Storage
B202: Commercial Solar
B203: Commercial Solar + Storage
B204: Low-Income Community Solar
B205: Solar Photovoltaic Fixed Array (5 MW AC)
... 568 more rows

Sheet DATA (Nominal)
L1: Year: | M1: =_xlfn.SEQUENCE(1,81,2020,1) -> 2020 | N1: 2021 | O1: 2022 | P1: 2023 | Q1: 2024 | R1: 2025 | S1: 2026 | T1: 2027 | U1: 2028 | V1: 2029 | W1: 2030 | X1: 2031 | Y1: 2032 | Z1: 2033 | AA1: 2034 | AB1: 2035 | AC1: 2036 | AD1: 2037 | AE1: 2038 | AF1: 2039 | AG1: 2040 | AH1: 2041 | AI1: 2042 | AJ1: 2043 | AK1: 2044 | AL1: 2045 | AM1: 2046 | AN1: 2047 | AO1: 2048 | AP1: 2049 | AQ1: 2050 | AR1: 2051 | AS1: 2052 | AT1: 2053 | AU1: 2054 | AV1: 2055 | AW1: 2056 | AX1: 2057 | AY1: 2058 | AZ1: 2059 | BA1: 2060 | BB1: 2061 | BC1: 2062 | BD1: 2063 | BE1: 2064 | BF1: 2065 | BG1: 2066 | BH1: 2067 | BI1: 2068 | BJ1: 2069 | BK1: 2070 | BL1: 2071 | BM1: 2072 | BN1: 2073 | BO1: 2074 | BP1: 2075 | BQ1: 2076 | BR1: 2077 | BS1: 2078 | BT1: 2079 | BU1: 2080 | BV1: 2081 | BW1: 2082 | BX1: 2083 | BY1: 2084 | BZ1: 2085 | CA1: 2086 | CB1: 2087 | CC1: 2088 | CD1: 2089 | CE1: 2090 | CF1: 2091 | CG1: 2092 | CH1: 2093 | CI1: 2094 | CJ1: 2095 | CK1: 2096 | CL1: 2097 | CM1: 2098 | CN1: 2099 | CO1: 2100
L2: CPI: | M2: 0.012 | N2: 0.046 | O2: 0.072 | P2: 0.042 | Q2: 0.025 | R2: 0.022222 | S2: 0.022222 | T2: 0.022222 | U2: 0.022222 | V2: 0.022222 | W2: 0.022222 | X2: 0.022222 | Y2: 0.022222 | Z2: 0.022222 | AA2: 0.022222 | AB2: 0.022222 | AC2: 0.022222 | AD2: 0.022222 | AE2: 0.022222 | AF2: 0.022222 | AG2: 0.022222 | AH2: 0.022222 | AI2: 0.022222 | AJ2: 0.022222 | AK2: 0.022222 | AL2: 0.022222 | AM2: =AL2 -> 0.022222 | AN2: =AM2 -> 0.022222 | AO2: 0.022222 | AP2: 0.022222 | AQ2: 0.022222 | AR2: 0.022222 | AS2: 0.022222 | AT2: 0.022222 | AU2: 0.022222 | AV2: 0.022222 | AW2: 0.022222 | AX2: 0.022222 | AY2: 0.022222 | AZ2: 0.022222 | BA2: 0.022222 | BB2: 0.022222 | BC2: 0.022222 | BD2: 0.022222 | BE2: 0.022222 | BF2: 0.022222 | BG2: 0.022222 | BH2: 0.022222 | BI2: 0.022222 | BJ2: 0.022222 | BK2: 0.022222 | BL2: 0.022222 | BM2: 0.022222 | BN2: 0.022222 | BO2: 0.022222 | BP2: 0.022222 | BQ2: 0.022222 | BR2: 0.022222 | BS2: 0.022222 | BT2: 0.022222 | BU2: 0.022222 | BV2: 0.022222 | BW2: 0.022222 | BX2: 0.022222 | BY2: 0.022222 | BZ2: 0.022222 | CA2: 0.022222 | CB2: 0.022222 | CC2: 0.022222 | CD2: 0.022222 | CE2: 0.022222 | CF2: 0.022222 | CG2: 0.022222 | CH2: 0.022222 | CI2: 0.022222 | CJ2: 0.022222 | CK2: 0.022222 | CL2: 0.022222 | CM2: 0.022222 | CN2: 0.022222 | CO2: 0.022222
L3: CPI Factor: | M3: 100 | N3: =M3*(1+N2) -> 104.6 | O3: 112.1312 | P3: 116.8407104 | Q3: 119.7617282 | R3: 122.4230733 | S3: 125.1435588 | T3: 127.924499 | U3: 130.7672372 | V3: 133.6731467 | W3: 136.6436314 | X3: 139.6801262 | Y3: 142.784098 | Z3: 145.9570462 | AA3: 149.2005037 | AB3: 152.5160372 | AC3: 155.9052486 | AD3: 159.3697751 | AE3: 162.9112902 | AF3: 166.5315049 | AG3: 170.232168 | AH3: 174.0150672 | AI3: 177.8820301 | AJ3: 181.8349245 | AK3: 185.8756602 | AL3: 190.0061891 | AM3: 194.2285067 | AN3: 198.5446526 | AO3: 202.9567118 | AP3: 207.4668159 | AQ3: 212.0771435 | AR3: 216.7899217 | AS3: 221.6074274 | AT3: 226.5319876 | AU3: 231.5659815 | AV3: 236.7118407 | AW3: 241.9720512 | AX3: 247.3491541 | AY3: 252.8457471 | AZ3: 258.4644852 | BA3: 264.208083 | BB3: 270.0793151 | BC3: 276.0810176 | BD3: 282.21609 | BE3: 288.4874959 | BF3: 294.8982651 | BG3: 301.4514943 | BH3: 308.1503494 | BI3: 314.9980665 | BJ3: 321.9979535 | BK3: 329.153392 | BL3: 336.4678387 | BM3: 343.944827 | BN3: 351.587969 | BO3: 359.4009568 | BP3: 367.3875649 | BQ3: 375.5516513 | BR3: 383.8971601 | BS3: 392.4281228 | BT3: 401.1486606 | BU3: 410.0629861 | BV3: 419.1754058 | BW3: 428.4903216 | BX3: 438.0122336 | BY3: 447.7457414 | BZ3: =BY3*(1+BZ2) -> 457.6955473 | CA3: 467.8664577 | CB3: 478.2633862 | CC3: 488.8913551 | CD3: 499.7554988 | CE3: 510.8610655 | CF3: 522.2134201 | CG3: 533.8180467 | CH3: 545.6805514 | CI3: 557.8066646 | CJ3: 570.2022443 | CK3: 582.8732786 | CL3: 595.8258886 | CM3: 609.0663315 | CN3: 622.6010035 | CO3: 636.436443
B5: Net Capacity Factor (%)
B6: =List_Resources -> 7F.04 CT Frame Greenfield | M6: ='DATA (Real)'!M6:CO6 -> 0 | N6: 0 | O6: 0 | P6: 0 | Q6: 0 | R6: 0 | S6: 0 | T6: 0 | U6: 0 | V6: 0 | W6: 0 | X6: 0 | Y6: 0 | Z6: 0 | AA6: 0 | AB6: 0 | AC6: 0 | AD6: 0 | AE6: 0 | AF6: 0 | AG6: 0 | AH6: 0 | AI6: 0 | AJ6: 0 | AK6: 0 | AL6: 0 | AM6: 0 | AN6: 0 | AO6: 0 | AP6: 0 | AQ6: 0 | AR6: 0 | AS6: 0 | AT6: 0 | AU6: 0 | AV6: 0 | AW6: 0 | AX6: 0 | AY6: 0 | AZ6: 0 | BA6: 0 | BB6: 0 | BC6: 0 | BD6: 0 | BE6: 0 | BF6: 0 | BG6: 0 | BH6: 0 | BI6: 0 | BJ6: 0 | BK6: 0 | BL6: 0 | BM6: 0 | BN6: 0 | BO6: 0 | BP6: 0 | BQ6: 0 | BR6: 0 | BS6: 0 | BT6: 0 | BU6: 0 | BV6: 0 | BW6: 0 | BX6: 0 | BY6: 0 | BZ6: 0 | CA6: 0 | CB6: 0 | CC6: 0 | CD6: 0 | CE6: 0 | CF6: 0 | CG6: 0 | CH6: 0 | CI6: 0 | CJ6: 0 | CK6: 0 | CL6: 0 | CM6: 0 | CN6: 0 | CO6: 0
B7: Reciprocating Engine (ICE) Machine | M7: ='DATA (Real)'!M7:CO7 -> 0 | N7: 0 | O7: 0 | P7: 0 | Q7: 0 | R7: 0 | S7: 0 | T7: 0 | U7: 0 | V7: 0 | W7: 0 | X7: 0 | Y7: 0 | Z7: 0 | AA7: 0 | AB7: 0 | AC7: 0 | AD7: 0 | AE7: 0 | AF7: 0 | AG7: 0 | AH7: 0 | AI7: 0 | AJ7: 0 | AK7: 0 | AL7: 0 | AM7: 0 | AN7: 0 | AO7: 0 | AP7: 0 | AQ7: 0 | AR7: 0 | AS7: 0 | AT7: 0 | AU7: 0 | AV7: 0 | AW7: 0 | AX7: 0 | AY7: 0 | AZ7: 0 | BA7: 0 | BB7: 0 | BC7: 0 | BD7: 0 | BE7: 0 | BF7: 0 | BG7: 0 | BH7: 0 | BI7: 0 | BJ7: 0 | BK7: 0 | BL7: 0 | BM7: 0 | BN7: 0 | BO7: 0 | BP7: 0 | BQ7: 0 | BR7: 0 | BS7: 0 | BT7: 0 | BU7: 0 | BV7: 0 | BW7: 0 | BX7: 0 | BY7: 0 | BZ7: 0 | CA7: 0 | CB7: 0 | CC7: 0 | CD7: 0 | CE7: 0 | CF7: 0 | CG7: 0 | CH7: 0 | CI7: 0 | CJ7: 0 | CK7: 0 | CL7: 0 | CM7: 0 | CN7: 0 | CO7: 0
B8: NG CCCT (1x1 w/DF) | M8: ='DATA (Real)'!M8:CO8 -> 0 | N8: 0 | O8: 0 | P8: 0 | Q8: 0 | R8: 0 | S8: 0 | T8: 0 | U8: 0 | V8: 0 | W8: 0 | X8: 0 | Y8: 0 | Z8: 0 | AA8: 0 | AB8: 0 | AC8: 0 | AD8: 0 | AE8: 0 | AF8: 0 | AG8: 0 | AH8: 0 | AI8: 0 | AJ8: 0 | AK8: 0 | AL8: 0 | AM8: 0 | AN8: 0 | AO8: 0 | AP8: 0 | AQ8: 0 | AR8: 0 | AS8: 0 | AT8: 0 | AU8: 0 | AV8: 0 | AW8: 0 | AX8: 0 | AY8: 0 | AZ8: 0 | BA8: 0 | BB8: 0 | BC8: 0 | BD8: 0 | BE8: 0 | BF8: 0 | BG8: 0 | BH8: 0 | BI8: 0 | BJ8: 0 | BK8: 0 | BL8: 0 | BM8: 0 | BN8: 0 | BO8: 0 | BP8: 0 | BQ8: 0 | BR8: 0 | BS8: 0 | BT8: 0 | BU8: 0 | BV8: 0 | BW8: 0 | BX8: 0 | BY8: 0 | BZ8: 0 | CA8: 0 | CB8: 0 | CC8: 0 | CD8: 0 | CE8: 0 | CF8: 0 | CG8: 0 | CH8: 0 | CI8: 0 | CJ8: 0 | CK8: 0 | CL8: 0 | CM8: 0 | CN8: 0 | CO8: 0
B9: Small Modular Reactor | M9: ='DATA (Real)'!M9:CO9 -> 0 | N9: 0.927 | O9: 0.927 | P9: 0.927 | Q9: 0.927 | R9: 0.927 | S9: 0.927 | T9: 0.927 | U9: 0.927 | V9: 0.927 | W9: 0.927 | X9: 0.927 | Y9: 0.927 | Z9: 0.927 | AA9: 0.927 | AB9: 0.927 | AC9: 0.927 | AD9: 0.927 | AE9: 0.927 | AF9: 0.927 | AG9: 0.927 | AH9: 0.927 | AI9: 0.927 | AJ9: 0.927 | AK9: 0.927 | AL9: 0.927 | AM9: 0.927 | AN9: 0.927 | AO9: 0.927 | AP9: 0.927 | AQ9: 0.927 | AR9: 0.927 | AS9: 0.927 | AT9: 0.927 | AU9: 0.927 | AV9: 0.927 | AW9: 0.927 | AX9: 0.927 | AY9: 0.927 | AZ9: 0.927 | BA9: 0.927 | BB9: 0.927 | BC9: 0.927 | BD9: 0.927 | BE9: 0.927 | BF9: 0.927 | BG9: 0.927 | BH9: 0.927 | BI9: 0.927 | BJ9: 0.927 | BK9: 0.927 | BL9: 0.927 | BM9: 0.927 | BN9: 0.927 | BO9: 0.927 | BP9: 0.927 | BQ9: 0.927 | BR9: 0.927 | BS9: 0.927 | BT9: 0.927 | BU9: 0.927 | BV9: 0.927 | BW9: 0.927 | BX9: 0.927 | BY9: 0.927 | BZ9: 0.927 | CA9: 0.927 | CB9: 0.927 | CC9: 0.927 | CD9: 0.927 | CE9: 0.927 | CF9: 0.927 | CG9: 0.927 | CH9: 0.927 | CI9: 0.927 | CJ9: 0.927 | CK9: 0.927 | CL9: 0.927 | CM9: 0.927 | CN9: 0.927 | CO9: 0.927
B10: Northwest Wind (On System) | M10: ='DATA (Real)'!M10:CO10 -> 0 | N10: 0.33939 | O10: 0.3419971111 | P10: 0.3446042222 | Q10: 0.3472113333 | R10: 0.3498184444 | S10: 0.3524255556 | T10: 0.3582053347 | U10: 0.3640799022 | V10: 0.3700508126 | W10: 0.3761196459 | X10: 0.3764957655 | Y10: 0.3768722613 | Z10: 0.3772491335 | AA10: 0.3776263827 | AB10: 0.3780040091 | AC10: 0.3783820131 | AD10: 0.3787603951 | AE10: 0.3791391555 | AF10: 0.3795182946 | AG10: 0.3798978129 | AH10: 0.3802777107 | AI10: 0.3806579885 | AJ10: 0.3810386464 | AK10: 0.3814196851 | AL10: 0.3818011048 | AM10: 0.3821829059 | AN10: 0.3825650888 | AO10: 0.3829476539 | AP10: 0.3833306015 | AQ10: 0.3837139321 | AR10: 0.3840976461 | AS10: 0.3844817437 | AT10: 0.3848662255 | AU10: 0.3852510917 | AV10: 0.3856363428 | AW10: 0.3860219791 | AX10: 0.3864080011 | AY10: 0.3867944091 | AZ10: 0.3871812035 | BA10: 0.3875683847 | BB10: 0.3879559531 | BC10: 0.388343909 | BD10: 0.388732253 | BE10: 0.3891209852 | BF10: 0.3895101062 | BG10: 0.3898996163 | BH10: 0.3902895159 | BI10: 0.3906798054 | BJ10: 0.3910704852 | BK10: 0.3914615557 | BL10: 0.3918530173 | BM10: 0.3922448703 | BN10: 0.3926371152 | BO10: 0.3930297523 | BP10: 0.393422782 | BQ10: 0.3938162048 | BR10: 0.394210021 | BS10: 0.394604231 | BT10: 0.3949988353 | BU10: 0.3953938341 | BV10: 0.3957892279 | BW10: 0.3961850172 | BX10: 0.3965812022 | BY10: 0.3969777834 | BZ10: 0.3973747612 | CA10: 0.3977721359 | CB10: 0.3981699081 | CC10: 0.398568078 | CD10: 0.3989666461 | CE10: 0.3993656127 | CF10: 0.3997649783 | CG10: 0.4001647433 | CH10: 0.400564908 | CI10: 0.4009654729 | CJ10: 0.4013664384 | CK10: 0.4017678049 | CL10: 0.4021695727 | CM10: 0.4025717422 | CN10: 0.402974314 | CO10: 0.4033772883
B11: Northwest Wind (Off System) | M11: ='DATA (Real)'!M11:CO11 -> 0 | N11: 0.33939 | O11: 0.3419971111 | P11: 0.3446042222 | Q11: 0.3472113333 | R11: 0.3498184444 | S11: 0.3524255556 | T11: 0.3582053347 | U11: 0.3640799022 | V11: 0.3700508126 | W11: 0.3761196459 | X11: 0.3764957655 | Y11: 0.3768722613 | Z11: 0.3772491335 | AA11: 0.3776263827 | AB11: 0.3780040091 | AC11: 0.3783820131 | AD11: 0.3787603951 | AE11: 0.3791391555 | AF11: 0.3795182946 | AG11: 0.3798978129 | AH11: 0.3802777107 | AI11: 0.3806579885 | AJ11: 0.3810386464 | AK11: 0.3814196851 | AL11: 0.3818011048 | AM11: 0.3821829059 | AN11: 0.3825650888 | AO11: 0.3829476539 | AP11: 0.3833306015 | AQ11: 0.3837139321 | AR11: 0.3840976461 | AS11: 0.3844817437 | AT11: 0.3848662255 | AU11: 0.3852510917 | AV11: 0.3856363428 | AW11: 0.3860219791 | AX11: 0.3864080011 | AY11: 0.3867944091 | AZ11: 0.3871812035 | BA11: 0.3875683847 | BB11: 0.3879559531 | BC11: 0.388343909 | BD11: 0.388732253 | BE11: 0.3891209852 | BF11: 0.3895101062 | BG11: 0.3898996163 | BH11: 0.3902895159 | BI11: 0.3906798054 | BJ11: 0.3910704852 | BK11: 0.3914615557 | BL11: 0.3918530173 | BM11: 0.3922448703 | BN11: 0.3926371152 | BO11: 0.3930297523 | BP11: 0.393422782 | BQ11: 0.3938162048 | BR11: 0.394210021 | BS11: 0.394604231 | BT11: 0.3949988353 | BU11: 0.3953938341 | BV11: 0.3957892279 | BW11: 0.3961850172 | BX11: 0.3965812022 | BY11: 0.3969777834 | BZ11: 0.3973747612 | CA11: 0.3977721359 | CB11: 0.3981699081 | CC11: 0.398568078 | CD11: 0.3989666461 | CE11: 0.3993656127 | CF11: 0.3997649783 | CG11: 0.4001647433 | CH11: 0.400564908 | CI11: 0.4009654729 | CJ11: 0.4013664384 | CK11: 0.4017678049 | CL11: 0.4021695727 | CM11: 0.4025717422 | CN11: 0.402974314 | CO11: 0.4033772883
B12: Montana Wind (Off System) | M12: ='DATA (Real)'!M12:CO12 -> 0.42 | N12: 0.42 | O12: 0.42 | P12: 0.42 | Q12: 0.42 | R12: 0.42 | S12: 0.42 | T12: 0.426888 | U12: 0.4338889632 | V12: 0.4410047422 | W12: 0.44823722 | X12: 0.4486854572 | Y12: 0.4491341426 | Z12: 0.4495832768 | AA12: 0.4500328601 | AB12: 0.4504828929 | AC12: 0.4509333758 | AD12: 0.4513843092 | AE12: 0.4518356935 | AF12: 0.4522875292 | AG12: 0.4527398167 | AH12: 0.4531925565 | AI12: 0.4536457491 | AJ12: 0.4540993948 | AK12: 0.4545534942 | AL12: 0.4550080477 | AM12: 0.4554630558 | AN12: 0.4559185188 | AO12: 0.4563744374 | AP12: 0.4568308118 | AQ12: 0.4572876426 | AR12: 0.4577449303 | AS12: 0.4582026752 | AT12: 0.4586608779 | AU12: 0.4591195387 | AV12: 0.4595786583 | AW12: 0.4600382369 | AX12: 0.4604982752 | AY12: 0.4609587734 | AZ12: 0.4614197322 | BA12: 0.4618811519 | BB12: 0.4623430331 | BC12: 0.4628053761 | BD12: 0.4632681815 | BE12: 0.4637314497 | BF12: 0.4641951811 | BG12: 0.4646593763 | BH12: 0.4651240357 | BI12: 0.4655891597 | BJ12: 0.4660547489 | BK12: 0.4665208036 | BL12: 0.4669873244 | BM12: 0.4674543118 | BN12: 0.4679217661 | BO12: 0.4683896878 | BP12: 0.4688580775 | BQ12: 0.4693269356 | BR12: 0.4697962626 | BS12: 0.4702660588 | BT12: 0.4707363249 | BU12: 0.4712070612 | BV12: 0.4716782683 | BW12: 0.4721499465 | BX12: 0.4726220965 | BY12: 0.4730947186 | BZ12: 0.4735678133 | CA12: 0.4740413811 | CB12: 0.4745154225 | CC12: 0.4749899379 | CD12: 0.4754649278 | CE12: 0.4759403928 | CF12: 0.4764163332 | CG12: 0.4768927495 | CH12: 0.4773696422 | CI12: 0.4778470119 | CJ12: 0.4783248589 | CK12: 0.4788031838 | CL12: 0.4792819869 | CM12: 0.4797612689 | CN12: 0.4802410302 | CO12: 0.4807212712
B13: Off Shore Wind (Off System) | M13: ='DATA (Real)'!M13:CO13 -> 0 | N13: 0.4668178941 | O13: 0.4713267726 | P13: 0.4755596161 | Q13: 0.4796019705 | R13: 0.4835048988 | S13: 0.4873013381 | T13: 0.4910137773 | U13: 0.494658257 | V13: 0.4982466208 | W13: 0.5017878631 | X13: 0.5032889752 | Y13: 0.5047554993 | Z13: 0.5061919036 | AA13: 0.5076018423 | AB13: 0.5089883428 | AC13: 0.510353941 | AD13: 0.5117007821 | AE13: 0.5130306972 | AF13: 0.5143452617 | AG13: 0.5156458409 | AH13: 0.5169336256 | AI13: 0.5182096605 | AJ13: 0.5194748678 | AK13: 0.5207300648 | AL13: 0.5219759799 | AM13: 0.5232132645 | AN13: 0.524442504 | AO13: 0.5256642262 | AP13: 0.5268789083 | AQ13: 0.5280869837 | AR13: 0.5292978291 | AS13: 0.5305114509 | AT13: 0.5317278554 | AU13: 0.5329470489 | AV13: 0.534169038 | AW13: 0.5353938289 | AX13: 0.5366214281 | AY13: 0.5378518421 | AZ13: 0.5390850772 | BA13: 0.5403211401 | BB13: 0.5415600371 | BC13: 0.5428017748 | BD13: 0.5440463596 | BE13: 0.5452937981 | BF13: 0.5465440969 | BG13: 0.5477972624 | BH13: 0.5490533014 | BI13: 0.5503122203 | BJ13: 0.5515740257 | BK13: 0.5528387244 | BL13: 0.5541063228 | BM13: 0.5553768277 | BN13: 0.5566502458 | BO13: 0.5579265836 | BP13: 0.559205848 | BQ13: 0.5604880456 | BR13: 0.5617731831 | BS13: 0.5630612672 | BT13: 0.5643523049 | BU13: 0.5656463027 | BV13: 0.5669432675 | BW13: 0.5682432061 | BX13: 0.5695461254 | BY13: 0.5708520321 | BZ13: 0.5721609331 | CA13: 0.5734728352 | CB13: 0.5747877454 | CC13: 0.5761056706 | CD13: 0.5774266176 | CE13: 0.5787505933 | CF13: 0.5800776049 | CG13: 0.5814076591 | CH13: 0.582740763 | CI13: 0.5840769235 | CJ13: 0.5854161477 | CK13: 0.5867584426 | CL13: 0.5881038153 | CM13: 0.5894522727 | CN13: 0.590803822 | CO13: 0.5921584702
B14: New Construction Residential Solar | M14: ='DATA (Real)'!M14:CO14/0.85 -> 0 | N14: 0.1609329338 | O14: 0.1611037515 | P14: 0.1612745693 | Q14: 0.1614453871 | R14: 0.1616162049 | S14: 0.1617870227 | T14: 0.1619578404 | U14: 0.1621286582 | V14: 0.162299476 | W14: 0.1624702938 | X14: 0.1626411115 | Y14: 0.1628119293 | Z14: 0.1629827471 | AA14: 0.1631535649 | AB14: 0.1633243827 | AC14: 0.1636055621 | AD14: 0.1638867416 | AE14: 0.164167921 | AF14: 0.1644491005 | AG14: 0.1647302799 | AH14: 0.1650114594 | AI14: 0.1652926388 | AJ14: 0.1655738183 | AK14: 0.1658549977 | AL14: 0.1661361772 | AM14: 0.1664173566 | AN14: 0.1666985361 | AO14: 0.1669797155 | AP14: 0.167260895 | AQ14: 0.1675420745 | AR14: 0.1678771586 | AS14: 0.1682129129 | AT14: 0.1685493387 | AU14: 0.1688864374 | AV14: 0.1692242103 | AW14: 0.1695626587 | AX14: 0.169901784 | AY14: 0.1702415876 | AZ14: 0.1705820708 | BA14: 0.1709232349 | BB14: 0.1712650814 | BC14: 0.1716076116 | BD14: 0.1719508268 | BE14: 0.1722947284 | BF14: 0.1726393179 | BG14: 0.1729845965 | BH14: 0.1733305657 | BI14: 0.1736772268 | BJ14: 0.1740245813 | BK14: 0.1743726305 | BL14: 0.1747213757 | BM14: 0.1750708185 | BN14: 0.1754209601 | BO14: 0.175771802 | BP14: 0.1761233456 | BQ14: 0.1764755923 | BR14: 0.1768285435 | BS14: 0.1771822006 | BT14: 0.177536565 | BU14: 0.1778916381 | BV14: 0.1782474214 | BW14: 0.1786039162 | BX14: 0.1789611241 | BY14: 0.1793190463 | BZ14: 0.1796776844 | CA14: 0.1800370398 | CB14: 0.1803971139 | CC14: 0.1807579081 | CD14: 0.1811194239 | CE14: 0.1814816628 | CF14: 0.1818446261 | CG14: 0.1822083153 | CH14: 0.182572732 | CI14: 0.1829378774 | CJ14: 0.1833037532 | CK14: 0.1836703607 | CL14: 0.1840377014 | CM14: 0.1844057768 | CN14: 0.1847745884 | CO14: 0.1851441375
B15: New Construction Residential Solar + Storage | M15: ='DATA (Real)'!M15:CO15/0.85 -> 0 | N15: 0.1609329338 | O15: 0.1611037515 | P15: 0.1612745693 | Q15: 0.1614453871 | R15: 0.1616162049 | S15: 0.1617870227 | T15: 0.1619578404 | U15: 0.1621286582 | V15: 0.162299476 | W15: 0.1624702938 | X15: 0.1626411115 | Y15: 0.1628119293 | Z15: 0.1629827471 | AA15: 0.1631535649 | AB15: 0.1633243827 | AC15: 0.1636055621 | AD15: 0.1638867416 | AE15: 0.164167921 | AF15: 0.1644491005 | AG15: 0.1647302799 | AH15: 0.1650114594 | AI15: 0.1652926388 | AJ15: 0.1655738183 | AK15: 0.1658549977 | AL15: 0.1661361772 | AM15: 0.1664173566 | AN15: 0.1666985361 | AO15: 0.1669797155 | AP15: 0.167260895 | AQ15: 0.1675420745 | AR15: 0.1678771586 | AS15: 0.1682129129 | AT15: 0.1685493387 | AU15: 0.1688864374 | AV15: 0.1692242103 | AW15: 0.1695626587 | AX15: 0.169901784 | AY15: 0.1702415876 | AZ15: 0.1705820708 | BA15: 0.1709232349 | BB15: 0.1712650814 | BC15: 0.1716076116 | BD15: 0.1719508268 | BE15: 0.1722947284 | BF15: 0.1726393179 | BG15: 0.1729845965 | BH15: 0.1733305657 | BI15: 0.1736772268 | BJ15: 0.1740245813 | BK15: 0.1743726305 | BL15: 0.1747213757 | BM15: 0.1750708185 | BN15: 0.1754209601 | BO15: 0.175771802 | BP15: 0.1761233456 | BQ15: 0.1764755923 | BR15: 0.1768285435 | BS15: 0.1771822006 | BT15: 0.177536565 | BU15: 0.1778916381 | BV15: 0.1782474214 | BW15: 0.1786039162 | BX15: 0.1789611241 | BY15: 0.1793190463 | BZ15: 0.1796776844 | CA15: 0.1800370398 | CB15: 0.1803971139 | CC15: 0.1807579081 | CD15: 0.1811194239 | CE15: 0.1814816628 | CF15: 0.1818446261 | CG15: 0.1822083153 | CH15: 0.182572732 | CI15: 0.1829378774 | CJ15: 0.1833037532 | CK15: 0.1836703607 | CL15: 0.1840377014 | CM15: 0.1844057768 | CN15: 0.1847745884 | CO15: 0.1851441375
B16: Residential Solar | M16: ='DATA (Real)'!M16:CO16/0.85 -> 0 | N16: 0.1609329338 | O16: 0.1611037515 | P16: 0.1612745693 | Q16: 0.1614453871 | R16: 0.1616162049 | S16: 0.1617870227 | T16: 0.1619578404 | U16: 0.1621286582 | V16: 0.162299476 | W16: 0.1624702938 | X16: 0.1626411115 | Y16: 0.1628119293 | Z16: 0.1629827471 | AA16: 0.1631535649 | AB16: 0.1633243827 | AC16: 0.1636055621 | AD16: 0.1638867416 | AE16: 0.164167921 | AF16: 0.1644491005 | AG16: 0.1647302799 | AH16: 0.1650114594 | AI16: 0.1652926388 | AJ16: 0.1655738183 | AK16: 0.1658549977 | AL16: 0.1661361772 | AM16: 0.1664173566 | AN16: 0.1666985361 | AO16: 0.1669797155 | AP16: 0.167260895 | AQ16: 0.1675420745 | AR16: 0.1678771586 | AS16: 0.1682129129 | AT16: 0.1685493387 | AU16: 0.1688864374 | AV16: 0.1692242103 | AW16: 0.1695626587 | AX16: 0.169901784 | AY16: 0.1702415876 | AZ16: 0.1705820708 | BA16: 0.1709232349 | BB16: 0.1712650814 | BC16: 0.1716076116 | BD16: 0.1719508268 | BE16: 0.1722947284 | BF16: 0.1726393179 | BG16: 0.1729845965 | BH16: 0.1733305657 | BI16: 0.1736772268 | BJ16: 0.1740245813 | BK16: 0.1743726305 | BL16: 0.1747213757 | BM16: 0.1750708185 | BN16: 0.1754209601 | BO16: 0.175771802 | BP16: 0.1761233456 | BQ16: 0.1764755923 | BR16: 0.1768285435 | BS16: 0.1771822006 | BT16: 0.177536565 | BU16: 0.1778916381 | BV16: 0.1782474214 | BW16: 0.1786039162 | BX16: 0.1789611241 | BY16: 0.1793190463 | BZ16: 0.1796776844 | CA16: 0.1800370398 | CB16: 0.1803971139 | CC16: 0.1807579081 | CD16: 0.1811194239 | CE16: 0.1814816628 | CF16: 0.1818446261 | CG16: 0.1822083153 | CH16: 0.182572732 | CI16: 0.1829378774 | CJ16: 0.1833037532 | CK16: 0.1836703607 | CL16: 0.1840377014 | CM16: 0.1844057768 | CN16: 0.1847745884 | CO16: 0.1851441375
B17: Residential Solar + Storage | M17: ='DATA (Real)'!M17:CO17/0.85 -> 0 | N17: 0.1609329338 | O17: 0.1611037515 | P17: 0.1612745693 | Q17: 0.1614453871 | R17: 0.1616162049 | S17: 0.1617870227 | T17: 0.1619578404 | U17: 0.1621286582 | V17: 0.162299476 | W17: 0.1624702938 | X17: 0.1626411115 | Y17: 0.1628119293 | Z17: 0.1629827471 | AA17: 0.1631535649 | AB17: 0.1633243827 | AC17: 0.1636055621 | AD17: 0.1638867416 | AE17: 0.164167921 | AF17: 0.1644491005 | AG17: 0.1647302799 | AH17: 0.1650114594 | AI17: 0.1652926388 | AJ17: 0.1655738183 | AK17: 0.1658549977 | AL17: 0.1661361772 | AM17: 0.1664173566 | AN17: 0.1666985361 | AO17: 0.1669797155 | AP17: 0.167260895 | AQ17: 0.1675420745 | AR17: 0.1678771586 | AS17: 0.1682129129 | AT17: 0.1685493387 | AU17: 0.1688864374 | AV17: 0.1692242103 | AW17: 0.1695626587 | AX17: 0.169901784 | AY17: 0.1702415876 | AZ17: 0.1705820708 | BA17: 0.1709232349 | BB17: 0.1712650814 | BC17: 0.1716076116 | BD17: 0.1719508268 | BE17: 0.1722947284 | BF17: 0.1726393179 | BG17: 0.1729845965 | BH17: 0.1733305657 | BI17: 0.1736772268 | BJ17: 0.1740245813 | BK17: 0.1743726305 | BL17: 0.1747213757 | BM17: 0.1750708185 | BN17: 0.1754209601 | BO17: 0.175771802 | BP17: 0.1761233456 | BQ17: 0.1764755923 | BR17: 0.1768285435 | BS17: 0.1771822006 | BT17: 0.177536565 | BU17: 0.1778916381 | BV17: 0.1782474214 | BW17: 0.1786039162 | BX17: 0.1789611241 | BY17: 0.1793190463 | BZ17: 0.1796776844 | CA17: 0.1800370398 | CB17: 0.1803971139 | CC17: 0.1807579081 | CD17: 0.1811194239 | CE17: 0.1814816628 | CF17: 0.1818446261 | CG17: 0.1822083153 | CH17: 0.182572732 | CI17: 0.1829378774 | CJ17: 0.1833037532 | CK17: 0.1836703607 | CL17: 0.1840377014 | CM17: 0.1844057768 | CN17: 0.1847745884 | CO17: 0.1851441375
B18: Commercial Solar | M18: ='DATA (Real)'!M18:CO18/0.85 -> 0 | N18: 0.1629902462 | O18: 0.1638152382 | P18: 0.1646402303 | Q18: 0.1654652224 | R18: 0.1662902145 | S18: 0.1671152066 | T18: 0.1679401987 | U18: 0.1687651908 | V18: 0.1695901828 | W18: 0.1704151749 | X18: 0.171240167 | Y18: 0.1720651591 | Z18: 0.1728901512 | AA18: 0.1737151433 | AB18: 0.1745401353 | AC18: 0.1751182723 | AD18: 0.1756964092 | AE18: 0.1762745461 | AF18: 0.176852683 | AG18: 0.1774308199 | AH18: 0.1780089569 | AI18: 0.1785870938 | AJ18: 0.1791652307 | AK18: 0.1797433676 | AL18: 0.1803215045 | AM18: 0.1808996415 | AN18: 0.1814777784 | AO18: 0.1820559153 | AP18: 0.1826340522 | AQ18: 0.1832121891 | AR18: 0.1835786135 | AS18: 0.1839457707 | AT18: 0.1843136623 | AU18: 0.1846822896 | AV18: 0.1850516542 | AW18: 0.1854217575 | AX18: 0.185792601 | AY18: 0.1861641862 | AZ18: 0.1865365146 | BA18: 0.1869095876 | BB18: 0.1872834068 | BC18: 0.1876579736 | BD18: 0.1880332895 | BE18: 0.1884093561 | BF18: 0.1887861748 | BG18: 0.1891637472 | BH18: 0.1895420747 | BI18: 0.1899211588 | BJ18: 0.1903010011 | BK18: 0.1906816032 | BL18: 0.1910629664 | BM18: 0.1914450923 | BN18: 0.1918279825 | BO18: 0.1922116384 | BP18: 0.1925960617 | BQ18: 0.1929812538 | BR18: 0.1933672163 | BS18: 0.1937539508 | BT18: 0.1941414587 | BU18: 0.1945297416 | BV18: 0.1949188011 | BW18: 0.1953086387 | BX18: 0.195699256 | BY18: 0.1960906545 | BZ18: 0.1964828358 | CA18: 0.1968758015 | CB18: 0.1972695531 | CC18: 0.1976640922 | CD18: 0.1980594203 | CE18: 0.1984555392 | CF18: 0.1988524503 | CG18: 0.1992501552 | CH18: 0.1996486555 | CI18: 0.2000479528 | CJ18: 0.2004480487 | CK18: 0.2008489448 | CL18: 0.2012506427 | CM18: 0.201653144 | CN18: 0.2020564503 | CO18: 0.2024605632
B19: Commercial Solar + Storage | M19: ='DATA (Real)'!M19:CO19/0.85 -> 0 | N19: 0.1629902462 | O19: 0.1638152382 | P19: 0.1646402303 | Q19: 0.1654652224 | R19: 0.1662902145 | S19: 0.1671152066 | T19: 0.1679401987 | U19: 0.1687651908 | V19: 0.1695901828 | W19: 0.1704151749 | X19: 0.171240167 | Y19: 0.1720651591 | Z19: 0.1728901512 | AA19: 0.1737151433 | AB19: 0.1745401353 | AC19: 0.1751182723 | AD19: 0.1756964092 | AE19: 0.1762745461 | AF19: 0.176852683 | AG19: 0.1774308199 | AH19: 0.1780089569 | AI19: 0.1785870938 | AJ19: 0.1791652307 | AK19: 0.1797433676 | AL19: 0.1803215045 | AM19: 0.1808996415 | AN19: 0.1814777784 | AO19: 0.1820559153 | AP19: 0.1826340522 | AQ19: 0.1832121891 | AR19: 0.1835786135 | AS19: 0.1839457707 | AT19: 0.1843136623 | AU19: 0.1846822896 | AV19: 0.1850516542 | AW19: 0.1854217575 | AX19: 0.185792601 | AY19: 0.1861641862 | AZ19: 0.1865365146 | BA19: 0.1869095876 | BB19: 0.1872834068 | BC19: 0.1876579736 | BD19: 0.1880332895 | BE19: 0.1884093561 | BF19: 0.1887861748 | BG19: 0.1891637472 | BH19: 0.1895420747 | BI19: 0.1899211588 | BJ19: 0.1903010011 | BK19: 0.1906816032 | BL19: 0.1910629664 | BM19: 0.1914450923 | BN19: 0.1918279825 | BO19: 0.1922116384 | BP19: 0.1925960617 | BQ19: 0.1929812538 | BR19: 0.1933672163 | BS19: 0.1937539508 | BT19: 0.1941414587 | BU19: 0.1945297416 | BV19: 0.1949188011 | BW19: 0.1953086387 | BX19: 0.195699256 | BY19: 0.1960906545 | BZ19: 0.1964828358 | CA19: 0.1968758015 | CB19: 0.1972695531 | CC19: 0.1976640922 | CD19: 0.1980594203 | CE19: 0.1984555392 | CF19: 0.1988524503 | CG19: 0.1992501552 | CH19: 0.1996486555 | CI19: 0.2000479528 | CJ19: 0.2004480487 | CK19: 0.2008489448 | CL19: 0.2012506427 | CM19: 0.201653144 | CN19: 0.2020564503 | CO19: 0.2024605632
B20: Low-Income Community Solar | M20: ='DATA (Real)'!M20:CO20 -> 0 | N20: 0.2982226381 | O20: 0.2995331438 | P20: 0.3008436496 | Q20: 0.3021541554 | R20: 0.3034646611 | S20: 0.3047751669 | T20: 0.3060856727 | U20: 0.3073961784 | V20: 0.3087066842 | W20: 0.31001719 | X20: 0.3113276957 | Y20: 0.3126382015 | Z20: 0.3139487073 | AA20: 0.315259213 | AB20: 0.3165697188 | AC20: 0.3170376576 | AD20: 0.3175055964 | AE20: 0.3179735352 | AF20: 0.318441474 | AG20: 0.3189094128 | AH20: 0.3193773516 | AI20: 0.3198452904 | AJ20: 0.3203132292 | AK20: 0.320781168 | AL20: 0.3212491068 | AM20: 0.3217170456 | AN20: 0.3221849844 | AO20: 0.3226529232 | AP20: 0.323120862 | AQ20: 0.3235888008 | AR20: 0.3392035239 | AS20: 0.339881931 | AT20: 0.3405616948 | AU20: 0.3412428182 | AV20: 0.3419253039 | AW20: 0.3426091545 | AX20: 0.3432943728 | AY20: 0.3439809615 | AZ20: 0.3446689235 | BA20: 0.3453582613 | BB20: 0.3460489778 | BC20: 0.3467410758 | BD20: 0.3474345579 | BE20: 0.3481294271 | BF20: 0.3488256859 | BG20: 0.3495233373 | BH20: 0.350222384 | BI20: 0.3509228287 | BJ20: 0.3516246744 | BK20: 0.3523279237 | BL20: 0.3530325796 | BM20: 0.3537386447 | BN20: 0.354446122 | BO20: 0.3551550143 | BP20: 0.3558653243 | BQ20: 0.3565770549 | BR20: 0.3572902091 | BS20: 0.3580047895 | BT20: 0.358720799 | BU20: 0.3594382406 | BV20: 0.3601571171 | BW20: 0.3608774314 | BX20: 0.3615991862 | BY20: 0.3623223846 | BZ20: 0.3630470294 | CA20: 0.3637731234 | CB20: 0.3645006697 | CC20: 0.365229671 | CD20: 0.3659601304 | CE20: 0.3666920506 | CF20: 0.3674254347 | CG20: 0.3681602856 | CH20: 0.3688966062 | CI20: 0.3696343994 | CJ20: 0.3703736682 | CK20: 0.3711144155 | CL20: 0.3718566443 | CM20: 0.3726003576 | CN20: 0.3733455583 | CO20: 0.3740922495
B21: Solar Photovoltaic Fixed Array (5 MW AC) | M21: ='DATA (Real)'!M21:CO21 -> 0 | N21: 0.2982226381 | O21: 0.2995331438 | P21: 0.3008436496 | Q21: 0.3021541554 | R21: 0.3034646611 | S21: 0.3047751669 | T21: 0.3060856727 | U21: 0.3073961784 | V21: 0.3087066842 | W21: 0.31001719 | X21: 0.3113276957 | Y21: 0.3126382015 | Z21: 0.3139487073 | AA21: 0.315259213 | AB21: 0.3165697188 | AC21: 0.3170376576 | AD21: 0.3175055964 | AE21: 0.3179735352 | AF21: 0.318441474 | AG21: 0.3189094128 | AH21: 0.3193773516 | AI21: 0.3198452904 | AJ21: 0.3203132292 | AK21: 0.320781168 | AL21: 0.3212491068 | AM21: 0.3217170456 | AN21: 0.3221849844 | AO21: 0.3226529232 | AP21: 0.323120862 | AQ21: 0.3235888008 | AR21: 0.3392035239 | AS21: 0.339881931 | AT21: 0.3405616948 | AU21: 0.3412428182 | AV21: 0.3419253039 | AW21: 0.3426091545 | AX21: 0.3432943728 | AY21: 0.3439809615 | AZ21: 0.3446689235 | BA21: 0.3453582613 | BB21: 0.3460489778 | BC21: 0.3467410758 | BD21: 0.3474345579 | BE21: 0.3481294271 | BF21: 0.3488256859 | BG21: 0.3495233373 | BH21: 0.350222384 | BI21: 0.3509228287 | BJ21: 0.3516246744 | BK21: 0.3523279237 | BL21: 0.3530325796 | BM21: 0.3537386447 | BN21: 0.354446122 | BO21: 0.3551550143 | BP21: 0.3558653243 | BQ21: 0.3565770549 | BR21: 0.3572902091 | BS21: 0.3580047895 | BT21: 0.358720799 | BU21: 0.3594382406 | BV21: 0.3601571171 | BW21: 0.3608774314 | BX21: 0.3615991862 | BY21: 0.3623223846 | BZ21: 0.3630470294 | CA21: 0.3637731234 | CB21: 0.3645006697 | CC21: 0.365229671 | CD21: 0.3659601304 | CE21: 0.3666920506 | CF21: 0.3674254347 | CG21: 0.3681602856 | CH21: 0.3688966062 | CI21: 0.3696343994 | CJ21: 0.3703736682 | CK21: 0.3711144155 | CL21: 0.3718566443 | CM21: 0.3726003576 | CN21: 0.3733455583 | CO21: 0.3740922495
B22: Solar Photovoltaic Fixed Array (5 MW AC) + Storage | M22: ='DATA (Real)'!M22:CO22 -> 0 | N22: 0.2982226381 | O22: 0.2995331438 | P22: 0.3008436496 | Q22: 0.3021541554 | R22: 0.3034646611 | S22: 0.3047751669 | T22: 0.3060856727 | U22: 0.3073961784 | V22: 0.3087066842 | W22: 0.31001719 | X22: 0.3113276957 | Y22: 0.3126382015 | Z22: 0.3139487073 | AA22: 0.315259213 | AB22: 0.3165697188 | AC22: 0.3170376576 | AD22: 0.3175055964 | AE22: 0.3179735352 | AF22: 0.318441474 | AG22: 0.3189094128 | AH22: 0.3193773516 | AI22: 0.3198452904 | AJ22: 0.3203132292 | AK22: 0.320781168 | AL22: 0.3212491068 | AM22: 0.3217170456 | AN22: 0.3221849844 | AO22: 0.3226529232 | AP22: 0.323120862 | AQ22: 0.3235888008 | AR22: 0.3392035239 | AS22: 0.339881931 | AT22: 0.3405616948 | AU22: 0.3412428182 | AV22: 0.3419253039 | AW22: 0.3426091545 | AX22: 0.3432943728 | AY22: 0.3439809615 | AZ22: 0.3446689235 | BA22: 0.3453582613 | BB22: 0.3460489778 | BC22: 0.3467410758 | BD22: 0.3474345579 | BE22: 0.3481294271 | BF22: 0.3488256859 | BG22: 0.3495233373 | BH22: 0.350222384 | BI22: 0.3509228287 | BJ22: 0.3516246744 | BK22: 0.3523279237 | BL22: 0.3530325796 | BM22: 0.3537386447 | BN22: 0.354446122 | BO22: 0.3551550143 | BP22: 0.3558653243 | BQ22: 0.3565770549 | BR22: 0.3572902091 | BS22: 0.3580047895 | BT22: 0.358720799 | BU22: 0.3594382406 | BV22: 0.3601571171 | BW22: 0.3608774314 | BX22: 0.3615991862 | BY22: 0.3623223846 | BZ22: 0.3630470294 | CA22: 0.3637731234 | CB22: 0.3645006697 | CC22: 0.365229671 | CD22: 0.3659601304 | CE22: 0.3666920506 | CF22: 0.3674254347 | CG22: 0.3681602856 | CH22: 0.3688966062 | CI22: 0.3696343994 | CJ22: 0.3703736682 | CK22: 0.3711144155 | CL22: 0.3718566443 | CM22: 0.3726003576 | CN22: 0.3733455583 | CO22: 0.3740922495
B23: Solar Photovoltaic w/Single Axis Tracking (100 MW AC) | M23: ='DATA (Real)'!M23:CO23 -> 0 | N23: 0.2982226381 | O23: 0.2995331438 | P23: 0.3008436496 | Q23: 0.3021541554 | R23: 0.3034646611 | S23: 0.3047751669 | T23: 0.3097734796 | U23: 0.3148537647 | V23: 0.3200173664 | W23: 0.3252656513 | X23: 0.3259161826 | Y23: 0.3265680149 | Z23: 0.3272211509 | AA23: 0.3278755932 | AB23: 0.3285313444 | AC23: 0.3291884071 | AD23: 0.3298467839 | AE23: 0.3305064775 | AF23: 0.3311674905 | AG23: 0.3318298254 | AH23: 0.3324934851 | AI23: 0.3331584721 | AJ23: 0.333824789 | AK23: 0.3344924386 | AL23: 0.3351614235 | AM23: 0.3358317463 | AN23: 0.3365034098 | AO23: 0.3371764166 | AP23: 0.3378507695 | AQ23: 0.338526471 | AR23: 0.3392035239 | AS23: 0.339881931 | AT23: 0.3405616948 | AU23: 0.3412428182 | AV23: 0.3419253039 | AW23: 0.3426091545 | AX23: 0.3432943728 | AY23: 0.3439809615 | AZ23: 0.3446689235 | BA23: 0.3453582613 | BB23: 0.3460489778 | BC23: 0.3467410758 | BD23: 0.3474345579 | BE23: 0.3481294271 | BF23: 0.3488256859 | BG23: 0.3495233373 | BH23: 0.350222384 | BI23: 0.3509228287 | BJ23: 0.3516246744 | BK23: 0.3523279237 | BL23: 0.3530325796 | BM23: 0.3537386447 | BN23: 0.354446122 | BO23: 0.3551550143 | BP23: 0.3558653243 | BQ23: 0.3565770549 | BR23: 0.3572902091 | BS23: 0.3580047895 | BT23: 0.358720799 | BU23: 0.3594382406 | BV23: 0.3601571171 | BW23: 0.3608774314 | BX23: 0.3615991862 | BY23: 0.3623223846 | BZ23: 0.3630470294 | CA23: 0.3637731234 | CB23: 0.3645006697 | CC23: 0.365229671 | CD23: 0.3659601304 | CE23: 0.3666920506 | CF23: 0.3674254347 | CG23: 0.3681602856 | CH23: 0.3688966062 | CI23: 0.3696343994 | CJ23: 0.3703736682 | CK23: 0.3711144155 | CL23: 0.3718566443 | CM23: 0.3726003576 | CN23: 0.3733455583 | CO23: 0.3740922495
B24: Southern NW Solar Photovoltaic w/ Single Axis Tracking (100 MW AC) | M24: ='DATA (Real)'!M24:CO24 -> 0 | N24: 0.313238138 | O24: 0.314535182 | P24: 0.3158322261 | Q24: 0.3171292701 | R24: 0.3184263142 | S24: 0.3197233582 | T24: 0.3249668213 | U24: 0.3302962771 | V24: 0.3357131361 | W24: 0.3412188315 | X24: 0.3419012692 | Y24: 0.3425850717 | Z24: 0.3432702419 | AA24: 0.3439567824 | AB24: 0.3446446959 | AC24: 0.3453339853 | AD24: 0.3460246533 | AE24: 0.3467167026 | AF24: 0.347410136 | AG24: 0.3481049563 | AH24: 0.3488011662 | AI24: 0.3494987685 | AJ24: 0.350197766 | AK24: 0.3508981616 | AL24: 0.3515999579 | AM24: 0.3523031578 | AN24: 0.3530077641 | AO24: 0.3537137797 | AP24: 0.3544212072 | AQ24: 0.3551300496 | AR24: 0.3558403097 | AS24: 0.3565519904 | AT24: 0.3572650943 | AU24: 0.3579796245 | AV24: 0.3586955838 | AW24: 0.3594129749 | AX24: 0.3601318009 | AY24: 0.3608520645 | AZ24: 0.3615737686 | BA24: 0.3622969162 | BB24: 0.36302151 | BC24: 0.363747553 | BD24: 0.3644750481 | BE24: 0.3652039982 | BF24: 0.3659344062 | BG24: 0.366666275 | BH24: 0.3673996076 | BI24: 0.3681344068 | BJ24: 0.3688706756 | BK24: 0.369608417 | BL24: 0.3703476338 | BM24: 0.3710883291 | BN24: 0.3718305057 | BO24: 0.3725741667 | BP24: 0.3733193151 | BQ24: 0.3740659537 | BR24: 0.3748140856 | BS24: 0.3755637138 | BT24: 0.3763148412 | BU24: 0.3770674709 | BV24: 0.3778216058 | BW24: 0.378577249 | BX24: 0.3793344035 | BY24: 0.3800930723 | BZ24: 0.3808532585 | CA24: 0.381614965 | CB24: 0.3823781949 | CC24: 0.3831429513 | CD24: 0.3839092372 | CE24: 0.3846770557 | CF24: 0.3854464098 | CG24: 0.3862173026 | CH24: 0.3869897372 | CI24: 0.3877637167 | CJ24: 0.3885392441 | CK24: 0.3893163226 | CL24: 0.3900949553 | CM24: 0.3908751452 | CN24: 0.3916568955 | CO24: 0.3924402093
B25: 100 MW/400 MWh Lithium-ion w/100 MW Solar | M25: ='DATA (Real)'!M25:CO25 -> 0 | N25: 0.2982226381 | O25: 0.2995331438 | P25: 0.3008436496 | Q25: 0.3021541554 | R25: 0.3034646611 | S25: 0.3047751669 | T25: 0.3097734796 | U25: 0.3148537647 | V25: 0.3200173664 | W25: 0.3252656513 | X25: 0.3259161826 | Y25: 0.3265680149 | Z25: 0.3272211509 | AA25: 0.3278755932 | AB25: 0.3285313444 | AC25: 0.3291884071 | AD25: 0.3298467839 | AE25: 0.3305064775 | AF25: 0.3311674905 | AG25: 0.3318298254 | AH25: 0.3324934851 | AI25: 0.3331584721 | AJ25: 0.333824789 | AK25: 0.3344924386 | AL25: 0.3351614235 | AM25: 0.3358317463 | AN25: 0.3365034098 | AO25: 0.3371764166 | AP25: 0.3378507695 | AQ25: 0.338526471 | AR25: 0.3392035239 | AS25: 0.339881931 | AT25: 0.3405616948 | AU25: 0.3412428182 | AV25: 0.3419253039 | AW25: 0.3426091545 | AX25: 0.3432943728 | AY25: 0.3439809615 | AZ25: 0.3446689235 | BA25: 0.3453582613 | BB25: 0.3460489778 | BC25: 0.3467410758 | BD25: 0.3474345579 | BE25: 0.3481294271 | BF25: 0.3488256859 | BG25: 0.3495233373 | BH25: 0.350222384 | BI25: 0.3509228287 | BJ25: 0.3516246744 | BK25: 0.3523279237 | BL25: 0.3530325796 | BM25: 0.3537386447 | BN25: 0.354446122 | BO25: 0.3551550143 | BP25: 0.3558653243 | BQ25: 0.3565770549 | BR25: 0.3572902091 | BS25: 0.3580047895 | BT25: 0.358720799 | BU25: 0.3594382406 | BV25: 0.3601571171 | BW25: 0.3608774314 | BX25: 0.3615991862 | BY25: 0.3623223846 | BZ25: 0.3630470294 | CA25: 0.3637731234 | CB25: 0.3645006697 | CC25: 0.365229671 | CD25: 0.3659601304 | CE25: 0.3666920506 | CF25: 0.3674254347 | CG25: 0.3681602856 | CH25: 0.3688966062 | CI25: 0.3696343994 | CJ25: 0.3703736682 | CK25: 0.3711144155 | CL25: 0.3718566443 | CM25: 0.3726003576 | CN25: 0.3733455583 | CO25: 0.3740922495
B26: 100 MW/200 MWh Lithium-ion w/100 MW Solar | M26: ='DATA (Real)'!M26:CO26 -> 0 | N26: 0.2982226381 | O26: 0.2995331438 | P26: 0.3008436496 | Q26: 0.3021541554 | R26: 0.3034646611 | S26: 0.3047751669 | T26: 0.3097734796 | U26: 0.3148537647 | V26: 0.3200173664 | W26: 0.3252656513 | X26: 0.3259161826 | Y26: 0.3265680149 | Z26: 0.3272211509 | AA26: 0.3278755932 | AB26: 0.3285313444 | AC26: 0.3291884071 | AD26: 0.3298467839 | AE26: 0.3305064775 | AF26: 0.3311674905 | AG26: 0.3318298254 | AH26: 0.3324934851 | AI26: 0.3331584721 | AJ26: 0.333824789 | AK26: 0.3344924386 | AL26: 0.3351614235 | AM26: 0.3358317463 | AN26: 0.3365034098 | AO26: 0.3371764166 | AP26: 0.3378507695 | AQ26: 0.338526471 | AR26: 0.3392035239 | AS26: 0.339881931 | AT26: 0.3405616948 | AU26: 0.3412428182 | AV26: 0.3419253039 | AW26: 0.3426091545 | AX26: 0.3432943728 | AY26: 0.3439809615 | AZ26: 0.3446689235 | BA26: 0.3453582613 | BB26: 0.3460489778 | BC26: 0.3467410758 | BD26: 0.3474345579 | BE26: 0.3481294271 | BF26: 0.3488256859 | BG26: 0.3495233373 | BH26: 0.350222384 | BI26: 0.3509228287 | BJ26: 0.3516246744 | BK26: 0.3523279237 | BL26: 0.3530325796 | BM26: 0.3537386447 | BN26: 0.354446122 | BO26: 0.3551550143 | BP26: 0.3558653243 | BQ26: 0.3565770549 | BR26: 0.3572902091 | BS26: 0.3580047895 | BT26: 0.358720799 | BU26: 0.3594382406 | BV26: 0.3601571171 | BW26: 0.3608774314 | BX26: 0.3615991862 | BY26: 0.3623223846 | BZ26: 0.3630470294 | CA26: 0.3637731234 | CB26: 0.3645006697 | CC26: 0.365229671 | CD26: 0.3659601304 | CE26: 0.3666920506 | CF26: 0.3674254347 | CG26: 0.3681602856 | CH26: 0.3688966062 | CI26: 0.3696343994 | CJ26: 0.3703736682 | CK26: 0.3711144155 | CL26: 0.3718566443 | CM26: 0.3726003576 | CN26: 0.3733455583 | CO26: 0.3740922495
B27: 50 MW/200 MWh Lithium-ion w/100 MW Solar | M27: ='DATA (Real)'!M27:CO27 -> 0 | N27: 0.2982226381 | O27: 0.2995331438 | P27: 0.3008436496 | Q27: 0.3021541554 | R27: 0.3034646611 | S27: 0.3047751669 | T27: 0.3097734796 | U27: 0.3148537647 | V27: 0.3200173664 | W27: 0.3252656513 | X27: 0.3259161826 | Y27: 0.3265680149 | Z27: 0.3272211509 | AA27: 0.3278755932 | AB27: 0.3285313444 | AC27: 0.3291884071 | AD27: 0.3298467839 | AE27: 0.3305064775 | AF27: 0.3311674905 | AG27: 0.3318298254 | AH27: 0.3324934851 | AI27: 0.3331584721 | AJ27: 0.333824789 | AK27: 0.3344924386 | AL27: 0.3351614235 | AM27: 0.3358317463 | AN27: 0.3365034098 | AO27: 0.3371764166 | AP27: 0.3378507695 | AQ27: 0.338526471 | AR27: 0.3392035239 | AS27: 0.339881931 | AT27: 0.3405616948 | AU27: 0.3412428182 | AV27: 0.3419253039 | AW27: 0.3426091545 | AX27: 0.3432943728 | AY27: 0.3439809615 | AZ27: 0.3446689235 | BA27: 0.3453582613 | BB27: 0.3460489778 | BC27: 0.3467410758 | BD27: 0.3474345579 | BE27: 0.3481294271 | BF27: 0.3488256859 | BG27: 0.3495233373 | BH27: 0.350222384 | BI27: 0.3509228287 | BJ27: 0.3516246744 | BK27: 0.3523279237 | BL27: 0.3530325796 | BM27: 0.3537386447 | BN27: 0.354446122 | BO27: 0.3551550143 | BP27: 0.3558653243 | BQ27: 0.3565770549 | BR27: 0.3572902091 | BS27: 0.3580047895 | BT27: 0.358720799 | BU27: 0.3594382406 | BV27: 0.3601571171 | BW27: 0.3608774314 | BX27: 0.3615991862 | BY27: 0.3623223846 | BZ27: 0.3630470294 | CA27: 0.3637731234 | CB27: 0.3645006697 | CC27: 0.365229671 | CD27: 0.3659601304 | CE27: 0.3666920506 | CF27: 0.3674254347 | CG27: 0.3681602856 | CH27: 0.3688966062 | CI27: 0.3696343994 | CJ27: 0.3703736682 | CK27: 0.3711144155 | CL27: 0.3718566443 | CM27: 0.3726003576 | CN27: 0.3733455583 | CO27: 0.3740922495
B28: Distribution Scale 4hr Lithium-ion | M28: ='DATA (Real)'!M28:CO28 -> 0 | N28: 0 | O28: 0 | P28: 0 | Q28: 0 | R28: 0 | S28: 0 | T28: 0 | U28: 0 | V28: 0 | W28: 0 | X28: 0 | Y28: 0 | Z28: 0 | AA28: 0 | AB28: 0 | AC28: 0 | AD28: 0 | AE28: 0 | AF28: 0 | AG28: 0 | AH28: 0 | AI28: 0 | AJ28: 0 | AK28: 0 | AL28: 0 | AM28: 0 | AN28: 0 | AO28: 0 | AP28: 0 | AQ28: 0 | AR28: 0 | AS28: 0 | AT28: 0 | AU28: 0 | AV28: 0 | AW28: 0 | AX28: 0 | AY28: 0 | AZ28: 0 | BA28: 0 | BB28: 0 | BC28: 0 | BD28: 0 | BE28: 0 | BF28: 0 | BG28: 0 | BH28: 0 | BI28: 0 | BJ28: 0 | BK28: 0 | BL28: 0 | BM28: 0 | BN28: 0 | BO28: 0 | BP28: 0 | BQ28: 0 | BR28: 0 | BS28: 0 | BT28: 0 | BU28: 0 | BV28: 0 | BW28: 0 | BX28: 0 | BY28: 0 | BZ28: 0 | CA28: 0 | CB28: 0 | CC28: 0 | CD28: 0 | CE28: 0 | CF28: 0 | CG28: 0 | CH28: 0 | CI28: 0 | CJ28: 0 | CK28: 0 | CL28: 0 | CM28: 0 | CN28: 0 | CO28: 0
B29: Distribution Scale 8hr Lithium-ion | M29: ='DATA (Real)'!M29:CO29 -> 0 | N29: 0 | O29: 0 | P29: 0 | Q29: 0 | R29: 0 | S29: 0 | T29: 0 | U29: 0 | V29: 0 | W29: 0 | X29: 0 | Y29: 0 | Z29: 0 | AA29: 0 | AB29: 0 | AC29: 0 | AD29: 0 | AE29: 0 | AF29: 0 | AG29: 0 | AH29: 0 | AI29: 0 | AJ29: 0 | AK29: 0 | AL29: 0 | AM29: 0 | AN29: 0 | AO29: 0 | AP29: 0 | AQ29: 0 | AR29: 0 | AS29: 0 | AT29: 0 | AU29: 0 | AV29: 0 | AW29: 0 | AX29: 0 | AY29: 0 | AZ29: 0 | BA29: 0 | BB29: 0 | BC29: 0 | BD29: 0 | BE29: 0 | BF29: 0 | BG29: 0 | BH29: 0 | BI29: 0 | BJ29: 0 | BK29: 0 | BL29: 0 | BM29: 0 | BN29: 0 | BO29: 0 | BP29: 0 | BQ29: 0 | BR29: 0 | BS29: 0 | BT29: 0 | BU29: 0 | BV29: 0 | BW29: 0 | BX29: 0 | BY29: 0 | BZ29: 0 | CA29: 0 | CB29: 0 | CC29: 0 | CD29: 0 | CE29: 0 | CF29: 0 | CG29: 0 | CH29: 0 | CI29: 0 | CJ29: 0 | CK29: 0 | CL29: 0 | CM29: 0 | CN29: 0 | CO29: 0
B30: 4hr Lithium-ion | M30: ='DATA (Real)'!M30:CO30 -> 0 | N30: 0 | O30: 0 | P30: 0 | Q30: 0 | R30: 0 | S30: 0 | T30: 0 | U30: 0 | V30: 0 | W30: 0 | X30: 0 | Y30: 0 | Z30: 0 | AA30: 0 | AB30: 0 | AC30: 0 | AD30: 0 | AE30: 0 | AF30: 0 | AG30: 0 | AH30: 0 | AI30: 0 | AJ30: 0 | AK30: 0 | AL30: 0 | AM30: 0 | AN30: 0 | AO30: 0 | AP30: 0 | AQ30: 0 | AR30: 0 | AS30: 0 | AT30: 0 | AU30: 0 | AV30: 0 | AW30: 0 | AX30: 0 | AY30: 0 | AZ30: 0 | BA30: 0 | BB30: 0 | BC30: 0 | BD30: 0 | BE30: 0 | BF30: 0 | BG30: 0 | BH30: 0 | BI30: 0 | BJ30: 0 | BK30: 0 | BL30: 0 | BM30: 0 | BN30: 0 | BO30: 0 | BP30: 0 | BQ30: 0 | BR30: 0 | BS30: 0 | BT30: 0 | BU30: 0 | BV30: 0 | BW30: 0 | BX30: 0 | BY30: 0 | BZ30: 0 | CA30: 0 | CB30: 0 | CC30: 0 | CD30: 0 | CE30: 0 | CF30: 0 | CG30: 0 | CH30: 0 | CI30: 0 | CJ30: 0 | CK30: 0 | CL30: 0 | CM30: 0 | CN30: 0 | CO30: 0
B31: 8hr Lithium-ion | M31: ='DATA (Real)'!M31:CO31 -> 0 | N31: 0 | O31: 0 | P31: 0 | Q31: 0 | R31: 0 | S31: 0 | T31: 0 | U31: 0 | V31: 0 | W31: 0 | X31: 0 | Y31: 0 | Z31: 0 | AA31: 0 | AB31: 0 | AC31: 0 | AD31: 0 | AE31: 0 | AF31: 0 | AG31: 0 | AH31: 0 | AI31: 0 | AJ31: 0 | AK31: 0 | AL31: 0 | AM31: 0 | AN31: 0 | AO31: 0 | AP31: 0 | AQ31: 0 | AR31: 0 | AS31: 0 | AT31: 0 | AU31: 0 | AV31: 0 | AW31: 0 | AX31: 0 | AY31: 0 | AZ31: 0 | BA31: 0 | BB31: 0 | BC31: 0 | BD31: 0 | BE31: 0 | BF31: 0 | BG31: 0 | BH31: 0 | BI31: 0 | BJ31: 0 | BK31: 0 | BL31: 0 | BM31: 0 | BN31: 0 | BO31: 0 | BP31: 0 | BQ31: 0 | BR31: 0 | BS31: 0 | BT31: 0 | BU31: 0 | BV31: 0 | BW31: 0 | BX31: 0 | BY31: 0 | BZ31: 0 | CA31: 0 | CB31: 0 | CC31: 0 | CD31: 0 | CE31: 0 | CF31: 0 | CG31: 0 | CH31: 0 | CI31: 0 | CJ31: 0 | CK31: 0 | CL31: 0 | CM31: 0 | CN31: 0 | CO31: 0
B32: 16hr Lithium-ion | M32: ='DATA (Real)'!M32:CO32 -> 0 | N32: 0 | O32: 0 | P32: 0 | Q32: 0 | R32: 0 | S32: 0 | T32: 0 | U32: 0 | V32: 0 | W32: 0 | X32: 0 | Y32: 0 | Z32: 0 | AA32: 0 | AB32: 0 | AC32: 0 | AD32: 0 | AE32: 0 | AF32: 0 | AG32: 0 | AH32: 0 | AI32: 0 | AJ32: 0 | AK32: 0 | AL32: 0 | AM32: 0 | AN32: 0 | AO32: 0 | AP32: 0 | AQ32: 0 | AR32: 0 | AS32: 0 | AT32: 0 | AU32: 0 | AV32: 0 | AW32: 0 | AX32: 0 | AY32: 0 | AZ32: 0 | BA32: 0 | BB32: 0 | BC32: 0 | BD32: 0 | BE32: 0 | BF32: 0 | BG32: 0 | BH32: 0 | BI32: 0 | BJ32: 0 | BK32: 0 | BL32: 0 | BM32: 0 | BN32: 0 | BO32: 0 | BP32: 0 | BQ32: 0 | BR32: 0 | BS32: 0 | BT32: 0 | BU32: 0 | BV32: 0 | BW32: 0 | BX32: 0 | BY32: 0 | BZ32: 0 | CA32: 0 | CB32: 0 | CC32: 0 | CD32: 0 | CE32: 0 | CF32: 0 | CG32: 0 | CH32: 0 | CI32: 0 | CJ32: 0 | CK32: 0 | CL32: 0 | CM32: 0 | CN32: 0 | CO32: 0
B33: 4 hr Flow Battery | M33: ='DATA (Real)'!M33:CO33 -> 0 | N33: 0 | O33: 0 | P33: 0 | Q33: 0 | R33: 0 | S33: 0 | T33: 0 | U33: 0 | V33: 0 | W33: 0 | X33: 0 | Y33: 0 | Z33: 0 | AA33: 0 | AB33: 0 | AC33: 0 | AD33: 0 | AE33: 0 | AF33: 0 | AG33: 0 | AH33: 0 | AI33: 0 | AJ33: 0 | AK33: 0 | AL33: 0 | AM33: 0 | AN33: 0 | AO33: 0 | AP33: 0 | AQ33: 0 | AR33: 0 | AS33: 0 | AT33: 0 | AU33: 0 | AV33: 0 | AW33: 0 | AX33: 0 | AY33: 0 | AZ33: 0 | BA33: 0 | BB33: 0 | BC33: 0 | BD33: 0 | BE33: 0 | BF33: 0 | BG33: 0 | BH33: 0 | BI33: 0 | BJ33: 0 | BK33: 0 | BL33: 0 | BM33: 0 | BN33: 0 | BO33: 0 | BP33: 0 | BQ33: 0 | BR33: 0 | BS33: 0 | BT33: 0 | BU33: 0 | BV33: 0 | BW33: 0 | BX33: 0 | BY33: 0 | BZ33: 0 | CA33: 0 | CB33: 0 | CC33: 0 | CD33: 0 | CE33: 0 | CF33: 0 | CG33: 0 | CH33: 0 | CI33: 0 | CJ33: 0 | CK33: 0 | CL33: 0 | CM33: 0 | CN33: 0 | CO33: 0
B34: 8 hr Flow Battery | M34: ='DATA (Real)'!M34:CO34 -> 0 | N34: 0 | O34: 0 | P34: 0 | Q34: 0 | R34: 0 | S34: 0 | T34: 0 | U34: 0 | V34: 0 | W34: 0 | X34: 0 | Y34: 0 | Z34: 0 | AA34: 0 | AB34: 0 | AC34: 0 | AD34: 0 | AE34: 0 | AF34: 0 | AG34: 0 | AH34: 0 | AI34: 0 | AJ34: 0 | AK34: 0 | AL34: 0 | AM34: 0 | AN34: 0 | AO34: 0 | AP34: 0 | AQ34: 0 | AR34: 0 | AS34: 0 | AT34: 0 | AU34: 0 | AV34: 0 | AW34: 0 | AX34: 0 | AY34: 0 | AZ34: 0 | BA34: 0 | BB34: 0 | BC34: 0 | BD34: 0 | BE34: 0 | BF34: 0 | BG34: 0 | BH34: 0 | BI34: 0 | BJ34: 0 | BK34: 0 | BL34: 0 | BM34: 0 | BN34: 0 | BO34: 0 | BP34: 0 | BQ34: 0 | BR34: 0 | BS34: 0 | BT34: 0 | BU34: 0 | BV34: 0 | BW34: 0 | BX34: 0 | BY34: 0 | BZ34: 0 | CA34: 0 | CB34: 0 | CC34: 0 | CD34: 0 | CE34: 0 | CF34: 0 | CG34: 0 | CH34: 0 | CI34: 0 | CJ34: 0 | CK34: 0 | CL34: 0 | CM34: 0 | CN34: 0 | CO34: 0
B35: 100hr Iron Oxide | M35: ='DATA (Real)'!M35:CO35 -> 0 | N35: 0 | O35: 0 | P35: 0 | Q35: 0 | R35: 0 | S35: 0 | T35: 0 | U35: 0 | V35: 0 | W35: 0 | X35: 0 | Y35: 0 | Z35: 0 | AA35: 0 | AB35: 0 | AC35: 0 | AD35: 0 | AE35: 0 | AF35: 0 | AG35: 0 | AH35: 0 | AI35: 0 | AJ35: 0 | AK35: 0 | AL35: 0 | AM35: 0 | AN35: 0 | AO35: 0 | AP35: 0 | AQ35: 0 | AR35: 0 | AS35: 0 | AT35: 0 | AU35: 0 | AV35: 0 | AW35: 0 | AX35: 0 | AY35: 0 | AZ35: 0 | BA35: 0 | BB35: 0 | BC35: 0 | BD35: 0 | BE35: 0 | BF35: 0 | BG35: 0 | BH35: 0 | BI35: 0 | BJ35: 0 | BK35: 0 | BL35: 0 | BM35: 0 | BN35: 0 | BO35: 0 | BP35: 0 | BQ35: 0 | BR35: 0 | BS35: 0 | BT35: 0 | BU35: 0 | BV35: 0 | BW35: 0 | BX35: 0 | BY35: 0 | BZ35: 0 | CA35: 0 | CB35: 0 | CC35: 0 | CD35: 0 | CE35: 0 | CF35: 0 | CG35: 0 | CH35: 0 | CI35: 0 | CJ35: 0 | CK35: 0 | CL35: 0 | CM35: 0 | CN35: 0 | CO35: 0
B36: Geothermal (Off System) | M36: ='DATA (Real)'!M36:CO36 -> 0 | N36: 0.9 | O36: 0.9 | P36: 0.9 | Q36: 0.9 | R36: 0.9 | S36: 0.9 | T36: 0.9 | U36: 0.9 | V36: 0.9 | W36: 0.9 | X36: 0.9 | Y36: 0.9 | Z36: 0.9 | AA36: 0.9 | AB36: 0.9 | AC36: 0.9 | AD36: 0.9 | AE36: 0.9 | AF36: 0.9 | AG36: 0.9 | AH36: 0.9 | AI36: 0.9 | AJ36: 0.9 | AK36: 0.9 | AL36: 0.9 | AM36: 0.9 | AN36: 0.9 | AO36: 0.9 | AP36: 0.9 | AQ36: 0.9 | AR36: 0.9 | AS36: 0.9 | AT36: 0.9 | AU36: 0.9 | AV36: 0.9 | AW36: 0.9 | AX36: 0.9 | AY36: 0.9 | AZ36: 0.9 | BA36: 0.9 | BB36: 0.9 | BC36: 0.9 | BD36: 0.9 | BE36: 0.9 | BF36: 0.9 | BG36: 0.9 | BH36: 0.9 | BI36: 0.9 | BJ36: 0.9 | BK36: 0.9 | BL36: 0.9 | BM36: 0.9 | BN36: 0.9 | BO36: 0.9 | BP36: 0.9 | BQ36: 0.9 | BR36: 0.9 | BS36: 0.9 | BT36: 0.9 | BU36: 0.9 | BV36: 0.9 | BW36: 0.9 | BX36: 0.9 | BY36: 0.9 | BZ36: 0.9 | CA36: 0.9 | CB36: 0.9 | CC36: 0.9 | CD36: 0.9 | CE36: 0.9 | CF36: 0.9 | CG36: 0.9 | CH36: 0.9 | CI36: 0.9 | CJ36: 0.9 | CK36: 0.9 | CL36: 0.9 | CM36: 0.9 | CN36: 0.9 | CO36: 0.9
B37: Hydrogen Fuel Cell with 40 hrs Storage | M37: ='DATA (Real)'!M37:CO37 -> 0 | N37: 0 | O37: 0 | P37: 0 | Q37: 0 | R37: 0 | S37: 0 | T37: 0 | U37: 0 | V37: 0 | W37: 0 | X37: 0 | Y37: 0 | Z37: 0 | AA37: 0 | AB37: 0 | AC37: 0 | AD37: 0 | AE37: 0 | AF37: 0 | AG37: 0 | AH37: 0 | AI37: 0 | AJ37: 0 | AK37: 0 | AL37: 0 | AM37: 0 | AN37: 0 | AO37: 0 | AP37: 0 | AQ37: 0 | AR37: 0 | AS37: 0 | AT37: 0 | AU37: 0 | AV37: 0 | AW37: 0 | AX37: 0 | AY37: 0 | AZ37: 0 | BA37: 0 | BB37: 0 | BC37: 0 | BD37: 0 | BE37: 0 | BF37: 0 | BG37: 0 | BH37: 0 | BI37: 0 | BJ37: 0 | BK37: 0 | BL37: 0 | BM37: 0 | BN37: 0 | BO37: 0 | BP37: 0 | BQ37: 0 | BR37: 0 | BS37: 0 | BT37: 0 | BU37: 0 | BV37: 0 | BW37: 0 | BX37: 0 | BY37: 0 | BZ37: 0 | CA37: 0 | CB37: 0 | CC37: 0 | CD37: 0 | CE37: 0 | CF37: 0 | CG37: 0 | CH37: 0 | CI37: 0 | CJ37: 0 | CK37: 0 | CL37: 0 | CM37: 0 | CN37: 0 | CO37: 0
B38: 7F.04 CT Frame Greenfield + Power to Gas + storage | M38: ='DATA (Real)'!M38:CO38 -> 0 | N38: 0 | O38: 0 | P38: 0 | Q38: 0 | R38: 0 | S38: 0 | T38: 0 | U38: 0 | V38: 0 | W38: 0 | X38: 0 | Y38: 0 | Z38: 0 | AA38: 0 | AB38: 0 | AC38: 0 | AD38: 0 | AE38: 0 | AF38: 0 | AG38: 0 | AH38: 0 | AI38: 0 | AJ38: 0 | AK38: 0 | AL38: 0 | AM38: 0 | AN38: 0 | AO38: 0 | AP38: 0 | AQ38: 0 | AR38: 0 | AS38: 0 | AT38: 0 | AU38: 0 | AV38: 0 | AW38: 0 | AX38: 0 | AY38: 0 | AZ38: 0 | BA38: 0 | BB38: 0 | BC38: 0 | BD38: 0 | BE38: 0 | BF38: 0 | BG38: 0 | BH38: 0 | BI38: 0 | BJ38: 0 | BK38: 0 | BL38: 0 | BM38: 0 | BN38: 0 | BO38: 0 | BP38: 0 | BQ38: 0 | BR38: 0 | BS38: 0 | BT38: 0 | BU38: 0 | BV38: 0 | BW38: 0 | BX38: 0 | BY38: 0 | BZ38: 0 | CA38: 0 | CB38: 0 | CC38: 0 | CD38: 0 | CE38: 0 | CF38: 0 | CG38: 0 | CH38: 0 | CI38: 0 | CJ38: 0 | CK38: 0 | CL38: 0 | CM38: 0 | CN38: 0 | CO38: 0
B39: 7F.04 CT Frame Greenfield + RNG | M39: ='DATA (Real)'!M39:CO39 -> 0 | N39: 0 | O39: 0 | P39: 0 | Q39: 0 | R39: 0 | S39: 0 | T39: 0 | U39: 0 | V39: 0 | W39: 0 | X39: 0 | Y39: 0 | Z39: 0 | AA39: 0 | AB39: 0 | AC39: 0 | AD39: 0 | AE39: 0 | AF39: 0 | AG39: 0 | AH39: 0 | AI39: 0 | AJ39: 0 | AK39: 0 | AL39: 0 | AM39: 0 | AN39: 0 | AO39: 0 | AP39: 0 | AQ39: 0 | AR39: 0 | AS39: 0 | AT39: 0 | AU39: 0 | AV39: 0 | AW39: 0 | AX39: 0 | AY39: 0 | AZ39: 0 | BA39: 0 | BB39: 0 | BC39: 0 | BD39: 0 | BE39: 0 | BF39: 0 | BG39: 0 | BH39: 0 | BI39: 0 | BJ39: 0 | BK39: 0 | BL39: 0 | BM39: 0 | BN39: 0 | BO39: 0 | BP39: 0 | BQ39: 0 | BR39: 0 | BS39: 0 | BT39: 0 | BU39: 0 | BV39: 0 | BW39: 0 | BX39: 0 | BY39: 0 | BZ39: 0 | CA39: 0 | CB39: 0 | CC39: 0 | CD39: 0 | CE39: 0 | CF39: 0 | CG39: 0 | CH39: 0 | CI39: 0 | CJ39: 0 | CK39: 0 | CL39: 0 | CM39: 0 | CN39: 0 | CO39: 0
B40: Pumped Hydro (8 hr) | M40: ='DATA (Real)'!M40:CO40 -> 0 | N40: 0 | O40: 0 | P40: 0 | Q40: 0 | R40: 0 | S40: 0 | T40: 0 | U40: 0 | V40: 0 | W40: 0 | X40: 0 | Y40: 0 | Z40: 0 | AA40: 0 | AB40: 0 | AC40: 0 | AD40: 0 | AE40: 0 | AF40: 0 | AG40: 0 | AH40: 0 | AI40: 0 | AJ40: 0 | AK40: 0 | AL40: 0 | AM40: 0 | AN40: 0 | AO40: 0 | AP40: 0 | AQ40: 0 | AR40: 0 | AS40: 0 | AT40: 0 | AU40: 0 | AV40: 0 | AW40: 0 | AX40: 0 | AY40: 0 | AZ40: 0 | BA40: 0 | BB40: 0 | BC40: 0 | BD40: 0 | BE40: 0 | BF40: 0 | BG40: 0 | BH40: 0 | BI40: 0 | BJ40: 0 | BK40: 0 | BL40: 0 | BM40: 0 | BN40: 0 | BO40: 0 | BP40: 0 | BQ40: 0 | BR40: 0 | BS40: 0 | BT40: 0 | BU40: 0 | BV40: 0 | BW40: 0 | BX40: 0 | BY40: 0 | BZ40: 0 | CA40: 0 | CB40: 0 | CC40: 0 | CD40: 0 | CE40: 0 | CF40: 0 | CG40: 0 | CH40: 0 | CI40: 0 | CJ40: 0 | CK40: 0 | CL40: 0 | CM40: 0 | CN40: 0 | CO40: 0
B41: Pumped Hydro (16 hr) | M41: ='DATA (Real)'!M41:CO41 -> 0 | N41: 0 | O41: 0 | P41: 0 | Q41: 0 | R41: 0 | S41: 0 | T41: 0 | U41: 0 | V41: 0 | W41: 0 | X41: 0 | Y41: 0 | Z41: 0 | AA41: 0 | AB41: 0 | AC41: 0 | AD41: 0 | AE41: 0 | AF41: 0 | AG41: 0 | AH41: 0 | AI41: 0 | AJ41: 0 | AK41: 0 | AL41: 0 | AM41: 0 | AN41: 0 | AO41: 0 | AP41: 0 | AQ41: 0 | AR41: 0 | AS41: 0 | AT41: 0 | AU41: 0 | AV41: 0 | AW41: 0 | AX41: 0 | AY41: 0 | AZ41: 0 | BA41: 0 | BB41: 0 | BC41: 0 | BD41: 0 | BE41: 0 | BF41: 0 | BG41: 0 | BH41: 0 | BI41: 0 | BJ41: 0 | BK41: 0 | BL41: 0 | BM41: 0 | BN41: 0 | BO41: 0 | BP41: 0 | BQ41: 0 | BR41: 0 | BS41: 0 | BT41: 0 | BU41: 0 | BV41: 0 | BW41: 0 | BX41: 0 | BY41: 0 | BZ41: 0 | CA41: 0 | CB41: 0 | CC41: 0 | CD41: 0 | CE41: 0 | CF41: 0 | CG41: 0 | CH41: 0 | CI41: 0 | CJ41: 0 | CK41: 0 | CL41: 0 | CM41: 0 | CN41: 0 | CO41: 0
B42: Pumped Hydro (24 hr) | M42: ='DATA (Real)'!M42:CO42 -> 0 | N42: 0 | O42: 0 | P42: 0 | Q42: 0 | R42: 0 | S42: 0 | T42: 0 | U42: 0 | V42: 0 | W42: 0 | X42: 0 | Y42: 0 | Z42: 0 | AA42: 0 | AB42: 0 | AC42: 0 | AD42: 0 | AE42: 0 | AF42: 0 | AG42: 0 | AH42: 0 | AI42: 0 | AJ42: 0 | AK42: 0 | AL42: 0 | AM42: 0 | AN42: 0 | AO42: 0 | AP42: 0 | AQ42: 0 | AR42: 0 | AS42: 0 | AT42: 0 | AU42: 0 | AV42: 0 | AW42: 0 | AX42: 0 | AY42: 0 | AZ42: 0 | BA42: 0 | BB42: 0 | BC42: 0 | BD42: 0 | BE42: 0 | BF42: 0 | BG42: 0 | BH42: 0 | BI42: 0 | BJ42: 0 | BK42: 0 | BL42: 0 | BM42: 0 | BN42: 0 | BO42: 0 | BP42: 0 | BQ42: 0 | BR42: 0 | BS42: 0 | BT42: 0 | BU42: 0 | BV42: 0 | BW42: 0 | BX42: 0 | BY42: 0 | BZ42: 0 | CA42: 0 | CB42: 0 | CC42: 0 | CD42: 0 | CE42: 0 | CF42: 0 | CG42: 0 | CH42: 0 | CI42: 0 | CJ42: 0 | CK42: 0 | CL42: 0 | CM42: 0 | CN42: 0 | CO42: 0
B43: Kettle Falls 2nd Biomass Unit | M43: ='DATA (Real)'!M43:CO43 -> 0.5 | N43: 0.5 | O43: 0.5 | P43: 0.5 | Q43: 0.5 | R43: 0.5 | S43: 0.5 | T43: 0.5 | U43: 0.5 | V43: 0.5 | W43: 0.5 | X43: 0.5 | Y43: 0.5 | Z43: 0.5 | AA43: 0.5 | AB43: 0.5 | AC43: 0.5 | AD43: 0.5 | AE43: 0.5 | AF43: 0.5 | AG43: 0.5 | AH43: 0.5 | AI43: 0.5 | AJ43: 0.5 | AK43: 0.5 | AL43: 0.5 | AM43: 0.5 | AN43: 0.5 | AO43: 0.5 | AP43: 0.5 | AQ43: 0.5 | AR43: 0.5 | AS43: 0.5 | AT43: 0.5 | AU43: 0.5 | AV43: 0.5 | AW43: 0.5 | AX43: 0.5 | AY43: 0.5 | AZ43: 0.5 | BA43: 0.5 | BB43: 0.5 | BC43: 0.5 | BD43: 0.5 | BE43: 0.5 | BF43: 0.5 | BG43: 0.5 | BH43: 0.5 | BI43: 0.5 | BJ43: 0.5 | BK43: 0.5 | BL43: 0.5 | BM43: 0.5 | BN43: 0.5 | BO43: 0.5 | BP43: 0.5 | BQ43: 0.5 | BR43: 0.5 | BS43: 0.5 | BT43: 0.5 | BU43: 0.5 | BV43: 0.5 | BW43: 0.5 | BX43: 0.5 | BY43: 0.5 | BZ43: 0.5 | CA43: 0.5 | CB43: 0.5 | CC43: 0.5 | CD43: 0.5 | CE43: 0.5 | CF43: 0.5 | CG43: 0.5 | CH43: 0.5 | CI43: 0.5 | CJ43: 0.5 | CK43: 0.5 | CL43: 0.5 | CM43: 0.5 | CN43: 0.5 | CO43: 0.5
B44: Rathdrum CT 2055 Uprates two unit operation | M44: ='DATA (Real)'!M44:CO44 -> 0.9132420091 | N44: 0.9132420091 | O44: 0.9132420091 | P44: 0.9132420091 | Q44: 0.9132420091 | R44: 0.9132420091 | S44: 0.9132420091 | T44: 0.9132420091 | U44: 0.9132420091 | V44: 0.9132420091 | W44: 0.9132420091 | X44: 0.9132420091 | Y44: 0.9132420091 | Z44: 0.9132420091 | AA44: 0.9132420091 | AB44: 0.9132420091 | AC44: 0.9132420091 | AD44: 0.9132420091 | AE44: 0.9132420091 | AF44: 0.9132420091 | AG44: 0.9132420091 | AH44: 0.9132420091 | AI44: 0.9132420091 | AJ44: 0.9132420091 | AK44: 0.9132420091 | AL44: 0.9132420091 | AM44: 0.9132420091 | AN44: 0.9132420091 | AO44: 0.9132420091 | AP44: 0.9132420091 | AQ44: 0.9132420091 | AR44: 0.9132420091 | AS44: 0.9132420091 | AT44: 0.9132420091 | AU44: 0.9132420091 | AV44: 0.9132420091 | AW44: 0.9132420091 | AX44: 0.9132420091 | AY44: 0.9132420091 | AZ44: 0.9132420091 | BA44: 0.9132420091 | BB44: 0.9132420091 | BC44: 0.9132420091 | BD44: 0.9132420091 | BE44: 0.9132420091 | BF44: 0.9132420091 | BG44: 0.9132420091 | BH44: 0.9132420091 | BI44: 0.9132420091 | BJ44: 0.9132420091 | BK44: 0.9132420091 | BL44: 0.9132420091 | BM44: 0.9132420091 | BN44: 0.9132420091 | BO44: 0.9132420091 | BP44: 0.9132420091 | BQ44: 0.9132420091 | BR44: 0.9132420091 | BS44: 0.9132420091 | BT44: 0.9132420091 | BU44: 0.9132420091 | BV44: 0.9132420091 | BW44: 0.9132420091 | BX44: 0.9132420091 | BY44: 0.9132420091 | BZ44: 0.9132420091 | CA44: 0.9132420091 | CB44: 0.9132420091 | CC44: 0.9132420091 | CD44: 0.9132420091 | CE44: 0.9132420091 | CF44: 0.9132420091 | CG44: 0.9132420091 | CH44: 0.9132420091 | CI44: 0.9132420091 | CJ44: 0.9132420091 | CK44: 0.9132420091 | CL44: 0.9132420091 | CM44: 0.9132420091 | CN44: 0.9132420091 | CO44: 0.9132420091
B45: Rathdrum CT: Inlet Evaporation 2 unit operation | M45: ='DATA (Real)'!M45:CO45 -> 0.9132420091 | N45: 0.9132420091 | O45: 0.9132420091 | P45: 0.9132420091 | Q45: 0.9132420091 | R45: 0.9132420091 | S45: 0.9132420091 | T45: 0.9132420091 | U45: 0.9132420091 | V45: 0.9132420091 | W45: 0.9132420091 | X45: 0.9132420091 | Y45: 0.9132420091 | Z45: 0.9132420091 | AA45: 0.9132420091 | AB45: 0.9132420091 | AC45: 0.9132420091 | AD45: 0.9132420091 | AE45: 0.9132420091 | AF45: 0.9132420091 | AG45: 0.9132420091 | AH45: 0.9132420091 | AI45: 0.9132420091 | AJ45: 0.9132420091 | AK45: 0.9132420091 | AL45: 0.9132420091 | AM45: 0.9132420091 | AN45: 0.9132420091 | AO45: 0.9132420091 | AP45: 0.9132420091 | AQ45: 0.9132420091 | AR45: 0.9132420091 | AS45: 0.9132420091 | AT45: 0.9132420091 | AU45: 0.9132420091 | AV45: 0.9132420091 | AW45: 0.9132420091 | AX45: 0.9132420091 | AY45: 0.9132420091 | AZ45: 0.9132420091 | BA45: 0.9132420091 | BB45: 0.9132420091 | BC45: 0.9132420091 | BD45: 0.9132420091 | BE45: 0.9132420091 | BF45: 0.9132420091 | BG45: 0.9132420091 | BH45: 0.9132420091 | BI45: 0.9132420091 | BJ45: 0.9132420091 | BK45: 0.9132420091 | BL45: 0.9132420091 | BM45: 0.9132420091 | BN45: 0.9132420091 | BO45: 0.9132420091 | BP45: 0.9132420091 | BQ45: 0.9132420091 | BR45: 0.9132420091 | BS45: 0.9132420091 | BT45: 0.9132420091 | BU45: 0.9132420091 | BV45: 0.9132420091 | BW45: 0.9132420091 | BX45: 0.9132420091 | BY45: 0.9132420091 | BZ45: 0.9132420091 | CA45: 0.9132420091 | CB45: 0.9132420091 | CC45: 0.9132420091 | CD45: 0.9132420091 | CE45: 0.9132420091 | CF45: 0.9132420091 | CG45: 0.9132420091 | CH45: 0.9132420091 | CI45: 0.9132420091 | CJ45: 0.9132420091 | CK45: 0.9132420091 | CL45: 0.9132420091 | CM45: 0.9132420091 | CN45: 0.9132420091 | CO45: 0.9132420091
B46: Kettle Falls Upgrade | M46: ='DATA (Real)'!M46:CO46 -> 0 | N46: 0 | O46: 0 | P46: 0 | Q46: 0 | R46: 0 | S46: 0.6 | T46: 0.6 | U46: 0.6 | V46: 0.6 | W46: 0.6 | X46: 0.6 | Y46: 0.6 | Z46: 0.6 | AA46: 0.6 | AB46: 0.6 | AC46: 0.6 | AD46: 0.6 | AE46: 0.6 | AF46: 0.6 | AG46: 0.6 | AH46: 0.6 | AI46: 0.6 | AJ46: 0.6 | AK46: 0.6 | AL46: 0.6 | AM46: 0.6 | AN46: 0.6 | AO46: 0.6 | AP46: 0.6 | AQ46: 0.6 | AR46: 0.6 | AS46: 0.6 | AT46: 0.6 | AU46: 0.6 | AV46: 0.6 | AW46: 0.6 | AX46: 0.6 | AY46: 0.6 | AZ46: 0.6 | BA46: 0.6 | BB46: 0.6 | BC46: 0.6 | BD46: 0.6 | BE46: 0.6 | BF46: 0.6 | BG46: 0.6 | BH46: 0.6 | BI46: 0.6 | BJ46: 0.6 | BK46: 0.6 | BL46: 0.6 | BM46: 0.6 | BN46: 0.6 | BO46: 0.6 | BP46: 0.6 | BQ46: 0.6 | BR46: 0.6 | BS46: 0.6 | BT46: 0.6 | BU46: 0.6 | BV46: 0.6 | BW46: 0.6 | BX46: 0.6 | BY46: 0.6 | BZ46: 0.6 | CA46: 0.6 | CB46: 0.6 | CC46: 0.6 | CD46: 0.6 | CE46: 0.6 | CF46: 0.6 | CG46: 0.6 | CH46: 0.6 | CI46: 0.6 | CJ46: 0.6 | CK46: 0.6 | CL46: 0.6 | CM46: 0.6 | CN46: 0.6 | CO46: 0.6
B47: Palouse Repower | M47: ='DATA (Real)'!M47:CO47 -> 0 | N47: 0 | O47: 0 | P47: 0 | Q47: 0 | R47: 0 | S47: 0.3615257 | T47: 0.3674547215 | U47: 0.3734809789 | V47: 0.379606067 | W47: 0.3858316065 | X47: 0.3862174381 | Y47: 0.3866036555 | Z47: 0.3869902592 | AA47: 0.3873772494 | AB47: 0.3877646267 | AC47: 0.3881523913 | AD47: 0.3885405437 | AE47: 0.3889290842 | AF47: 0.3893180133 | AG47: 0.3897073313 | AH47: 0.3900970387 | AI47: 0.3904871357 | AJ47: 0.3908776228 | AK47: 0.3912685005 | AL47: 0.391659769 | AM47: 0.3920514287 | AN47: 0.3924434802 | AO47: 0.3928359236 | AP47: 0.3932287596 | AQ47: 0.3936219883 | AR47: 0.3940156103 | AS47: 0.3944096259 | AT47: 0.3948040355 | AU47: 0.3951988396 | AV47: 0.3955940384 | AW47: 0.3959896325 | AX47: 0.3963856221 | AY47: 0.3967820077 | AZ47: 0.3971787897 | BA47: 0.3975759685 | BB47: 0.3979735445 | BC47: 0.398371518 | BD47: 0.3987698895 | BE47: 0.3991686594 | BF47: 0.3995678281 | BG47: 0.3999673959 | BH47: 0.4003673633 | BI47: 0.4007677307 | BJ47: 0.4011684984 | BK47: 0.4015696669 | BL47: 0.4019712366 | BM47: 0.4023732078 | BN47: 0.402775581 | BO47: 0.4031783566 | BP47: 0.403581535 | BQ47: 0.4039851165 | BR47: 0.4043891016 | BS47: 0.4047934907 | BT47: 0.4051982842 | BU47: 0.4056034825 | BV47: 0.406009086 | BW47: 0.4064150951 | BX47: 0.4068215101 | BY47: 0.4072283317 | BZ47: 0.40763556 | CA47: 0.4080431956 | CB47: 0.4084512387 | CC47: 0.40885969 | CD47: 0.4092685497 | CE47: 0.4096778182 | CF47: 0.410087496 | CG47: 0.4104975835 | CH47: 0.4109080811 | CI47: 0.4113189892 | CJ47: 0.4117303082 | CK47: 0.4121420385 | CL47: 0.4125541805 | CM47: 0.4129667347 | CN47: 0.4133797015 | CO47: 0.4137930812
B48: Rattlesnake Repower | M48: ='DATA (Real)'!M48:CO48 -> 0 | N48: 0 | O48: 0 | P48: 0 | Q48: 0 | R48: 0 | S48: 0.2747777 | T48: 0.2792840543 | U48: 0.2838643128 | V48: 0.2885196875 | W48: 0.2932514104 | X48: 0.2935446618 | Y48: 0.2938382064 | Z48: 0.2941320447 | AA48: 0.2944261767 | AB48: 0.2947206029 | AC48: 0.2950153235 | AD48: 0.2953103388 | AE48: 0.2956056491 | AF48: 0.2959012548 | AG48: 0.296197156 | AH48: 0.2964933532 | AI48: 0.2967898466 | AJ48: 0.2970866364 | AK48: 0.297383723 | AL48: 0.2976811068 | AM48: 0.2979787879 | AN48: 0.2982767667 | AO48: 0.2985750434 | AP48: 0.2988736185 | AQ48: 0.2991724921 | AR48: 0.2994716646 | AS48: 0.2997711362 | AT48: 0.3000709074 | AU48: 0.3003709783 | AV48: 0.3006713493 | AW48: 0.3009720206 | AX48: 0.3012729926 | AY48: 0.3015742656 | AZ48: 0.3018758399 | BA48: 0.3021777157 | BB48: 0.3024798934 | BC48: 0.3027823733 | BD48: 0.3030851557 | BE48: 0.3033882409 | BF48: 0.3036916291 | BG48: 0.3039953207 | BH48: 0.3042993161 | BI48: 0.3046036154 | BJ48: 0.304908219 | BK48: 0.3052131272 | BL48: 0.3055183403 | BM48: 0.3058238587 | BN48: 0.3061296825 | BO48: 0.3064358122 | BP48: 0.306742248 | BQ48: 0.3070489903 | BR48: 0.3073560393 | BS48: 0.3076633953 | BT48: 0.3079710587 | BU48: 0.3082790298 | BV48: 0.3085873088 | BW48: 0.3088958961 | BX48: 0.309204792 | BY48: 0.3095139968 | BZ48: 0.3098235108 | CA48: 0.3101333343 | CB48: 0.3104434676 | CC48: 0.3107539111 | CD48: 0.311064665 | CE48: 0.3113757297 | CF48: 0.3116871054 | CG48: 0.3119987925 | CH48: 0.3123107913 | CI48: 0.3126231021 | CJ48: 0.3129357252 | CK48: 0.3132486609 | CL48: 0.3135619096 | CM48: 0.3138754715 | CN48: 0.314189347 | CO48: 0.3145035363
B49: Lind Repower | M49: ='DATA (Real)'!M49:CO49 -> 0 | N49: 0 | O49: 0 | P49: 0 | Q49: 0 | R49: 0 | S49: 0.2426317 | T49: 0.2466108599 | U49: 0.250655278 | V49: 0.2547660245 | W49: 0.2589441873 | X49: 0.2594620757 | Y49: 0.2599809999 | Z49: 0.2605009619 | AA49: 0.2610219638 | AB49: 0.2615440077 | AC49: 0.2620670957 | AD49: 0.2625912299 | AE49: 0.2631164124 | AF49: 0.2636426452 | AG49: 0.2641699305 | AH49: 0.2646982704 | AI49: 0.2652276669 | AJ49: 0.2657581222 | AK49: 0.2662896385 | AL49: 0.2668222178 | AM49: 0.2673558622 | AN49: 0.2678905739 | AO49: 0.2684263551 | AP49: 0.2689632078 | AQ49: 0.2695011342 | AR49: 0.2700401365 | AS49: 0.2705802167 | AT49: 0.2711213772 | AU49: 0.2716636199 | AV49: 0.2722069472 | AW49: 0.2727513611 | AX49: 0.2732968638 | AY49: 0.2738434575 | AZ49: 0.2743911444 | BA49: 0.2749399267 | BB49: 0.2754898066 | BC49: 0.2760407862 | BD49: 0.2765928677 | BE49: 0.2771460535 | BF49: 0.2777003456 | BG49: 0.2782557463 | BH49: 0.2788122578 | BI49: 0.2793698823 | BJ49: 0.2799286221 | BK49: 0.2804884793 | BL49: 0.2810494563 | BM49: 0.2816115552 | BN49: 0.2821747783 | BO49: 0.2827391278 | BP49: 0.2833046061 | BQ49: 0.2838712153 | BR49: 0.2844389577 | BS49: 0.2850078357 | BT49: 0.2855778513 | BU49: 0.286149007 | BV49: 0.286721305 | BW49: 0.2872947476 | BX49: 0.2878693371 | BY49: 0.2884450758 | BZ49: 0.289021966 | CA49: 0.2896000099 | CB49: 0.2901792099 | CC49: 0.2907595683 | CD49: 0.2913410875 | CE49: 0.2919237697 | CF49: 0.2925076172 | CG49: 0.2930926324 | CH49: 0.2936788177 | CI49: 0.2942661753 | CJ49: 0.2948547077 | CK49: 0.2954444171 | CL49: 0.2960353059 | CM49: 0.2966273765 | CN49: 0.2972206313 | CO49: 0.2978150726
B51: Heat Rate (MMBtu/MWh)
B52: =List_Resources -> 7F.04 CT Frame Greenfield | M52: ='DATA (Real)'!M52:CO95 -> 0 | N52: 0 | O52: 0 | P52: 0 | Q52: 0 | R52: 0 | S52: 10.04 | T52: 10.04 | U52: 10.04 | V52: 10.04 | W52: 10.04 | X52: 10.04 | Y52: 10.04 | Z52: 10.04 | AA52: 10.04 | AB52: 10.04 | AC52: 10.04 | AD52: 10.04 | AE52: 10.04 | AF52: 10.04 | AG52: 10.04 | AH52: 10.04 | AI52: 10.04 | AJ52: 10.04 | AK52: 10.04 | AL52: 10.04 | AM52: 10.04 | AN52: 10.04 | AO52: 10.04 | AP52: 10.04 | AQ52: 10.04 | AR52: 10.04 | AS52: 10.04 | AT52: 10.04 | AU52: 10.04 | AV52: 10.04 | AW52: 10.04 | AX52: 10.04 | AY52: 10.04 | AZ52: 10.04 | BA52: 10.04 | BB52: 10.04 | BC52: 10.04 | BD52: 10.04 | BE52: 10.04 | BF52: 10.04 | BG52: 10.04 | BH52: 10.04 | BI52: 10.04 | BJ52: 10.04 | BK52: 10.04 | BL52: 10.04 | BM52: 10.04 | BN52: 10.04 | BO52: 10.04 | BP52: 10.04 | BQ52: 10.04 | BR52: 10.04 | BS52: 10.04 | BT52: 10.04 | BU52: 10.04 | BV52: 10.04 | BW52: 10.04 | BX52: 10.04 | BY52: 10.04 | BZ52: 10.04 | CA52: 10.04 | CB52: 10.04 | CC52: 10.04 | CD52: 10.04 | CE52: 10.04 | CF52: 10.04 | CG52: 10.04 | CH52: 10.04 | CI52: 10.04 | CJ52: 10.04 | CK52: 10.04 | CL52: 10.04 | CM52: 10.04 | CN52: 10.04 | CO52: 10.04
B53: Reciprocating Engine (ICE) Machine | M53: 0 | N53: 0 | O53: 0 | P53: 0 | Q53: 0 | R53: 0 | S53: 8.19 | T53: 8.19 | U53: 8.19 | V53: 8.19 | W53: 8.19 | X53: 8.19 | Y53: 8.19 | Z53: 8.19 | AA53: 8.19 | AB53: 8.19 | AC53: 8.19 | AD53: 8.19 | AE53: 8.19 | AF53: 8.19 | AG53: 8.19 | AH53: 8.19 | AI53: 8.19 | AJ53: 8.19 | AK53: 8.19 | AL53: 8.19 | AM53: 8.19 | AN53: 8.19 | AO53: 8.19 | AP53: 8.19 | AQ53: 8.19 | AR53: 8.19 | AS53: 8.19 | AT53: 8.19 | AU53: 8.19 | AV53: 8.19 | AW53: 8.19 | AX53: 8.19 | AY53: 8.19 | AZ53: 8.19 | BA53: 8.19 | BB53: 8.19 | BC53: 8.19 | BD53: 8.19 | BE53: 8.19 | BF53: 8.19 | BG53: 8.19 | BH53: 8.19 | BI53: 8.19 | BJ53: 8.19 | BK53: 8.19 | BL53: 8.19 | BM53: 8.19 | BN53: 8.19 | BO53: 8.19 | BP53: 8.19 | BQ53: 8.19 | BR53: 8.19 | BS53: 8.19 | BT53: 8.19 | BU53: 8.19 | BV53: 8.19 | BW53: 8.19 | BX53: 8.19 | BY53: 8.19 | BZ53: 8.19 | CA53: 8.19 | CB53: 8.19 | CC53: 8.19 | CD53: 8.19 | CE53: 8.19 | CF53: 8.19 | CG53: 8.19 | CH53: 8.19 | CI53: 8.19 | CJ53: 8.19 | CK53: 8.19 | CL53: 8.19 | CM53: 8.19 | CN53: 8.19 | CO53: 8.19
B54: NG CCCT (1x1 w/DF) | M54: 0 | N54: 0 | O54: 0 | P54: 0 | Q54: 0 | R54: 0 | S54: 6.82 | T54: 6.82 | U54: 6.82 | V54: 6.82 | W54: 6.82 | X54: 6.82 | Y54: 6.82 | Z54: 6.82 | AA54: 6.82 | AB54: 6.82 | AC54: 6.82 | AD54: 6.82 | AE54: 6.82 | AF54: 6.82 | AG54: 6.82 | AH54: 6.82 | AI54: 6.82 | AJ54: 6.82 | AK54: 6.82 | AL54: 6.82 | AM54: 6.82 | AN54: 6.82 | AO54: 6.82 | AP54: 6.82 | AQ54: 6.82 | AR54: 6.82 | AS54: 6.82 | AT54: 6.82 | AU54: 6.82 | AV54: 6.82 | AW54: 6.82 | AX54: 6.82 | AY54: 6.82 | AZ54: 6.82 | BA54: 6.82 | BB54: 6.82 | BC54: 6.82 | BD54: 6.82 | BE54: 6.82 | BF54: 6.82 | BG54: 6.82 | BH54: 6.82 | BI54: 6.82 | BJ54: 6.82 | BK54: 6.82 | BL54: 6.82 | BM54: 6.82 | BN54: 6.82 | BO54: 6.82 | BP54: 6.82 | BQ54: 6.82 | BR54: 6.82 | BS54: 6.82 | BT54: 6.82 | BU54: 6.82 | BV54: 6.82 | BW54: 6.82 | BX54: 6.82 | BY54: 6.82 | BZ54: 6.82 | CA54: 6.82 | CB54: 6.82 | CC54: 6.82 | CD54: 6.82 | CE54: 6.82 | CF54: 6.82 | CG54: 6.82 | CH54: 6.82 | CI54: 6.82 | CJ54: 6.82 | CK54: 6.82 | CL54: 6.82 | CM54: 6.82 | CN54: 6.82 | CO54: 6.82
B55: Small Modular Reactor | M55: 0 | N55: 10.447 | O55: 10.447 | P55: 10.447 | Q55: 10.447 | R55: 10.447 | S55: 10.447 | T55: 10.447 | U55: 10.447 | V55: 10.447 | W55: 10.447 | X55: 10.447 | Y55: 10.447 | Z55: 10.447 | AA55: 10.447 | AB55: 10.447 | AC55: 10.447 | AD55: 10.447 | AE55: 10.447 | AF55: 10.447 | AG55: 10.447 | AH55: 10.447 | AI55: 10.447 | AJ55: 10.447 | AK55: 10.447 | AL55: 10.447 | AM55: 10.447 | AN55: 10.447 | AO55: 10.447 | AP55: 10.447 | AQ55: 10.447 | AR55: 10.447 | AS55: 10.447 | AT55: 10.447 | AU55: 10.447 | AV55: 10.447 | AW55: 10.447 | AX55: 10.447 | AY55: 10.447 | AZ55: 10.447 | BA55: 10.447 | BB55: 10.447 | BC55: 10.447 | BD55: 10.447 | BE55: 10.447 | BF55: 10.447 | BG55: 10.447 | BH55: 10.447 | BI55: 10.447 | BJ55: 10.447 | BK55: 10.447 | BL55: 10.447 | BM55: 10.447 | BN55: 10.447 | BO55: 10.447 | BP55: 10.447 | BQ55: 10.447 | BR55: 10.447 | BS55: 10.447 | BT55: 10.447 | BU55: 10.447 | BV55: 10.447 | BW55: 10.447 | BX55: 10.447 | BY55: 10.447 | BZ55: 10.447 | CA55: 10.447 | CB55: 10.447 | CC55: 10.447 | CD55: 10.447 | CE55: 10.447 | CF55: 10.447 | CG55: 10.447 | CH55: 10.447 | CI55: 10.447 | CJ55: 10.447 | CK55: 10.447 | CL55: 10.447 | CM55: 10.447 | CN55: 10.447 | CO55: 10.447
B56: Northwest Wind (On System) | M56: 0 | N56: 0 | O56: 0 | P56: 0 | Q56: 0 | R56: 0 | S56: 0 | T56: 0 | U56: 0 | V56: 0 | W56: 0 | X56: 0 | Y56: 0 | Z56: 0 | AA56: 0 | AB56: 0 | AC56: 0 | AD56: 0 | AE56: 0 | AF56: 0 | AG56: 0 | AH56: 0 | AI56: 0 | AJ56: 0 | AK56: 0 | AL56: 0 | AM56: 0 | AN56: 0 | AO56: 0 | AP56: 0 | AQ56: 0 | AR56: 0 | AS56: 0 | AT56: 0 | AU56: 0 | AV56: 0 | AW56: 0 | AX56: 0 | AY56: 0 | AZ56: 0 | BA56: 0 | BB56: 0 | BC56: 0 | BD56: 0 | BE56: 0 | BF56: 0 | BG56: 0 | BH56: 0 | BI56: 0 | BJ56: 0 | BK56: 0 | BL56: 0 | BM56: 0 | BN56: 0 | BO56: 0 | BP56: 0 | BQ56: 0 | BR56: 0 | BS56: 0 | BT56: 0 | BU56: 0 | BV56: 0 | BW56: 0 | BX56: 0 | BY56: 0 | BZ56: 0 | CA56: 0 | CB56: 0 | CC56: 0 | CD56: 0 | CE56: 0 | CF56: 0 | CG56: 0 | CH56: 0 | CI56: 0 | CJ56: 0 | CK56: 0 | CL56: 0 | CM56: 0 | CN56: 0 | CO56: 0
B57: Northwest Wind (Off System) | M57: 0 | N57: 0 | O57: 0 | P57: 0 | Q57: 0 | R57: 0 | S57: 0 | T57: 0 | U57: 0 | V57: 0 | W57: 0 | X57: 0 | Y57: 0 | Z57: 0 | AA57: 0 | AB57: 0 | AC57: 0 | AD57: 0 | AE57: 0 | AF57: 0 | AG57: 0 | AH57: 0 | AI57: 0 | AJ57: 0 | AK57: 0 | AL57: 0 | AM57: 0 | AN57: 0 | AO57: 0 | AP57: 0 | AQ57: 0 | AR57: 0 | AS57: 0 | AT57: 0 | AU57: 0 | AV57: 0 | AW57: 0 | AX57: 0 | AY57: 0 | AZ57: 0 | BA57: 0 | BB57: 0 | BC57: 0 | BD57: 0 | BE57: 0 | BF57: 0 | BG57: 0 | BH57: 0 | BI57: 0 | BJ57: 0 | BK57: 0 | BL57: 0 | BM57: 0 | BN57: 0 | BO57: 0 | BP57: 0 | BQ57: 0 | BR57: 0 | BS57: 0 | BT57: 0 | BU57: 0 | BV57: 0 | BW57: 0 | BX57: 0 | BY57: 0 | BZ57: 0 | CA57: 0 | CB57: 0 | CC57: 0 | CD57: 0 | CE57: 0 | CF57: 0 | CG57: 0 | CH57: 0 | CI57: 0 | CJ57: 0 | CK57: 0 | CL57: 0 | CM57: 0 | CN57: 0 | CO57: 0
B58: Montana Wind (Off System) | M58: 0 | N58: 0 | O58: 0 | P58: 0 | Q58: 0 | R58: 0 | S58: 0 | T58: 0 | U58: 0 | V58: 0 | W58: 0 | X58: 0 | Y58: 0 | Z58: 0 | AA58: 0 | AB58: 0 | AC58: 0 | AD58: 0 | AE58: 0 | AF58: 0 | AG58: 0 | AH58: 0 | AI58: 0 | AJ58: 0 | AK58: 0 | AL58: 0 | AM58: 0 | AN58: 0 | AO58: 0 | AP58: 0 | AQ58: 0 | AR58: 0 | AS58: 0 | AT58: 0 | AU58: 0 | AV58: 0 | AW58: 0 | AX58: 0 | AY58: 0 | AZ58: 0 | BA58: 0 | BB58: 0 | BC58: 0 | BD58: 0 | BE58: 0 | BF58: 0 | BG58: 0 | BH58: 0 | BI58: 0 | BJ58: 0 | BK58: 0 | BL58: 0 | BM58: 0 | BN58: 0 | BO58: 0 | BP58: 0 | BQ58: 0 | BR58: 0 | BS58: 0 | BT58: 0 | BU58: 0 | BV58: 0 | BW58: 0 | BX58: 0 | BY58: 0 | BZ58: 0 | CA58: 0 | CB58: 0 | CC58: 0 | CD58: 0 | CE58: 0 | CF58: 0 | CG58: 0 | CH58: 0 | CI58: 0 | CJ58: 0 | CK58: 0 | CL58: 0 | CM58: 0 | CN58: 0 | CO58: 0
B59: Off Shore Wind (Off System) | M59: 0 | N59: 0 | O59: 0 | P59: 0 | Q59: 0 | R59: 0 | S59: 0 | T59: 0 | U59: 0 | V59: 0 | W59: 0 | X59: 0 | Y59: 0 | Z59: 0 | AA59: 0 | AB59: 0 | AC59: 0 | AD59: 0 | AE59: 0 | AF59: 0 | AG59: 0 | AH59: 0 | AI59: 0 | AJ59: 0 | AK59: 0 | AL59: 0 | AM59: 0 | AN59: 0 | AO59: 0 | AP59: 0 | AQ59: 0 | AR59: 0 | AS59: 0 | AT59: 0 | AU59: 0 | AV59: 0 | AW59: 0 | AX59: 0 | AY59: 0 | AZ59: 0 | BA59: 0 | BB59: 0 | BC59: 0 | BD59: 0 | BE59: 0 | BF59: 0 | BG59: 0 | BH59: 0 | BI59: 0 | BJ59: 0 | BK59: 0 | BL59: 0 | BM59: 0 | BN59: 0 | BO59: 0 | BP59: 0 | BQ59: 0 | BR59: 0 | BS59: 0 | BT59: 0 | BU59: 0 | BV59: 0 | BW59: 0 | BX59: 0 | BY59: 0 | BZ59: 0 | CA59: 0 | CB59: 0 | CC59: 0 | CD59: 0 | CE59: 0 | CF59: 0 | CG59: 0 | CH59: 0 | CI59: 0 | CJ59: 0 | CK59: 0 | CL59: 0 | CM59: 0 | CN59: 0 | CO59: 0
B60: New Construction Residential Solar | M60: 0 | N60: 0 | O60: 0 | P60: 0 | Q60: 0 | R60: 0 | S60: 0 | T60: 0 | U60: 0 | V60: 0 | W60: 0 | X60: 0 | Y60: 0 | Z60: 0 | AA60: 0 | AB60: 0 | AC60: 0 | AD60: 0 | AE60: 0 | AF60: 0 | AG60: 0 | AH60: 0 | AI60: 0 | AJ60: 0 | AK60: 0 | AL60: 0 | AM60: 0 | AN60: 0 | AO60: 0 | AP60: 0 | AQ60: 0 | AR60: 0 | AS60: 0 | AT60: 0 | AU60: 0 | AV60: 0 | AW60: 0 | AX60: 0 | AY60: 0 | AZ60: 0 | BA60: 0 | BB60: 0 | BC60: 0 | BD60: 0 | BE60: 0 | BF60: 0 | BG60: 0 | BH60: 0 | BI60: 0 | BJ60: 0 | BK60: 0 | BL60: 0 | BM60: 0 | BN60: 0 | BO60: 0 | BP60: 0 | BQ60: 0 | BR60: 0 | BS60: 0 | BT60: 0 | BU60: 0 | BV60: 0 | BW60: 0 | BX60: 0 | BY60: 0 | BZ60: 0 | CA60: 0 | CB60: 0 | CC60: 0 | CD60: 0 | CE60: 0 | CF60: 0 | CG60: 0 | CH60: 0 | CI60: 0 | CJ60: 0 | CK60: 0 | CL60: 0 | CM60: 0 | CN60: 0 | CO60: 0
B61: New Construction Residential Solar + Storage | M61: 0 | N61: 0 | O61: 0 | P61: 0 | Q61: 0 | R61: 0 | S61: 0 | T61: 0 | U61: 0 | V61: 0 | W61: 0 | X61: 0 | Y61: 0 | Z61: 0 | AA61: 0 | AB61: 0 | AC61: 0 | AD61: 0 | AE61: 0 | AF61: 0 | AG61: 0 | AH61: 0 | AI61: 0 | AJ61: 0 | AK61: 0 | AL61: 0 | AM61: 0 | AN61: 0 | AO61: 0 | AP61: 0 | AQ61: 0 | AR61: 0 | AS61: 0 | AT61: 0 | AU61: 0 | AV61: 0 | AW61: 0 | AX61: 0 | AY61: 0 | AZ61: 0 | BA61: 0 | BB61: 0 | BC61: 0 | BD61: 0 | BE61: 0 | BF61: 0 | BG61: 0 | BH61: 0 | BI61: 0 | BJ61: 0 | BK61: 0 | BL61: 0 | BM61: 0 | BN61: 0 | BO61: 0 | BP61: 0 | BQ61: 0 | BR61: 0 | BS61: 0 | BT61: 0 | BU61: 0 | BV61: 0 | BW61: 0 | BX61: 0 | BY61: 0 | BZ61: 0 | CA61: 0 | CB61: 0 | CC61: 0 | CD61: 0 | CE61: 0 | CF61: 0 | CG61: 0 | CH61: 0 | CI61: 0 | CJ61: 0 | CK61: 0 | CL61: 0 | CM61: 0 | CN61: 0 | CO61: 0
B62: Residential Solar | M62: 0 | N62: 0 | O62: 0 | P62: 0 | Q62: 0 | R62: 0 | S62: 0 | T62: 0 | U62: 0 | V62: 0 | W62: 0 | X62: 0 | Y62: 0 | Z62: 0 | AA62: 0 | AB62: 0 | AC62: 0 | AD62: 0 | AE62: 0 | AF62: 0 | AG62: 0 | AH62: 0 | AI62: 0 | AJ62: 0 | AK62: 0 | AL62: 0 | AM62: 0 | AN62: 0 | AO62: 0 | AP62: 0 | AQ62: 0 | AR62: 0 | AS62: 0 | AT62: 0 | AU62: 0 | AV62: 0 | AW62: 0 | AX62: 0 | AY62: 0 | AZ62: 0 | BA62: 0 | BB62: 0 | BC62: 0 | BD62: 0 | BE62: 0 | BF62: 0 | BG62: 0 | BH62: 0 | BI62: 0 | BJ62: 0 | BK62: 0 | BL62: 0 | BM62: 0 | BN62: 0 | BO62: 0 | BP62: 0 | BQ62: 0 | BR62: 0 | BS62: 0 | BT62: 0 | BU62: 0 | BV62: 0 | BW62: 0 | BX62: 0 | BY62: 0 | BZ62: 0 | CA62: 0 | CB62: 0 | CC62: 0 | CD62: 0 | CE62: 0 | CF62: 0 | CG62: 0 | CH62: 0 | CI62: 0 | CJ62: 0 | CK62: 0 | CL62: 0 | CM62: 0 | CN62: 0 | CO62: 0
B63: Residential Solar + Storage | M63: 0 | N63: 0 | O63: 0 | P63: 0 | Q63: 0 | R63: 0 | S63: 0 | T63: 0 | U63: 0 | V63: 0 | W63: 0 | X63: 0 | Y63: 0 | Z63: 0 | AA63: 0 | AB63: 0 | AC63: 0 | AD63: 0 | AE63: 0 | AF63: 0 | AG63: 0 | AH63: 0 | AI63: 0 | AJ63: 0 | AK63: 0 | AL63: 0 | AM63: 0 | AN63: 0 | AO63: 0 | AP63: 0 | AQ63: 0 | AR63: 0 | AS63: 0 | AT63: 0 | AU63: 0 | AV63: 0 | AW63: 0 | AX63: 0 | AY63: 0 | AZ63: 0 | BA63: 0 | BB63: 0 | BC63: 0 | BD63: 0 | BE63: 0 | BF63: 0 | BG63: 0 | BH63: 0 | BI63: 0 | BJ63: 0 | BK63: 0 | BL63: 0 | BM63: 0 | BN63: 0 | BO63: 0 | BP63: 0 | BQ63: 0 | BR63: 0 | BS63: 0 | BT63: 0 | BU63: 0 | BV63: 0 | BW63: 0 | BX63: 0 | BY63: 0 | BZ63: 0 | CA63: 0 | CB63: 0 | CC63: 0 | CD63: 0 | CE63: 0 | CF63: 0 | CG63: 0 | CH63: 0 | CI63: 0 | CJ63: 0 | CK63: 0 | CL63: 0 | CM63: 0 | CN63: 0 | CO63: 0
B64: Commercial Solar | M64: 0 | N64: 0 | O64: 0 | P64: 0 | Q64: 0 | R64: 0 | S64: 0 | T64: 0 | U64: 0 | V64: 0 | W64: 0 | X64: 0 | Y64: 0 | Z64: 0 | AA64: 0 | AB64: 0 | AC64: 0 | AD64: 0 | AE64: 0 | AF64: 0 | AG64: 0 | AH64: 0 | AI64: 0 | AJ64: 0 | AK64: 0 | AL64: 0 | AM64: 0 | AN64: 0 | AO64: 0 | AP64: 0 | AQ64: 0 | AR64: 0 | AS64: 0 | AT64: 0 | AU64: 0 | AV64: 0 | AW64: 0 | AX64: 0 | AY64: 0 | AZ64: 0 | BA64: 0 | BB64: 0 | BC64: 0 | BD64: 0 | BE64: 0 | BF64: 0 | BG64: 0 | BH64: 0 | BI64: 0 | BJ64: 0 | BK64: 0 | BL64: 0 | BM64: 0 | BN64: 0 | BO64: 0 | BP64: 0 | BQ64: 0 | BR64: 0 | BS64: 0 | BT64: 0 | BU64: 0 | BV64: 0 | BW64: 0 | BX64: 0 | BY64: 0 | BZ64: 0 | CA64: 0 | CB64: 0 | CC64: 0 | CD64: 0 | CE64: 0 | CF64: 0 | CG64: 0 | CH64: 0 | CI64: 0 | CJ64: 0 | CK64: 0 | CL64: 0 | CM64: 0 | CN64: 0 | CO64: 0
B65: Commercial Solar + Storage | M65: 0 | N65: 0 | O65: 0 | P65: 0 | Q65: 0 | R65: 0 | S65: 0 | T65: 0 | U65: 0 | V65: 0 | W65: 0 | X65: 0 | Y65: 0 | Z65: 0 | AA65: 0 | AB65: 0 | AC65: 0 | AD65: 0 | AE65: 0 | AF65: 0 | AG65: 0 | AH65: 0 | AI65: 0 | AJ65: 0 | AK65: 0 | AL65: 0 | AM65: 0 | AN65: 0 | AO65: 0 | AP65: 0 | AQ65: 0 | AR65: 0 | AS65: 0 | AT65: 0 | AU65: 0 | AV65: 0 | AW65: 0 | AX65: 0 | AY65: 0 | AZ65: 0 | BA65: 0 | BB65: 0 | BC65: 0 | BD65: 0 | BE65: 0 | BF65: 0 | BG65: 0 | BH65: 0 | BI65: 0 | BJ65: 0 | BK65: 0 | BL65: 0 | BM65: 0 | BN65: 0 | BO65: 0 | BP65: 0 | BQ65: 0 | BR65: 0 | BS65: 0 | BT65: 0 | BU65: 0 | BV65: 0 | BW65: 0 | BX65: 0 | BY65: 0 | BZ65: 0 | CA65: 0 | CB65: 0 | CC65: 0 | CD65: 0 | CE65: 0 | CF65: 0 | CG65: 0 | CH65: 0 | CI65: 0 | CJ65: 0 | CK65: 0 | CL65: 0 | CM65: 0 | CN65: 0 | CO65: 0
B66: Low-Income Community Solar | M66: 0 | N66: 0 | O66: 0 | P66: 0 | Q66: 0 | R66: 0 | S66: 0 | T66: 0 | U66: 0 | V66: 0 | W66: 0 | X66: 0 | Y66: 0 | Z66: 0 | AA66: 0 | AB66: 0 | AC66: 0 | AD66: 0 | AE66: 0 | AF66: 0 | AG66: 0 | AH66: 0 | AI66: 0 | AJ66: 0 | AK66: 0 | AL66: 0 | AM66: 0 | AN66: 0 | AO66: 0 | AP66: 0 | AQ66: 0 | AR66: 0 | AS66: 0 | AT66: 0 | AU66: 0 | AV66: 0 | AW66: 0 | AX66: 0 | AY66: 0 | AZ66: 0 | BA66: 0 | BB66: 0 | BC66: 0 | BD66: 0 | BE66: 0 | BF66: 0 | BG66: 0 | BH66: 0 | BI66: 0 | BJ66: 0 | BK66: 0 | BL66: 0 | BM66: 0 | BN66: 0 | BO66: 0 | BP66: 0 | BQ66: 0 | BR66: 0 | BS66: 0 | BT66: 0 | BU66: 0 | BV66: 0 | BW66: 0 | BX66: 0 | BY66: 0 | BZ66: 0 | CA66: 0 | CB66: 0 | CC66: 0 | CD66: 0 | CE66: 0 | CF66: 0 | CG66: 0 | CH66: 0 | CI66: 0 | CJ66: 0 | CK66: 0 | CL66: 0 | CM66: 0 | CN66: 0 | CO66: 0
B67: Solar Photovoltaic Fixed Array (5 MW AC) | M67: 0 | N67: 0 | O67: 0 | P67: 0 | Q67: 0 | R67: 0 | S67: 0 | T67: 0 | U67: 0 | V67: 0 | W67: 0 | X67: 0 | Y67: 0 | Z67: 0 | AA67: 0 | AB67: 0 | AC67: 0 | AD67: 0 | AE67: 0 | AF67: 0 | AG67: 0 | AH67: 0 | AI67: 0 | AJ67: 0 | AK67: 0 | AL67: 0 | AM67: 0 | AN67: 0 | AO67: 0 | AP67: 0 | AQ67: 0 | AR67: 0 | AS67: 0 | AT67: 0 | AU67: 0 | AV67: 0 | AW67: 0 | AX67: 0 | AY67: 0 | AZ67: 0 | BA67: 0 | BB67: 0 | BC67: 0 | BD67: 0 | BE67: 0 | BF67: 0 | BG67: 0 | BH67: 0 | BI67: 0 | BJ67: 0 | BK67: 0 | BL67: 0 | BM67: 0 | BN67: 0 | BO67: 0 | BP67: 0 | BQ67: 0 | BR67: 0 | BS67: 0 | BT67: 0 | BU67: 0 | BV67: 0 | BW67: 0 | BX67: 0 | BY67: 0 | BZ67: 0 | CA67: 0 | CB67: 0 | CC67: 0 | CD67: 0 | CE67: 0 | CF67: 0 | CG67: 0 | CH67: 0 | CI67: 0 | CJ67: 0 | CK67: 0 | CL67: 0 | CM67: 0 | CN67: 0 | CO67: 0
B68: Solar Photovoltaic Fixed Array (5 MW AC) + Storage | M68: 0 | N68: 0 | O68: 0 | P68: 0 | Q68: 0 | R68: 0 | S68: 0 | T68: 0 | U68: 0 | V68: 0 | W68: 0 | X68: 0 | Y68: 0 | Z68: 0 | AA68: 0 | AB68: 0 | AC68: 0 | AD68: 0 | AE68: 0 | AF68: 0 | AG68: 0 | AH68: 0 | AI68: 0 | AJ68: 0 | AK68: 0 | AL68: 0 | AM68: 0 | AN68: 0 | AO68: 0 | AP68: 0 | AQ68: 0 | AR68: 0 | AS68: 0 | AT68: 0 | AU68: 0 | AV68: 0 | AW68: 0 | AX68: 0 | AY68: 0 | AZ68: 0 | BA68: 0 | BB68: 0 | BC68: 0 | BD68: 0 | BE68: 0 | BF68: 0 | BG68: 0 | BH68: 0 | BI68: 0 | BJ68: 0 | BK68: 0 | BL68: 0 | BM68: 0 | BN68: 0 | BO68: 0 | BP68: 0 | BQ68: 0 | BR68: 0 | BS68: 0 | BT68: 0 | BU68: 0 | BV68: 0 | BW68: 0 | BX68: 0 | BY68: 0 | BZ68: 0 | CA68: 0 | CB68: 0 | CC68: 0 | CD68: 0 | CE68: 0 | CF68: 0 | CG68: 0 | CH68: 0 | CI68: 0 | CJ68: 0 | CK68: 0 | CL68: 0 | CM68: 0 | CN68: 0 | CO68: 0
B69: Solar Photovoltaic w/Single Axis Tracking (100 MW AC) | M69: 0 | N69: 0 | O69: 0 | P69: 0 | Q69: 0 | R69: 0 | S69: 0 | T69: 0 | U69: 0 | V69: 0 | W69: 0 | X69: 0 | Y69: 0 | Z69: 0 | AA69: 0 | AB69: 0 | AC69: 0 | AD69: 0 | AE69: 0 | AF69: 0 | AG69: 0 | AH69: 0 | AI69: 0 | AJ69: 0 | AK69: 0 | AL69: 0 | AM69: 0 | AN69: 0 | AO69: 0 | AP69: 0 | AQ69: 0 | AR69: 0 | AS69: 0 | AT69: 0 | AU69: 0 | AV69: 0 | AW69: 0 | AX69: 0 | AY69: 0 | AZ69: 0 | BA69: 0 | BB69: 0 | BC69: 0 | BD69: 0 | BE69: 0 | BF69: 0 | BG69: 0 | BH69: 0 | BI69: 0 | BJ69: 0 | BK69: 0 | BL69: 0 | BM69: 0 | BN69: 0 | BO69: 0 | BP69: 0 | BQ69: 0 | BR69: 0 | BS69: 0 | BT69: 0 | BU69: 0 | BV69: 0 | BW69: 0 | BX69: 0 | BY69: 0 | BZ69: 0 | CA69: 0 | CB69: 0 | CC69: 0 | CD69: 0 | CE69: 0 | CF69: 0 | CG69: 0 | CH69: 0 | CI69: 0 | CJ69: 0 | CK69: 0 | CL69: 0 | CM69: 0 | CN69: 0 | CO69: 0
B70: Southern NW Solar Photovoltaic w/ Single Axis Tracking (100 MW AC) | M70: 0 | N70: 0 | O70: 0 | P70: 0 | Q70: 0 | R70: 0 | S70: 0 | T70: 0 | U70: 0 | V70: 0 | W70: 0 | X70: 0 | Y70: 0 | Z70: 0 | AA70: 0 | AB70: 0 | AC70: 0 | AD70: 0 | AE70: 0 | AF70: 0 | AG70: 0 | AH70: 0 | AI70: 0 | AJ70: 0 | AK70: 0 | AL70: 0 | AM70: 0 | AN70: 0 | AO70: 0 | AP70: 0 | AQ70: 0 | AR70: 0 | AS70: 0 | AT70: 0 | AU70: 0 | AV70: 0 | AW70: 0 | AX70: 0 | AY70: 0 | AZ70: 0 | BA70: 0 | BB70: 0 | BC70: 0 | BD70: 0 | BE70: 0 | BF70: 0 | BG70: 0 | BH70: 0 | BI70: 0 | BJ70: 0 | BK70: 0 | BL70: 0 | BM70: 0 | BN70: 0 | BO70: 0 | BP70: 0 | BQ70: 0 | BR70: 0 | BS70: 0 | BT70: 0 | BU70: 0 | BV70: 0 | BW70: 0 | BX70: 0 | BY70: 0 | BZ70: 0 | CA70: 0 | CB70: 0 | CC70: 0 | CD70: 0 | CE70: 0 | CF70: 0 | CG70: 0 | CH70: 0 | CI70: 0 | CJ70: 0 | CK70: 0 | CL70: 0 | CM70: 0 | CN70: 0 | CO70: 0
B71: 100 MW/400 MWh Lithium-ion w/100 MW Solar | M71: 0 | N71: 0 | O71: 0 | P71: 0 | Q71: 0 | R71: 0 | S71: 0 | T71: 0 | U71: 0 | V71: 0 | W71: 0 | X71: 0 | Y71: 0 | Z71: 0 | AA71: 0 | AB71: 0 | AC71: 0 | AD71: 0 | AE71: 0 | AF71: 0 | AG71: 0 | AH71: 0 | AI71: 0 | AJ71: 0 | AK71: 0 | AL71: 0 | AM71: 0 | AN71: 0 | AO71: 0 | AP71: 0 | AQ71: 0 | AR71: 0 | AS71: 0 | AT71: 0 | AU71: 0 | AV71: 0 | AW71: 0 | AX71: 0 | AY71: 0 | AZ71: 0 | BA71: 0 | BB71: 0 | BC71: 0 | BD71: 0 | BE71: 0 | BF71: 0 | BG71: 0 | BH71: 0 | BI71: 0 | BJ71: 0 | BK71: 0 | BL71: 0 | BM71: 0 | BN71: 0 | BO71: 0 | BP71: 0 | BQ71: 0 | BR71: 0 | BS71: 0 | BT71: 0 | BU71: 0 | BV71: 0 | BW71: 0 | BX71: 0 | BY71: 0 | BZ71: 0 | CA71: 0 | CB71: 0 | CC71: 0 | CD71: 0 | CE71: 0 | CF71: 0 | CG71: 0 | CH71: 0 | CI71: 0 | CJ71: 0 | CK71: 0 | CL71: 0 | CM71: 0 | CN71: 0 | CO71: 0
B72: 100 MW/200 MWh Lithium-ion w/100 MW Solar | M72: 0 | N72: 0 | O72: 0 | P72: 0 | Q72: 0 | R72: 0 | S72: 0 | T72: 0 | U72: 0 | V72: 0 | W72: 0 | X72: 0 | Y72: 0 | Z72: 0 | AA72: 0 | AB72: 0 | AC72: 0 | AD72: 0 | AE72: 0 | AF72: 0 | AG72: 0 | AH72: 0 | AI72: 0 | AJ72: 0 | AK72: 0 | AL72: 0 | AM72: 0 | AN72: 0 | AO72: 0 | AP72: 0 | AQ72: 0 | AR72: 0 | AS72: 0 | AT72: 0 | AU72: 0 | AV72: 0 | AW72: 0 | AX72: 0 | AY72: 0 | AZ72: 0 | BA72: 0 | BB72: 0 | BC72: 0 | BD72: 0 | BE72: 0 | BF72: 0 | BG72: 0 | BH72: 0 | BI72: 0 | BJ72: 0 | BK72: 0 | BL72: 0 | BM72: 0 | BN72: 0 | BO72: 0 | BP72: 0 | BQ72: 0 | BR72: 0 | BS72: 0 | BT72: 0 | BU72: 0 | BV72: 0 | BW72: 0 | BX72: 0 | BY72: 0 | BZ72: 0 | CA72: 0 | CB72: 0 | CC72: 0 | CD72: 0 | CE72: 0 | CF72: 0 | CG72: 0 | CH72: 0 | CI72: 0 | CJ72: 0 | CK72: 0 | CL72: 0 | CM72: 0 | CN72: 0 | CO72: 0
B73: 50 MW/200 MWh Lithium-ion w/100 MW Solar | M73: 0 | N73: 0 | O73: 0 | P73: 0 | Q73: 0 | R73: 0 | S73: 0 | T73: 0 | U73: 0 | V73: 0 | W73: 0 | X73: 0 | Y73: 0 | Z73: 0 | AA73: 0 | AB73: 0 | AC73: 0 | AD73: 0 | AE73: 0 | AF73: 0 | AG73: 0 | AH73: 0 | AI73: 0 | AJ73: 0 | AK73: 0 | AL73: 0 | AM73: 0 | AN73: 0 | AO73: 0 | AP73: 0 | AQ73: 0 | AR73: 0 | AS73: 0 | AT73: 0 | AU73: 0 | AV73: 0 | AW73: 0 | AX73: 0 | AY73: 0 | AZ73: 0 | BA73: 0 | BB73: 0 | BC73: 0 | BD73: 0 | BE73: 0 | BF73: 0 | BG73: 0 | BH73: 0 | BI73: 0 | BJ73: 0 | BK73: 0 | BL73: 0 | BM73: 0 | BN73: 0 | BO73: 0 | BP73: 0 | BQ73: 0 | BR73: 0 | BS73: 0 | BT73: 0 | BU73: 0 | BV73: 0 | BW73: 0 | BX73: 0 | BY73: 0 | BZ73: 0 | CA73: 0 | CB73: 0 | CC73: 0 | CD73: 0 | CE73: 0 | CF73: 0 | CG73: 0 | CH73: 0 | CI73: 0 | CJ73: 0 | CK73: 0 | CL73: 0 | CM73: 0 | CN73: 0 | CO73: 0
B74: Distribution Scale 4hr Lithium-ion | M74: 0 | N74: 0 | O74: 0 | P74: 0 | Q74: 0 | R74: 0 | S74: 0 | T74: 0 | U74: 0 | V74: 0 | W74: 0 | X74: 0 | Y74: 0 | Z74: 0 | AA74: 0 | AB74: 0 | AC74: 0 | AD74: 0 | AE74: 0 | AF74: 0 | AG74: 0 | AH74: 0 | AI74: 0 | AJ74: 0 | AK74: 0 | AL74: 0 | AM74: 0 | AN74: 0 | AO74: 0 | AP74: 0 | AQ74: 0 | AR74: 0 | AS74: 0 | AT74: 0 | AU74: 0 | AV74: 0 | AW74: 0 | AX74: 0 | AY74: 0 | AZ74: 0 | BA74: 0 | BB74: 0 | BC74: 0 | BD74: 0 | BE74: 0 | BF74: 0 | BG74: 0 | BH74: 0 | BI74: 0 | BJ74: 0 | BK74: 0 | BL74: 0 | BM74: 0 | BN74: 0 | BO74: 0 | BP74: 0 | BQ74: 0 | BR74: 0 | BS74: 0 | BT74: 0 | BU74: 0 | BV74: 0 | BW74: 0 | BX74: 0 | BY74: 0 | BZ74: 0 | CA74: 0 | CB74: 0 | CC74: 0 | CD74: 0 | CE74: 0 | CF74: 0 | CG74: 0 | CH74: 0 | CI74: 0 | CJ74: 0 | CK74: 0 | CL74: 0 | CM74: 0 | CN74: 0 | CO74: 0
B75: Distribution Scale 8hr Lithium-ion | M75: 0 | N75: 0 | O75: 0 | P75: 0 | Q75: 0 | R75: 0 | S75: 0 | T75: 0 | U75: 0 | V75: 0 | W75: 0 | X75: 0 | Y75: 0 | Z75: 0 | AA75: 0 | AB75: 0 | AC75: 0 | AD75: 0 | AE75: 0 | AF75: 0 | AG75: 0 | AH75: 0 | AI75: 0 | AJ75: 0 | AK75: 0 | AL75: 0 | AM75: 0 | AN75: 0 | AO75: 0 | AP75: 0 | AQ75: 0 | AR75: 0 | AS75: 0 | AT75: 0 | AU75: 0 | AV75: 0 | AW75: 0 | AX75: 0 | AY75: 0 | AZ75: 0 | BA75: 0 | BB75: 0 | BC75: 0 | BD75: 0 | BE75: 0 | BF75: 0 | BG75: 0 | BH75: 0 | BI75: 0 | BJ75: 0 | BK75: 0 | BL75: 0 | BM75: 0 | BN75: 0 | BO75: 0 | BP75: 0 | BQ75: 0 | BR75: 0 | BS75: 0 | BT75: 0 | BU75: 0 | BV75: 0 | BW75: 0 | BX75: 0 | BY75: 0 | BZ75: 0 | CA75: 0 | CB75: 0 | CC75: 0 | CD75: 0 | CE75: 0 | CF75: 0 | CG75: 0 | CH75: 0 | CI75: 0 | CJ75: 0 | CK75: 0 | CL75: 0 | CM75: 0 | CN75: 0 | CO75: 0
B76: 4hr Lithium-ion | M76: 0 | N76: 0 | O76: 0 | P76: 0 | Q76: 0 | R76: 0 | S76: 0 | T76: 0 | U76: 0 | V76: 0 | W76: 0 | X76: 0 | Y76: 0 | Z76: 0 | AA76: 0 | AB76: 0 | AC76: 0 | AD76: 0 | AE76: 0 | AF76: 0 | AG76: 0 | AH76: 0 | AI76: 0 | AJ76: 0 | AK76: 0 | AL76: 0 | AM76: 0 | AN76: 0 | AO76: 0 | AP76: 0 | AQ76: 0 | AR76: 0 | AS76: 0 | AT76: 0 | AU76: 0 | AV76: 0 | AW76: 0 | AX76: 0 | AY76: 0 | AZ76: 0 | BA76: 0 | BB76: 0 | BC76: 0 | BD76: 0 | BE76: 0 | BF76: 0 | BG76: 0 | BH76: 0 | BI76: 0 | BJ76: 0 | BK76: 0 | BL76: 0 | BM76: 0 | BN76: 0 | BO76: 0 | BP76: 0 | BQ76: 0 | BR76: 0 | BS76: 0 | BT76: 0 | BU76: 0 | BV76: 0 | BW76: 0 | BX76: 0 | BY76: 0 | BZ76: 0 | CA76: 0 | CB76: 0 | CC76: 0 | CD76: 0 | CE76: 0 | CF76: 0 | CG76: 0 | CH76: 0 | CI76: 0 | CJ76: 0 | CK76: 0 | CL76: 0 | CM76: 0 | CN76: 0 | CO76: 0
B77: 8hr Lithium-ion | M77: 0 | N77: 0 | O77: 0 | P77: 0 | Q77: 0 | R77: 0 | S77: 0 | T77: 0 | U77: 0 | V77: 0 | W77: 0 | X77: 0 | Y77: 0 | Z77: 0 | AA77: 0 | AB77: 0 | AC77: 0 | AD77: 0 | AE77: 0 | AF77: 0 | AG77: 0 | AH77: 0 | AI77: 0 | AJ77: 0 | AK77: 0 | AL77: 0 | AM77: 0 | AN77: 0 | AO77: 0 | AP77: 0 | AQ77: 0 | AR77: 0 | AS77: 0 | AT77: 0 | AU77: 0 | AV77: 0 | AW77: 0 | AX77: 0 | AY77: 0 | AZ77: 0 | BA77: 0 | BB77: 0 | BC77: 0 | BD77: 0 | BE77: 0 | BF77: 0 | BG77: 0 | BH77: 0 | BI77: 0 | BJ77: 0 | BK77: 0 | BL77: 0 | BM77: 0 | BN77: 0 | BO77: 0 | BP77: 0 | BQ77: 0 | BR77: 0 | BS77: 0 | BT77: 0 | BU77: 0 | BV77: 0 | BW77: 0 | BX77: 0 | BY77: 0 | BZ77: 0 | CA77: 0 | CB77: 0 | CC77: 0 | CD77: 0 | CE77: 0 | CF77: 0 | CG77: 0 | CH77: 0 | CI77: 0 | CJ77: 0 | CK77: 0 | CL77: 0 | CM77: 0 | CN77: 0 | CO77: 0
B78: 16hr Lithium-ion | M78: 0 | N78: 0 | O78: 0 | P78: 0 | Q78: 0 | R78: 0 | S78: 0 | T78: 0 | U78: 0 | V78: 0 | W78: 0 | X78: 0 | Y78: 0 | Z78: 0 | AA78: 0 | AB78: 0 | AC78: 0 | AD78: 0 | AE78: 0 | AF78: 0 | AG78: 0 | AH78: 0 | AI78: 0 | AJ78: 0 | AK78: 0 | AL78: 0 | AM78: 0 | AN78: 0 | AO78: 0 | AP78: 0 | AQ78: 0 | AR78: 0 | AS78: 0 | AT78: 0 | AU78: 0 | AV78: 0 | AW78: 0 | AX78: 0 | AY78: 0 | AZ78: 0 | BA78: 0 | BB78: 0 | BC78: 0 | BD78: 0 | BE78: 0 | BF78: 0 | BG78: 0 | BH78: 0 | BI78: 0 | BJ78: 0 | BK78: 0 | BL78: 0 | BM78: 0 | BN78: 0 | BO78: 0 | BP78: 0 | BQ78: 0 | BR78: 0 | BS78: 0 | BT78: 0 | BU78: 0 | BV78: 0 | BW78: 0 | BX78: 0 | BY78: 0 | BZ78: 0 | CA78: 0 | CB78: 0 | CC78: 0 | CD78: 0 | CE78: 0 | CF78: 0 | CG78: 0 | CH78: 0 | CI78: 0 | CJ78: 0 | CK78: 0 | CL78: 0 | CM78: 0 | CN78: 0 | CO78: 0
B79: 4 hr Flow Battery | M79: 0 | N79: 0 | O79: 0 | P79: 0 | Q79: 0 | R79: 0 | S79: 0 | T79: 0 | U79: 0 | V79: 0 | W79: 0 | X79: 0 | Y79: 0 | Z79: 0 | AA79: 0 | AB79: 0 | AC79: 0 | AD79: 0 | AE79: 0 | AF79: 0 | AG79: 0 | AH79: 0 | AI79: 0 | AJ79: 0 | AK79: 0 | AL79: 0 | AM79: 0 | AN79: 0 | AO79: 0 | AP79: 0 | AQ79: 0 | AR79: 0 | AS79: 0 | AT79: 0 | AU79: 0 | AV79: 0 | AW79: 0 | AX79: 0 | AY79: 0 | AZ79: 0 | BA79: 0 | BB79: 0 | BC79: 0 | BD79: 0 | BE79: 0 | BF79: 0 | BG79: 0 | BH79: 0 | BI79: 0 | BJ79: 0 | BK79: 0 | BL79: 0 | BM79: 0 | BN79: 0 | BO79: 0 | BP79: 0 | BQ79: 0 | BR79: 0 | BS79: 0 | BT79: 0 | BU79: 0 | BV79: 0 | BW79: 0 | BX79: 0 | BY79: 0 | BZ79: 0 | CA79: 0 | CB79: 0 | CC79: 0 | CD79: 0 | CE79: 0 | CF79: 0 | CG79: 0 | CH79: 0 | CI79: 0 | CJ79: 0 | CK79: 0 | CL79: 0 | CM79: 0 | CN79: 0 | CO79: 0
B80: 8 hr Flow Battery | M80: 0 | N80: 0 | O80: 0 | P80: 0 | Q80: 0 | R80: 0 | S80: 0 | T80: 0 | U80: 0 | V80: 0 | W80: 0 | X80: 0 | Y80: 0 | Z80: 0 | AA80: 0 | AB80: 0 | AC80: 0 | AD80: 0 | AE80: 0 | AF80: 0 | AG80: 0 | AH80: 0 | AI80: 0 | AJ80: 0 | AK80: 0 | AL80: 0 | AM80: 0 | AN80: 0 | AO80: 0 | AP80: 0 | AQ80: 0 | AR80: 0 | AS80: 0 | AT80: 0 | AU80: 0 | AV80: 0 | AW80: 0 | AX80: 0 | AY80: 0 | AZ80: 0 | BA80: 0 | BB80: 0 | BC80: 0 | BD80: 0 | BE80: 0 | BF80: 0 | BG80: 0 | BH80: 0 | BI80: 0 | BJ80: 0 | BK80: 0 | BL80: 0 | BM80: 0 | BN80: 0 | BO80: 0 | BP80: 0 | BQ80: 0 | BR80: 0 | BS80: 0 | BT80: 0 | BU80: 0 | BV80: 0 | BW80: 0 | BX80: 0 | BY80: 0 | BZ80: 0 | CA80: 0 | CB80: 0 | CC80: 0 | CD80: 0 | CE80: 0 | CF80: 0 | CG80: 0 | CH80: 0 | CI80: 0 | CJ80: 0 | CK80: 0 | CL80: 0 | CM80: 0 | CN80: 0 | CO80: 0
B81: 100hr Iron Oxide | M81: 0 | N81: 0 | O81: 0 | P81: 0 | Q81: 0 | R81: 0 | S81: 0 | T81: 0 | U81: 0 | V81: 0 | W81: 0 | X81: 0 | Y81: 0 | Z81: 0 | AA81: 0 | AB81: 0 | AC81: 0 | AD81: 0 | AE81: 0 | AF81: 0 | AG81: 0 | AH81: 0 | AI81: 0 | AJ81: 0 | AK81: 0 | AL81: 0 | AM81: 0 | AN81: 0 | AO81: 0 | AP81: 0 | AQ81: 0 | AR81: 0 | AS81: 0 | AT81: 0 | AU81: 0 | AV81: 0 | AW81: 0 | AX81: 0 | AY81: 0 | AZ81: 0 | BA81: 0 | BB81: 0 | BC81: 0 | BD81: 0 | BE81: 0 | BF81: 0 | BG81: 0 | BH81: 0 | BI81: 0 | BJ81: 0 | BK81: 0 | BL81: 0 | BM81: 0 | BN81: 0 | BO81: 0 | BP81: 0 | BQ81: 0 | BR81: 0 | BS81: 0 | BT81: 0 | BU81: 0 | BV81: 0 | BW81: 0 | BX81: 0 | BY81: 0 | BZ81: 0 | CA81: 0 | CB81: 0 | CC81: 0 | CD81: 0 | CE81: 0 | CF81: 0 | CG81: 0 | CH81: 0 | CI81: 0 | CJ81: 0 | CK81: 0 | CL81: 0 | CM81: 0 | CN81: 0 | CO81: 0
B82: Geothermal (Off System) | M82: 0 | N82: 0 | O82: 0 | P82: 0 | Q82: 0 | R82: 0 | S82: 0 | T82: 0 | U82: 0 | V82: 0 | W82: 0 | X82: 0 | Y82: 0 | Z82: 0 | AA82: 0 | AB82: 0 | AC82: 0 | AD82: 0 | AE82: 0 | AF82: 0 | AG82: 0 | AH82: 0 | AI82: 0 | AJ82: 0 | AK82: 0 | AL82: 0 | AM82: 0 | AN82: 0 | AO82: 0 | AP82: 0 | AQ82: 0 | AR82: 0 | AS82: 0 | AT82: 0 | AU82: 0 | AV82: 0 | AW82: 0 | AX82: 0 | AY82: 0 | AZ82: 0 | BA82: 0 | BB82: 0 | BC82: 0 | BD82: 0 | BE82: 0 | BF82: 0 | BG82: 0 | BH82: 0 | BI82: 0 | BJ82: 0 | BK82: 0 | BL82: 0 | BM82: 0 | BN82: 0 | BO82: 0 | BP82: 0 | BQ82: 0 | BR82: 0 | BS82: 0 | BT82: 0 | BU82: 0 | BV82: 0 | BW82: 0 | BX82: 0 | BY82: 0 | BZ82: 0 | CA82: 0 | CB82: 0 | CC82: 0 | CD82: 0 | CE82: 0 | CF82: 0 | CG82: 0 | CH82: 0 | CI82: 0 | CJ82: 0 | CK82: 0 | CL82: 0 | CM82: 0 | CN82: 0 | CO82: 0
B83: Hydrogen Fuel Cell with 40 hrs Storage | M83: 0 | N83: 0 | O83: 0 | P83: 0 | Q83: 0 | R83: 0 | S83: 5.687 | T83: 5.687 | U83: 5.687 | V83: 5.687 | W83: 5.687 | X83: 5.687 | Y83: 5.687 | Z83: 5.687 | AA83: 5.687 | AB83: 5.687 | AC83: 5.687 | AD83: 5.687 | AE83: 5.687 | AF83: 5.687 | AG83: 5.687 | AH83: 5.687 | AI83: 5.687 | AJ83: 5.687 | AK83: 5.687 | AL83: 5.687 | AM83: 5.687 | AN83: 5.687 | AO83: 5.687 | AP83: 5.687 | AQ83: 5.687 | AR83: 5.687 | AS83: 5.687 | AT83: 5.687 | AU83: 5.687 | AV83: 5.687 | AW83: 5.687 | AX83: 5.687 | AY83: 5.687 | AZ83: 5.687 | BA83: 5.687 | BB83: 5.687 | BC83: 5.687 | BD83: 5.687 | BE83: 5.687 | BF83: 5.687 | BG83: 5.687 | BH83: 5.687 | BI83: 5.687 | BJ83: 5.687 | BK83: 5.687 | BL83: 5.687 | BM83: 5.687 | BN83: 5.687 | BO83: 5.687 | BP83: 5.687 | BQ83: 5.687 | BR83: 5.687 | BS83: 5.687 | BT83: 5.687 | BU83: 5.687 | BV83: 5.687 | BW83: 5.687 | BX83: 5.687 | BY83: 5.687 | BZ83: 5.687 | CA83: 5.687 | CB83: 5.687 | CC83: 5.687 | CD83: 5.687 | CE83: 5.687 | CF83: 5.687 | CG83: 5.687 | CH83: 5.687 | CI83: 5.687 | CJ83: 5.687 | CK83: 5.687 | CL83: 5.687 | CM83: 5.687 | CN83: 5.687 | CO83: 5.687
B84: 7F.04 CT Frame Greenfield + Power to Gas + storage | M84: 0 | N84: 0 | O84: 0 | P84: 0 | Q84: 0 | R84: 0 | S84: 10.04 | T84: 10.04 | U84: 10.04 | V84: 10.04 | W84: 10.04 | X84: 10.04 | Y84: 10.04 | Z84: 10.04 | AA84: 10.04 | AB84: 10.04 | AC84: 10.04 | AD84: 10.04 | AE84: 10.04 | AF84: 10.04 | AG84: 10.04 | AH84: 10.04 | AI84: 10.04 | AJ84: 10.04 | AK84: 10.04 | AL84: 10.04 | AM84: 10.04 | AN84: 10.04 | AO84: 10.04 | AP84: 10.04 | AQ84: 10.04 | AR84: 10.04 | AS84: 10.04 | AT84: 10.04 | AU84: 10.04 | AV84: 10.04 | AW84: 10.04 | AX84: 10.04 | AY84: 10.04 | AZ84: 10.04 | BA84: 10.04 | BB84: 10.04 | BC84: 10.04 | BD84: 10.04 | BE84: 10.04 | BF84: 10.04 | BG84: 10.04 | BH84: 10.04 | BI84: 10.04 | BJ84: 10.04 | BK84: 10.04 | BL84: 10.04 | BM84: 10.04 | BN84: 10.04 | BO84: 10.04 | BP84: 10.04 | BQ84: 10.04 | BR84: 10.04 | BS84: 10.04 | BT84: 10.04 | BU84: 10.04 | BV84: 10.04 | BW84: 10.04 | BX84: 10.04 | BY84: 10.04 | BZ84: 10.04 | CA84: 10.04 | CB84: 10.04 | CC84: 10.04 | CD84: 10.04 | CE84: 10.04 | CF84: 10.04 | CG84: 10.04 | CH84: 10.04 | CI84: 10.04 | CJ84: 10.04 | CK84: 10.04 | CL84: 10.04 | CM84: 10.04 | CN84: 10.04 | CO84: 10.04
B85: 7F.04 CT Frame Greenfield + RNG | M85: 0 | N85: 0 | O85: 0 | P85: 0 | Q85: 0 | R85: 0 | S85: 10.04 | T85: 10.04 | U85: 10.04 | V85: 10.04 | W85: 10.04 | X85: 10.04 | Y85: 10.04 | Z85: 10.04 | AA85: 10.04 | AB85: 10.04 | AC85: 10.04 | AD85: 10.04 | AE85: 10.04 | AF85: 10.04 | AG85: 10.04 | AH85: 10.04 | AI85: 10.04 | AJ85: 10.04 | AK85: 10.04 | AL85: 10.04 | AM85: 10.04 | AN85: 10.04 | AO85: 10.04 | AP85: 10.04 | AQ85: 10.04 | AR85: 10.04 | AS85: 10.04 | AT85: 10.04 | AU85: 10.04 | AV85: 10.04 | AW85: 10.04 | AX85: 10.04 | AY85: 10.04 | AZ85: 10.04 | BA85: 10.04 | BB85: 10.04 | BC85: 10.04 | BD85: 10.04 | BE85: 10.04 | BF85: 10.04 | BG85: 10.04 | BH85: 10.04 | BI85: 10.04 | BJ85: 10.04 | BK85: 10.04 | BL85: 10.04 | BM85: 10.04 | BN85: 10.04 | BO85: 10.04 | BP85: 10.04 | BQ85: 10.04 | BR85: 10.04 | BS85: 10.04 | BT85: 10.04 | BU85: 10.04 | BV85: 10.04 | BW85: 10.04 | BX85: 10.04 | BY85: 10.04 | BZ85: 10.04 | CA85: 10.04 | CB85: 10.04 | CC85: 10.04 | CD85: 10.04 | CE85: 10.04 | CF85: 10.04 | CG85: 10.04 | CH85: 10.04 | CI85: 10.04 | CJ85: 10.04 | CK85: 10.04 | CL85: 10.04 | CM85: 10.04 | CN85: 10.04 | CO85: 10.04
B86: Pumped Hydro (8 hr) | M86: 0 | N86: 0 | O86: 0 | P86: 0 | Q86: 0 | R86: 0 | S86: 0 | T86: 0 | U86: 0 | V86: 0 | W86: 0 | X86: 0 | Y86: 0 | Z86: 0 | AA86: 0 | AB86: 0 | AC86: 0 | AD86: 0 | AE86: 0 | AF86: 0 | AG86: 0 | AH86: 0 | AI86: 0 | AJ86: 0 | AK86: 0 | AL86: 0 | AM86: 0 | AN86: 0 | AO86: 0 | AP86: 0 | AQ86: 0 | AR86: 0 | AS86: 0 | AT86: 0 | AU86: 0 | AV86: 0 | AW86: 0 | AX86: 0 | AY86: 0 | AZ86: 0 | BA86: 0 | BB86: 0 | BC86: 0 | BD86: 0 | BE86: 0 | BF86: 0 | BG86: 0 | BH86: 0 | BI86: 0 | BJ86: 0 | BK86: 0 | BL86: 0 | BM86: 0 | BN86: 0 | BO86: 0 | BP86: 0 | BQ86: 0 | BR86: 0 | BS86: 0 | BT86: 0 | BU86: 0 | BV86: 0 | BW86: 0 | BX86: 0 | BY86: 0 | BZ86: 0 | CA86: 0 | CB86: 0 | CC86: 0 | CD86: 0 | CE86: 0 | CF86: 0 | CG86: 0 | CH86: 0 | CI86: 0 | CJ86: 0 | CK86: 0 | CL86: 0 | CM86: 0 | CN86: 0 | CO86: 0
B87: Pumped Hydro (16 hr) | M87: 0 | N87: 0 | O87: 0 | P87: 0 | Q87: 0 | R87: 0 | S87: 0 | T87: 0 | U87: 0 | V87: 0 | W87: 0 | X87: 0 | Y87: 0 | Z87: 0 | AA87: 0 | AB87: 0 | AC87: 0 | AD87: 0 | AE87: 0 | AF87: 0 | AG87: 0 | AH87: 0 | AI87: 0 | AJ87: 0 | AK87: 0 | AL87: 0 | AM87: 0 | AN87: 0 | AO87: 0 | AP87: 0 | AQ87: 0 | AR87: 0 | AS87: 0 | AT87: 0 | AU87: 0 | AV87: 0 | AW87: 0 | AX87: 0 | AY87: 0 | AZ87: 0 | BA87: 0 | BB87: 0 | BC87: 0 | BD87: 0 | BE87: 0 | BF87: 0 | BG87: 0 | BH87: 0 | BI87: 0 | BJ87: 0 | BK87: 0 | BL87: 0 | BM87: 0 | BN87: 0 | BO87: 0 | BP87: 0 | BQ87: 0 | BR87: 0 | BS87: 0 | BT87: 0 | BU87: 0 | BV87: 0 | BW87: 0 | BX87: 0 | BY87: 0 | BZ87: 0 | CA87: 0 | CB87: 0 | CC87: 0 | CD87: 0 | CE87: 0 | CF87: 0 | CG87: 0 | CH87: 0 | CI87: 0 | CJ87: 0 | CK87: 0 | CL87: 0 | CM87: 0 | CN87: 0 | CO87: 0
B88: Pumped Hydro (24 hr) | M88: 0 | N88: 0 | O88: 0 | P88: 0 | Q88: 0 | R88: 0 | S88: 0 | T88: 0 | U88: 0 | V88: 0 | W88: 0 | X88: 0 | Y88: 0 | Z88: 0 | AA88: 0 | AB88: 0 | AC88: 0 | AD88: 0 | AE88: 0 | AF88: 0 | AG88: 0 | AH88: 0 | AI88: 0 | AJ88: 0 | AK88: 0 | AL88: 0 | AM88: 0 | AN88: 0 | AO88: 0 | AP88: 0 | AQ88: 0 | AR88: 0 | AS88: 0 | AT88: 0 | AU88: 0 | AV88: 0 | AW88: 0 | AX88: 0 | AY88: 0 | AZ88: 0 | BA88: 0 | BB88: 0 | BC88: 0 | BD88: 0 | BE88: 0 | BF88: 0 | BG88: 0 | BH88: 0 | BI88: 0 | BJ88: 0 | BK88: 0 | BL88: 0 | BM88: 0 | BN88: 0 | BO88: 0 | BP88: 0 | BQ88: 0 | BR88: 0 | BS88: 0 | BT88: 0 | BU88: 0 | BV88: 0 | BW88: 0 | BX88: 0 | BY88: 0 | BZ88: 0 | CA88: 0 | CB88: 0 | CC88: 0 | CD88: 0 | CE88: 0 | CF88: 0 | CG88: 0 | CH88: 0 | CI88: 0 | CJ88: 0 | CK88: 0 | CL88: 0 | CM88: 0 | CN88: 0 | CO88: 0
B89: Kettle Falls 2nd Biomass Unit | M89: 0 | N89: 0 | O89: 0 | P89: 0 | Q89: 0 | R89: 0 | S89: 13.361 | T89: 13.361 | U89: 13.361 | V89: 13.361 | W89: 13.361 | X89: 13.361 | Y89: 13.361 | Z89: 13.361 | AA89: 13.361 | AB89: 13.361 | AC89: 13.361 | AD89: 13.361 | AE89: 13.361 | AF89: 13.361 | AG89: 13.361 | AH89: 13.361 | AI89: 13.361 | AJ89: 13.361 | AK89: 13.361 | AL89: 13.361 | AM89: 13.361 | AN89: 13.361 | AO89: 13.361 | AP89: 13.361 | AQ89: 13.361 | AR89: 13.361 | AS89: 13.361 | AT89: 13.361 | AU89: 13.361 | AV89: 13.361 | AW89: 13.361 | AX89: 13.361 | AY89: 13.361 | AZ89: 13.361 | BA89: 13.361 | BB89: 13.361 | BC89: 13.361 | BD89: 13.361 | BE89: 13.361 | BF89: 13.361 | BG89: 13.361 | BH89: 13.361 | BI89: 13.361 | BJ89: 13.361 | BK89: 13.361 | BL89: 13.361 | BM89: 13.361 | BN89: 13.361 | BO89: 13.361 | BP89: 13.361 | BQ89: 13.361 | BR89: 13.361 | BS89: 13.361 | BT89: 13.361 | BU89: 13.361 | BV89: 13.361 | BW89: 13.361 | BX89: 13.361 | BY89: 13.361 | BZ89: 13.361 | CA89: 13.361 | CB89: 13.361 | CC89: 13.361 | CD89: 13.361 | CE89: 13.361 | CF89: 13.361 | CG89: 13.361 | CH89: 13.361 | CI89: 13.361 | CJ89: 13.361 | CK89: 13.361 | CL89: 13.361 | CM89: 13.361 | CN89: 13.361 | CO89: 13.361
B90: Rathdrum CT 2055 Uprates two unit operation | M90: 0 | N90: 0 | O90: 0 | P90: 0 | Q90: 0 | R90: 0 | S90: 11.386 | T90: 11.386 | U90: 11.386 | V90: 11.386 | W90: 11.386 | X90: 11.386 | Y90: 11.386 | Z90: 11.386 | AA90: 11.386 | AB90: 11.386 | AC90: 11.386 | AD90: 11.386 | AE90: 11.386 | AF90: 11.386 | AG90: 11.386 | AH90: 11.386 | AI90: 11.386 | AJ90: 11.386 | AK90: 11.386 | AL90: 11.386 | AM90: 11.386 | AN90: 11.386 | AO90: 11.386 | AP90: 11.386 | AQ90: 11.386 | AR90: 11.386 | AS90: 11.386 | AT90: 11.386 | AU90: 11.386 | AV90: 11.386 | AW90: 11.386 | AX90: 11.386 | AY90: 11.386 | AZ90: 11.386 | BA90: 11.386 | BB90: 11.386 | BC90: 11.386 | BD90: 11.386 | BE90: 11.386 | BF90: 11.386 | BG90: 11.386 | BH90: 11.386 | BI90: 11.386 | BJ90: 11.386 | BK90: 11.386 | BL90: 11.386 | BM90: 11.386 | BN90: 11.386 | BO90: 11.386 | BP90: 11.386 | BQ90: 11.386 | BR90: 11.386 | BS90: 11.386 | BT90: 11.386 | BU90: 11.386 | BV90: 11.386 | BW90: 11.386 | BX90: 11.386 | BY90: 11.386 | BZ90: 11.386 | CA90: 11.386 | CB90: 11.386 | CC90: 11.386 | CD90: 11.386 | CE90: 11.386 | CF90: 11.386 | CG90: 11.386 | CH90: 11.386 | CI90: 11.386 | CJ90: 11.386 | CK90: 11.386 | CL90: 11.386 | CM90: 11.386 | CN90: 11.386 | CO90: 11.386
B91: Rathdrum CT: Inlet Evaporation 2 unit operation | M91: 0 | N91: 0 | O91: 0 | P91: 0 | Q91: 0 | R91: 0 | S91: 11.386 | T91: 11.386 | U91: 11.386 | V91: 11.386 | W91: 11.386 | X91: 11.386 | Y91: 11.386 | Z91: 11.386 | AA91: 11.386 | AB91: 11.386 | AC91: 11.386 | AD91: 11.386 | AE91: 11.386 | AF91: 11.386 | AG91: 11.386 | AH91: 11.386 | AI91: 11.386 | AJ91: 11.386 | AK91: 11.386 | AL91: 11.386 | AM91: 11.386 | AN91: 11.386 | AO91: 11.386 | AP91: 11.386 | AQ91: 11.386 | AR91: 11.386 | AS91: 11.386 | AT91: 11.386 | AU91: 11.386 | AV91: 11.386 | AW91: 11.386 | AX91: 11.386 | AY91: 11.386 | AZ91: 11.386 | BA91: 11.386 | BB91: 11.386 | BC91: 11.386 | BD91: 11.386 | BE91: 11.386 | BF91: 11.386 | BG91: 11.386 | BH91: 11.386 | BI91: 11.386 | BJ91: 11.386 | BK91: 11.386 | BL91: 11.386 | BM91: 11.386 | BN91: 11.386 | BO91: 11.386 | BP91: 11.386 | BQ91: 11.386 | BR91: 11.386 | BS91: 11.386 | BT91: 11.386 | BU91: 11.386 | BV91: 11.386 | BW91: 11.386 | BX91: 11.386 | BY91: 11.386 | BZ91: 11.386 | CA91: 11.386 | CB91: 11.386 | CC91: 11.386 | CD91: 11.386 | CE91: 11.386 | CF91: 11.386 | CG91: 11.386 | CH91: 11.386 | CI91: 11.386 | CJ91: 11.386 | CK91: 11.386 | CL91: 11.386 | CM91: 11.386 | CN91: 11.386 | CO91: 11.386
B92: Kettle Falls Upgrade | M92: 0 | N92: 0 | O92: 0 | P92: 0 | Q92: 0 | R92: 0 | S92: 13.361 | T92: 13.361 | U92: 13.361 | V92: 13.361 | W92: 13.361 | X92: 13.361 | Y92: 13.361 | Z92: 13.361 | AA92: 13.361 | AB92: 13.361 | AC92: 13.361 | AD92: 13.361 | AE92: 13.361 | AF92: 13.361 | AG92: 13.361 | AH92: 13.361 | AI92: 13.361 | AJ92: 13.361 | AK92: 13.361 | AL92: 13.361 | AM92: 13.361 | AN92: 13.361 | AO92: 13.361 | AP92: 13.361 | AQ92: 13.361 | AR92: 13.361 | AS92: 13.361 | AT92: 13.361 | AU92: 13.361 | AV92: 13.361 | AW92: 13.361 | AX92: 13.361 | AY92: 13.361 | AZ92: 13.361 | BA92: 13.361 | BB92: 13.361 | BC92: 13.361 | BD92: 13.361 | BE92: 13.361 | BF92: 13.361 | BG92: 13.361 | BH92: 13.361 | BI92: 13.361 | BJ92: 13.361 | BK92: 13.361 | BL92: 13.361 | BM92: 13.361 | BN92: 13.361 | BO92: 13.361 | BP92: 13.361 | BQ92: 13.361 | BR92: 13.361 | BS92: 13.361 | BT92: 13.361 | BU92: 13.361 | BV92: 13.361 | BW92: 13.361 | BX92: 13.361 | BY92: 13.361 | BZ92: 13.361 | CA92: 13.361 | CB92: 13.361 | CC92: 13.361 | CD92: 13.361 | CE92: 13.361 | CF92: 13.361 | CG92: 13.361 | CH92: 13.361 | CI92: 13.361 | CJ92: 13.361 | CK92: 13.361 | CL92: 13.361 | CM92: 13.361 | CN92: 13.361 | CO92: 13.361
B93: Palouse Repower | M93: 0 | N93: 0 | O93: 0 | P93: 0 | Q93: 0 | R93: 0 | S93: 0 | T93: 0 | U93: 0 | V93: 0 | W93: 0 | X93: 0 | Y93: 0 | Z93: 0 | AA93: 0 | AB93: 0 | AC93: 0 | AD93: 0 | AE93: 0 | AF93: 0 | AG93: 0 | AH93: 0 | AI93: 0 | AJ93: 0 | AK93: 0 | AL93: 0 | AM93: 0 | AN93: 0 | AO93: 0 | AP93: 0 | AQ93: 0 | AR93: 0 | AS93: 0 | AT93: 0 | AU93: 0 | AV93: 0 | AW93: 0 | AX93: 0 | AY93: 0 | AZ93: 0 | BA93: 0 | BB93: 0 | BC93: 0 | BD93: 0 | BE93: 0 | BF93: 0 | BG93: 0 | BH93: 0 | BI93: 0 | BJ93: 0 | BK93: 0 | BL93: 0 | BM93: 0 | BN93: 0 | BO93: 0 | BP93: 0 | BQ93: 0 | BR93: 0 | BS93: 0 | BT93: 0 | BU93: 0 | BV93: 0 | BW93: 0 | BX93: 0 | BY93: 0 | BZ93: 0 | CA93: 0 | CB93: 0 | CC93: 0 | CD93: 0 | CE93: 0 | CF93: 0 | CG93: 0 | CH93: 0 | CI93: 0 | CJ93: 0 | CK93: 0 | CL93: 0 | CM93: 0 | CN93: 0 | CO93: 0
B94: Rattlesnake Repower | M94: 0 | N94: 0 | O94: 0 | P94: 0 | Q94: 0 | R94: 0 | S94: 0 | T94: 0 | U94: 0 | V94: 0 | W94: 0 | X94: 0 | Y94: 0 | Z94: 0 | AA94: 0 | AB94: 0 | AC94: 0 | AD94: 0 | AE94: 0 | AF94: 0 | AG94: 0 | AH94: 0 | AI94: 0 | AJ94: 0 | AK94: 0 | AL94: 0 | AM94: 0 | AN94: 0 | AO94: 0 | AP94: 0 | AQ94: 0 | AR94: 0 | AS94: 0 | AT94: 0 | AU94: 0 | AV94: 0 | AW94: 0 | AX94: 0 | AY94: 0 | AZ94: 0 | BA94: 0 | BB94: 0 | BC94: 0 | BD94: 0 | BE94: 0 | BF94: 0 | BG94: 0 | BH94: 0 | BI94: 0 | BJ94: 0 | BK94: 0 | BL94: 0 | BM94: 0 | BN94: 0 | BO94: 0 | BP94: 0 | BQ94: 0 | BR94: 0 | BS94: 0 | BT94: 0 | BU94: 0 | BV94: 0 | BW94: 0 | BX94: 0 | BY94: 0 | BZ94: 0 | CA94: 0 | CB94: 0 | CC94: 0 | CD94: 0 | CE94: 0 | CF94: 0 | CG94: 0 | CH94: 0 | CI94: 0 | CJ94: 0 | CK94: 0 | CL94: 0 | CM94: 0 | CN94: 0 | CO94: 0
B95: Lind Repower | M95: 0 | N95: 0 | O95: 0 | P95: 0 | Q95: 0 | R95: 0 | S95: 0 | T95: 0 | U95: 0 | V95: 0 | W95: 0 | X95: 0 | Y95: 0 | Z95: 0 | AA95: 0 | AB95: 0 | AC95: 0 | AD95: 0 | AE95: 0 | AF95: 0 | AG95: 0 | AH95: 0 | AI95: 0 | AJ95: 0 | AK95: 0 | AL95: 0 | AM95: 0 | AN95: 0 | AO95: 0 | AP95: 0 | AQ95: 0 | AR95: 0 | AS95: 0 | AT95: 0 | AU95: 0 | AV95: 0 | AW95: 0 | AX95: 0 | AY95: 0 | AZ95: 0 | BA95: 0 | BB95: 0 | BC95: 0 | BD95: 0 | BE95: 0 | BF95: 0 | BG95: 0 | BH95: 0 | BI95: 0 | BJ95: 0 | BK95: 0 | BL95: 0 | BM95: 0 | BN95: 0 | BO95: 0 | BP95: 0 | BQ95: 0 | BR95: 0 | BS95: 0 | BT95: 0 | BU95: 0 | BV95: 0 | BW95: 0 | BX95: 0 | BY95: 0 | BZ95: 0 | CA95: 0 | CB95: 0 | CC95: 0 | CD95: 0 | CE95: 0 | CF95: 0 | CG95: 0 | CH95: 0 | CI95: 0 | CJ95: 0 | CK95: 0 | CL95: 0 | CM95: 0 | CN95: 0 | CO95: 0
B97: CAPEX ($/kW)
B98: =List_Resources -> 7F.04 CT Frame Greenfield | M98: =IFERROR('DATA (Real)'!$M$98:$CO$141*$M$3:$CO$3/INDEX($M$3:$CO$3,1,MATCH('DATA (Real)'!$G$98:$G$141,_xlfn.ANCHORARRAY($M$1),0)),0) -> 0 | N98: 0 | O98: 744.4582952 | P98: 775.7255436 | Q98: 795.1186822 | R98: 812.7878096 | S98: 830.8495803 | T98: 849.3127197 | U98: 868.1861469 | V98: 887.4789795 | W98: 907.2005374 | X98: 927.3603477 | Y98: 947.9681494 | Z98: 969.0338976 | AA98: 990.5677688 | AB98: 1012.580166 | AC98: 1035.081722 | AD98: 1058.083308 | AE98: 1081.596036 | AF98: 1105.631263 | AG98: 1130.200601 | AH98: 1155.315918 | AI98: 1180.989349 | AJ98: 1207.233294 | AK98: 1234.060432 | AL98: 1261.483723 | AM98: 1289.516414 | AN98: 1318.172048 | AO98: 1347.464467 | AP98: 1377.407823 | AQ98: 1408.016579 | AR98: 1439.305524 | AS98: 1471.289771 | AT98: 1503.984773 | AU98: 1537.406322 | AV98: 1571.570565 | AW98: 1606.494007 | AX98: 1642.193516 | AY98: 1678.686341 | AZ98: 1715.990109 | BA98: 1754.122841 | BB98: 1793.102959 | BC98: 1832.949292 | BD98: 1873.681092 | BE98: 1915.318033 | BF98: 1957.88023 | BG98: 2001.388245 | BH98: 2045.863094 | BI98: 2091.326264 | BJ98: 2137.799716 | BK98: 2185.305901 | BL98: 2233.867769 | BM98: 2283.508779 | BN98: 2334.252911 | BO98: 2386.124679 | BP98: 2439.149142 | BQ98: 2493.351914 | BR98: 2548.75918 | BS98: 2605.397707 | BT98: 2663.294854 | BU98: 2722.478593 | BV98: 2782.977512 | BW98: 2844.820838 | BX98: 2908.038447 | BY98: 2972.660877 | BZ98: 3038.719347 | CA98: 3106.245769 | CB98: 3175.272762 | CC98: 3245.833673 | CD98: 3317.962589 | CE98: 3391.694354 | CF98: 3467.064586 | CG98: 3544.109695 | CH98: 3622.866901 | CI98: 3703.374249 | CJ98: 3785.670632 | CK98: 3869.795804 | CL98: 3955.790407 | CM98: 4043.695981 | CN98: 4133.554993 | CO98: 4225.410852
B99: Reciprocating Engine (ICE) Machine | M99: 0 | N99: 0 | O99: 1139.324195 | P99: 1187.175811 | Q99: 1216.855206 | R99: 1243.896162 | S99: 1271.538023 | T99: 1299.794141 | U99: 1328.678166 | V99: 1358.204053 | W99: 1388.386063 | X99: 1419.238778 | Y99: 1450.777102 | Z99: 1483.016271 | AA99: 1515.971859 | AB99: 1549.659785 | AC99: 1584.096325 | AD99: 1619.298113 | AE99: 1655.282156 | AF99: 1692.065836 | AG99: 1729.666923 | AH99: 1768.103582 | AI99: 1807.394379 | AJ99: 1847.558297 | AK99: 1888.614738 | AL99: 1930.583534 | AM99: 1973.484962 | AN99: 2017.339745 | AO99: 2062.169068 | AP99: 2107.994589 | AQ99: 2154.838445 | AR99: 2202.723265 | AS99: 2251.672182 | AT99: 2301.708841 | AU99: 2352.857415 | AV99: 2405.142612 | AW99: 2458.589691 | AX99: 2513.224471 | AY99: 2569.073345 | AZ99: 2626.163293 | BA99: 2684.521894 | BB99: 2744.17734 | BC99: 2805.158448 | BD99: 2867.494679 | BE99: 2931.216146 | BF99: 2996.353631 | BG99: 3062.938602 | BH99: 3131.003223 | BI99: 3200.580377 | BJ99: 3271.703674 | BK99: 3344.407473 | BL99: 3418.726896 | BM99: 3494.697845 | BN99: 3572.357021 | BO99: 3651.741938 | BP99: 3732.890948 | BQ99: 3815.84325 | BR99: 3900.638919 | BS99: 3987.318917 | BT99: 4075.925118 | BU99: 4166.500326 | BV99: 4259.088296 | BW99: 4353.733757 | BX99: 4450.482428 | BY99: 4549.381049 | BZ99: 4650.477394 | CA99: 4753.820303 | CB99: 4859.459698 | CC99: 4967.446611 | CD99: 5077.83321 | CE99: 5190.672819 | CF99: 5306.019951 | CG99: 5423.930326 | CH99: 5544.460906 | CI99: 5667.669916 | CJ99: 5793.616877 | CK99: 5922.362631 | CL99: 6053.969374 | CM99: 6188.500681 | CN99: 6326.021543 | CO99: 6466.598394
B100: NG CCCT (1x1 w/DF) | M100: 0 | N100: 0 | O100: 1139.113939 | P100: 1186.956724 | Q100: 1216.630642 | R100: 1243.666608 | S100: 1271.303368 | T100: 1299.554271 | U100: 1328.432966 | V100: 1357.953404 | W100: 1388.129844 | X100: 1418.976865 | Y100: 1450.509369 | Z100: 1482.742589 | AA100: 1515.692094 | AB100: 1549.373804 | AC100: 1583.803989 | AD100: 1618.999281 | AE100: 1654.976683 | AF100: 1691.753575 | AG100: 1729.347723 | AH100: 1767.777288 | AI100: 1807.060835 | AJ100: 1847.217341 | AK100: 1888.266204 | AL100: 1930.227256 | AM100: 1973.120766 | AN100: 2016.967456 | AO100: 2061.788507 | AP100: 2107.605571 | AQ100: 2154.440782 | AR100: 2202.316765 | AS100: 2251.256648 | AT100: 2301.284073 | AU100: 2352.423208 | AV100: 2404.698756 | AW100: 2458.135972 | AX100: 2512.76067 | AY100: 2568.599237 | AZ100: 2625.67865 | BA100: 2684.026481 | BB100: 2743.670917 | BC100: 2804.640772 | BD100: 2866.965499 | BE100: 2930.675207 | BF100: 2995.800671 | BG100: 3062.373354 | BH100: 3130.425414 | BI100: 3199.989728 | BJ100: 3271.0999 | BK100: 3343.790282 | BL100: 3418.095989 | BM100: 3494.052918 | BN100: 3571.697762 | BO100: 3651.06803 | BP100: 3732.202064 | BQ100: 3815.139058 | BR100: 3899.919078 | BS100: 3986.58308 | BT100: 4075.172929 | BU100: 4165.731422 | BV100: 4258.302305 | BW100: 4352.930299 | BX100: 4449.661116 | BY100: 4548.541486 | BZ100: 4649.619175 | CA100: 4752.943012 | CB100: 4858.562912 | CC100: 4966.529897 | CD100: 5076.896124 | CE100: 5189.71491 | CF100: 5305.040754 | CG100: 5422.92937 | CH100: 5543.437706 | CI100: 5666.623979 | CJ100: 5792.547697 | CK100: 5921.269692 | CL100: 6052.852147 | CM100: 6187.358628 | CN100: 6324.854111 | CO100: 6465.405019
B101: Small Modular Reactor | M101: 0 | N101: 8017.026966 | O101: 8307.88119 | P101: 8358.41287 | Q101: 8261.513878 | R101: 8196.358008 | S101: 8223.526763 | T101: 8322.197585 | U101: 8451.426879 | V101: 8586.505777 | W101: 8725.012779 | X101: 8850.09188 | Y101: 8981.725956 | Z101: 9126.565712 | AA101: 9269.832604 | AB101: 9416.714928 | AC101: 9556.700589 | AD101: 9698.874438 | AE101: 9848.764309 | AF101: 9989.059758 | AG101: 10141.39696 | AH101: 10303.07642 | AI101: 10455.04784 | AJ101: 10617.90154 | AK101: 10776.98384 | AL101: 10932.75374 | AM101: 11091.87269 | AN101: 11257.16598 | AO101: 11422.13493 | AP101: 11580.58675 | AQ101: 11691.08649 | AR101: 11802.64061 | AS101: 11915.25915 | AT101: 12028.95228 | AU101: 12143.73025 | AV101: 12259.60341 | AW101: 12376.5822 | AX101: 12494.67719 | AY101: 12613.89902 | AZ101: 12734.25843 | BA101: 12855.7663 | BB101: 12978.43357 | BC101: 13102.2713 | BD101: 13227.29067 | BE101: 13353.50296 | BF101: 13480.91953 | BG101: 13609.5519 | BH101: 13739.41164 | BI101: 13870.51049 | BJ101: 14002.86025 | BK101: 14136.47287 | BL101: 14271.3604 | BM101: 14407.535 | BN101: 14545.00895 | BO101: 14683.79465 | BP101: 14823.90461 | BQ101: 14965.35148 | BR101: 15108.14801 | BS101: 15252.30707 | BT101: 15397.84168 | BU101: 15544.76494 | BV101: 15693.09012 | BW101: 15842.8306 | BX101: 15993.99986 | BY101: 16146.61156 | BZ101: 16300.67944 | CA101: 16456.21742 | CB101: 16613.2395 | CC101: 16771.75986 | CD101: 16931.7928 | CE101: 17093.35273 | CF101: 17256.45424 | CG101: 17421.11203 | CH101: 17587.34096 | CI101: 17755.15601 | CJ101: 17924.57232 | CK101: 18095.60517 | CL101: 18268.26998 | CM101: 18442.58233 | CN101: 18618.55793 | CO101: 18796.21266
B102: Northwest Wind (On System) | M102: 0 | N102: 1402.569214 | O102: 1692.314707 | P102: 1650.071599 | Q102: 1503.414546 | R102: 1501.912323 | S102: 1499.600923 | T102: 1496.445124 | U102: 1492.408541 | V102: 1487.453585 | W102: 1481.541435 | X102: 1499.65153 | Y102: 1517.8349 | Z102: 1536.085858 | AA102: 1554.398429 | AB102: 1572.766337 | AC102: 1591.183 | AD102: 1609.641514 | AE102: 1628.134645 | AF102: 1646.654815 | AG102: 1665.194095 | AH102: 1683.744188 | AI102: 1702.29642 | AJ102: 1720.841725 | AK102: 1739.370634 | AL102: 1757.873261 | AM102: 1776.339287 | AN102: 1794.757949 | AO102: 1813.118023 | AP102: 1831.407809 | AQ102: 1849.615118 | AR102: 1868.003439 | AS102: 1886.57457 | AT102: 1905.330331 | AU102: 1924.272555 | AV102: 1943.403098 | AW102: 1962.72383 | AX102: 1982.236644 | AY102: 2001.943448 | AZ102: 2021.846171 | BA102: 2041.946761 | BB102: 2062.247185 | BC102: 2082.74943 | BD102: 2103.455502 | BE102: 2124.367428 | BF102: 2145.487254 | BG102: 2166.817047 | BH102: 2188.358894 | BI102: 2210.114904 | BJ102: 2232.087205 | BK102: 2254.277949 | BL102: 2276.689306 | BM102: 2299.323471 | BN102: 2322.182657 | BO102: 2345.269103 | BP102: 2368.585067 | BQ102: 2392.132832 | BR102: 2415.914701 | BS102: 2439.933003 | BT102: 2464.190087 | BU102: 2488.688328 | BV102: 2513.430124 | BW102: 2538.417894 | BX102: 2563.654086 | BY102: 2589.141169 | BZ102: 2614.881636 | CA102: 2640.878007 | CB102: 2667.132827 | CC102: 2693.648664 | CD102: 2720.428114 | CE102: 2747.473797 | CF102: 2774.78836 | CG102: 2802.374476 | CH102: 2830.234845 | CI102: 2858.372194 | CJ102: 2886.789276 | CK102: 2915.488872 | CL102: 2944.47379 | CM102: 2973.746868 | CN102: 3003.310971 | CO102: 3033.16899
B103: Northwest Wind (Off System) | M103: 0 | N103: 1518.360209 | O103: 1811.838738 | P103: 1777.379551 | Q103: 1638.488338 | R103: 1640.839215 | S103: 1642.485461 | T103: 1643.394597 | U103: 1643.533052 | V103: 1642.866123 | W103: 1641.357948 | X103: 1663.380772 | Y103: 1685.571848 | Z103: 1707.927777 | AA103: 1730.444929 | AB103: 1753.119429 | AC103: 1775.947151 | AD103: 1798.923707 | AE103: 1822.044441 | AF103: 1845.304412 | AG103: 1868.698392 | AH103: 1892.220852 | AI103: 1915.865948 | AJ103: 1939.627515 | AK103: 1963.499054 | AL103: 1987.473718 | AM103: 2011.544302 | AN103: 2035.70323 | AO103: 2059.942542 | AP103: 2084.25388 | AQ103: 2108.628477 | AR103: 2133.326588 | AS103: 2158.353234 | AT103: 2183.713526 | AU103: 2209.412665 | AV103: 2235.455949 | AW103: 2261.848767 | AX103: 2288.596608 | AY103: 2315.705062 | AZ103: 2343.179817 | BA103: 2371.026666 | BB103: 2399.251506 | BC103: 2427.860345 | BD103: 2456.859296 | BE103: 2486.254586 | BF103: 2516.052558 | BG103: 2546.259668 | BH103: 2576.882493 | BI103: 2607.927731 | BJ103: 2639.402201 | BK103: 2671.312853 | BL103: 2703.66676 | BM103: 2736.47113 | BN103: 2769.733304 | BO103: 2803.460759 | BP103: 2837.661112 | BQ103: 2872.342122 | BR103: 2907.511692 | BS103: 2943.177876 | BT103: 2979.348875 | BU103: 3016.033048 | BV103: 3053.238908 | BW103: 3090.975131 | BX103: 3129.250556 | BY103: 3168.074187 | BZ103: 3207.455202 | CA103: 3247.402952 | CB103: 3287.926963 | CC103: 3329.036946 | CD103: 3370.742794 | CE103: 3413.054591 | CF103: 3455.982612 | CG103: 3499.53733 | CH103: 3543.729418 | CI103: 3588.569754 | CJ103: 3634.069424 | CK103: 3680.239729 | CL103: 3727.092187 | CM103: 3774.638538 | CN103: 3822.89075 | CO103: 3871.861022
B104: Montana Wind (Off System) | M104: 0 | N104: 1433.883035 | O104: 1716.08831 | P104: 1690.310814 | Q104: 1565.151044 | R104: 1573.840375 | S104: 1582.142997 | T104: 1590.037431 | U104: 1597.501436 | V104: 1604.511983 | W104: 1611.045233 | X104: 1632.602629 | Y104: 1654.32256 | Z104: 1676.201603 | AA104: 1698.236107 | AB104: 1720.422174 | AC104: 1742.75566 | AD104: 1765.232162 | AE104: 1787.847006 | AF104: 1810.595243 | AG104: 1833.471632 | AH104: 1856.470636 | AI104: 1879.586408 | AJ104: 1902.812781 | AK104: 1926.143253 | AL104: 1949.570984 | AM104: 1973.088774 | AN104: 1996.689056 | AO104: 2020.363884 | AP104: 2044.104917 | AQ104: 2067.903405 | AR104: 2091.978968 | AS104: 2116.33483 | AT104: 2140.974255 | AU104: 2165.900544 | AV104: 2191.117038 | AW104: 2216.627115 | AX104: 2242.434193 | AY104: 2268.54173 | AZ104: 2294.953224 | BA104: 2321.672213 | BB104: 2348.702279 | BC104: 2376.047041 | BD104: 2403.710166 | BE104: 2431.695358 | BF104: 2460.006367 | BG104: 2488.646988 | BH104: 2517.621057 | BI104: 2546.932456 | BJ104: 2576.585113 | BK104: 2606.583002 | BL104: 2636.930141 | BM104: 2667.630596 | BN104: 2698.688481 | BO104: 2730.107958 | BP104: 2761.893236 | BQ104: 2794.048574 | BR104: 2826.57828 | BS104: 2859.486713 | BT104: 2892.778283 | BU104: 2926.45745 | BV104: 2960.528727 | BW104: 2994.996678 | BX104: 3029.865922 | BY104: 3065.141132 | BZ104: 3100.827033 | CA104: 3136.928407 | CB104: 3173.450092 | CC104: 3210.39698 | CD104: 3247.774022 | CE104: 3285.586226 | CF104: 3323.838659 | CG104: 3362.536445 | CH104: 3401.684771 | CI104: 3441.288881 | CJ104: 3481.354082 | CK104: 3521.885741 | CL104: 3562.889291 | CM104: 3604.370224 | CN104: 3646.334099 | CO104: 3688.786539
B105: Off Shore Wind (Off System) | M105: 0 | N105: 5076.70908 | O105: 5795.939963 | P105: 5609.468499 | Q105: 5215.237208 | R105: 5209.631773 | S105: 5220.39198 | T105: 5243.4159 | U105: 5276.095124 | V105: 5316.676514 | W105: 5363.931561 | X105: 5416.971201 | Y105: 5475.135587 | Z105: 5537.92519 | AA105: 5604.95596 | AB105: 5675.929143 | AC105: 5750.610375 | AD105: 5828.814845 | AE105: 5910.396521 | AF105: 5995.240196 | AG105: 6083.255508 | AH105: 6174.372376 | AI105: 6268.537476 | AJ105: 6365.711482 | AK105: 6465.866891 | AL105: 6568.986278 | AM105: 6675.0609 | AN105: 6784.08956 | AO105: 6896.077677 | AP105: 7011.036525 | AQ105: 7128.982603 | AR105: 7248.912877 | AS105: 7370.860728 | AT105: 7494.860098 | AU105: 7620.945498 | AV105: 7749.152023 | AW105: 7879.515355 | AX105: 8012.071778 | AY105: 8146.858187 | AZ105: 8283.912097 | BA105: 8423.271653 | BB105: 8564.975643 | BC105: 8709.063507 | BD105: 8855.575349 | BE105: 9004.551948 | BF105: 9156.034767 | BG105: 9310.06597 | BH105: 9466.688426 | BI105: 9625.945728 | BJ105: 9787.882203 | BK105: 9952.542921 | BL105: 10119.97371 | BM105: 10290.22118 | BN105: 10463.3327 | BO105: 10639.35647 | BP105: 10818.34147 | BQ105: 11000.33751 | BR105: 11185.39527 | BS105: 11373.56623 | BT105: 11564.90278 | BU105: 11759.45816 | BV105: 11957.28654 | BW105: 12158.44296 | BX105: 12362.98343 | BY105: 12570.96485 | BZ105: 12782.44514 | CA105: 12997.48314 | CB105: 13216.1387 | CC105: 13438.47269 | CD105: 13664.54699 | CE105: 13894.42451 | CF105: 14128.16924 | CG105: 14365.84624 | CH105: 14607.52167 | CI105: 14853.26277 | CJ105: 15103.13796 | CK105: 15357.21678 | CL105: 15615.56995 | CM105: 15878.26937 | CN105: 16145.38815 | CO105: 16417.00066
B106: New Construction Residential Solar | M106: 0 | N106: 3272.863348 | O106: 3446.772238 | P106: 3614.643822 | Q106: 3763.892365 | R106: 3718.442087 | S106: 3809.856414 | T106: 3862.851522 | U106: 3919.273326 | V106: 3920.686427 | W106: 3923.463743 | X106: 3928.339057 | Y106: 3911.865303 | Z106: 3887.003184 | AA106: 3851.947602 | AB106: 3803.37907 | AC106: 3875.661476 | AD106: 3943.123297 | AE106: 4009.359934 | AF106: 4073.44568 | AG106: 4135.036695 | AH106: 4192.720262 | AI106: 4248.020843 | AJ106: 4301.499277 | AK106: 4352.427989 | AL106: 4401.359967 | AM106: 4446.430633 | AN106: 4490.04222 | AO106: 4532.067406 | AP106: 4571.696684 | AQ106: 4607.737888 | AR106: 4644.063224 | AS106: 4680.674933 | AT106: 4717.575272 | AU106: 4754.766517 | AV106: 4792.250961 | AW106: 4830.030916 | AX106: 4868.10871 | AY106: 4906.486693 | AZ106: 4945.167231 | BA106: 4984.152709 | BB106: 5023.445531 | BC106: 5063.048119 | BD106: 5102.962917 | BE106: 5143.192385 | BF106: 5183.739004 | BG106: 5224.605275 | BH106: 5265.793717 | BI106: 5307.30687 | BJ106: 5349.147294 | BK106: 5391.317569 | BL106: 5433.820296 | BM106: 5476.658095 | BN106: 5519.833608 | BO106: 5563.349497 | BP106: 5607.208446 | BQ106: 5651.41316 | BR106: 5695.966363 | BS106: 5740.870804 | BT106: 5786.129252 | BU106: 5831.744496 | BV106: 5877.719351 | BW106: 5924.056651 | BX106: 5970.759253 | BY106: 6017.830038 | BZ106: 6065.271908 | CA106: 6113.087788 | CB106: 6161.280627 | CC106: 6209.853396 | CD106: 6258.809092 | CE106: 6308.150732 | CF106: 6357.88136 | CG106: 6408.004041 | CH106: 6458.521867 | CI106: 6509.437954 | CJ106: 6560.755439 | CK106: 6612.477489 | CL106: 6664.607292 | CM106: 6717.148063 | CN106: 6770.103042 | CO106: 6823.475494
B107: New Construction Residential Solar + Storage | M107: 0 | N107: 3272.863348 | O107: 3446.772238 | P107: 3614.643822 | Q107: 3763.892365 | R107: 3718.442087 | S107: 3809.856414 | T107: 3862.851522 | U107: 3919.273326 | V107: 3920.686427 | W107: 3923.463743 | X107: 3928.339057 | Y107: 3911.865303 | Z107: 3887.003184 | AA107: 3851.947602 | AB107: 3803.37907 | AC107: 3875.661476 | AD107: 3943.123297 | AE107: 4009.359934 | AF107: 4073.44568 | AG107: 4135.036695 | AH107: 4192.720262 | AI107: 4248.020843 | AJ107: 4301.499277 | AK107: 4352.427989 | AL107: 4401.359967 | AM107: 4446.430633 | AN107: 4490.04222 | AO107: 4532.067406 | AP107: 4571.696684 | AQ107: 4607.737888 | AR107: 4644.063224 | AS107: 4680.674933 | AT107: 4717.575272 | AU107: 4754.766517 | AV107: 4792.250961 | AW107: 4830.030916 | AX107: 4868.10871 | AY107: 4906.486693 | AZ107: 4945.167231 | BA107: 4984.152709 | BB107: 5023.445531 | BC107: 5063.048119 | BD107: 5102.962917 | BE107: 5143.192385 | BF107: 5183.739004 | BG107: 5224.605275 | BH107: 5265.793717 | BI107: 5307.30687 | BJ107: 5349.147294 | BK107: 5391.317569 | BL107: 5433.820296 | BM107: 5476.658095 | BN107: 5519.833608 | BO107: 5563.349497 | BP107: 5607.208446 | BQ107: 5651.41316 | BR107: 5695.966363 | BS107: 5740.870804 | BT107: 5786.129252 | BU107: 5831.744496 | BV107: 5877.719351 | BW107: 5924.056651 | BX107: 5970.759253 | BY107: 6017.830038 | BZ107: 6065.271908 | CA107: 6113.087788 | CB107: 6161.280627 | CC107: 6209.853396 | CD107: 6258.809092 | CE107: 6308.150732 | CF107: 6357.88136 | CG107: 6408.004041 | CH107: 6458.521867 | CI107: 6509.437954 | CJ107: 6560.755439 | CK107: 6612.477489 | CL107: 6664.607292 | CM107: 6717.148063 | CN107: 6770.103042 | CO107: 6823.475494
B108: Residential Solar | M108: 0 | N108: 3557.460161 | O108: 3746.491563 | P108: 3928.960676 | Q108: 4091.187353 | R108: 4041.784877 | S108: 4141.148276 | T108: 4198.751654 | U108: 4260.079702 | V108: 4261.615682 | W108: 4264.634504 | X108: 4269.933758 | Y108: 4252.027503 | Z108: 4225.00346 | AA108: 4186.899568 | AB108: 4134.107685 | AC108: 4212.675517 | AD108: 4286.003584 | AE108: 4357.999929 | AF108: 4427.658348 | AG108: 4494.605104 | AH108: 4557.304632 | AI108: 4617.41396 | AJ108: 4675.542692 | AK108: 4730.899988 | AL108: 4784.086921 | AM108: 4833.076775 | AN108: 4880.480673 | AO108: 4926.160224 | AP108: 4969.235526 | AQ108: 5008.410747 | AR108: 5047.894809 | AS108: 5087.690144 | AT108: 5127.799209 | AU108: 5168.224475 | AV108: 5208.968436 | AW108: 5250.033604 | AX108: 5291.422511 | AY108: 5333.13771 | AZ108: 5375.181773 | BA108: 5417.557292 | BB108: 5460.266881 | BC108: 5503.313173 | BD108: 5546.698823 | BE108: 5590.426506 | BF108: 5634.498918 | BG108: 5678.918777 | BH108: 5723.688823 | BI108: 5768.811815 | BJ108: 5814.290537 | BK108: 5860.127792 | BL108: 5906.326408 | BM108: 5952.889233 | BN108: 5999.819139 | BO108: 6047.119019 | BP108: 6094.791789 | BQ108: 6142.840391 | BR108: 6191.267786 | BS108: 6240.076961 | BT108: 6289.270926 | BU108: 6338.852713 | BV108: 6388.825382 | BW108: 6439.192012 | BX108: 6489.95571 | BY108: 6541.119606 | BZ108: 6592.686856 | CA108: 6644.660639 | CB108: 6697.044159 | CC108: 6749.840648 | CD108: 6803.053361 | CE108: 6856.685578 | CF108: 6910.740608 | CG108: 6965.221784 | CH108: 7020.132465 | CI108: 7075.476037 | CJ108: 7131.255912 | CK108: 7187.475531 | CL108: 7244.138361 | CM108: 7301.247895 | CN108: 7358.807654 | CO108: 7416.821189
B109: Residential Solar + Storage | M109: 0 | N109: 3557.460161 | O109: 3746.491563 | P109: 3928.960676 | Q109: 4091.187353 | R109: 4041.784877 | S109: 4141.148276 | T109: 4198.751654 | U109: 4260.079702 | V109: 4261.615682 | W109: 4264.634504 | X109: 4269.933758 | Y109: 4252.027503 | Z109: 4225.00346 | AA109: 4186.899568 | AB109: 4134.107685 | AC109: 4212.675517 | AD109: 4286.003584 | AE109: 4357.999929 | AF109: 4427.658348 | AG109: 4494.605104 | AH109: 4557.304632 | AI109: 4617.41396 | AJ109: 4675.542692 | AK109: 4730.899988 | AL109: 4784.086921 | AM109: 4833.076775 | AN109: 4880.480673 | AO109: 4926.160224 | AP109: 4969.235526 | AQ109: 5008.410747 | AR109: 5047.894809 | AS109: 5087.690144 | AT109: 5127.799209 | AU109: 5168.224475 | AV109: 5208.968436 | AW109: 5250.033604 | AX109: 5291.422511 | AY109: 5333.13771 | AZ109: 5375.181773 | BA109: 5417.557292 | BB109: 5460.266881 | BC109: 5503.313173 | BD109: 5546.698823 | BE109: 5590.426506 | BF109: 5634.498918 | BG109: 5678.918777 | BH109: 5723.688823 | BI109: 5768.811815 | BJ109: 5814.290537 | BK109: 5860.127792 | BL109: 5906.326408 | BM109: 5952.889233 | BN109: 5999.819139 | BO109: 6047.119019 | BP109: 6094.791789 | BQ109: 6142.840391 | BR109: 6191.267786 | BS109: 6240.076961 | BT109: 6289.270926 | BU109: 6338.852713 | BV109: 6388.825382 | BW109: 6439.192012 | BX109: 6489.95571 | BY109: 6541.119606 | BZ109: 6592.686856 | CA109: 6644.660639 | CB109: 6697.044159 | CC109: 6749.840648 | CD109: 6803.053361 | CE109: 6856.685578 | CF109: 6910.740608 | CG109: 6965.221784 | CH109: 7020.132465 | CI109: 7075.476037 | CJ109: 7131.255912 | CK109: 7187.475531 | CL109: 7244.138361 | CM109: 7301.247895 | CN109: 7358.807654 | CO109: 7416.821189
B110: Commercial Solar | M110: 0 | N110: 1991.203071 | O110: 2054.769921 | P110: 2205.538646 | Q110: 2313.375308 | R110: 2250.439189 | S110: 2297.137415 | T110: 2316.182491 | U110: 2328.953048 | V110: 2321.384535 | W110: 2315.249057 | X110: 2307.762985 | Y110: 2290.198236 | Z110: 2266.684545 | AA110: 2236.434688 | AB110: 2198.608904 | AC110: 2230.838611 | AD110: 2260.580835 | AE110: 2289.452474 | AF110: 2317.380156 | AG110: 2343.39931 | AH110: 2366.64818 | AI110: 2386.57811 | AJ110: 2405.484324 | AK110: 2423.236102 | AL110: 2440.35475 | AM110: 2455.873063 | AN110: 2470.085796 | AO110: 2483.284857 | AP110: 2495.116903 | AQ110: 2506.334451 | AR110: 2517.602431 | AS110: 2528.92107 | AT110: 2540.290594 | AU110: 2551.711234 | AV110: 2563.183219 | AW110: 2574.70678 | AX110: 2586.282148 | AY110: 2597.909557 | AZ110: 2609.58924 | BA110: 2621.321433 | BB110: 2633.106371 | BC110: 2644.944292 | BD110: 2656.835434 | BE110: 2668.780036 | BF110: 2680.778339 | BG110: 2692.830584 | BH110: 2704.937013 | BI110: 2717.09787 | BJ110: 2729.313401 | BK110: 2741.583849 | BL110: 2753.909464 | BM110: 2766.290491 | BN110: 2778.727182 | BO110: 2791.219785 | BP110: 2803.768552 | BQ110: 2816.373737 | BR110: 2829.035591 | BS110: 2841.754371 | BT110: 2854.530332 | BU110: 2867.363731 | BV110: 2880.254826 | BW110: 2893.203878 | BX110: 2906.211145 | BY110: 2919.276891 | BZ110: 2932.401378 | CA110: 2945.584869 | CB110: 2958.827632 | CC110: 2972.12993 | CD110: 2985.492034 | CE110: 2998.914211 | CF110: 3012.396731 | CG110: 3025.939866 | CH110: 3039.543888 | CI110: 3053.209071 | CJ110: 3066.93569 | CK110: 3080.724021 | CL110: 3094.574342 | CM110: 3108.486931 | CN110: 3122.462068 | CO110: 3136.500035
B111: Commercial Solar + Storage | M111: 0 | N111: 1991.203071 | O111: 2054.769921 | P111: 2205.538646 | Q111: 2313.375308 | R111: 2250.439189 | S111: 2297.137415 | T111: 2316.182491 | U111: 2328.953048 | V111: 2321.384535 | W111: 2315.249057 | X111: 2307.762985 | Y111: 2290.198236 | Z111: 2266.684545 | AA111: 2236.434688 | AB111: 2198.608904 | AC111: 2230.838611 | AD111: 2260.580835 | AE111: 2289.452474 | AF111: 2317.380156 | AG111: 2343.39931 | AH111: 2366.64818 | AI111: 2386.57811 | AJ111: 2405.484324 | AK111: 2423.236102 | AL111: 2440.35475 | AM111: 2455.873063 | AN111: 2470.085796 | AO111: 2483.284857 | AP111: 2495.116903 | AQ111: 2506.334451 | AR111: 2517.602431 | AS111: 2528.92107 | AT111: 2540.290594 | AU111: 2551.711234 | AV111: 2563.183219 | AW111: 2574.70678 | AX111: 2586.282148 | AY111: 2597.909557 | AZ111: 2609.58924 | BA111: 2621.321433 | BB111: 2633.106371 | BC111: 2644.944292 | BD111: 2656.835434 | BE111: 2668.780036 | BF111: 2680.778339 | BG111: 2692.830584 | BH111: 2704.937013 | BI111: 2717.09787 | BJ111: 2729.313401 | BK111: 2741.583849 | BL111: 2753.909464 | BM111: 2766.290491 | BN111: 2778.727182 | BO111: 2791.219785 | BP111: 2803.768552 | BQ111: 2816.373737 | BR111: 2829.035591 | BS111: 2841.754371 | BT111: 2854.530332 | BU111: 2867.363731 | BV111: 2880.254826 | BW111: 2893.203878 | BX111: 2906.211145 | BY111: 2919.276891 | BZ111: 2932.401378 | CA111: 2945.584869 | CB111: 2958.827632 | CC111: 2972.12993 | CD111: 2985.492034 | CE111: 2998.914211 | CF111: 3012.396731 | CG111: 3025.939866 | CH111: 3039.543888 | CI111: 3053.209071 | CJ111: 3066.93569 | CK111: 3080.724021 | CL111: 3094.574342 | CM111: 3108.486931 | CN111: 3122.462068 | CO111: 3136.500035
B112: Low-Income Community Solar | M112: 0 | N112: 323.7018154 | O112: 347.5529249 | P112: 364.085679 | Q112: 373.8335503 | R112: 365.9796381 | S112: 368.9494474 | T112: 369.0087899 | U112: 368.2899169 | V112: 365.3805841 | W112: 362.4520297 | X112: 359.2197305 | Y112: 354.8045242 | Z112: 349.6128315 | AA112: 1717.795861 | AB112: 1682.763009 | AC112: 1702.409599 | AD112: 1720.68129 | AE112: 1738.378958 | AF112: 1755.458072 | AG112: 1771.428221 | AH112: 1785.850113 | AI112: 1798.440709 | AJ112: 1810.338603 | AK112: 1821.469101 | AL112: 1832.083196 | AM112: 1841.68729 | AN112: 1850.418422 | AO112: 1858.411847 | AP112: 1865.479833 | AQ112: 1871.987196 | AR112: 1878.521081 | AS112: 1885.081605 | AT112: 1891.668882 | AU112: 1898.283029 | AV112: 1904.924163 | AW112: 1911.592401 | AX112: 1918.287861 | AY112: 1925.010662 | AZ112: 1931.760921 | BA112: 1938.53876 | BB112: 1945.344297 | BC112: 1952.177653 | BD112: 1959.03895 | BE112: 1965.928308 | BF112: 1972.84585 | BG112: 1979.791699 | BH112: 1986.765977 | BI112: 1993.768809 | BJ112: 2000.800319 | BK112: 2007.860631 | BL112: 2014.949871 | BM112: 2022.068165 | BN112: 2029.21564 | BO112: 2036.392422 | BP112: 2043.59864 | BQ112: 2050.834421 | BR112: 2058.099894 | BS112: 2065.395189 | BT112: 2072.720435 | BU112: 2080.075764 | BV112: 2087.461305 | BW112: 2094.877192 | BX112: 2102.323555 | BY112: 2109.800529 | BZ112: 2117.308246 | CA112: 2124.846841 | CB112: 2132.416447 | CC112: 2140.017201 | CD112: 2147.649238 | CE112: 2155.312695 | CF112: 2163.007708 | CG112: 2170.734416 | CH112: 2178.492956 | CI112: 2186.283468 | CJ112: 2194.10609 | CK112: 2201.960964 | CL112: 2209.84823 | CM112: 2217.768029 | CN112: 2225.720503 | CO112: 2233.705795
B113: Solar Photovoltaic Fixed Array (5 MW AC) | M113: 0 | N113: 1618.509077 | O113: 1737.764625 | P113: 1820.428395 | Q113: 1869.167751 | R113: 1829.89819 | S113: 1844.747237 | T113: 1845.04395 | U113: 1841.449585 | V113: 1826.902921 | W113: 1812.260148 | X113: 1796.098652 | Y113: 1774.022621 | Z113: 1748.064158 | AA113: 1717.795861 | AB113: 1682.763009 | AC113: 1702.409599 | AD113: 1720.68129 | AE113: 1738.378958 | AF113: 1755.458072 | AG113: 1771.428221 | AH113: 1785.850113 | AI113: 1798.440709 | AJ113: 1810.338603 | AK113: 1821.469101 | AL113: 1832.083196 | AM113: 1841.68729 | AN113: 1850.418422 | AO113: 1858.411847 | AP113: 1865.479833 | AQ113: 1871.987196 | AR113: 1878.521081 | AS113: 1885.081605 | AT113: 1891.668882 | AU113: 1898.283029 | AV113: 1904.924163 | AW113: 1911.592401 | AX113: 1918.287861 | AY113: 1925.010662 | AZ113: 1931.760921 | BA113: 1938.53876 | BB113: 1945.344297 | BC113: 1952.177653 | BD113: 1959.03895 | BE113: 1965.928308 | BF113: 1972.84585 | BG113: 1979.791699 | BH113: 1986.765977 | BI113: 1993.768809 | BJ113: 2000.800319 | BK113: 2007.860631 | BL113: 2014.949871 | BM113: 2022.068165 | BN113: 2029.21564 | BO113: 2036.392422 | BP113: 2043.59864 | BQ113: 2050.834421 | BR113: 2058.099894 | BS113: 2065.395189 | BT113: 2072.720435 | BU113: 2080.075764 | BV113: 2087.461305 | BW113: 2094.877192 | BX113: 2102.323555 | BY113: 2109.800529 | BZ113: 2117.308246 | CA113: 2124.846841 | CB113: 2132.416447 | CC113: 2140.017201 | CD113: 2147.649238 | CE113: 2155.312695 | CF113: 2163.007708 | CG113: 2170.734416 | CH113: 2178.492956 | CI113: 2186.283468 | CJ113: 2194.10609 | CK113: 2201.960964 | CL113: 2209.84823 | CM113: 2217.768029 | CN113: 2225.720503 | CO113: 2233.705795
B114: Solar Photovoltaic Fixed Array (5 MW AC) + Storage | M114: 0 | N114: 1618.509077 | O114: 1737.764625 | P114: 1820.428395 | Q114: 1869.167751 | R114: 1829.89819 | S114: 1844.747237 | T114: 1845.04395 | U114: 1841.449585 | V114: 1826.902921 | W114: 1812.260148 | X114: 1796.098652 | Y114: 1774.022621 | Z114: 1748.064158 | AA114: 1717.795861 | AB114: 1682.763009 | AC114: 1702.409599 | AD114: 1720.68129 | AE114: 1738.378958 | AF114: 1755.458072 | AG114: 1771.428221 | AH114: 1785.850113 | AI114: 1798.440709 | AJ114: 1810.338603 | AK114: 1821.469101 | AL114: 1832.083196 | AM114: 1841.68729 | AN114: 1850.418422 | AO114: 1858.411847 | AP114: 1865.479833 | AQ114: 1871.987196 | AR114: 1878.521081 | AS114: 1885.081605 | AT114: 1891.668882 | AU114: 1898.283029 | AV114: 1904.924163 | AW114: 1911.592401 | AX114: 1918.287861 | AY114: 1925.010662 | AZ114: 1931.760921 | BA114: 1938.53876 | BB114: 1945.344297 | BC114: 1952.177653 | BD114: 1959.03895 | BE114: 1965.928308 | BF114: 1972.84585 | BG114: 1979.791699 | BH114: 1986.765977 | BI114: 1993.768809 | BJ114: 2000.800319 | BK114: 2007.860631 | BL114: 2014.949871 | BM114: 2022.068165 | BN114: 2029.21564 | BO114: 2036.392422 | BP114: 2043.59864 | BQ114: 2050.834421 | BR114: 2058.099894 | BS114: 2065.395189 | BT114: 2072.720435 | BU114: 2080.075764 | BV114: 2087.461305 | BW114: 2094.877192 | BX114: 2102.323555 | BY114: 2109.800529 | BZ114: 2117.308246 | CA114: 2124.846841 | CB114: 2132.416447 | CC114: 2140.017201 | CD114: 2147.649238 | CE114: 2155.312695 | CF114: 2163.007708 | CG114: 2170.734416 | CH114: 2178.492956 | CI114: 2186.283468 | CJ114: 2194.10609 | CK114: 2201.960964 | CL114: 2209.84823 | CM114: 2217.768029 | CN114: 2225.720503 | CO114: 2233.705795
B115: Solar Photovoltaic w/Single Axis Tracking (100 MW AC) | M115: 0 | N115: 1245.815082 | O115: 1420.759328 | P115: 1435.318144 | Q115: 1424.960195 | R115: 1409.357192 | S115: 1392.357059 | T115: 1373.905408 | U115: 1353.946121 | V115: 1332.421306 | W115: 1309.27124 | X115: 1284.434319 | Y115: 1257.847006 | Z115: 1229.44377 | AA115: 1199.157035 | AB115: 1166.917115 | AC115: 1173.980587 | AD115: 1180.781745 | AE115: 1187.305442 | AF115: 1193.535988 | AG115: 1199.457132 | AH115: 1205.052046 | AI115: 1210.303308 | AJ115: 1215.192882 | AK115: 1219.7021 | AL115: 1223.811641 | AM115: 1227.501518 | AN115: 1230.751047 | AO115: 1233.538838 | AP115: 1235.842763 | AQ115: 1237.63994 | AR115: 1239.439731 | AS115: 1241.24214 | AT115: 1243.047169 | AU115: 1244.854824 | AV115: 1246.665107 | AW115: 1248.478023 | AX115: 1250.293575 | AY115: 1252.111767 | AZ115: 1253.932603 | BA115: 1255.756087 | BB115: 1257.582223 | BC115: 1259.411015 | BD115: 1261.242466 | BE115: 1263.07658 | BF115: 1264.913361 | BG115: 1266.752814 | BH115: 1268.594941 | BI115: 1270.439747 | BJ115: 1272.287236 | BK115: 1274.137412 | BL115: 1275.990278 | BM115: 1277.845839 | BN115: 1279.704098 | BO115: 1281.565059 | BP115: 1283.428727 | BQ115: 1285.295105 | BR115: 1287.164197 | BS115: 1289.036007 | BT115: 1290.910539 | BU115: 1292.787796 | BV115: 1294.667784 | BW115: 1296.550506 | BX115: 1298.435966 | BY115: 1300.324167 | BZ115: 1302.215114 | CA115: 1304.108812 | CB115: 1306.005263 | CC115: 1307.904471 | CD115: 1309.806442 | CE115: 1311.711179 | CF115: 1313.618685 | CG115: 1315.528965 | CH115: 1317.442024 | CI115: 1319.357864 | CJ115: 1321.27649 | CK115: 1323.197907 | CL115: 1325.122118 | CM115: 1327.049126 | CN115: 1328.978937 | CO115: 1330.911555
B116: Southern NW Solar Photovoltaic w/ Single Axis Tracking (100 MW AC) | M116: 0 | N116: 1245.815082 | O116: 1420.759328 | P116: 1435.318144 | Q116: 1424.960195 | R116: 1409.357192 | S116: 1392.357059 | T116: 1373.905408 | U116: 1353.946121 | V116: 1332.421306 | W116: 1309.27124 | X116: 1284.434319 | Y116: 1257.847006 | Z116: 1229.44377 | AA116: 1199.157035 | AB116: 1166.917115 | AC116: 1173.980587 | AD116: 1180.781745 | AE116: 1187.305442 | AF116: 1193.535988 | AG116: 1199.457132 | AH116: 1205.052046 | AI116: 1210.303308 | AJ116: 1215.192882 | AK116: 1219.7021 | AL116: 1223.811641 | AM116: 1227.501518 | AN116: 1230.751047 | AO116: 1233.538838 | AP116: 1235.842763 | AQ116: 1237.63994 | AR116: 1239.439731 | AS116: 1241.24214 | AT116: 1243.047169 | AU116: 1244.854824 | AV116: 1246.665107 | AW116: 1248.478023 | AX116: 1250.293575 | AY116: 1252.111767 | AZ116: 1253.932603 | BA116: 1255.756087 | BB116: 1257.582223 | BC116: 1259.411015 | BD116: 1261.242466 | BE116: 1263.07658 | BF116: 1264.913361 | BG116: 1266.752814 | BH116: 1268.594941 | BI116: 1270.439747 | BJ116: 1272.287236 | BK116: 1274.137412 | BL116: 1275.990278 | BM116: 1277.845839 | BN116: 1279.704098 | BO116: 1281.565059 | BP116: 1283.428727 | BQ116: 1285.295105 | BR116: 1287.164197 | BS116: 1289.036007 | BT116: 1290.910539 | BU116: 1292.787796 | BV116: 1294.667784 | BW116: 1296.550506 | BX116: 1298.435966 | BY116: 1300.324167 | BZ116: 1302.215114 | CA116: 1304.108812 | CB116: 1306.005263 | CC116: 1307.904471 | CD116: 1309.806442 | CE116: 1311.711179 | CF116: 1313.618685 | CG116: 1315.528965 | CH116: 1317.442024 | CI116: 1319.357864 | CJ116: 1321.27649 | CK116: 1323.197907 | CL116: 1325.122118 | CM116: 1327.049126 | CN116: 1328.978937 | CO116: 1330.911555
